Workbook

Sheet Readme First
A3: 1 | B3: Some programs in the Portfolio and Sector Views, (Single Family Existing and Electronic Media Tools & Marketing, for instance) are comprised
B4: of sub-groupings.
C5: Those sub-groups are color-coded and indented. Their totals add up to the grouping above.
A6: 2 | B6: In all program detail pages, program names, order number, and fuel type are noted in both the horizontal and vertical margins, providing a quick reference
B7: for readers, no matter where they are in the worksheet.
A8: 3 | B8: Measure tables are calculated for 2022/23-specific values.
B9: Original 2021 (the 2021 values originally stated in the 2021 ACP) are hard-coded in the detail pages for reference.
A10: 4 | B10: Navigation buttons are included in the detail pages. Readers can navigate directly to a corresponding gas or electric detail page.
B11: (The exception, of course, are those programs that are gas-or electric-only, or retired [red tab] programs.)
A12: 5 | B12: Tabs colored red indicate a retired program or a program that is on hiatus
C13: Over the years, as programs are retired and new programs implemented, old sheets within this workbook are re-purposed. As a result, all tabs may not be
C14: program sequential order, according to Exhibit 1's Portfolio View.

Sheet Budget Category Descriptions
B1: Exhibit 1 Budget Category Definitions
B3: Cost Element | C3: Also referred to as a General Ledger account number, the cost element is the finest level of detail within PSE accounting systems. There are often many cost element numbers that "roll up" into a cost element segment. For instance, the overhead segment includes material OH, transportation OH, labor OH, etc. Employee/Office Expenses include travel, meals, lodging, parking, etc. Cost elements have a very specific connotation and are typically designed to meet a variety of accounting standards, such as FERC requirements. Therefore, in Exhibit 1, the term "cost element" is rarely used. The groupings that represent the budget allocations are most accurately listed in the below table.
B4: Order number(s) | C4: This is the main level of tracking expenditures and expenses in Energy Effiency. Per FERC rules, all conservation order numbers start with a "1823nnnn", where "n" is some number. Cost elements apply to all order numbers (for instance, all conservation programs that offer incentives will have at least a labor, incentive and overhead cost element within the order number.
B5: Labor | C5: Energy Efficiency program staff labor. Average FTE cost including management assessments. This Budget Category group includes assessments from Major Accounts management, Resource Planning, Corporate Communications management, IT specialists and some building maintenance allocations.
B6: Marketing Labor | C6: Also Energy Efficiency staff labor, associated specifically with Marketing functions. Marketing allocates staffing according to program needs.
B7: Overhead | C7: Overhead--costs associated with primarily employee labor; benefits, for instance.
B8: Micro-Overhead | C8: Implemented in previous biennia, this budget category reflects assessments (both labor and non-labor, such as office supplies, departmental meetings, group trainings, etc.) that were formerly calculated, aggregated, and then represented in the Labor category. This provides a more direct view of expenditures that assess over a cost center, rather than directly to an order number.
B9: Marketing | C9: Service and materials associated with the cost of printing program brochures, marketing pieces, advertising, banners, etc. Also includes marketing conducted by vendors and contractors.
B10: Employee/Office Expense | C10: Costs associated with EE staff attending events, employee training, conferences, business meals, business parking, ferry & bridge tolls, mileage incurred on employee automobiles, office supplies, phones, subscriptions, software/hardware, etc.
B11: Outside Services | C11: Contractors and vendors, such as PECI, Ecos, CostCo, EFI, etc. Legal expenses, technical services (CMS design, PSE.com web portals, etc.). These costs do NOT include brochure development, marketing pieces, (which are classified under MARKETING). These costs do NOT include incentives paid to customers by contractors.
B12: Materials | C12: Primarily tools, trade show equipment, etc.
B13: Miscellaneous | C13: This category should seldomly be used, and only expenses that cannot be classified under one of the above categories.
B14: Direct Benefit to Customer | C14: All costs associated with rebates, grants, remuneration, value-added services. PSE cost element # 62510000; Consumer Incentive Payments, is classified by the Accounting department as Miscellaneous. However, it is one of the primarily elements of Energy Efficiency's Direct Benefit to Customer (DBtC).
B15: Revenue (Enter as a negative) | C15: Any amount that PSE is paid by a customer, partner, municipality or outside entity.

Sheet Global Figures Reference
A1: Global References
B3: Overhead Rates
D4: 2022 | E4: 2023
C5: Labor Overhead | D5: 0.571 | E5: 0.571
C6: Micro Overhead | D6: 0.21 | E6: 0.22
B8: Biennial Years
C9: First Year | D9: 2022
C10: Second Year | D10: 2023
B12: Messages
C13: Horizontal Table Reference | D13: This table summarizes the subtotals in the detail table below and is used to populate 2022-2023 Sector view tables (located at the front of this workbook).
C14: Horizontal Table Labels | D14: 2021 ACP (For comparison reference)
D15: 2022
D16: 2023
D17: 2022-2023 Total

Sheet Savings Terminology
A1: PSE's formerly used terms | B1: Updated Terms (2018) | C1: Definition
A2: Total Biennial Potential | B2: CPA Pro-Rata Share | C2: Pro-rata share of the utilities IRP's Conservation Potential Assessment's 10-year potential or 2 year total (whichever is greater). Includes NEEA.
A3: Total Base Savings | B3: EIA Target | C3: [(CPA Pro-Rata Share) + (other programs/measures with confident savings that were omitted from CPA)]
A4: Decoupling Penalty Target | B4: Decoupling Threshold | C4: [EIA Target * 0.05]
A5: Total Portfolio Target | B5: Total Utility Conservation Goal/Achievement | C5: All savings programs funded by Conservation Riders [EIA Target + Decoupling Threshold]
A6: (Loosely) "Excluded" | B6: Excluded Programs | C6: Programs approved by the Commission to be excluded from a Penalty Threshold. For last three biennia, these included NEEA and Pilots with Uncertain Savings.
A7: Utility-Specific Savings | B7: Utility-Specific Conservation Goal/Achievement | C7: [Total Utility Conservation Goal/Achievement – (Excluded programs (for instance, NEEA, Pilots with uncertain savings, retail wheeling accounts, etc.) + adjustments)]
A8: EIA Penalty Target | B8: EIA Penalty Threshold | C8: [Utility-Specific Conservation - Decoupling Threshold]
A9: Excess Savings (1) | B9: Excess Savings (Dept of Commerce driven) | C9: (Referencing results) The difference of [Total Utility Conservation Achievement – Total Utility Conservation Goal]
A10: Excess Savings (2P) | B10: PSE Excess Savings for Penalty Thresholds (UTC Driven) | C10: (Referencing results) The difference of Total Utility-Specific Conservation Achievement - Goal.

Sheet Building the 2-yr elec target
F5: Puget Sound Energy 2022-2023 Electric Portfolio Savings
G8: Index | H8: Description | I8: MWh | J8: aMW | K8: Comment | N8: Calculation
H10: Colored cells correspond to indicated lines in Exhibit 1: Savings and Budgets, 2-Year Portfolio View.
H11: Calculate the EIA Target
G12: a | H12: CPA Pro-Rata Share IRP & CPA Guidance | I12: 497564 | J12: =I12/8760 -> 56.79954338 | K12: IRP guidance (no behavior savings) | L12: Represents all available conservation that is cost-effective, reliable, and feasible, as a 20% pro-rata share of PSE's 10-year conservation potential, per RCW 19.285.040(1). | N12: Figure 3, Exhibit i
G13: b | H13: EIA Target | I13: =SUM(I12) -> 497564 | J13: =I13/8760 -> 56.79954338 | L13: Meets RCW 18.285.040(1)(a) and (b) requirements
H14: Calculate the Penalty Thresholds
G15: c | H15: Subtract NEEA Savings | I15: -28382.4 | J15: =I15/8760 -> -3.24 | L15: ("Option A" in savings calculation table from NEEA forecast--current method)
G16: d | H16: EIA Penalty Threshold | I16: =I13+I15 -> 469181.6 | J16: =I16/8760 -> 53.55954338 | K16: EIA Target + Decoupling Commitment. $50/MWh of shortfall. | L16: $58-60/MWh shortfall penalty, based on 2020 inflation, per RCW 19.285.060. | N16: = b - c
G17: e | H17: Decoupling Threshold | I17: =I13*0.05 -> 24878.2 | J17: =I17/8760 -> 2.839977169 | L17: 5 percent of EIA Target | N17: = b * .05
H18: Complete the Portfolio | L18: Use CPA Pro-Rata Share as foundation.
G19: f | H19: Add Firm Savings Excluded from CPA | I19: 9549.935 | J19: =I19/8760 -> 1.090175228 | K19: 15,000 residential HER customers | L19: 2022/2023: 449s, special contracts
G20: g | H20: Add Pilots with Uncertain Savings | I20: 4725 | J20: =I20/8760 -> 0.5393835616 | K20: New Residential + Small Business
G21: h | H21: Total 2022-2023 Utility Conservation Goal | I21: =I13+SUM(I17:I20) -> 536717.135 | J21: =I21/8760 -> 61.26907934 | L21: This is the total Portfolio to which Energy Efficiency is managing. | N21: = b + e + (f + g)
L28: D.C. = Decoupling Commitment
L29: EIA = Energy Independence Act; referencing RCW 19.285, or "I-937".
L30: HER = Residential Home Energy Reports
L31: IRP = Integrated Resource Plan

Sheet Building the 2-yr gas target
D7: Puget Sound Energy 2022-2023 Natural Gas Portfolio Savings
E10: Index | F10: Description | G10: Therms | H10: Comment | K10: Calculation
F12: Calculate Natural Gas Penalty Threshold | H12: These are specific elements that comprise the Portfolio View of Exhibit 1
E13: a | F13: CPA First Two Years IRP Guidance | G13: 9262930.566
E14: b | F14: Subtract NEEA Savings | G14: 0
E15: c | F15: Total Natural Gas Penalty Threshold | G15: =G13+G14 -> 9262930.566 | H15: Penalty outlined in Stipulation Agreement, UG-011571 Section M43. | K15: = a + b
E16: d | F16: Decoupling Threshold | G16: =G13*0.05 -> 463146.5283 | H16: Penalty = Up to $75,000, depending on range | K16: = a *0.05
F17: Build the Total Utility Conservation Goal
E18: e | F18: Add Pilots with Uncertain Savings | G18: 65250
E19: f | F19: Total 2022-2023 Utility Conservation Goal | G19: =SUM(G15:G18) -> 9791327.094 | H19: This is the total Portfolio to which Energy Efficiency is managing. | K19: = c + d + e
G24: It is important to note that many specific natural gas program total values include decimals. Their aggregation may
G25: result in slight rounding differences between this table and the Portfolio View of Exhibit 1.
G28: [1] In Docket UG-170034, Public Version Testimony, (UE-170033) 2017 GRC Piliaris direct, page 145 of 159:
G29: 11 “What would happen if PSE does not meet these decoupling-related gas
G30: 12 conservation commitments?
G31: 13 A. PSE proposes to pay $20,000 for meeting between 4.5 percent and 5.0 percent of
G32: 14 its incremental gas conservation commitment, $50,000 for meeting between 3.75
G33: 15 percent and 4.5 percent of its incremental commitment, and $75,000 for less than
G34: 16 3.75 percent of its incremental commitment.”

Sheet Compare 20-21 to 22-23 (hidden)
A1: Schedule | B1: Program Name | E1: MWh Savings | I1: Electric Rider Budget | M1: Therm Savings | Q1: Gas Rider Budget | U1: Total Rider Budget
E2: 2020-2021 BCP | F2: 2022-2023 BCP | G2: Difference (22/23 - 20/21) | H2: % Change | I2: 2020-2021 BCP | J2: 2022-2023 BCP | K2: Difference (22/23 - 20/21) | L2: % Change | M2: 2020-2021 BCP | N2: 2022-2023 BCP | O2: Difference (22/23 - 20/21) | P2: % Change | Q2: 2020-2021 BCP | R2: 2022-2023 BCP | S2: Difference (22/23 - 20/21) | T2: % Change | U2: 2020-2021 BCP | V2: 2022-2023 BCP | W2: Difference (22/23 - 20/21) | X2: % Change
B3: Residential Energy Management
A4: 201 | B4: Low Income Weatherization | E4: 3915.7792 | F4: ='Portfolio--2022-2023'!F7 -> 3976.7612 | G4: =F4-E4 -> 60.982 | H4: =(F4-E4)/E4 -> 0.01557340107 | I4: 12289870.85 | J4: ='Portfolio--2022-2023'!G7 -> 14187949.12 | K4: =J4-I4 -> 1898078.27 | L4: =(J4-I4)/I4 -> 0.1544424911 | M4: 49918.31 | N4: ='Portfolio--2022-2023'!H7 -> 40214.36 | O4: =N4-M4 -> -9703.95 | P4: =(N4-M4)/M4 -> -0.1943966052 | Q4: 2543666.336 | R4: ='Portfolio--2022-2023'!I7 -> 2281971.583 | S4: =R4-Q4 -> -261694.753 | T4: =(R4-Q4)/Q4 -> -0.1028809279 | U4: 14833537.19 | V4: =J4+R4 -> 16469920.71 | W4: =V4-U4 -> 1636383.517 | X4: =(V4-U4)/U4 -> 0.1103164738
A5: 214 | B5: Single Family Existing Subtotal | E5: 137220.0276 | F5: ='Portfolio--2022-2023'!F8 -> 154597.5324 | G5: =F5-E5 -> 17377.50486 | H5: =(F5-E5)/E5 -> 0.1266397126 | I5: 34783732.27 | J5: ='Portfolio--2022-2023'!G8 -> 40818019.41 | K5: 6034287.136 | L5: 0.1734801513 | M5: 4123983.5 | N5: ='Portfolio--2022-2023'!H8 -> 6817512.308 | O5: 2693528.808 | P5: 0.6531376296 | Q5: 14304230.33 | R5: ='Portfolio--2022-2023'!I8 -> 22089681.29 | S5: 7785450.968 | T5: 0.544276119 | U5: 49087962.6 | V5: =J5+R5 -> 62907700.7 | W5: 13819738.1 | X5: 0.2815300814
C6: Residential lighting | E6: 35395.01941 | F6: ='Portfolio--2022-2023'!F9 -> 1706.0096 | G6: -33689.00981 | H6: -0.9518008571 | I6: 8972128.11 | J6: ='Portfolio--2022-2023'!G9 -> 1875394.495 | K6: -7096733.615 | L6: -0.7909755108 | M6: 0 | N6: ='Portfolio--2022-2023'!H9 -> 0 | O6: 0 | Q6: 0 | R6: ='Portfolio--2022-2023'!I9 -> 0 | S6: 0 | U6: 8972128.11 | V6: 1875394.495 | W6: -7096733.615 | X6: -0.7909755108
C7: Space heat | E7: 28464.405 | F7: ='Portfolio--2022-2023'!F10 -> 17549.596 | G7: -10914.809 | H7: -0.3834546691 | I7: 12915839 | J7: ='Portfolio--2022-2023'!G10 -> 9489893.815 | K7: -3425945.185 | L7: -0.2652514626 | M7: 1130450 | N7: ='Portfolio--2022-2023'!H10 -> 1310709.41 | O7: 180259.41 | P7: 0.1594581008 | Q7: 4376339 | R7: ='Portfolio--2022-2023'!I10 -> 9492621.765 | S7: 5116282.765 | T7: 1.169078256 | U7: 17292178 | V7: 18982515.58 | W7: 1690337.58 | X7: 0.09775157184
C8: Water heat | E8: 4450 | F8: ='Portfolio--2022-2023'!F11 -> 2897.69891 | G8: -1552.30109 | H8: -0.3488317056 | I8: 1984919.5 | J8: ='Portfolio--2022-2023'!G11 -> 2358410.025 | K8: 373490.525 | L8: 0.1881640666 | M8: 107600 | N8: ='Portfolio--2022-2023'!H11 -> 130784.45 | O8: 23184.45 | P8: 0.2154688662 | Q8: 657919.5 | R8: ='Portfolio--2022-2023'!I11 -> 1022544.325 | S8: 364624.825 | T8: 0.5542088736 | U8: 2642839 | V8: 3380954.35 | W8: 738115.35 | X8: 0.2792888065
C9: Home Energy Assessment | E9: 6247.546654 | F9: ='Portfolio--2022-2023'!F12 -> 0 | G9: -6247.546654 | H9: -1 | I9: 2350595.157 | J9: ='Portfolio--2022-2023'!G12 -> 0 | K9: -2350595.157 | L9: -1 | M9: 0 | N9: ='Portfolio--2022-2023'!H12 -> 0 | O9: 0 | Q9: 0 | R9: ='Portfolio--2022-2023'!I12 -> 0 | S9: 0 | U9: 2350595.157 | V9: 0 | W9: -2350595.157 | X9: -1
C10: Home Appliances | E10: 5104.28128 | F10: ='Portfolio--2022-2023'!F13 -> 1467.418 | G10: -3636.86328 | H10: -0.7125123167 | I10: 2591725.34 | J10: ='Portfolio--2022-2023'!G13 -> 1624514.285 | K10: -967211.055 | L10: -0.3731919583 | M10: 14017.2 | N10: ='Portfolio--2022-2023'!H13 -> 12341.4 | O10: -1675.8 | P10: -0.1195531205 | Q10: 0 | R10: ='Portfolio--2022-2023'!I13 -> 0 | S10: 0 | U10: 2591725.34 | V10: 1624514.285 | W10: -967211.055 | X10: -0.3731919583
C11: Smart Thermostats | E11: 1555.48144 | F11: ='Portfolio--2022-2023'!F14 -> 1997.742 | G11: 442.26056 | H11: 0.2843239068 | I11: 525502.86 | J11: ='Portfolio--2022-2023'!G14 -> 1972413.2 | K11: 1446910.34 | L11: 2.753382427 | M11: 629449.8 | N11: ='Portfolio--2022-2023'!H14 -> 583301.7 | O11: -46148.1 | P11: -0.0733149808 | Q11: 2606184.05 | R11: ='Portfolio--2022-2023'!I14 -> 3672994.375 | S11: 1066810.325 | T11: 0.4093380608 | U11: 3131686.91 | V11: 5645407.575 | W11: 2513720.665 | X11: 0.802673044
C12: Showerheads | E12: 4104.4598 | F12: ='Portfolio--2022-2023'!F15 -> 0.0948 | G12: -4104.365 | H12: -0.9999769032 | I12: 1213769.06 | J12: ='Portfolio--2022-2023'!G15 -> 5136.85 | K12: -1208632.21 | L12: -0.9957678522 | M12: 115264.7 | N12: ='Portfolio--2022-2023'!H15 -> 5.2 | O12: -115259.5 | P12: -0.9999548864 | Q12: 501672.66 | R12: ='Portfolio--2022-2023'!I15 -> 4092.025 | S12: -497580.635 | T12: -0.991843237 | U12: 1715441.72 | V12: 9228.875 | W12: -1706212.845 | X12: -0.9946201174
C13: Weatherization | E13: 4122.524 | F13: ='Portfolio--2022-2023'!F16 -> 2562.797136 | G13: -1559.726864 | H13: -0.3783427007 | I13: 1494156.2 | J13: ='Portfolio--2022-2023'!G16 -> 2427787.96 | K13: 933631.76 | L13: 0.6248555272 | M13: 695350.8 | N13: ='Portfolio--2022-2023'!H16 -> 496780.1478 | O13: -198570.6522 | P13: -0.2855690282 | Q13: 4163333.8 | R13: ='Portfolio--2022-2023'!I16 -> 5075454.23 | S13: 912120.43 | T13: 0.219084146 | U13: 5657490 | V13: 7503242.19 | W13: 1845752.19 | X13: 0.3262493067
C14: Home Energy Reports | E14: 47776.31 | F14: ='Portfolio--2022-2023'!F17 -> 96223.22 | G14: 48446.91 | H14: 1.014036245 | I14: 2735097.042 | J14: ='Portfolio--2022-2023'!G17 -> 3659837.56 | K14: 924740.518 | L14: 0.3381015386 | M14: 1431851 | N14: ='Portfolio--2022-2023'!H17 -> 4283590 | O14: 2851739 | P14: 1.99164508 | Q14: 1998781.317 | R14: ='Portfolio--2022-2023'!I17 -> 2821974.575 | S14: 823193.258 | T14: 0.4118475848 | U14: 4733878.359 | V14: 6481812.135 | W14: 1747933.776 | X14: 0.3692392671
C15: Midstream HVAC and Water Heat | F15: ='Portfolio--2022-2023'!F18 -> 30192.956 | G15: 30192.956 | J15: ='Portfolio--2022-2023'!G18 -> 17404631.21 | K15: =J15-I15 -> 17404631.21 | L15: =(J15-I15)/I15 ->  | N15: ='Portfolio--2022-2023'!H18 -> 0 | O15: =N15-M15 -> 0 | P15: =(N15-M15)/M15 ->  | R15: ='Portfolio--2022-2023'!I18 -> 0 | S15: =R15-Q15 -> 0 | T15: =(R15-Q15)/Q15 ->  | V15: =J15+R15 -> 17404631.21 | W15: =V15-U15 -> 17404631.21 | X15: =(V15-U15)/U15 -> 
A16: 215 | B16: Single Family New Construction | E16: 1447.7 | F16: ='Portfolio--2022-2023'!F19 -> 770.552 | G16: -677.148 | H16: -0.467740554 | I16: 1027008.82 | J16: ='Portfolio--2022-2023'!G19 -> 866052.2075 | K16: -160956.6125 | L16: -0.1567236906 | M16: 51860 | N16: ='Portfolio--2022-2023'!H19 -> 9798.6 | O16: -42061.4 | P16: -0.8110566911 | Q16: 291287.32 | R16: ='Portfolio--2022-2023'!I19 -> 140465.39 | S16: -150821.93 | T16: -0.5177771899 | U16: 1318296.14 | V16: 1006517.598 | W16: -311778.5425 | X16: -0.2365011419
A17: 214 & 217 | B17: Moderate Income Residences | E17: 0 | F17: ='Portfolio--2022-2023'!F20 -> 0 | G17: 0 | I17: 87326.66 | J17: ='Portfolio--2022-2023'!G20 -> 175191.2 | K17: 87864.54 | L17: 1.006159402 | M17: 0 | N17: ='Portfolio--2022-2023'!H20 -> 0 | O17: 0 | Q17: 87326.66 | R17: ='Portfolio--2022-2023'!I20 -> 121610.1 | S17: 34283.44 | T17: 0.3925884718 | U17: 174653.32 | V17: 296801.3 | W17: 122147.98 | X17: 0.6993739369
A18: 217 | B18: Multifamily Retrofit | E18: 25426.92114 | F18: ='Portfolio--2022-2023'!F21 -> 18175.32492 | G18: -7251.59622 | H18: -0.285193641 | I18: 13544656.43 | J18: ='Portfolio--2022-2023'!G21 -> 17303758.58 | K18: 3759102.144 | L18: 0.2775339605 | M18: 53534.26 | N18: ='Portfolio--2022-2023'!H21 -> 74877.76 | O18: 21343.5 | P18: 0.3986886155 | Q18: 533849.924 | R18: ='Portfolio--2022-2023'!I21 -> 1003515.559 | S18: 469665.635 | T18: 0.8797709129 | U18: 14078506.36 | V18: 18307274.14 | W18: 4228767.779 | X18: 0.3003704847
A19: 218 | B19: Multifamily New Construction | E19: 11862 | F19: ='Portfolio--2022-2023'!F22 -> 8500 | G19: -3362 | H19: -0.2834260664 | I19: 4408040.4 | J19: ='Portfolio--2022-2023'!G22 -> 4214966.67 | K19: -193073.73 | L19: -0.04380035401 | M19: 109900 | N19: ='Portfolio--2022-2023'!H22 -> 65000 | O19: -44900 | P19: -0.4085532302 | Q19: 910415.06 | R19: ='Portfolio--2022-2023'!I22 -> 504073.1 | S19: -406341.96 | T19: -0.4463260526 | U19: 5318455.46 | V19: 4719039.77 | W19: -599415.69 | X19: -0.1127048434
B20: Subtotal, Residential Programs | E20: 179872.4279 | F20: ='Portfolio--2022-2023'!F23 -> 186020.1706 | G20: 6147.742642 | H20: 0.03417834914 | I20: 66140635.44 | J20: ='Portfolio--2022-2023'!G23 -> 77565937.18 | K20: 11425301.75 | L20: 0.1727425458 | M20: 4389196.07 | N20: ='Portfolio--2022-2023'!H23 -> 7007403.028 | O20: 2618206.958 | P20: 0.5965117338 | Q20: 18670775.63 | R20: ='Portfolio--2022-2023'!I23 -> 26141317.03 | S20: 7470541.4 | T20: 0.4001194995 | U20: 84811411.06 | V20: =J20+R20 -> 103707254.2 | W20: 18895843.15 | X20: 0.2227983583
B22: Business Energy Management
A23: 250 | B23: Commercial / Industrial Retrofit | E23: 148500 | F23: ='Portfolio--2022-2023'!F26 -> 140519.199 | G23: =F23-E23 -> -7980.801 | H23: =(F23-E23)/E23 -> -0.05374276768 | I23: 40242911.96 | J23: ='Portfolio--2022-2023'!G26 -> 53018897.06 | K23: =J23-I23 -> 12775985.1 | L23: =(J23-I23)/I23 -> 0.3174716858 | M23: 670000 | N23: ='Portfolio--2022-2023'!H26 -> 1110268 | O23: =N23-M23 -> 440268 | P23: =(N23-M23)/M23 -> 0.6571164179 | Q23: 3120756 | R23: ='Portfolio--2022-2023'!I26 -> 5186153.359 | S23: =R23-Q23 -> 2065397.359 | T23: =(R23-Q23)/Q23 -> 0.6618259674 | U23: 43363667.96 | V23: =J23+R23 -> 58205050.42 | W23: =V23-U23 -> 14841382.46 | X23: =(V23-U23)/U23 -> 0.3422538534
A24: 251 | B24: Commercial/Industrial New Construction | E24: 35000 | F24: ='Portfolio--2022-2023'!F27 -> 47000 | G24: =F24-E24 -> 12000 | H24: =(F24-E24)/E24 -> 0.3428571429 | I24: 9344846 | J24: ='Portfolio--2022-2023'!G27 -> 15832661.95 | K24: 6487815.95 | L24: 0.6942667595 | M24: 200000 | N24: ='Portfolio--2022-2023'!H27 -> 180000 | O24: -20000 | P24: -0.1 | Q24: 1055934 | R24: ='Portfolio--2022-2023'!I27 -> 1043032.09 | S24: -12901.91 | T24: -0.01221848146 | U24: 10400780 | V24: =J24+R24 -> 16875694.04 | W24: 6474914.04 | X24: 0.6225411979
A25: 253 | B25: Commercial Strategic Energy Management | E25: 30000 | F25: ='Portfolio--2022-2023'!F28 -> 32000 | G25: 2000 | H25: 0.06666666667 | I25: 3569336.394 | J25: ='Portfolio--2022-2023'!G28 -> 5112786.225 | K25: 1543449.831 | L25: 0.4324192681 | M25: 1140000 | N25: ='Portfolio--2022-2023'!H28 -> 973000 | O25: -167000 | P25: -0.1464912281 | Q25: 1127632.789 | R25: ='Portfolio--2022-2023'!I28 -> 1602285.825 | S25: 474653.0358 | T25: 0.4209287282 | U25: 4696969.183 | V25: 6715072.05 | W25: 2018102.867 | X25: 0.4296606574
A26: E258 | B26: Large Power User - Self Directed Program - Subtotal | E26: 16151.13 | F26: ='Portfolio--2022-2023'!F29 -> 20042.48 | G26: =F26-E26 -> 3891.35 | H26: 0.2409336065 | I26: 8370734.387 | J26: ='Portfolio--2022-2023'!G29 -> 9549283.208 | K26: 1178548.821 | L26: 0.1407939575 | N26: ='Portfolio--2022-2023'!H29 -> 0 | O26: 0 | R26: ='Portfolio--2022-2023'!I29 -> 0 | S26: 0 | U26: 8370734.387 | V26: 9549283.208 | W26: 1178548.821 | X26: 0.1407939575
A27: E258 | C27: 449 Customers | E27: 9197.791 | F27: ='Portfolio--2022-2023'!F30 -> 9549.935 | G27: 352.144 | H27: 0.03828571447 | I27: 4248048.734 | J27: ='Portfolio--2022-2023'!G30 -> 4831364.797 | K27: 583316.0634 | L27: 0.1373138822 | N27: ='Portfolio--2022-2023'!H30 -> 0 | O27: 0 | R27: ='Portfolio--2022-2023'!I30 -> 0 | S27: 0 | U27: 4248048.734 | V27: 4831364.797 | W27: 583316.0634 | X27: 0.1373138822
A28: E258 | C28: Non-449 Customers | E28: 6953.339 | F28: ='Portfolio--2022-2023'!F31 -> 10492.545 | G28: 3539.206 | H28: 0.5089937367 | I28: 4122685.653 | J28: ='Portfolio--2022-2023'!G31 -> 4717918.411 | K28: 595232.758 | L28: 0.1443798553 | N28: ='Portfolio--2022-2023'!H31 -> 0 | O28: 0 | R28: ='Portfolio--2022-2023'!I31 -> 0 | S28: 0 | U28: 4122685.653 | V28: 4717918.411 | W28: 595232.758 | X28: 0.1443798553
A29: 261 | B29: Energy Efficient Technology Evaluation | E29: 0 | F29: ='Portfolio--2022-2023'!F32 -> 0 | G29: 0 | I29: 0 | J29: ='Portfolio--2022-2023'!G32 -> 0 | K29: 0 | M29: 0 | N29: ='Portfolio--2022-2023'!H32 -> 0 | O29: 0 | Q29: 0 | R29: ='Portfolio--2022-2023'!I32 -> 0 | S29: 0 | U29: 0 | V29: 0 | W29: 0
A30: 262 | B30: Commercial Rebates | E30: 76375.7446 | F30: ='Portfolio--2022-2023'!F33 -> 83199.0878 | G30: 6823.3432 | H30: =(F30-E30)/E30 -> 0.08933913817 | I30: 27327113.46 | J30: ='Portfolio--2022-2023'!G33 -> 31519360.44 | K30: 4192246.979 | L30: =(J30-I30)/I30 -> 0.1534097989 | M30: 1284086 | N30: ='Portfolio--2022-2023'!H33 -> 1418618.4 | O30: 134532.4 | P30: 0.1047689952 | Q30: 4801390.844 | R30: ='Portfolio--2022-2023'!I33 -> 6698380.697 | S30: 1896989.853 | T30: 0.395091738 | U30: 32128504.3 | V30: 38217741.13 | W30: 6089236.832 | X30: 0.189527554
B31: Subtotal, Business Programs | E31: =SUM(E23:E26)+E30 -> 306026.8746 | F31: ='Portfolio--2022-2023'!F34 -> 322760.7668 | G31: =F31-E31 -> 16733.8922 | H31: =(F31-E31)/E31 -> 0.05468111983 | I31: 88854942.2 | J31: ='Portfolio--2022-2023'!G34 -> 115032988.9 | K31: 26178046.68 | L31: 0.2946155389 | M31: 3294086 | N31: ='Portfolio--2022-2023'!H34 -> 3681886.4 | O31: 387800.4 | P31: 0.1177262524 | Q31: 10105713.63 | R31: ='Portfolio--2022-2023'!I34 -> 14529851.97 | S31: 4424138.338 | T31: =(R31-Q31)/Q31 -> 0.4377858406 | U31: 98960655.83 | V31: 129562840.8 | W31: 30602185.02 | X31: 0.3092358752
Q32: 0 | R32: ='Portfolio--2022-2023'!I35 -> 0 | U32: 0 | V32: 0
B33: Pilots With Uncertain Savings | Q33: 0 | R33: ='Portfolio--2022-2023'!I36 -> 0
A34: 249 | B34: Residential | E34: 11480 | F34: ='Portfolio--2022-2023'!F37 -> 719.45 | G34: =F34-E34 -> -10760.55 | H34: =(F34-E34)/E34 -> -0.9373301394 | I34: 2771949.5 | J34: ='Portfolio--2022-2023'!G37 -> 2013759.85 | K34: =J34-I34 -> -758189.65 | L34: =(J34-I34)/I34 -> -0.2735221728 | M34: 300000 | N34: ='Portfolio--2022-2023'!H37 -> 25125 | O34: =N34-M34 -> -274875 | P34: =(N34-M34)/M34 -> -0.91625 | Q34: 176700 | R34: ='Portfolio--2022-2023'!I37 -> 871983.55 | S34: =R34-Q34 -> 695283.55 | T34: =(R34-Q34)/Q34 -> 3.934824844 | U34: 2948649.5 | V34: =J34+R34 -> 2885743.4 | W34: =V34-U34 -> -62906.1 | X34: =(V34-U34)/U34 -> -0.02133386827
A35: 249 | B35: Commercial Pay for Performance Pilot | E35: 3600 | F35: ='Portfolio--2022-2023'!F38 -> 1500 | G35: -2100 | H35: -0.5833333333 | I35: 1219220 | J35: ='Portfolio--2022-2023'!G38 -> 324350.25 | K35: -894869.75 | L35: -0.733969054 | M35: 20000 | N35: ='Portfolio--2022-2023'!H38 -> 7500 | O35: -12500 | P35: -0.625 | Q35: 25125 | R35: ='Portfolio--2022-2023'!I38 -> 1870.05 | S35: -23254.95 | T35: -0.9255701493 | U35: 1244345 | V35: 326220.3 | W35: -918124.7 | X35: -0.7378377379
B36: Subtotal, Pilots | E36: 15080 | F36: ='Portfolio--2022-2023'!F39 -> 2219.45 | G36: -12860.55 | H36: -0.852821618 | I36: 3991169.5 | J36: ='Portfolio--2022-2023'!G39 -> 2338110.1 | K36: -1653059.4 | L36: =(J36-I36)/I36 -> -0.4141792024 | M36: 320000 | N36: ='Portfolio--2022-2023'!H39 -> 32625 | O36: =N36-M36 -> -287375 | P36: -0.898046875 | Q36: 201825 | R36: ='Portfolio--2022-2023'!I39 -> 873853.6 | S36: 672028.6 | T36: 3.32975895 | U36: 4192994.5 | V36: 3211963.7 | W36: -981030.8 | X36: -0.2339690167
B38: Regional Efficiency Programs
A39: E254 | B39: NW Energy Efficiency Alliance (NEEA) | E39: 23564.4 | F39: ='Portfolio--2022-2023'!F42 -> 27593.21335 | G39: =F39-E39 -> 4028.813351 | H39: =(F39-E39)/E39 -> 0.1709703345 | I39: 8914410 | J39: ='Portfolio--2022-2023'!G42 -> 9833280 | K39: =J39-I39 -> 918870 | L39: =(J39-I39)/I39 -> 0.1030769283 | M39: 0 | N39: ='Portfolio--2022-2023'!H42 -> 0 | O39: =N39-M39 -> 0 | P39: =(N39-M39)/M39 ->  | Q39: 0 | R39: ='Portfolio--2022-2023'!I42 -> 0 | S39: =R39-Q39 -> 0 | T39: =(R39-Q39)/Q39 ->  | U39: 8914410 | V39: =J39+R39 -> 9833280 | W39: =V39-U39 -> 918870 | X39: =(V39-U39)/U39 -> 0.1030769283
B40: NEEA Natural Gas Market Transformation | E40: 0 | F40: ='Portfolio--2022-2023'!F43 -> 0 | G40: 0 | I40: 0 | J40: ='Portfolio--2022-2023'!G43 -> 0 | K40: 0 | M40: 0 | N40: ='Portfolio--2022-2023'!H43 -> 0 | O40: 0 | Q40: 3466888 | R40: ='Portfolio--2022-2023'!I43 -> 3180472 | S40: -286416 | T40: -0.08261472537 | U40: 3466888 | V40: =J40+R40 -> 3180472 | W40: -286416 | X40: -0.08261472537
B41: Targeted DSM | E41: 0 | F41: ='Portfolio--2022-2023'!F44 -> 0 | G41: 0 | I41: 926784.74 | J41: ='Portfolio--2022-2023'!G44 -> 1279794.988 | K41: 353010.2475 | L41: 0.3808977773 | M41: 0 | N41: ='Portfolio--2022-2023'!H44 -> 0 | O41: 0 | Q41: 397193.46 | R41: ='Portfolio--2022-2023'!I44 -> 584912.1375 | S41: 187718.6775 | T41: 0.4726127099 | U41: 1323978.2 | V41: 1864707.125 | W41: 540728.925 | X41: 0.4084122571
A42: E292 | B42: Generation, Transmission and Distribution | E42: 1500 | F42: ='Portfolio--2022-2023'!F45 -> 12000 | G42: 10500 | H42: 7 | J42: ='Portfolio--2022-2023'!G45 -> 0 | K42: 0 | M42: 0 | N42: ='Portfolio--2022-2023'!H45 -> 0 | O42: 0 | Q42: 0 | R42: ='Portfolio--2022-2023'!I45 -> 0 | S42: 0 | U42: 926784.74 | V42: 0 | W42: -926784.74 | X42: -1
B43: Subtotal, Regional Programs | E43: 25064.4 | F43: ='Portfolio--2022-2023'!F46 -> 39593.21335 | G43: =F43-E43 -> 14528.81335 | H43: 0.5796593316 | I43: 9841194.74 | J43: ='Portfolio--2022-2023'!G46 -> 11113074.99 | K43: =J43-I43 -> 1271880.248 | L43: =(J43-I43)/I43 -> 0.1292404308 | M43: 0 | N43: ='Portfolio--2022-2023'!H46 -> 0 | O43: 0 | Q43: 3864081.46 | R43: ='Portfolio--2022-2023'!I46 -> 3765384.138 | S43: -98697.3225 | T43: =(R43-Q43)/Q43 -> -0.02554224685 | U43: 13705276.2 | V43: 14878459.12 | W43: 1173182.925 | X43: 0.08560082321
B45: Energy Efficiency Portfolio Support
B46: Data and Systems Services | E46: 0 | F46: ='Portfolio--2022-2023'!F49 -> 0 | G46: =F46-E46 -> 0 | H46: =(F46-E46)/E46 ->  | I46: 2121378.42 | J46: ='Portfolio--2022-2023'!G49 -> 2040590.22 | K46: =J46-I46 -> -80788.2 | L46: =(J46-I46)/I46 -> -0.03808288009 | M46: 0 | N46: ='Portfolio--2022-2023'!H49 -> 0 | O46: =N46-M46 -> 0 | P46: =(N46-M46)/M46 ->  | Q46: 316987.58 | R46: ='Portfolio--2022-2023'!I49 -> 304915.78 | S46: =R46-Q46 -> -12071.8 | T46: =(R46-Q46)/Q46 -> -0.03808288009 | U46: 2438366 | V46: =J46+R46 -> 2345506 | W46: =V46-U46 -> -92860 | X46: =(V46-U46)/U46 -> -0.03808288009
B47: Rebates Processing | E47: 0 | F47: ='Portfolio--2022-2023'!F50 -> 0 | G47: 0 | I47: 1268135.73 | J47: ='Portfolio--2022-2023'!G50 -> 1981161.402 | K47: 713025.6725 | L47: 0.5622628995 | M47: 0 | N47: ='Portfolio--2022-2023'!H50 -> 0 | O47: 0 | Q47: 202826.78 | R47: ='Portfolio--2022-2023'!I50 -> 296922.04 | S47: 94095.26 | T47: 0.4639193109 | U47: 1470962.51 | V47: =J47+R47 -> 2278083.442 | W47: 807120.9325 | X47: 0.5487025856
B48: Verification Team | E48: 0 | F48: ='Portfolio--2022-2023'!F51 -> 0 | G48: 0 | I48: 1171556.78 | J48: ='Portfolio--2022-2023'!G51 -> 1342787.289 | K48: 171230.509 | L48: 0.1461563894 | M48: 0 | N48: ='Portfolio--2022-2023'!H51 -> 0 | O48: 0 | Q48: 172459.22 | R48: ='Portfolio--2022-2023'!I51 -> 200452.961 | S48: 27993.741 | T48: 0.1623209301 | U48: 1344016 | V48: 1543240.25 | W48: 199224.25 | X48: 0.1482305642
B49: Programs Support | E49: 0 | F49: ='Portfolio--2022-2023'!F52 -> 0 | G49: 0 | I49: 825718.92 | J49: ='Portfolio--2022-2023'!G52 -> 1898567.723 | K49: 1072848.803 | L49: 1.299290565 | M49: 0 | N49: ='Portfolio--2022-2023'!H52 -> 0 | O49: 0 | Q49: 123797.08 | R49: ='Portfolio--2022-2023'!I52 -> 193864.6225 | S49: 70067.5425 | T49: 0.565987037 | U49: 949516 | V49: 2092432.345 | W49: 1142916.345 | X49: 1.203683082
B50: Trade Ally Memberships | E50: 0 | F50: ='Portfolio--2022-2023'!F53 -> 0 | G50: 0 | I50: 236000 | J50: ='Portfolio--2022-2023'!G53 -> 243600 | K50: 7600 | L50: 0.03220338983 | M50: 0 | N50: ='Portfolio--2022-2023'!H53 -> 0 | O50: 0 | Q50: 44000 | R50: ='Portfolio--2022-2023'!I53 -> 36400 | S50: -7600 | T50: -0.1727272727 | U50: 280000 | V50: 280000 | W50: 0 | X50: 0
B51: Trade Ally Network | E51: 0 | F51: ='Portfolio--2022-2023'!F54 -> 0 | G51: 0 | I51: -2977 | J51: ='Portfolio--2022-2023'!G54 -> 80820.5155 | K51: 83797.5155 | L51: -28.14830887 | M51: 0 | N51: ='Portfolio--2022-2023'!H54 -> 0 | O51: 0 | Q51: -2977 | R51: ='Portfolio--2022-2023'!I54 -> 35239.8955 | S51: 38216.8955 | T51: -12.83738512 | U51: -5954 | V51: 116060.411 | W51: 122014.411 | X51: -20.49284699
B52: Automated Benchmarking System | E52: 0 | F52: ='Portfolio--2022-2023'!F55 -> 0 | G52: 0 | I52: 603491.6 | J52: ='Portfolio--2022-2023'!G55 -> 3913729.9 | K52: 3310238.3 | L52: 5.485143952 | M52: 0 | N52: ='Portfolio--2022-2023'!H55 -> 0 | O52: 0 | Q52: 283340 | R52: ='Portfolio--2022-2023'!I55 -> 978432.475 | S52: 695092.475 | T52: 2.453209836 | U52: 886831.6 | V52: 4892162.375 | W52: 4005330.775 | X52: 4.51645022
B53: Energy Advisors | E53: 0 | F53: ='Portfolio--2022-2023'!F56 -> 0 | G53: 0 | I53: 2755768.86 | J53: ='Portfolio--2022-2023'!G56 -> 2885953.725 | K53: 130184.865 | L53: 0.0472408506 | M53: 0 | N53: ='Portfolio--2022-2023'!H56 -> 0 | O53: 0 | Q53: 403519.14 | R53: ='Portfolio--2022-2023'!I56 -> 417362.775 | S53: 13843.635 | T53: 0.0343072574 | U53: 3159288 | V53: 3303316.5 | W53: 144028.5 | X53: 0.04558891117
B54: Energy Efficient Communities | E54: 0 | F54: ='Portfolio--2022-2023'!F57 -> 0 | G54: 0 | I54: 2064850.775 | J54: ='Portfolio--2022-2023'!G57 -> 2513037.775 | K54: 448186.9999 | L54: 0.2170553947 | M54: 0 | N54: ='Portfolio--2022-2023'!H57 -> 0 | O54: 0 | Q54: 476117.76 | R54: ='Portfolio--2022-2023'!I57 -> 385185.6883 | S54: -90932.07173 | T54: -0.190986515 | U54: 2540968.535 | V54: 2898223.463 | W54: 357254.9282 | X54: 0.1405979347
B55: Customer Digital Services | E55: 0 | F55: ='Portfolio--2022-2023'!F58 -> 0 | G55: 0 | I55: 2714512.08 | J55: ='Portfolio--2022-2023'!G58 -> 3729642.375 | K55: 1015130.295 | L55: 0.373964184 | M55: 0 | N55: ='Portfolio--2022-2023'!H58 -> 0 | O55: 0 | Q55: 928810.36 | R55: ='Portfolio--2022-2023'!I58 -> 1180158.05 | S55: 251347.69 | T55: 0.2706124962 | U55: 3643322.44 | V55: 4909800.425 | W55: 1266477.985 | X55: 0.3476162228
B56: Market Integration | E56: 0 | F56: ='Portfolio--2022-2023'!F59 -> 0 | G56: 0 | I56: 631580.539 | J56: ='Portfolio--2022-2023'!G59 -> 2931109.09 | K56: 2299528.551 | L56: 3.64091103 | M56: 0 | N56: ='Portfolio--2022-2023'!H59 -> 0 | O56: 0 | Q56: 93667.961 | R56: ='Portfolio--2022-2023'!I59 -> 437686.845 | S56: 344018.884 | T56: 3.672748721 | U56: 725248.5 | V56: 3368795.935 | W56: 2643547.435 | X56: 3.645022961
B57: Events | E57: 0 | F57: ='Portfolio--2022-2023'!F60 -> 0 | G57: 0 | I57: 732046.063 | J57: ='Portfolio--2022-2023'!G60 -> 1508403.375 | K57: 776357.312 | L57: 1.060530684 | M57: 0 | N57: ='Portfolio--2022-2023'!H60 -> 0 | O57: 0 | Q57: 109598.837 | R57: ='Portfolio--2022-2023'!I60 -> 312081.325 | S57: 202482.488 | T57: 1.84748756 | U57: 841644.9 | V57: 1820484.7 | W57: 978839.8 | X57: 1.163008057
B58: Brochures, non program-specific | E58: 0 | F58: ='Portfolio--2022-2023'!#REF! ->  | I58: 0 | K58: 0 | M58: 0 | N58: ='Portfolio--2022-2023'!#REF! ->  | Q58: 0 | R58: ='Portfolio--2022-2023'!#REF! ->  | U58: 0
B59: Subtotal, Portfolio Support | E59: 0 | F59: ='Portfolio--2022-2023'!F61 -> 0 | G59: 0 | I59: 15122062.77 | J59: ='Portfolio--2022-2023'!G61 -> 25069403.39 | K59: =J59-I59 -> 9947340.622 | L59: =(J59-I59)/I59 -> 0.6578031566 | M59: 0 | N59: ='Portfolio--2022-2023'!H61 -> 0 | O59: 0 | Q59: 3152147.718 | R59: ='Portfolio--2022-2023'!I61 -> 4778702.457 | S59: 1626554.739 | T59: 0.5160147572 | U59: 18274210.48 | V59: 29848105.85 | W59: 11573895.36 | X59: 0.6333458494
B61: Energy Efficiency Research & Compliance
B62: Conservation Supply Curves | E62: 0 | F62: ='Portfolio--2022-2023'!F64 -> 0 | G62: =F62-E62 -> 0 | H62: =(F62-E62)/E62 ->  | I62: 634379.64 | J62: ='Portfolio--2022-2023'!G64 -> 932448.515 | K62: =J62-I62 -> 298068.875 | L62: =(J62-I62)/I62 -> 0.4698588293 | M62: 0 | N62: ='Portfolio--2022-2023'!H64 -> 0 | O62: =N62-M62 -> 0 | P62: =(N62-M62)/M62 ->  | Q62: 94792.36 | R62: ='Portfolio--2022-2023'!I64 -> 136189.74 | S62: =R62-Q62 -> 41397.38 | T62: =(R62-Q62)/Q62 -> 0.4367164189 | U62: 729172 | V62: =J62+R62 -> 1068638.255 | W62: =V62-U62 -> 339466.255 | X62: =(V62-U62)/U62 -> 0.465550316
B63: Strategic Planning | E63: 0 | F63: ='Portfolio--2022-2023'!F65 -> 0 | G63: 0 | I63: 1408171.735 | J63: ='Portfolio--2022-2023'!G65 -> 1069323.525 | K63: -338848.21 | L63: -0.2406298902 | M63: 0 | N63: ='Portfolio--2022-2023'!H65 -> 0 | O63: 0 | Q63: 105818.765 | R63: ='Portfolio--2022-2023'!I65 -> 159783.975 | S63: 53965.21 | T63: 0.5099776963 | U63: 1513990.5 | V63: =J63+R63 -> 1229107.5 | W63: -284883 | X63: -0.1881669667
B64: Market Research | E64: 0 | F64: ='Portfolio--2022-2023'!F66 -> 0 | G64: 0 | I64: 333871.88 | J64: ='Portfolio--2022-2023'!G66 -> 428595.582 | K64: 94723.702 | L64: 0.2837127284 | M64: 0 | N64: ='Portfolio--2022-2023'!H66 -> 0 | O64: 0 | Q64: 51303.52 | R64: ='Portfolio--2022-2023'!I66 -> 64043.018 | S64: 12739.498 | T64: 0.2483162559 | U64: 385175.4 | V64: 492638.6 | W64: 107463.2 | X64: 0.2789980876
B65: Program Evaluation | E65: 0 | F65: ='Portfolio--2022-2023'!F67 -> 0 | G65: 0 | I65: 4006746.105 | J65: ='Portfolio--2022-2023'!G67 -> 3311553.97 | K65: -695192.135 | L65: -0.1735054123 | M65: 0 | N65: ='Portfolio--2022-2023'!H67 -> 0 | O65: 0 | Q65: 767295.395 | R65: ='Portfolio--2022-2023'!I67 -> 719041.03 | S65: -48254.365 | T65: -0.06288890213 | U65: 4774041.5 | V65: 4030595 | W65: -743446.5 | X65: -0.1557268616
B66: Biennial Electric Conservation Acquisition Review | E66: 0 | F66: ='Portfolio--2022-2023'!F68 -> 0 | G66: 0 | I66: 150000 | J66: ='Portfolio--2022-2023'!G68 -> 300000 | K66: 150000 | L66: 1 | M66: 0 | N66: ='Portfolio--2022-2023'!H68 -> 0 | O66: 0 | Q66: 0 | R66: ='Portfolio--2022-2023'!I68 -> 0 | S66: 0 | U66: 150000 | V66: 300000 | W66: 150000 | X66: 1
B67: Subtotal, Research & Compliance | E67: 0 | F67: ='Portfolio--2022-2023'!F69 -> 0 | G67: 0 | I67: 6533169.36 | J67: ='Portfolio--2022-2023'!G69 -> 6041921.592 | K67: =J67-I67 -> -491247.768 | L67: -0.07519287209 | M67: 0 | N67: ='Portfolio--2022-2023'!H69 -> 0 | O67: 0 | Q67: 1019210.04 | R67: ='Portfolio--2022-2023'!I69 -> 1079057.763 | S67: 59847.723 | T67: 0.05871971493 | U67: 7552379.4 | V67: 7120979.355 | W67: -431400.045 | X67: -0.05712107697
I68: 0 | J68: ='Portfolio--2022-2023'!G70 -> 0 | M68: 0 | N68: ='Portfolio--2022-2023'!H70 -> 0 | Q68: 0 | R68: ='Portfolio--2022-2023'!I70 -> 0 | U68: 0 | V68: 0
B69: Total Savings, Efficiency Programs Included in CE Calculations | E69: 526043.7025 | F69: ='Portfolio--2022-2023'!F71 -> 550593.6007 | G69: =F69-E69 -> 24549.89819 | H69: =(F69-E69)/E69 -> 0.04666893278 | I69: 190483174 | J69: ='Portfolio--2022-2023'!G71 -> 237161436.1 | K69: =J69-I69 -> 46678262.13 | L69: =(J69-I69)/I69 -> 0.2450518917 | M69: 8003282 | N69: ='Portfolio--2022-2023'!H71 -> 10721914.43 | O69: =N69-M69 -> 2718632.428 | P69: =(N69-M69)/M69 -> 0.3396896958 | Q69: 37013753.48 | R69: ='Portfolio--2022-2023'!I71 -> 51168166.96 | S69: =R69-Q69 -> 14154413.48 | T69: =(R69-Q69)/Q69 -> 0.382409568 | U69: 227496927.5 | V69: 288329603.1 | W69: =U69-V69 -> -60832675.61 | X69: =(V69-U69)/U69 -> 0.2673999877
Q70: 0 | R70: ='Portfolio--2022-2023'!I72 -> 0 | U70: 0 | V70: 0
B71: Other Customer Programs | Q71: 0 | R71: ='Portfolio--2022-2023'!I73 -> 0 | U71: 0 | V71: 0
A72: E150 | B72: Net Metering | E72: 0 | F72: ='Portfolio--2022-2023'!F74 -> 0 | G72: =F72-E72 -> 0 | H72: =(F72-E72)/E72 ->  | I72: 2908514.5 | J72: ='Portfolio--2022-2023'!G74 -> 7043674.65 | K72: =J72-I72 -> 4135160.15 | L72: =(J72-I72)/I72 -> 1.421743007 | M72: 0 | N72: ='Portfolio--2022-2023'!H74 -> 0 | O72: =N72-M72 -> 0 | P72: =(N72-M72)/M72 ->  | Q72: 0 | R72: ='Portfolio--2022-2023'!I74 -> 0 | S72: =R72-Q72 -> 0 | T72: =(R72-Q72)/Q72 ->  | U72: 2908514.5 | V72: =J72+R72 -> 7043674.65 | W72: =V72-U72 -> 4135160.15 | X72: =(V72-U72)/U72 -> 1.421743007
A73: 249 | B73: Demand Response Pilots | E73: 0 | F73: ='Portfolio--2022-2023'!F75 -> 0 | G73: 0 | H73: =(F73-E73)/E73 ->  | I73: 485100 | J73: ='Portfolio--2022-2023'!G75 -> 640000 | K73: 154900 | L73: 0.319315605 | M73: 0 | N73: ='Portfolio--2022-2023'!H75 -> 0 | O73: 0 | Q73: 207900 | R73: ='Portfolio--2022-2023'!I75 -> 260000 | S73: 52100 | T73: 0.2506012506 | U73: 693000 | V73: 900000 | W73: 207000 | X73: 0.2987012987
B74: Subtotal, Other Customer Programs | E74: 0 | F74: ='Portfolio--2022-2023'!F76 -> 0 | G74: 0 | I74: 3393614.5 | J74: ='Portfolio--2022-2023'!G76 -> 7683674.65 | K74: =J74-I74 -> 4290060.15 | L74: =(J74-I74)/I74 -> 1.264156595 | M74: 0 | N74: ='Portfolio--2022-2023'!H76 -> 0 | O74: 0 | Q74: 207900 | R74: ='Portfolio--2022-2023'!I76 -> 260000 | S74: 52100 | T74: 0.2506012506 | U74: 3601514.5 | V74: =J74+R74 -> 7943674.65 | W74: 4342160.15 | X74: 1.205648388
B78: GRAND TOTAL All Programs | E78: 526043.7025 | F78: ='Portfolio--2022-2023'!F71 -> 550593.6007 | G78: =F78-E78 -> 24549.89819 | H78: =(F78-E78)/E78 -> 0.04666893278 | I78: 193876788.5 | J78: ='Portfolio--2022-2023'!G80 -> 244845110.8 | K78: =J78-I78 -> 50968322.28 | L78: =(J78-I78)/I78 -> 0.2628902752 | M78: 8003282 | N78: ='Portfolio--2022-2023'!H71 -> 10721914.43 | O78: =N78-M78 -> 2718632.428 | P78: =(N78-M78)/M78 -> 0.3396896958 | Q78: =Q69+Q74 -> 37221653.48 | R78: ='Portfolio--2022-2023'!I80 -> 51428166.96 | S78: =R78-Q78 -> 14206513.48 | T78: =(R78-Q78)/Q78 -> 0.3816733581 | U78: 231098442 | V78: =J78+R78 -> 296273277.7 | W78: =V78-U78 -> 65174835.76 | X78: =(V78-U78)/U78 -> 0.2820219609
B79: and Portfolio Budgets | E79: 60.1 | F79: ='Portfolio--2022-2023'!F81 -> 61.26907934 | G79: =F79-E79 -> 1.169079338 | H79: =(F79-E79)/E79 -> 0.01945223524 | K79: =I79-J79 -> 0 | O79: =M79-N79 -> 0

Sheet Electric Comparison
A2: Schedule | C2: Program Name
E3: 2023 Savings (MWh) | J3: 2023 Budget | O3: 2023 Total Budget
E4: 2023 ACP | F4: 2023 From BCP | G4: Difference (ACP - BCP) | H4: 23 BCP to 23 ACP % Change | J4: 2023 ACP | K4: 2023 From BCP | L4: Difference (ACP - BCP) | M4: 23 BCP to 23 ACP % Change | O4: 2023 ACP | P4: 2023 From BCP | Q4: Difference (ACP - BCP) | R4: 23 BCP to 23 ACP % Change
C5: Residential Energy Management
A6: 201 | B6: 18230611 | C6: Low Income Weatherization | E6: ='Portfolio--2023 Specific'!F7 -> 1999.3202 | F6: 1977.441 | G6: =E6-F6 -> 21.8792 | H6: =(E6-F6)/F6 -> 0.01106440091 | J6: ='Portfolio--2023 Specific'!G7 -> 8079753.158 | K6: 6108195.965 | L6: =J6-K6 -> 1971557.192 | M6: =(J6-K6)/K6 -> 0.3227724197 | P6: 7124981.897
A7: 214 | C7: Single Family Existing Subtotal | E7: ='Portfolio--2023 Specific'!F8 -> 74813.49162 | F7: 34372.14117 | G7: =E7-F7 -> 40441.35045 | H7: 1.1765735 | J7: ='Portfolio--2023 Specific'!G8 -> 19208867.77 | L7: 19208867.77 | P7: 33237747.16
B8: 18230440 | C8: Residential lighting | E8: ='Portfolio--2023 Specific'!F9 -> 633.0574 | F8: 965.6542 | G8: -332.5968 | H8: -0.3444264003 | J8: ='Portfolio--2023 Specific'!G9 -> 738328.245 | K8: 1050160.75 | L8: -311832.505 | M8: -0.2969378783 | P8: 1050160.75
B9: 18230628 | C9: Space heat | E9: ='Portfolio--2023 Specific'!F10 -> 9290.926 | F9: 8258.67 | G9: 1032.256 | H9: 0.1249905857 | J9: ='Portfolio--2023 Specific'!G10 -> 5114068.965 | K9: 4375041.35 | L9: 739027.615 | M9: 0.1689190012 | P9: 9239515.85
B10: 18230626 | C10: Water heat | E10: ='Portfolio--2023 Specific'!F11 -> 1448.9933 | F10: 1565.00045 | G10: -116.00715 | H10: -0.07412595313 | J10: ='Portfolio--2023 Specific'!G11 -> 1232073.775 | K10: 1169848.75 | L10: 62225.025 | M10: 0.05319065819 | P10: 1646483.15
B11: 18230625 | C11: Home Energy Assessment | E11: ='Portfolio--2023 Specific'!F12 -> 0 | F11: 0 | G11: 0 | J11: ='Portfolio--2023 Specific'!G12 -> 0 | K11: 0 | L11: 0 | P11: 0
B12: 18230434 | C12: Home Appliances | E12: ='Portfolio--2023 Specific'!F13 -> 828.09 | F12: 558 | G12: 270.09 | H12: 0.4840322581 | J12: ='Portfolio--2023 Specific'!G13 -> 912070.935 | K12: 666154.85 | L12: 245916.085 | M12: 0.369157539 | P12: 666154.85
B13: 18230023 | C13: Smart Thermostats | E13: ='Portfolio--2023 Specific'!F14 -> 762.29 | F13: 1235.452 | G13: -473.162 | H13: -0.3829869554 | J13: ='Portfolio--2023 Specific'!G14 -> 1071596.2 | K13: 898197 | L13: 173399.2 | M13: 0.1930525263 | P13: 2668597.05
B14: 18230435 | C14: Showerheads | E14: ='Portfolio--2023 Specific'!F15 -> 0 | F14: 0 | G14: 0 | J14: ='Portfolio--2023 Specific'!G15 -> 0 | K14: 0 | L14: 0 | P14: 0
B15: 18230627 | C15: Weatherization | E15: ='Portfolio--2023 Specific'!F16 -> 1334.69492 | F15: 1217.130525 | G15: 117.564395 | H15: 0.09659144404 | J15: ='Portfolio--2023 Specific'!G16 -> 1295885.7 | K15: 1099944.5 | L15: 195941.2 | M15: 0.1781373515 | P15: 3492738.3
B16: 18230461 | C16: Home Energy Reports | E16: ='Portfolio--2023 Specific'!F17 -> 46739.22 | F16: 2580 | G16: 44159.22 | H16: 17.11597674 | J16: ='Portfolio--2023 Specific'!G17 -> 2084682.88 | K16: 1575141.68 | L16: 509541.2 | M16: 0.3234891226 | P16: 2807565.56
B17: 18230162 | C17: Midstream HVAC and Water Heat | E17: ='Portfolio--2023 Specific'!F18 -> 13776.22 | F17: 17992.234 | G17: -4216.014 | H17: -0.2343240978 | J17: ='Portfolio--2023 Specific'!G18 -> 6760161.065 | K17: 11666531.65 | L17: -4906370.585 | M17: -0.4205509171 | P17: 11666531.65
A18: 215 | B18: 18230405 | C18: Single Family New Construction | E18: ='Portfolio--2023 Specific'!F19 -> 360.276 | F18: 255.138 | G18: 105.138 | H18: 0.4120828728 | J18: ='Portfolio--2023 Specific'!G19 -> 418070.0075 | K18: 431340.2 | L18: -13270.1925 | M18: -0.03076502607 | P18: 477702.1
A19: 214 & 217 | B19: 18230751 | C19: Moderate Income Residences | E19: ='Portfolio--2023 Specific'!F20 -> 0 | F19: 0 | G19: 0 | J19: ='Portfolio--2023 Specific'!G20 -> 86192.55 | K19: 88697.15 | L19: -2504.6 | M19: -0.0282376604 | P19: 145417.075
A20: 217 | B20: 18230407 | C20: Multifamily Retrofit | E20: ='Portfolio--2023 Specific'!F21 -> 9105.34772 | F20: 9069.9772 | G20: 35.37052 | H20: 0.003899736374 | J20: ='Portfolio--2023 Specific'!G21 -> 9598797.423 | K20: 7703559.905 | L20: 1895237.518 | M20: 0.2460210009 | P20: 8076036.687
A21: 218 | B21: 18230486 | C21: Multifamily New Construction | E21: ='Portfolio--2023 Specific'!F22 -> 4000 | F21: 4500 | G21: -500 | H21: -0.1111111111 | J21: ='Portfolio--2023 Specific'!G22 -> 2146821.995 | K21: 2067455.425 | L21: 79366.57 | M21: 0.03838852777 | P21: 2421821.475
C22: Subtotal, Residential Programs | E22: ='Portfolio--2023 Specific'!F23 -> 90278.43554 | F22: 50174.69738 | G22: 40103.73817 | H22: 0.7992821136 | J22: ='Portfolio--2023 Specific'!G23 -> 39538502.9 | K22: 38900269.18 | L22: 638233.7225 | M22: 0.01640692304 | O22: =J22+'Nat Gas Comparison'!J21 -> 53075704.94 | P22: =K22+'Nat Gas Comparison'!K21 -> 51483706.39 | Q22: =O22-P22 -> 1591998.548 | R22: =(O22-P22)/P22 -> 0.0309223764
B23: 18230071
C24: Business Energy Management
A25: 250 | C25: Commercial / Industrial Retrofit | E25: ='Portfolio--2023 Specific'!F26 -> 67050 | F25: 80041.836 | G25: =E25-F25 -> -12991.836 | H25: =(E25-F25)/F25 -> -0.1623130684 | J25: ='Portfolio--2023 Specific'!G26 -> 27179818.17 | K25: 26587245.88 | L25: =J25-K25 -> 592572.2884 | M25: =(J25-K25)/K25 -> 0.02228784023 | P25: 29033386.71
B26: 18230013 | C26: Clean Buildings Accelerator {E} | E26: ='2023 Sector View Elect'!S33/1000 -> 500 | F26: 6000 | J26: ='2023 Sector View Elect'!R33 -> 189030 | K26: 289048 | L26: -100018 | M26: -0.3460255736
B27: 18230015 | C27: SMB Virtual Commissioning {E} | E27: ='2023 Sector View Elect'!S34/1000 -> 1500 | F27: 0 | J27: ='2023 Sector View Elect'!R34 -> 327568 | K27: 0 | L27: 327568
B28: 18230711 | C28: Commercial Industrial Retrofit {E} | E28: ='2023 Sector View Elect'!S30/1000 -> 14900 | F28: 14900 | J28: ='2023 Sector View Elect'!R30 -> 6892573.855 | K28: 6770028.232 | L28: 122545.6232 | M28: 0.01810119825
B29: 18230724 | C29: Business Lighting - Grants {E} | E29: ='2023 Sector View Elect'!S31/1000 -> 40000 | F29: 49000 | J29: ='2023 Sector View Elect'!R31 -> 16099563.5 | K29: 17336800 | L29: -1237236.5 | M29: -0.07136475589
B30: 18231137 | C30: Industrial Energy Management {E} | E30: ='2023 Sector View Elect'!S32/1000 -> 10150 | F30: 10141.836 | J30: ='2023 Sector View Elect'!R32 -> 3671082.817 | K30: 2191369.652 | L30: 1479713.165 | M30: 0.6752458052
B31: 18239043 | C31: Telecommunications Efficiency {E} | L31: 0
A32: 251 | B32: 18230715 | C32: Commercial/Industrial New Construction | E32: ='Portfolio--2023 Specific'!F27 -> 17500 | F32: 17500 | G32: =E32-F32 -> 0 | H32: =(E32-F32)/F32 -> 0 | J32: ='Portfolio--2023 Specific'!G27 -> 7015395.95 | K32: 7017266 | L32: -1870.05 | M32: -0.0002664926768 | P32: 7740380
A33: 253 | B33: 18230723 | C33: Commercial Strategic Energy Management | E33: ='Portfolio--2023 Specific'!F28 -> 16000 | F33: 16000 | G33: =E33-F33 -> 0 | H33: =(E33-F33)/F33 -> 0 | J33: ='Portfolio--2023 Specific'!G28 -> 2734046.975 | K33: 2528739.25 | L33: 205307.725 | M33: 0.08118975691 | P33: 3299606
B34: 18236102 | C34: Pay for Performance {E} | L34: 0
A35: E258 | C35: Large Power User - Self Directed Program - Subtotal | E35: ='Portfolio--2023 Specific'!F29 -> 1866.286 | F35: 1866.286 | G35: =E35-F35 -> 0 | H35: =(E35-F35)/F35 -> 0 | J35: ='Portfolio--2023 Specific'!G29 -> 1654075.604 | K35: 2038697.483 | L35: -384621.8791 | M35: -0.1886605944 | P35: 2038697.483
A36: E258 | B36: 18230720 | D36: 449 Customers | E36: ='Portfolio--2023 Specific'!F30 -> 1632.014 | F36: 1632.014 | G36: 0 | H36: 0 | J36: ='Portfolio--2023 Specific'!G30 -> 1235329.899 | K36: 1633922.698 | L36: -398592.7997 | M36: -0.2439483827 | P36: 1633922.698
A37: E258 | B37: 18230721 | D37: Non-449 Customers | E37: ='Portfolio--2023 Specific'!F31 -> 234.272 | F37: 234.272 | G37: 0 | H37: 0 | J37: ='Portfolio--2023 Specific'!G31 -> 418745.7056 | K37: 404774.785 | L37: 13970.92062 | M37: 0.03451529378 | P37: 404774.785
A38: 261 | C38: Energy Efficient Technology Evaluation | E38: ='Portfolio--2023 Specific'!F32 -> 0 | F38: 0 | G38: 0 | J38: ='Portfolio--2023 Specific'!G32 -> 0 | K38: 0 | L38: 0 | P38: 0
A39: 262 | C39: Commercial Rebates | E39: ='Portfolio--2023 Specific'!F33 -> 37990.3704 | F39: =SUM(F40:F46) -> 49663.3391 | G39: -11672.9687 | H39: -0.2350419628 | J39: ='Portfolio--2023 Specific'!G33 -> 15385760.38 | K39: 17135836.19 | L39: -1750075.815 | M39: -0.1021295836 | P39: 19790916.35
B40: 18230714 | D40: Lighting to Go--also referred to as Business Lighting Markdowns | E40: ='2023 Sector View Elect'!S45/1000 -> 17087.6784 | F40: 26330.6911 | G40: -9243.0127 | H40: -0.3510357045 | J40: ='2023 Sector View Elect'!R45 -> 2580862.41 | K40: 4423974.75 | L40: -1843112.34 | M40: -0.4166190912 | P40: 4423974.75
B41: 18230716 | D41: Commercial Foodservice | E41: ='2023 Sector View Elect'!S46/1000 -> 1480.197 | F41: 350 | G41: 1130.197 | H41: 3.229134286 | J41: ='2023 Sector View Elect'!R46 -> 915233.405 | K41: 170586.49 | L41: 744646.915 | M41: 4.365216231 | P41: 170586.49
B42: 18230718 | D42: Commercial HVAC Rebates | E42: ='2023 Sector View Elect'!S47/1000 -> 1152.985 | F42: 952.648 | G42: 200.337 | H42: 0.2102948833 | J42: ='2023 Sector View Elect'!R47 -> 510878.75 | K42: 405343.35 | L42: 105535.4 | M42: 0.2603605067 | P42: 405343.35
B43: 18230524 | D43: Commercial Midstream HVAC and Water Heat | E43: ='2023 Sector View Elect'!S48/1000 -> 1198.31 | F43: 2030 | G43: -831.69 | H43: -0.4096995074 | J43: ='2023 Sector View Elect'!R48 -> 868971.615 | K43: 1379786.15 | L43: -510814.535 | M43: -0.3702128297 | P43: 1379786.15
B44: 18231134 | D44: Small Business Direct Install | E44: ='2023 Sector View Elect'!S49/1000 -> 14400 | F44: 18000 | G44: -3600 | H44: -0.2 | J44: ='2023 Sector View Elect'!R49 -> 7437601.545 | K44: 8068398.95 | L44: -630797.405 | M44: -0.07818123632 | P44: 8068398.95
D45: Commercial General Rebates | E45: ='2023 Sector View Elect'!S50/1000 -> 0 | F45: 0 | G45: 0 | J45: ='2023 Sector View Elect'!R50 -> 0 | K45: 0 | L45: 0 | P45: 0
B46: 18230014 | D46: Lodging Rebates | E46: ='2023 Sector View Elect'!S51/1000 -> 2671.2 | F46: 2000 | G46: 671.2 | H46: 0.3356 | J46: ='2023 Sector View Elect'!R51 -> 3072212.65 | K46: 2687746.5 | L46: 384466.15 | M46: 0.143044052 | P46: 2687746.5
C47: Subtotal, Business Programs | E47: ='Portfolio--2023 Specific'!F34 -> 140406.6564 | F47: =165071461.1/1000 -> 165071.4611 | G47: -24664.8047 | H47: -0.1494189519 | J47: ='Portfolio--2023 Specific'!G34 -> 53969097.08 | K47: 55307784.81 | L47: -1338687.731 | M47: -0.02420432739 | O47: =J47+'Nat Gas Comparison'!J44 -> 61147607.12 | P47: 61902986.54 | Q47: =O47-P47 -> -755379.4156 | R47: =(O47-P47)/P47 -> -0.01220263283
P48: 0
C49: Pilots With Uncertain Savings
A50: 249 | C50: Residential | E50: ='Portfolio--2023 Specific'!F37 -> 359.45 | F50: 862.5 | G50: =E50-F50 -> -503.05 | H50: =(E50-F50)/F50 -> -0.5832463768 | J50: ='Portfolio--2023 Specific'!G37 -> 1961259.85 | K50: 448725.6266 | L50: =J50-K50 -> 1512534.223 | M50: =(J50-K50)/K50 -> 3.370732879 | P50: 448725.6266
A51: 249 | C51: Commercial | E51: ='Portfolio--2023 Specific'!F38 -> 0 | F51: 1500 | G51: =E51-F51 -> -1500 | H51: =(E51-F51)/F51 -> -1 | J51: ='Portfolio--2023 Specific'!G38 -> 0 | K51: 324350.25 | L51: =J51-K51 -> -324350.25 | M51: =(J51-K51)/K51 -> -1 | P51: 326220.3
C52: Subtotal, Pilots | E52: ='Portfolio--2023 Specific'!F39 -> 359.45 | F52: 2362.5 | G52: =E52-F52 -> -2003.05 | H52: =(E52-F52)/F52 -> -0.8478518519 | J52: ='Portfolio--2023 Specific'!G39 -> 1961259.85 | K52: 773075.8766 | L52: =J52-K52 -> 1188183.973 | M52: =(J52-K52)/K52 -> 1.536956474 | O52: =J52+'Nat Gas Comparison'!J49 -> 2833243.4 | P52: 774945.9267 | Q52: =O52-P52 -> 2058297.473 | R52: =(O52-P52)/P52 -> 2.656053026
C54: Regional Efficiency Programs
A55: E254 | C55: NW Energy Efficiency Alliance (NEEA) | E55: ='Portfolio--2023 Specific'!F42 -> 14628.41335 | F55: 15417.6 | G55: =E55-F55 -> -789.1866493 | H55: =(E55-F55)/F55 -> -0.05118738645 | J55: ='Portfolio--2023 Specific'!G42 -> 4916640 | K55: 4766748 | L55: =J55-K55 -> 149892 | M55: =(J55-K55)/K55 -> 0.03144533758 | P55: 4766748
C56: NEEA Natural Gas Market Transformation | E56: ='Portfolio--2023 Specific'!F43 -> 0 | G56: =E56-F56 -> 0 | H56: =(E56-F56)/F56 ->  | J56: ='Portfolio--2023 Specific'!G43 -> 0 | L56: =J56-K56 -> 0 | M56: =(J56-K56)/K56 ->  | P56: 1590236
C57: Targeted DSM | E57: ='Portfolio--2023 Specific'!F44 -> 0 | F57: 0 | G57: =E57-F57 -> 0 | H57: =(E57-F57)/F57 ->  | J57: ='Portfolio--2023 Specific'!G44 -> 663641.3625 | K57: 616153.625 | L57: =J57-K57 -> 47487.7375 | M57: =(J57-K57)/K57 -> 0.07707126206 | P57: 898433.75
A58: E292 | C58: Generation, Transmission and Distribution | E58: ='Portfolio--2023 Specific'!F45 -> 6000 | F58: 6000 | G58: =E58-F58 -> 0 | H58: =(E58-F58)/F58 -> 0 | J58: ='Portfolio--2023 Specific'!G45 -> 0 | K58: 0 | L58: =J58-K58 -> 0 | M58: =(J58-K58)/K58 ->  | P58: 0
C59: Subtotal, Regional Programs | E59: ='Portfolio--2023 Specific'!F46 -> 20628.41335 | F59: 21417.6 | G59: =E59-F59 -> -789.1866493 | H59: =(E59-F59)/F59 -> -0.03684757626 | J59: ='Portfolio--2023 Specific'!G46 -> 5580281.362 | K59: 5382901.625 | L59: =J59-K59 -> 197379.7375 | M59: =(J59-K59)/K59 -> 0.03666790725 | O59: =J59+'Nat Gas Comparison'!J56 -> 7473149.375 | P59: 7255417.75 | Q59: =O59-P59 -> 217731.625 | R59: =(O59-P59)/P59 -> 0.03000952288
C61: Energy Efficiency Portfolio Support
C62: Data and Systems Services | E62: ='Portfolio--2023 Specific'!F49 -> 0 | F62: 0 | G62: =E62-F62 -> 0 | H62: =(E62-F62)/F62 ->  | J62: ='Portfolio--2023 Specific'!G49 -> 1058134.02 | K62: 982456.2 | L62: =J62-K62 -> 75677.82 | M62: =(J62-K62)/K62 -> 0.07702920497 | P62: 1129260
C63: Rebates Processing | E63: ='Portfolio--2023 Specific'!F50 -> 0 | F63: 0 | G63: 0 | J63: ='Portfolio--2023 Specific'!G50 -> 1063196.012 | K63: 917965.39 | L63: 145230.6225 | M63: 0.1582092572 | P63: 1056587.5
C64: Verification Team | E64: ='Portfolio--2023 Specific'!F51 -> 0 | F64: 0 | G64: 0 | J64: ='Portfolio--2023 Specific'!G51 -> 731637.099 | K64: 611150.19 | L64: 120486.909 | M64: 0.1971477895 | P64: 702327.5
C65: Programs Support | E65: ='Portfolio--2023 Specific'!F52 -> 0 | F65: 0 | G65: 0 | J65: ='Portfolio--2023 Specific'!G52 -> 1134297.3 | K65: 720770.4225 | L65: 413526.8775 | M65: 0.5737289775 | P65: 738522.345
C66: Trade Ally Memberships | E66: ='Portfolio--2023 Specific'!F53 -> 0 | F66: 0 | G66: 0 | J66: ='Portfolio--2023 Specific'!G53 -> 121800 | K66: 121800 | L66: 0 | M66: 0 | P66: 140000
C67: Trade Ally Network | E67: ='Portfolio--2023 Specific'!F54 -> 0 | F67: 0 | G67: 0 | J67: ='Portfolio--2023 Specific'!G54 -> 68529.93 | K67: 19122.5015 | L67: 49407.4285 | M67: 2.583732494 | P67: 6227.003
C68: Automated Benchmarking System | E68: ='Portfolio--2023 Specific'!F55 -> 0 | F68: 0 | G68: 0 | J68: ='Portfolio--2023 Specific'!G55 -> 837425.9 | K68: 1101424 | L68: -263998.1 | M68: -0.2396879857 | P68: 1376780
C69: Energy Advisors | E69: ='Portfolio--2023 Specific'!F56 -> 0 | F69: 0 | G69: 0 | J69: ='Portfolio--2023 Specific'!G56 -> 1573473.015 | K69: 1312480.71 | L69: 260992.305 | M69: 0.1988542026 | P69: 1504741
C70: Energy Efficient Communities | E70: ='Portfolio--2023 Specific'!F57 -> 0 | F70: 0 | G70: 0 | J70: ='Portfolio--2023 Specific'!G57 -> 1312047.668 | K70: 1237599.166 | L70: 74448.50138 | M70: 0.06015558463 | P70: 1427317.165
C71: Customer Digital Services | E71: ='Portfolio--2023 Specific'!F58 -> 0 | F71: 0 | G71: 0 | J71: ='Portfolio--2023 Specific'!G58 -> 1999415.09 | K71: 1726947.285 | L71: 272467.805 | M71: 0.1577742456 | P71: 2291362.06
C72: Market Integration | E72: ='Portfolio--2023 Specific'!F59 -> 0 | F72: 0 | G72: 0 | J72: ='Portfolio--2023 Specific'!G59 -> 1506062.29 | K72: 1425046.81 | L72: 81015.48 | M72: 0.05685110091 | P72: 1636348.16
C73: Events | E73: ='Portfolio--2023 Specific'!F60 -> 0 | F73: 0 | G73: 0 | J73: ='Portfolio--2023 Specific'!G60 -> 976835.925 | K73: 493747.45 | L73: 483088.475 | M73: 0.978412091 | P73: 596076.75
C74: Subtotal, Portfolio Support | E74: ='Portfolio--2023 Specific'!F61 -> 0 | F74: 0 | G74: 0 | J74: ='Portfolio--2023 Specific'!G61 -> 12382854.25 | K74: 10670510.13 | L74: 1712344.124 | M74: 0.1604744388 | O74: =J74+'Nat Gas Comparison'!J71 -> 14731102 | P74: 12605549.48 | Q74: =O74-P74 -> 2125552.516 | R74: =(O74-P74)/P74 -> 0.1686203778
C76: Energy Efficiency Research & Compliance
C77: Conservation Supply Curves | E77: ='Portfolio--2023 Specific'!F64 -> 0 | F77: 0 | G77: =E77-F77 -> 0 | H77: =(E77-F77)/F77 ->  | J77: ='Portfolio--2023 Specific'!G64 -> 492006.165 | K77: 440442.35 | L77: =J77-K77 -> 51563.815 | M77: =(J77-K77)/K77 -> 0.1170727906 | P77: 506256
C78: Strategic Planning | E78: ='Portfolio--2023 Specific'!F65 -> 0 | F78: 0 | G78: 0 | J78: ='Portfolio--2023 Specific'!G65 -> 561395.775 | K78: 507927.75 | L78: 53468.025 | M78: 0.1052669893 | P78: 583825
C79: Market Research | E79: ='Portfolio--2023 Specific'!F66 -> 0 | F79: 0 | G79: 0 | J79: ='Portfolio--2023 Specific'!G66 -> 224662.362 | K79: 203933.22 | L79: 20729.142 | M79: 0.1016467155 | P79: 234406
C80: Program Evaluation | E80: ='Portfolio--2023 Specific'!F67 -> 0 | F80: 0 | G80: 0 | J80: ='Portfolio--2023 Specific'!G67 -> 1675751.27 | K80: 1641202.7 | L80: 34548.57 | M80: 0.02105076357 | P80: 1999942
C81: Biennial Electric Conservation Acquisition Review | E81: ='Portfolio--2023 Specific'!F68 -> 0 | F81: 0 | G81: 0 | J81: ='Portfolio--2023 Specific'!G68 -> 150000 | K81: 150000 | L81: 0 | M81: 0 | P81: 150000
C82: Subtotal, Research & Compliance | E82: ='Portfolio--2023 Specific'!F69 -> 0 | F82: 0 | G82: 0 | J82: ='Portfolio--2023 Specific'!G69 -> 3103815.572 | K82: 2943506.02 | L82: 160309.552 | M82: 0.05446211114 | O82: =J82+'Nat Gas Comparison'!J79 -> 3655550.355 | P82: 3474429 | Q82: =O82-P82 -> 181121.355 | R82: =(O82-P82)/P82 -> 0.05212981903
J83: ='Portfolio--2023 Specific'!G70 -> 0 | K83: 0 | P83: 0
C84: Total Savings, Efficiency Programs Included in CE Calculations | E84: ='Portfolio--2023 Specific'!F71 -> 251672.9553 | F84: 239026.2585 | G84: =E84-F84 -> 12646.69682 | H84: =(E84-F84)/F84 -> 0.0529092364 | J84: ='Portfolio--2023 Specific'!G71 -> 116535811 | K84: 113978047.6 | L84: =J84-K84 -> 2557763.379 | M84: =(J84-K84)/K84 -> 0.02244084218 | P84: 137497035.1 | Q84: =O84-P84 -> -137497035.1 | R84: =(O84-P84)/P84 -> -1
P85: 0
C86: Other Customer Programs | P86: 0
A87: E150 | C87: Net Metering | E87: ='Portfolio--2023 Specific'!F74 -> 0 | F87: 0 | G87: =E87-F87 -> 0 | H87: =(E87-F87)/F87 ->  | J87: ='Portfolio--2023 Specific'!G74 -> 4852706.15 | K87: 2410968.5 | L87: =J87-K87 -> 2441737.65 | M87: =(J87-K87)/K87 -> 1.012762153 | P87: 2410968.5
A88: 249 | C88: Demand Response Pilots | E88: ='Portfolio--2023 Specific'!F75 -> 0 | F88: 0 | G88: =E88-F88 -> 0 | H88: =(E88-F88)/F88 ->  | J88: ='Portfolio--2023 Specific'!G75 -> 300000 | K88: 300000 | L88: =J88-K88 -> 0 | M88: =(J88-K88)/K88 -> 0 | P88: 400000
C89: Demand Response Admin | J89: ='Portfolio--2023 Specific'!G76 -> 1104696.3
C90: Subtotal, Other Customer Programs | E90: ='Portfolio--2023 Specific'!F77 -> 0 | F90: 0 | G90: =E90-F90 -> 0 | H90: =(E90-F90)/F90 ->  | J90: ='Portfolio--2023 Specific'!G77 -> 6257402.45 | K90: 2710968.5 | L90: =J90-K90 -> 3546433.95 | M90: =(J90-K90)/K90 -> 1.308179697 | O90: =J90+'Nat Gas Comparison'!J86 -> 6357402.45 | P90: 2810968.5 | Q90: =O90-P90 -> 3546433.95 | R90: =(O90-P90)/P90 -> 1.261641299
C92: GRAND TOTAL All Programs | E92: ='Portfolio--2023 Specific'!F71 -> 251672.9553 | F92: 239026.2585 | G92: =E92-F92 -> 12646.69682 | H92: =(E92-F92)/F92 -> 0.0529092364 | J92: ='Portfolio--2023 Specific'!G81 -> 122793213.5 | K92: 116689016.1 | L92: =J92-K92 -> 6104197.329 | M92: =(J92-K92)/K92 -> 0.05231167021 | O92: =O90+O82+O74+O59+O52+O47+O22 -> 149273759.6 | P92: 140308003.6 | Q92: =O92-P92 -> 8965756.051 | R92: =(O92-P92)/P92 -> 0.06390053184
C93: and Portfolio Budgets

Sheet Nat Gas Comparison
A1: Schedule | C1: Program Name
E2: Savings (Therms) | J2: Budget
E3: 2023 ACP | F3: 2023 from BCP | G3: Difference (ACP - BCP) | H3: % Change | J3: 2023 ACP | K3: 2023 from BCP | L3: Difference (ACP - BCP) | M3: % Change
C4: Residential Energy Management
A5: 201 | B5: 18230661 | C5: Low Income Weatherization | E5: ='Portfolio--2023 Specific'!H7 -> 19470.83 | F5: 20743.53 | G5: =E5-F5 -> -1272.7 | H5: =(E5-F5)/F5 -> -0.0613540704 | J5: ='Portfolio--2023 Specific'!I7 -> 1265185.651 | K5: 1016785.932 | L5: =J5-K5 -> 248399.72 | M5: =(J5-K5)/K5 -> 0.2442989348
A6: 214 | C6: Single Family Existing Subtotal | E6: ='Portfolio--2023 Specific'!H8 -> 2739139.039 | F6: 1557964.474 | G6: =E6-F6 -> 1181174.566 | H6: 0.7581524388 | J6: ='Portfolio--2023 Specific'!I8 -> 11331927.15 | K6: 10736726.63 | L6: 595200.52 | M6: 0.05543593877
D7: Residential lighting | E7: ='Portfolio--2023 Specific'!H9 -> 0 | G7: 0 | J7: ='Portfolio--2023 Specific'!I9 -> 0 | L7: 0
B8: 18230638 | D8: Space heat | E8: ='Portfolio--2023 Specific'!H10 -> 623632.1 | F8: 686972 | G8: -63339.9 | H8: -0.09220157445 | J8: ='Portfolio--2023 Specific'!I10 -> 4626222.265 | K8: 4864474.5 | L8: -238252.235 | M8: -0.0489780006
B9: 18230249 | D9: Water heat | E9: ='Portfolio--2023 Specific'!H11 -> 65269.4 | F9: 64956.9 | G9: 312.5 | H9: 0.004810882293 | J9: ='Portfolio--2023 Specific'!I11 -> 544805.925 | K9: 476634.4 | L9: 68171.525 | M9: 0.1430268671
D10: Home Energy Assessment | E10: ='Portfolio--2023 Specific'!H12 -> 0 | G10: 0 | J10: ='Portfolio--2023 Specific'!I12 -> 0 | L10: 0
B11: 1823gggg | D11: Home Appliances | E11: ='Portfolio--2023 Specific'!H13 -> 6108 | F11: 6120 | G11: -12 | H11: -0.001960784314 | J11: ='Portfolio--2023 Specific'!I13 -> 0 | K11: 0 | L11: 0
B12: 18230687 | D12: Smart Thermostats | E12: ='Portfolio--2023 Specific'!H14 -> 253301.7 | F12: 330000 | G12: -76698.3 | H12: -0.2324190909 | J12: ='Portfolio--2023 Specific'!I14 -> 1885925.625 | K12: 1770400.05 | L12: 115525.575 | M12: 0.06525393794
B13: 18230700 | D13: Showerheads | E13: ='Portfolio--2023 Specific'!H15 -> 0 | F13: 0 | G13: 0 | J13: ='Portfolio--2023 Specific'!I15 -> 0 | K13: 0 | L13: 0
B14: 18230637 | D14: Weatherization | E14: ='Portfolio--2023 Specific'!H16 -> 251737.8395 | F14: 244915.574 | G14: 6822.2655 | H14: 0.02785558055 | J14: ='Portfolio--2023 Specific'!I16 -> 2679766.14 | K14: 2392793.8 | L14: 286972.34 | M14: 0.1199319139
B15: 18230738 | D15: Home Energy Reports | E15: ='Portfolio--2023 Specific'!H17 -> 1539090 | F15: 225000 | G15: 1314090 | H15: 5.8404 | J15: ='Portfolio--2023 Specific'!I17 -> 1595207.195 | K15: 1232423.88 | L15: 362783.315 | M15: 0.2943656975
B16: 18230161 | D16: Midstream HVAC and Water Heat | E16: ='Portfolio--2023 Specific'!H18 -> 0 | F16: 0 | G16: 0 | J16: ='Portfolio--2023 Specific'!I18 -> 0 | K16: 0 | L16: 0
A17: 215 | B17: 18230684 | C17: Single Family New Construction | E17: ='Portfolio--2023 Specific'!H19 -> 6801.8 | F17: 2095.9 | G17: 4705.9 | H17: 2.24528842 | J17: ='Portfolio--2023 Specific'!I19 -> 80754.49 | K17: 46361.9 | L17: 34392.59 | M17: 0.741828743
A18: 214 & 217 | B18: 18230254 | C18: Moderate Income Residences | E18: ='Portfolio--2023 Specific'!H20 -> 0 | F18: 0 | G18: 0 | J18: ='Portfolio--2023 Specific'!I20 -> 78983.925 | K18: 56719.925 | L18: 22264 | M18: 0.3925252017
A19: 217 | B19: 18230736 | C19: Multifamily Retrofit | E19: ='Portfolio--2023 Specific'!H21 -> 37525.38 | F19: 37352.38 | G19: 173 | H19: 0.004631565646 | J19: ='Portfolio--2023 Specific'!I21 -> 630814.277 | K19: 372476.782 | L19: 258337.495 | M19: 0.6935667067
A20: 218 | B20: 18230673 | C20: Multifamily New Construction | E20: ='Portfolio--2023 Specific'!H22 -> 15000 | F20: 50000 | G20: -35000 | H20: -0.7 | J20: ='Portfolio--2023 Specific'!I22 -> 149536.55 | K20: 354366.05 | L20: -204829.5 | M20: -0.5780167146
C21: Subtotal, Residential Programs | E21: ='Portfolio--2023 Specific'!H23 -> 2817937.05 | F21: 1668156.284 | G21: 1149780.766 | H21: 0.6892524259 | J21: ='Portfolio--2023 Specific'!I23 -> 13537202.04 | K21: 12583437.22 | L21: 953764.825 | M21: 0.07579525438
B22: 18230752
C23: Business Energy Management
A24: 250 | C24: Commercial / Industrial Retrofit | E24: ='Portfolio--2023 Specific'!H26 -> 507000 | F24: 558454 | G24: =E24-F24 -> -51454 | H24: =(E24-F24)/F24 -> -0.09213650542 | J24: ='Portfolio--2023 Specific'!I26 -> 2693974.709 | K24: 2446140.826 | L24: =J24-K24 -> 247833.8826 | M24: =(J24-K24)/K24 -> 0.1013162774
B25: 18230731 | C25: Retrofit Custom Grants | F25: 360000 | J25: ='2023 Sector View Gas'!R29 -> 2044385 | K25: 2002550 | L25: 41835 | M25: 0.02089086415
B26: 18231037 | C26: Industrial Programs | F26: 108454 | J26: ='2023 Sector View Gas'!R30 -> 466417.7086 | K26: 371578.826 | L26: 94838.8826 | M26: 0.2552322037
B27: 18230220 | C27: Clean Buildings Accelerator | F27: 90000 | J27: ='2023 Sector View Gas'!R31 -> 180030 | K27: 72012 | L27: 108018 | M27: 1.5
B28: 18230223 | C28: SMB Virtual Commissioning | J28: ='2023 Sector View Gas'!R32 -> 3142 | L28: 3142
A29: 251 | B29: 18230706 | C29: Commercial/Industrial New Construction | E29: ='Portfolio--2023 Specific'!H27 -> 90000 | F29: 90000 | G29: =E29-F29 -> 0 | H29: =(E29-F29)/F29 -> 0 | J29: ='Portfolio--2023 Specific'!I27 -> 319918.09 | K29: 723114 | L29: -403195.91 | M29: -0.5575827739
A30: 253 | B30: 18230691 | C30: Commercial Strategic Energy Management | E30: ='Portfolio--2023 Specific'!H28 -> 401500 | F30: 571500 | G30: =E30-F30 -> -170000 | H30: =(E30-F30)/F30 -> -0.2974628171 | J30: ='Portfolio--2023 Specific'!I28 -> 866419.075 | K30: 770866.75 | L30: 95552.325 | M30: 0.1239543994
B31: 18231039 | C31: Pay for Performance
A32: E258 | C32: Large Power User - Self Directed Program - Subtotal | E32: ='Portfolio--2023 Specific'!H29 -> 0 | G32: =E32-F32 -> 0 | H32: =(E32-F32)/F32 ->  | J32: ='Portfolio--2023 Specific'!I29 -> 0 | L32: =J32-K32 -> 0 | M32: =(J32-K32)/K32 -> 
A33: E258 | D33: 449 Customers | E33: ='Portfolio--2023 Specific'!H30 -> 0 | G33: =E33-F33 -> 0 | H33: =(E33-F33)/F33 ->  | J33: ='Portfolio--2023 Specific'!I30 -> 0 | L33: =J33-K33 -> 0 | M33: =(J33-K33)/K33 -> 
A34: E258 | D34: Non-449 Customers | E34: ='Portfolio--2023 Specific'!H31 -> 0 | G34: =E34-F34 -> 0 | H34: =(E34-F34)/F34 ->  | J34: ='Portfolio--2023 Specific'!I31 -> 0 | L34: =J34-K34 -> 0 | M34: =(J34-K34)/K34 -> 
A35: 261 | B35: 18230694 | C35: Energy Efficient Technology Evaluation | E35: ='Portfolio--2023 Specific'!H32 -> 0 | F35: 0 | G35: =E35-F35 -> 0 | H35: =(E35-F35)/F35 ->  | J35: ='Portfolio--2023 Specific'!I32 -> 0 | K35: 0 | L35: =J35-K35 -> 0 | M35: =(J35-K35)/K35 -> 
A36: 262 | C36: Commercial Rebates | E36: ='Portfolio--2023 Specific'!H33 -> 576802 | F36: 651572 | G36: =E36-F36 -> -74770 | H36: =(E36-F36)/F36 -> -0.1147532429 | J36: ='Portfolio--2023 Specific'!I33 -> 3298198.173 | K36: 2655080.155 | L36: =J36-K36 -> 643118.0175 | M36: =(J36-K36)/K36 -> 0.2422216958
D37: Lighting to Go
B38: 18231027 | D38: Commercial Foodservice | E38: ='2023 Sector View Gas'!S40 -> 213020 | F38: 125000 | G38: =E38-F38 -> 88020 | H38: =(E38-F38)/F38 -> 0.70416 | J38: ='2023 Sector View Gas'!R40 -> 1730218.258 | K38: 836448.705 | L38: =J38-K38 -> 893769.5525 | M38: =(J38-K38)/K38 -> 1.068528826
B39: 18231029 | D39: Commercial HVAC Rebates | E39: ='2023 Sector View Gas'!S41 -> 6782 | F39: 12772 | G39: -5990 | H39: -0.4689946759 | J39: ='2023 Sector View Gas'!R41 -> 38148.3 | K39: 43935.3 | L39: -5787 | M39: -0.1317164103
B40: 18230248 | D40: Commercial Midstream HVAC and Water Heat | E40: ='2023 Sector View Gas'!S42 -> 357000 | F40: 513800 | G40: -156800 | H40: -0.3051771117 | J40: ='2023 Sector View Gas'!R42 -> 1527671.615 | K40: 1772536.15 | L40: -244864.535 | M40: -0.1381436057
B41: 18231022 | D41: Small Business Direct Install | E41: ='2023 Sector View Gas'!S43 -> 0 | F41: 0 | G41: 0 | J41: ='2023 Sector View Gas'!R43 -> 2160 | K41: 2160 | L41: 0 | M41: 0
D42: Commercial General Rebates | E42: ='2023 Sector View Gas'!S44 -> 0 | F42: 0 | G42: 0 | J42: ='2023 Sector View Gas'!R44 -> 0 | K42: 0 | L42: 0
B43: 18230221 | D43: Lodging Rebates | E43: ='2023 Sector View Gas'!S45 -> 0 | F43: 0 | G43: 0 | J43: ='2023 Sector View Gas'!R45 -> 0 | K43: 0 | L43: 0
C44: Subtotal, Business Programs | E44: ='Portfolio--2023 Specific'!H34 -> 1575302 | F44: 1871526 | G44: -296224 | H44: -0.1582793934 | J44: ='Portfolio--2023 Specific'!I34 -> 7178510.046 | K44: 6595201.731 | L44: 583308.3151 | M44: 0.08844434771
J45: ='Portfolio--2023 Specific'!I35 -> 0 | K45: 0
C46: Pilots With Uncertain Savings | J46: ='Portfolio--2023 Specific'!I36 -> 0 | K46: 0
A47: 249 | C47: Residential | E47: ='Portfolio--2023 Specific'!H37 -> 0 | F47: 25125 | G47: =E47-F47 -> -25125 | H47: =(E47-F47)/F47 -> -1 | J47: ='Portfolio--2023 Specific'!I37 -> 871983.55 | K47: 0 | L47: =J47-K47 -> 871983.55 | M47: =(J47-K47)/K47 -> 
A48: 249 | C48: Commercial Pilot | E48: ='Portfolio--2023 Specific'!H38 -> 0 | F48: 7500 | G48: =E48-F48 -> -7500 | H48: =(E48-F48)/F48 -> -1 | J48: ='Portfolio--2023 Specific'!I38 -> 0 | K48: 1870.05 | L48: =J48-K48 -> -1870.05 | M48: =(J48-K48)/K48 -> -1
C49: Subtotal, Pilots | E49: ='Portfolio--2023 Specific'!H39 -> 0 | F49: 32625 | G49: =E49-F49 -> -32625 | H49: =(E49-F49)/F49 -> -1 | J49: ='Portfolio--2023 Specific'!I39 -> 871983.55 | K49: 1870.05 | L49: =J49-K49 -> 870113.5 | M49: =(J49-K49)/K49 -> 465.288896
C51: Regional Efficiency Programs
A52: E254 | C52: NW Energy Efficiency Alliance (NEEA) | E52: ='Portfolio--2023 Specific'!H42 -> 0 | F52: 0 | G52: =E52-F52 -> 0 | H52: =(E52-F52)/F52 ->  | J52: ='Portfolio--2023 Specific'!I42 -> 0 | L52: =J52-K52 -> 0 | M52: =(J52-K52)/K52 -> 
C53: NEEA Natural Gas Market Transformation | E53: ='Portfolio--2023 Specific'!H43 -> 0 | F53: 0 | G53: =E53-F53 -> 0 | H53: =(E53-F53)/F53 ->  | J53: ='Portfolio--2023 Specific'!I43 -> 1590236 | K53: 1590236 | L53: =J53-K53 -> 0 | M53: =(J53-K53)/K53 -> 0
C54: Targeted DSM | E54: ='Portfolio--2023 Specific'!H44 -> 0 | F54: 0 | G54: =E54-F54 -> 0 | H54: =(E54-F54)/F54 ->  | J54: ='Portfolio--2023 Specific'!I44 -> 302632.0125 | K54: 282280.125 | L54: =J54-K54 -> 20351.8875 | M54: =(J54-K54)/K54 -> 0.07209819501
A55: E292 | C55: Generation, Transmission and Distribution | E55: ='Portfolio--2023 Specific'!H45 -> 0 | F55: 0 | G55: =E55-F55 -> 0 | H55: =(E55-F55)/F55 ->  | J55: ='Portfolio--2023 Specific'!I45 -> 0 | L55: =J55-K55 -> 0 | M55: =(J55-K55)/K55 -> 
C56: Subtotal, Regional Programs | E56: ='Portfolio--2023 Specific'!H46 -> 0 | F56: 0 | G56: =E56-F56 -> 0 | H56: =(E56-F56)/F56 ->  | J56: ='Portfolio--2023 Specific'!I46 -> 1892868.012 | K56: 1872516.125 | L56: =J56-K56 -> 20351.8875 | M56: =(J56-K56)/K56 -> 0.01086873818
C58: Energy Efficiency Portfolio Support
C59: Data and Systems Services | E59: ='Portfolio--2023 Specific'!H49 -> 0 | F59: 0 | G59: =E59-F59 -> 0 | H59: =(E59-F59)/F59 ->  | J59: ='Portfolio--2023 Specific'!I49 -> 158111.98 | K59: 146803.8 | L59: =J59-K59 -> 11308.18 | M59: =(J59-K59)/K59 -> 0.07702920497
C60: Rebates Processing | E60: ='Portfolio--2023 Specific'!H50 -> 0 | F60: 0 | G60: 0 | J60: ='Portfolio--2023 Specific'!I50 -> 158299.93 | K60: 138622.11 | L60: 19677.82 | M60: 0.1419529684
C61: Verification Team | E61: ='Portfolio--2023 Specific'!H51 -> 0 | F61: 0 | G61: 0 | J61: ='Portfolio--2023 Specific'!I51 -> 109275.651 | K61: 91177.31 | L61: 18098.341 | M61: 0.1984961061
C62: Programs Support | E62: ='Portfolio--2023 Specific'!H52 -> 0 | F62: 0 | G62: 0 | J62: ='Portfolio--2023 Specific'!I52 -> 169612.7 | K62: 17751.9225 | L62: 151860.7775 | M62: 8.554610212
C63: Trade Ally Memberships | E63: ='Portfolio--2023 Specific'!H53 -> 0 | F63: 0 | G63: 0 | J63: ='Portfolio--2023 Specific'!I53 -> 18200 | K63: 18200 | L63: 0 | M63: 0
C64: Trade Ally Network | E64: ='Portfolio--2023 Specific'!H54 -> 0 | F64: 0 | G64: 0 | J64: ='Portfolio--2023 Specific'!I54 -> 54967.31 | K64: -12895.4985 | L64: 67862.8085 | M64: -5.262519204
C65: Automated Benchmarking System | E65: ='Portfolio--2023 Specific'!H55 -> 0 | F65: 0 | G65: 0 | J65: ='Portfolio--2023 Specific'!I55 -> 209356.475 | K65: 275356 | L65: -65999.525 | M65: -0.2396879857
C66: Energy Advisors | E66: ='Portfolio--2023 Specific'!H56 -> 0 | F66: 0 | G66: 0 | J66: ='Portfolio--2023 Specific'!I56 -> 225072.485 | K66: 192260.29 | L66: 32812.195 | M66: 0.1706654817
C67: Energy Efficient Communities | E67: ='Portfolio--2023 Specific'!H57 -> 0 | F67: 0 | G67: 0 | J67: ='Portfolio--2023 Specific'!I57 -> 201030.4237 | K67: 189717.9988 | L67: 11312.42494 | M67: 0.05962757886
C68: Customer Digital Services | E68: ='Portfolio--2023 Specific'!H58 -> 0 | F68: 0 | G68: 0 | J68: ='Portfolio--2023 Specific'!I58 -> 615743.275 | K68: 564414.775 | L68: 51328.5 | M68: 0.09094109912
C69: Market Integration | E69: ='Portfolio--2023 Specific'!H59 -> 0 | F69: 0 | G69: 0 | J69: ='Portfolio--2023 Specific'!I59 -> 226385.495 | K69: 211301.35 | L69: 15084.145 | M69: 0.07138688418
C70: Events | E70: ='Portfolio--2023 Specific'!H60 -> 0 | F70: 0 | G70: 0 | J70: ='Portfolio--2023 Specific'!I60 -> 202192.025 | K70: 102329.3 | L70: 99862.725 | M70: 0.9758957112
C71: Subtotal, Portfolio Support | E71: ='Portfolio--2023 Specific'!H61 -> 0 | F71: 0 | G71: 0 | J71: ='Portfolio--2023 Specific'!I61 -> 2348247.75 | K71: 1935039.358 | L71: 413208.3919 | M71: 0.2135400452
C73: Energy Efficiency Research & Compliance
C74: Conservation Supply Curves | E74: ='Portfolio--2023 Specific'!H64 -> 0 | F74: 0 | G74: =E74-F74 -> 0 | H74: =(E74-F74)/F74 ->  | J74: ='Portfolio--2023 Specific'!I64 -> 70376.09 | K74: 65813.65 | L74: =J74-K74 -> 4562.44 | M74: =(J74-K74)/K74 -> 0.06932361296
C75: Strategic Planning | E75: ='Portfolio--2023 Specific'!H65 -> 0 | F75: 0 | G75: 0 | J75: ='Portfolio--2023 Specific'!I65 -> 83886.725 | K75: 75897.25 | L75: 7989.475 | M75: 0.1052669893
C76: Market Research | E76: ='Portfolio--2023 Specific'!H66 -> 0 | F76: 0 | G76: 0 | J76: ='Portfolio--2023 Specific'!I66 -> 33570.238 | K76: 30472.78 | L76: 3097.458 | M76: 0.1016467155
C77: Program Evaluation | E77: ='Portfolio--2023 Specific'!H67 -> 0 | F77: 0 | G77: 0 | J77: ='Portfolio--2023 Specific'!I67 -> 363901.73 | K77: 358739.3 | L77: 5162.43 | M77: 0.01439047799
C78: Biennial Electric Conservation Acquisition Review | E78: ='Portfolio--2023 Specific'!H68 -> 0 | F78: 0 | G78: 0 | J78: ='Portfolio--2023 Specific'!I68 -> 0 | L78: 0
C79: Subtotal, Research & Compliance | E79: ='Portfolio--2023 Specific'!H69 -> 0 | F79: 0 | G79: 0 | J79: ='Portfolio--2023 Specific'!I69 -> 551734.783 | K79: 530922.98 | L79: 20811.803 | M79: 0.03919928838
E80: ='Portfolio--2023 Specific'!H70 -> 0 | F80: 0 | J80: ='Portfolio--2023 Specific'!I70 -> 0 | K80: 0
C81: Total Savings, Efficiency Programs Included in CE Calculations | E81: ='Portfolio--2023 Specific'!H71 -> 4393239.049 | F81: 3572307.284 | G81: =E81-F81 -> 820931.7655 | H81: =(E81-F81)/F81 -> 0.2298043534 | J81: ='Portfolio--2023 Specific'!I71 -> 26380546.18 | K81: 23518987.46 | L81: =J81-K81 -> 2861558.723 | M81: =(J81-K81)/K81 -> 0.1216701496
J82: ='Portfolio--2023 Specific'!I72 -> 0 | K82: 0
C83: Other Customer Programs | J83: ='Portfolio--2023 Specific'!I73 -> 0 | K83: 0
A84: E150 | C84: Net Metering | E84: ='Portfolio--2023 Specific'!H74 -> 0 | F84: 0 | G84: =E84-F84 -> 0 | H84: =(E84-F84)/F84 ->  | J84: ='Portfolio--2023 Specific'!I74 -> 0 | L84: =J84-K84 -> 0 | M84: =(J84-K84)/K84 -> 
A85: 249 | C85: Demand Response Pilots | E85: ='Portfolio--2023 Specific'!H75 -> 0 | F85: 0 | G85: =E85-F85 -> 0 | H85: =(E85-F85)/F85 ->  | J85: ='Portfolio--2023 Specific'!I75 -> 100000 | K85: 100000 | L85: =J85-K85 -> 0 | M85: =(J85-K85)/K85 -> 0
C86: Subtotal, Other Customer Programs | E86: ='Portfolio--2023 Specific'!H77 -> 0 | F86: 0 | G86: =E86-F86 -> 0 | H86: =(E86-F86)/F86 ->  | J86: ='Portfolio--2023 Specific'!I77 -> 100000 | K86: 100000 | L86: =J86-K86 -> 0 | M86: =(J86-K86)/K86 -> 0
C90: GRAND TOTAL All Programs | E90: ='Portfolio--2023 Specific'!H71 -> 4393239.049 | F90: 3572307.284 | G90: =E90-F90 -> 820931.7655 | H90: =(E90-F90)/F90 -> 0.2298043534 | J90: ='Portfolio--2023 Specific'!I81 -> 26480546.18 | K90: 23618987.46 | L90: =J90-K90 -> 2861558.723 | M90: =(J90-K90)/K90 -> 0.1211550126
C91: and Portfolio Budgets | G91: =F91-E91 -> 0

Sheet Portfolio--2022-2023
F1: 2022-2023 Two-Year
E2: PSE Conservation Rider Savings Goals and Budgets
C3: =NOW() -> 2022-10-14T15:28:56.580
B4: Schedule Nos. (Unless otherwise noted, applies to both electric and gas) | C4: Program Name | F4: MWh Savings | G4: Electric Rider Budget | H4: Therm Savings | I4: Gas Rider Budget | J4: Total Rider Budget
C5: (All indented program or activity names are color-coded and comprise the totals of the above program or activity grouping.)
C6: Residential Energy Management
B7: 201 | C7: Low Income Weatherization | F7: ='Portfolio--2022 Specific'!F7+'Portfolio--2023 Specific'!F7 -> 3976.7612 | G7: ='Portfolio--2022 Specific'!G7+'Portfolio--2023 Specific'!G7 -> 14187949.12 | H7: ='Portfolio--2022 Specific'!H7+'Portfolio--2023 Specific'!H7 -> 40214.36 | I7: ='Portfolio--2022 Specific'!I7+'Portfolio--2023 Specific'!I7 -> 2281971.583 | J7: =G7+I7 -> 16469920.71
B8: 214 | C8: Single Family Existing Subtotal | F8: =SUM(F9:F18) -> 154597.5324 | G8: =SUM(G9:G18) -> 40818019.41 | H8: =SUM(H9:H18) -> 6817512.308 | I8: =SUM(I9:I18) -> 22089681.29 | J8: =G8+I8 -> 62907700.7
D9: Residential lighting | F9: ='Portfolio--2022 Specific'!F9+'Portfolio--2023 Specific'!F9 -> 1706.0096 | G9: ='Portfolio--2022 Specific'!G9+'Portfolio--2023 Specific'!G9 -> 1875394.495 | H9: ='Portfolio--2022 Specific'!H9+'Portfolio--2023 Specific'!H9 -> 0 | I9: ='Portfolio--2022 Specific'!I9+'Portfolio--2023 Specific'!I9 -> 0 | J9: =G9+I9 -> 1875394.495
D10: Space heat | F10: ='Portfolio--2022 Specific'!F10+'Portfolio--2023 Specific'!F10 -> 17549.596 | G10: ='Portfolio--2022 Specific'!G10+'Portfolio--2023 Specific'!G10 -> 9489893.815 | H10: ='Portfolio--2022 Specific'!H10+'Portfolio--2023 Specific'!H10 -> 1310709.41 | I10: ='Portfolio--2022 Specific'!I10+'Portfolio--2023 Specific'!I10 -> 9492621.765 | J10: =G10+I10 -> 18982515.58
D11: Water heat | F11: ='Portfolio--2022 Specific'!F11+'Portfolio--2023 Specific'!F11 -> 2897.69891 | G11: ='Portfolio--2022 Specific'!G11+'Portfolio--2023 Specific'!G11 -> 2358410.025 | H11: ='Portfolio--2022 Specific'!H11+'Portfolio--2023 Specific'!H11 -> 130784.45 | I11: ='Portfolio--2022 Specific'!I11+'Portfolio--2023 Specific'!I11 -> 1022544.325 | J11: 3380954.35
D12: Home Energy Assessment | F12: ='Portfolio--2022 Specific'!F12+'Portfolio--2023 Specific'!F12 -> 0 | G12: ='Portfolio--2022 Specific'!G12+'Portfolio--2023 Specific'!G12 -> 0 | H12: ='Portfolio--2022 Specific'!H12+'Portfolio--2023 Specific'!H12 -> 0 | I12: ='Portfolio--2022 Specific'!I12+'Portfolio--2023 Specific'!I12 -> 0 | J12: 0
D13: Home Appliances | F13: ='Portfolio--2022 Specific'!F13+'Portfolio--2023 Specific'!F13 -> 1467.418 | G13: ='Portfolio--2022 Specific'!G13+'Portfolio--2023 Specific'!G13 -> 1624514.285 | H13: ='Portfolio--2022 Specific'!H13+'Portfolio--2023 Specific'!H13 -> 12341.4 | I13: ='Portfolio--2022 Specific'!I13+'Portfolio--2023 Specific'!I13 -> 0 | J13: 1624514.285
D14: Smart Thermostats | F14: ='Portfolio--2022 Specific'!F14+'Portfolio--2023 Specific'!F14 -> 1997.742 | G14: ='Portfolio--2022 Specific'!G14+'Portfolio--2023 Specific'!G14 -> 1972413.2 | H14: ='Portfolio--2022 Specific'!H14+'Portfolio--2023 Specific'!H14 -> 583301.7 | I14: ='Portfolio--2022 Specific'!I14+'Portfolio--2023 Specific'!I14 -> 3672994.375 | J14: 5645407.575
D15: Water Use Reducers | F15: ='Portfolio--2022 Specific'!F15+'Portfolio--2023 Specific'!F15 -> 0.0948 | G15: ='Portfolio--2022 Specific'!G15+'Portfolio--2023 Specific'!G15 -> 5136.85 | H15: ='Portfolio--2022 Specific'!H15+'Portfolio--2023 Specific'!H15 -> 5.2 | I15: ='Portfolio--2022 Specific'!I15+'Portfolio--2023 Specific'!I15 -> 4092.025 | J15: 9228.875
D16: Weatherization | F16: ='Portfolio--2022 Specific'!F16+'Portfolio--2023 Specific'!F16 -> 2562.797136 | G16: ='Portfolio--2022 Specific'!G16+'Portfolio--2023 Specific'!G16 -> 2427787.96 | H16: ='Portfolio--2022 Specific'!H16+'Portfolio--2023 Specific'!H16 -> 496780.1478 | I16: ='Portfolio--2022 Specific'!I16+'Portfolio--2023 Specific'!I16 -> 5075454.23 | J16: 7503242.19
D17: Home Energy Reports | F17: ='Portfolio--2022 Specific'!F17+'Portfolio--2023 Specific'!F17 -> 96223.22 | G17: ='Portfolio--2022 Specific'!G17+'Portfolio--2023 Specific'!G17 -> 3659837.56 | H17: ='Portfolio--2022 Specific'!H17+'Portfolio--2023 Specific'!H17 -> 4283590 | I17: ='Portfolio--2022 Specific'!I17+'Portfolio--2023 Specific'!I17 -> 2821974.575 | J17: 6481812.135
D18: Midstream HVAC and Water Heat | F18: ='Portfolio--2022 Specific'!F18+'Portfolio--2023 Specific'!F18 -> 30192.956 | G18: ='Portfolio--2022 Specific'!G18+'Portfolio--2023 Specific'!G18 -> 17404631.21 | H18: ='Portfolio--2022 Specific'!H18+'Portfolio--2023 Specific'!I18 -> 0 | I18: ='Portfolio--2022 Specific'!I18+'Portfolio--2023 Specific'!I18 -> 0 | J18: 17404631.21
B19: 215 | C19: Single Family New Construction | F19: ='Portfolio--2022 Specific'!F19+'Portfolio--2023 Specific'!F19 -> 770.552 | G19: ='Portfolio--2022 Specific'!G19+'Portfolio--2023 Specific'!G19 -> 866052.2075 | H19: ='Portfolio--2022 Specific'!H19+'Portfolio--2023 Specific'!H19 -> 9798.6 | I19: ='Portfolio--2022 Specific'!I19+'Portfolio--2023 Specific'!I19 -> 140465.39 | J19: 1006517.598
B20: 214 & 217 | C20: Moderate Income Residences | F20: ='Portfolio--2022 Specific'!F20+'Portfolio--2023 Specific'!F20 -> 0 | G20: ='Portfolio--2022 Specific'!G20+'Portfolio--2023 Specific'!G20 -> 175191.2 | H20: ='Portfolio--2022 Specific'!H20+'Portfolio--2023 Specific'!H20 -> 0 | I20: ='Portfolio--2022 Specific'!I20+'Portfolio--2023 Specific'!I20 -> 121610.1 | J20: 296801.3
B21: 217 | C21: Multifamily Retrofit | F21: ='Portfolio--2022 Specific'!F21+'Portfolio--2023 Specific'!F21 -> 18175.32492 | G21: ='Portfolio--2022 Specific'!G21+'Portfolio--2023 Specific'!G21 -> 17303758.58 | H21: ='Portfolio--2022 Specific'!H21+'Portfolio--2023 Specific'!H21 -> 74877.76 | I21: ='Portfolio--2022 Specific'!I21+'Portfolio--2023 Specific'!I21 -> 1003515.559 | J21: 18307274.14
B22: 218 | C22: Multifamily New Construction | F22: ='Portfolio--2022 Specific'!F22+'Portfolio--2023 Specific'!F22 -> 8500 | G22: ='Portfolio--2022 Specific'!G22+'Portfolio--2023 Specific'!G22 -> 4214966.67 | H22: ='Portfolio--2022 Specific'!H22+'Portfolio--2023 Specific'!H22 -> 65000 | I22: ='Portfolio--2022 Specific'!I22+'Portfolio--2023 Specific'!I22 -> 504073.1 | J22: 4719039.77
C23: Total, Residential Programs | F23: =F7+F8+SUM(F19:F22) -> 186020.1706 | G23: =G7+G8+SUM(G19:G22) -> 77565937.18 | H23: =H7+H8+SUM(H19:H22) -> 7007403.028 | I23: =I7+I8+SUM(I19:I22) -> 26141317.03 | J23: 103707254.2
C25: Business Energy Management
B26: 250 | C26: Commercial / Industrial Retrofit | F26: ='Portfolio--2022 Specific'!F26+'Portfolio--2023 Specific'!F26 -> 140519.199 | G26: ='Portfolio--2022 Specific'!G26+'Portfolio--2023 Specific'!G26 -> 53018897.06 | H26: ='Portfolio--2022 Specific'!H26+'Portfolio--2023 Specific'!H26 -> 1110268 | I26: ='Portfolio--2022 Specific'!I26+'Portfolio--2023 Specific'!I26 -> 5186153.359 | J26: =G26+I26 -> 58205050.42
B27: 251 | C27: Commercial/Industrial New Construction | F27: ='Portfolio--2022 Specific'!F27+'Portfolio--2023 Specific'!F27 -> 47000 | G27: ='Portfolio--2022 Specific'!G27+'Portfolio--2023 Specific'!G27 -> 15832661.95 | H27: ='Portfolio--2022 Specific'!H27+'Portfolio--2023 Specific'!H27 -> 180000 | I27: ='Portfolio--2022 Specific'!I27+'Portfolio--2023 Specific'!I27 -> 1043032.09 | J27: 16875694.04
B28: 253 | C28: Commercial Strategic Energy Management | F28: ='Portfolio--2022 Specific'!F28+'Portfolio--2023 Specific'!F28 -> 32000 | G28: ='Portfolio--2022 Specific'!G28+'Portfolio--2023 Specific'!G28 -> 5112786.225 | H28: ='Portfolio--2022 Specific'!H28+'Portfolio--2023 Specific'!H28 -> 973000 | I28: ='Portfolio--2022 Specific'!I28+'Portfolio--2023 Specific'!I28 -> 1602285.825 | J28: 6715072.05
B29: E258 | C29: Large Power User - Self Directed Program - Subtotal | F29: =F30+F31 -> 20042.48 | G29: =G30+G31 -> 9549283.208 | J29: 9549283.208
B30: E258 | D30: 449 Customers | F30: ='Portfolio--2022 Specific'!F30+'Portfolio--2023 Specific'!F30 -> 9549.935 | G30: ='Portfolio--2022 Specific'!G30+'Portfolio--2023 Specific'!G30 -> 4831364.797 | J30: 4831364.797
B31: E258 | D31: Non-449 Customers | F31: ='Portfolio--2022 Specific'!F31+'Portfolio--2023 Specific'!F31 -> 10492.545 | G31: ='Portfolio--2022 Specific'!G31+'Portfolio--2023 Specific'!G31 -> 4717918.411 | J31: 4717918.411
B32: 261 | C32: Energy Efficient Technology Evaluation | F32: ='Portfolio--2022 Specific'!F32+'Portfolio--2023 Specific'!F32 -> 0 | G32: ='Portfolio--2022 Specific'!G32+'Portfolio--2023 Specific'!G32 -> 0 | H32: ='Portfolio--2022 Specific'!H32+'Portfolio--2023 Specific'!H32 -> 0 | I32: ='Portfolio--2022 Specific'!I32+'Portfolio--2023 Specific'!I32 -> 0 | J32: 0
B33: 262 | C33: Commercial Rebates | F33: ='Portfolio--2022 Specific'!F33+'Portfolio--2023 Specific'!F33 -> 83199.0878 | G33: ='Portfolio--2022 Specific'!G33+'Portfolio--2023 Specific'!G33 -> 31519360.44 | H33: ='Portfolio--2022 Specific'!H33+'Portfolio--2023 Specific'!H33 -> 1418618.4 | I33: ='Portfolio--2022 Specific'!I33+'Portfolio--2023 Specific'!I33 -> 6698380.697 | J33: 38217741.13
C34: Subtotal, Business Programs | F34: =SUM(F26:F29)+SUM(F32:F33) -> 322760.7668 | G34: =SUM(G26:G29)+SUM(G32:G33) -> 115032988.9 | H34: =SUM(H26:H33) -> 3681886.4 | I34: =SUM(I26:I33) -> 14529851.97 | J34: 129562840.8
C36: Pilots With Uncertain Savings
B37: 249 | C37: Residential | F37: ='Portfolio--2022 Specific'!F37+'Portfolio--2023 Specific'!F37 -> 719.45 | G37: ='Portfolio--2022 Specific'!G37+'Portfolio--2023 Specific'!G37 -> 2013759.85 | H37: ='Portfolio--2022 Specific'!H37+'Portfolio--2023 Specific'!H37 -> 25125 | I37: ='Portfolio--2022 Specific'!I37+'Portfolio--2023 Specific'!I37 -> 871983.55 | J37: =G37+I37 -> 2885743.4
B38: 249 | C38: Commercial | F38: ='Portfolio--2022 Specific'!F38+'Portfolio--2023 Specific'!F38 -> 1500 | G38: ='Portfolio--2022 Specific'!G38+'Portfolio--2023 Specific'!G38 -> 324350.25 | H38: ='Portfolio--2022 Specific'!H38+'Portfolio--2023 Specific'!H38 -> 7500 | I38: ='Portfolio--2022 Specific'!I38+'Portfolio--2023 Specific'!I38 -> 1870.05 | J38: =G38+I38 -> 326220.3
C39: Subtotal, Pilots | F39: =SUM(F37:F38) -> 2219.45 | G39: =SUM(G37:G38) -> 2338110.1 | H39: =SUM(H37:H38) -> 32625 | I39: =SUM(I37:I38) -> 873853.6 | J39: 3211963.7
C41: Regional Efficiency Programs
B42: E254 | C42: NW Energy Efficiency Alliance (NEEA) | F42: ='Portfolio--2022 Specific'!F42+'Portfolio--2023 Specific'!F42 -> 27593.21335 | G42: ='Portfolio--2022 Specific'!G42+'Portfolio--2023 Specific'!G42 -> 9833280 | J42: =G42+I42 -> 9833280
C43: NEEA Natural Gas Market Transformation | H43: ='Portfolio--2022 Specific'!H43+'Portfolio--2023 Specific'!H43 -> 0 | I43: ='Portfolio--2022 Specific'!I43+'Portfolio--2023 Specific'!I43 -> 3180472 | J43: 3180472
B44: 219 | C44: Targeted DSM Pilot | F44: ='Portfolio--2022 Specific'!F44+'Portfolio--2023 Specific'!F44 -> 0 | G44: ='Portfolio--2022 Specific'!G44+'Portfolio--2023 Specific'!G44 -> 1279794.988 | H44: ='Portfolio--2022 Specific'!H44+'Portfolio--2023 Specific'!H44 -> 0 | I44: ='Portfolio--2022 Specific'!I44+'Portfolio--2023 Specific'!I44 -> 584912.1375 | J44: =G44+I44 -> 1864707.125
B45: E292 | C45: Generation, Transmission and Distribution | F45: ='Portfolio--2022 Specific'!F45+'Portfolio--2023 Specific'!F45 -> 12000 | G45: ='Portfolio--2022 Specific'!G45+'Portfolio--2023 Specific'!G45 -> 0 | J45: 0
C46: Subtotal, Regional Programs | F46: =SUM(F42:F45) -> 39593.21335 | G46: =SUM(G42:G45) -> 11113074.99 | H46: =SUM(H42:H45) -> 0 | I46: =SUM(I42:I45) -> 3765384.138 | J46: 14878459.12
J47: 0
C48: Energy Efficiency Portfolio Support
C49: Data and Systems Services | G49: ='Portfolio--2022 Specific'!G49+'Portfolio--2023 Specific'!G49 -> 2040590.22 | I49: ='Portfolio--2022 Specific'!I49+'Portfolio--2023 Specific'!I49 -> 304915.78 | J49: =G49+I49 -> 2345506
C50: Rebates Processing | G50: ='Portfolio--2022 Specific'!G50+'Portfolio--2023 Specific'!G50 -> 1981161.402 | I50: ='Portfolio--2022 Specific'!I50+'Portfolio--2023 Specific'!I50 -> 296922.04 | J50: 2278083.442
C51: Verification Team | G51: ='Portfolio--2022 Specific'!G51+'Portfolio--2023 Specific'!G51 -> 1342787.289 | I51: ='Portfolio--2022 Specific'!I51+'Portfolio--2023 Specific'!I51 -> 200452.961 | J51: 1543240.25
C52: Programs Support | G52: ='Portfolio--2022 Specific'!G52+'Portfolio--2023 Specific'!G52 -> 1898567.723 | I52: ='Portfolio--2022 Specific'!I52+'Portfolio--2023 Specific'!I52 -> 193864.6225 | J52: 2092432.345
C53: Trade Ally Memberships | G53: ='Portfolio--2022 Specific'!G53+'Portfolio--2023 Specific'!G53 -> 243600 | I53: ='Portfolio--2022 Specific'!I53+'Portfolio--2023 Specific'!I53 -> 36400 | J53: 280000
C54: Trade Ally Network (revenue + cost) | G54: ='Portfolio--2022 Specific'!G54+'Portfolio--2023 Specific'!G54 -> 80820.5155 | I54: ='Portfolio--2022 Specific'!I54+'Portfolio--2023 Specific'!I54 -> 35239.8955 | J54: 116060.411
C55: Automated Benchmarking System | G55: ='Portfolio--2022 Specific'!G55+'Portfolio--2023 Specific'!G55 -> 3913729.9 | I55: ='Portfolio--2022 Specific'!I55+'Portfolio--2023 Specific'!I55 -> 978432.475 | J55: 4892162.375
C56: Energy Advisors | G56: ='Portfolio--2022 Specific'!G56+'Portfolio--2023 Specific'!G56 -> 2885953.725 | I56: ='Portfolio--2022 Specific'!I56+'Portfolio--2023 Specific'!I56 -> 417362.775 | J56: 3303316.5
C57: Energy Efficient Communities | G57: ='Portfolio--2022 Specific'!G57+'Portfolio--2023 Specific'!G57 -> 2513037.775 | I57: ='Portfolio--2022 Specific'!I57+'Portfolio--2023 Specific'!I57 -> 385185.6883 | J57: 2898223.463
C58: Customer Digital Services | G58: ='Portfolio--2022 Specific'!G58+'Portfolio--2023 Specific'!G58 -> 3729642.375 | I58: ='Portfolio--2022 Specific'!I58+'Portfolio--2023 Specific'!I58 -> 1180158.05 | J58: 4909800.425
C59: Market Integration | G59: ='Portfolio--2022 Specific'!G59+'Portfolio--2023 Specific'!G59 -> 2931109.09 | I59: ='Portfolio--2022 Specific'!I59+'Portfolio--2023 Specific'!I59 -> 437686.845 | J59: 3368795.935
C60: Events | G60: ='Portfolio--2022 Specific'!G60+'Portfolio--2023 Specific'!G60 -> 1508403.375 | I60: ='Portfolio--2022 Specific'!I60+'Portfolio--2023 Specific'!I60 -> 312081.325 | J60: 1820484.7
C61: Subtotal, Portfolio Support | G61: =SUM(G49:G60) -> 25069403.39 | I61: =SUM(I49:I60) -> 4778702.457 | J61: 29848105.85
C63: Energy Efficiency Research & Compliance
C64: Conservation Supply Curves | G64: ='Portfolio--2022 Specific'!G64+'Portfolio--2023 Specific'!G64 -> 932448.515 | I64: ='Portfolio--2022 Specific'!I64+'Portfolio--2023 Specific'!I64 -> 136189.74 | J64: =G64+I64 -> 1068638.255
C65: Strategic Planning | G65: ='Portfolio--2022 Specific'!G65+'Portfolio--2023 Specific'!G65 -> 1069323.525 | I65: ='Portfolio--2022 Specific'!I65+'Portfolio--2023 Specific'!I65 -> 159783.975 | J65: 1229107.5
C66: Market Research | G66: ='Portfolio--2022 Specific'!G66+'Portfolio--2023 Specific'!G66 -> 428595.582 | I66: ='Portfolio--2022 Specific'!I66+'Portfolio--2023 Specific'!I66 -> 64043.018 | J66: 492638.6
C67: Program Evaluation | G67: ='Portfolio--2022 Specific'!G67+'Portfolio--2023 Specific'!G67 -> 3311553.97 | I67: ='Portfolio--2022 Specific'!I67+'Portfolio--2023 Specific'!I67 -> 719041.03 | J67: 4030595
C68: Biennial Electric Conservation Acquisition Review | G68: ='Portfolio--2022 Specific'!G68+'Portfolio--2023 Specific'!G68 -> 300000 | I68: ='Portfolio--2022 Specific'!I68+'Portfolio--2023 Specific'!I68 -> 0 | J68: 300000
C69: Subtotal, Research & Compliance | G69: =SUM(G64:G68) -> 6041921.592 | I69: =SUM(I64:I68) -> 1079057.763 | J69: 7120979.355
B71: Total EE Portfolio Savings and Budgets | F71: =F23+F34+F39+F46 -> 550593.6007 | G71: =G23+G34+G39+G46+G61+G69 -> 237161436.1 | H71: =H23+H34+H39+H46 -> 10721914.43 | I71: =I23+I34+I39+I46+I61+I69 -> 51168166.96 | J71: =G71+I71 -> 288329603.1
C73: Other Customer Programs
B74: E150 | C74: Net Metering | G74: ='Portfolio--2022 Specific'!G74+'Portfolio--2023 Specific'!G74 -> 7043674.65 | J74: =G74+I74 -> 7043674.65
B75: 249A, 271 | C75: Demand Response Pilot | G75: ='Portfolio--2022 Specific'!G75+'Portfolio--2023 Specific'!G75 -> 640000 | I75: ='Portfolio--2022 Specific'!I75+'Portfolio--2023 Specific'!I75 -> 260000 | J75: 900000
C76: Subtotal, Other Energy Efficiency Programs | G76: =SUM(G74:G75) -> 7683674.65 | I76: =SUM(I74:I75) -> 260000 | J76: 7943674.65
C80: TOTAL UTILITY CONSERVATION GOALS | F80: ='Building the 2-yr elec target'!I21 -> 536717.135 | G80: =G71+G76 -> 244845110.8 | H80: ='Building the 2-yr gas target'!G19 -> 9791327.094 | I80: =I71+I76 -> 51428166.96 | J80: =G80+I80 -> 296273277.7
C81: and Portfolio Budgets | F81: =F80/8760 -> 61.26907934
C83: EIA Target | F83: ='Building the 2-yr elec target'!I13 -> 497564 | H83: Electric Only | I83: CPA Pro-Rata Share
F84: =F83/8760 -> 56.79954338
C86: EIA and Natural Gas Penalty Threshold | F86: ='Building the 2-yr elec target'!I16 -> 469181.6 | H86: ='Building the 2-yr gas target'!G15 -> 9262930.566 | I86: EIA Target - NEEA
F87: =F86/8760 -> 53.55954338
C89: Two-Year Decoupling Threshold | F89: ='Building the 2-yr elec target'!I17 -> 24878.2 | G89: 5% of IRP Total Biennial Potential of | H89: ='Building the 2-yr gas target'!G16 -> 463146.5283 | I89: 5% of CPA Pro-Rata Share
F90: =F89/8760 -> 2.839977169 | G90: =F83 -> 497564
D93: Blue cells = use for 10% "info-only" calculation: | G93: =(G39+G61)/G71 -> 0.1155647981 | I93: =(I39+I61)/I71 -> 0.1104701691
E94: Add up all blue cells and divide by "Total, Efficiency Programs Included in CE Calculations" line.
E95: HER program costs excluded from "info-only" calculation because savings will be measured.
D97: Purple cells = use to indicate a reasonable amt. spent on EM&V (condition (6)(c)): | G97: =(G49+G51+SUM(G67:G68))/(G23+G34) -> 0.03631864218 | I97: =(I49+I51+SUM(I67:I68))/(I23+I34) -> 0.03010510396
D98: EM&V Budget (WAC 480-109-120(1)(b)(vi)(B)) | G98: =(G49+G51+SUM(G67:G68)) -> 6994931.479 | I98: =(I49+I51+SUM(I67:I68)) -> 1224409.771
E99: Add up the sum of [Data & Systems Services + Program Evaluation + BECAR + Verification] purple cells and divide by the [Residential + Business] purple cells.
E100: Add up the sum of [Data & Systems Services + Program Evaluation + BECAR + Verification] purple cells

Sheet Portfolio--2022 Specific (hidden)
F1: BCP 2022
E2: PSE Conservation Rider Savings Goals and Budgets
C3: =NOW() -> 2022-10-14T15:28:56.580
B4: Schedule Nos. (Unless otherwise noted, applies to both electric and gas) | C4: Program Name | F4: MWh Savings | G4: Electric Rider Budget | H4: Therm Savings | I4: Gas Rider Budget | J4: Total Rider Budget
C5: (All indented program or activity names are color-coded and comprise the totals of the above program or activity grouping.)
C6: Residential Energy Management
B7: 201 | C7: Low Income Weatherization | F7: ='2022 Sector View Electric'!S8/1000 -> 1977.441 | G7: ='2022 Sector View Electric'!R8 -> 6108195.965 | H7: ='2022 Sector View Gas'!S8 -> 20743.53 | I7: ='2022 Sector View Gas'!R8 -> 1016785.932 | J7: =G7+I7 -> 7124981.897
B8: 214 | C8: Single Family Existing Subtotal | F8: =SUM(F9:F18) -> 79784.04083 | G8: =SUM(G9:G18) -> 21609151.64 | H8: 4078373.268 | I8: =SUM(I9:I18) -> 10757754.14 | J8: 32366905.78
D9: Residential lighting | F9: ='2022 Sector View Electric'!S16/1000 -> 1072.9522 | G9: ='2022 Sector View Electric'!R16 -> 1137066.25 | J9: =G9+I9 -> 1137066.25
D10: Space heat | F10: ='2022 Sector View Electric'!S12/1000 -> 8258.67 | G10: ='2022 Sector View Electric'!R12 -> 4375824.85 | H10: ='2022 Sector View Gas'!S11 -> 687077.31 | I10: ='2022 Sector View Gas'!R11 -> 4866399.5 | J10: 9242224.35
D11: Water heat | F11: ='2022 Sector View Electric'!S10/1000 -> 1448.70561 | G11: ='2022 Sector View Electric'!R10 -> 1126336.25 | H11: ='2022 Sector View Gas'!S9 -> 65515.05 | I11: ='2022 Sector View Gas'!R9 -> 477738.4 | J11: 1604074.65
D12: Home Energy Assessment | F12: ='2022 Sector View Electric'!S9/1000 -> 0 | G12: ='2022 Sector View Electric'!R9 -> 0 | J12: 0
D13: Home Appliances | F13: ='2022 Sector View Electric'!S14/1000 -> 639.328 | G13: ='2022 Sector View Electric'!R14 -> 712443.35 | H13: ='2022 Sector View Gas'!S14 -> 6233.4 | I13: ='2022 Sector View Gas'!R14 -> 0 | J13: 712443.35
D14: Smart Thermostats | F14: ='2022 Sector View Electric'!S18/1000 -> 1235.452 | G14: ='2022 Sector View Electric'!R18 -> 900817 | H14: ='2022 Sector View Gas'!S15 -> 330000 | I14: ='2022 Sector View Gas'!R15 -> 1787068.75 | J14: 2687885.75
D15: Water Use Reducers | F15: ='2022 Sector View Electric'!S15/1000 -> 0.0948 | G15: ='2022 Sector View Electric'!R15 -> 5136.85 | H15: ='2022 Sector View Gas'!S13 -> 5.2 | I15: ='2022 Sector View Gas'!R13 -> 4092.025 | J15: 9228.875
D16: Weatherization | F16: ='2022 Sector View Electric'!S11/1000 -> 1228.102216 | G16: ='2022 Sector View Electric'!R11 -> 1131902.26 | H16: ='2022 Sector View Gas'!S10 -> 245042.3083 | I16: ='2022 Sector View Gas'!R10 -> 2395688.09 | J16: 3527590.35
D17: Home Energy Reports | F17: ='2022 Sector View Electric'!S17/1000 -> 49484 | G17: ='2022 Sector View Electric'!R17 -> 1575154.68 | H17: ='2022 Sector View Gas'!S16 -> 2744500 | I17: ='2022 Sector View Gas'!R16 -> 1226767.38 | J17: 2801922.06
D18: Midstream HVAC and Water Heat | F18: ='2022 Sector View Electric'!S13/1000 -> 16416.736 | G18: ='2022 Sector View Electric'!R13 -> 10644470.15 | H18: ='2022 Sector View Gas'!S12 -> 0 | I18: ='2022 Sector View Gas'!R12 -> 0 | J18: 10644470.15
B19: 215 | C19: Single Family New Construction | F19: ='2022 Sector View Electric'!S19/1000+'2022 Sector View Electric'!S20/1000 -> 410.276 | G19: ='2022 Sector View Electric'!R19+'2022 Sector View Electric'!R20 -> 447982.2 | H19: ='2022 Sector View Gas'!S17+'2022 Sector View Gas'!S18 -> 2996.8 | I19: =+'2022 Sector View Gas'!R17+'2022 Sector View Gas'!R18 -> 59710.9 | J19: 507693.1
B20: 214 & 217 | C20: Moderate Income Residences | F20: ='2022 Sector View Electric'!S21 -> 0 | G20: ='2022 Sector View Electric'!R21 -> 88998.65 | H20: ='2022 Sector View Gas'!S19 -> 0 | I20: ='2022 Sector View Gas'!R19 -> 42626.175 | J20: 131624.825
B21: 217 | C21: Multifamily Retrofit | F21: =('2022 Sector View Electric'!S22+'2022 Sector View Electric'!S23)/1000 -> 9069.9772 | G21: =('2022 Sector View Electric'!R22+'2022 Sector View Electric'!R23) -> 7704961.155 | H21: ='2022 Sector View Gas'!S20+'2022 Sector View Gas'!S21 -> 37352.38 | I21: ='2022 Sector View Gas'!R20+'2022 Sector View Gas'!R21 -> 372701.282 | J21: 8077662.437
B22: 218 | C22: Multifamily New Construction | F22: ='2022 Sector View Electric'!S24/1000 -> 4500 | G22: ='2022 Sector View Electric'!R24 -> 2068144.675 | H22: ='2022 Sector View Gas'!S22 -> 50000 | I22: ='2022 Sector View Gas'!R22 -> 354536.55 | J22: 2422681.225
C23: Total, Residential Programs | F23: =F7+F8+SUM(F19:F22) -> 95741.73503 | G23: =G7+G8+SUM(G19:G22) -> 38027434.29 | H23: =H7+H8+SUM(H19:H22) -> 4189465.978 | I23: =I7+I8+SUM(I19:I22) -> 12604114.98 | J23: =J7+J8+SUM(J19:J22) -> 50631549.27
C25: Business Energy Management
B26: 250 | C26: Commercial / Industrial Retrofit | F26: =('2022 Sector View Electric'!S29/1000) -> 73469.199 | G26: ='2022 Sector View Electric'!R29 -> 25839078.89 | H26: ='2022 Sector View Gas'!S28 -> 603268 | I26: ='2022 Sector View Gas'!R28 -> 2492178.65 | J26: =G26+I26 -> 28331257.54
B27: 251 | C27: Commercial/Industrial New Construction | F27: ='2022 Sector View Electric'!S34/1000 -> 29500 | G27: ='2022 Sector View Electric'!R34 -> 8817266 | H27: ='2022 Sector View Gas'!S32 -> 90000 | I27: ='2022 Sector View Gas'!R32 -> 723114 | J27: =G27+I27 -> 9540380
B28: 253 | C28: Commercial Strategic Energy Management | F28: ='2022 Sector View Electric'!S35/1000 -> 16000 | G28: ='2022 Sector View Electric'!R35 -> 2378739.25 | H28: ='2022 Sector View Gas'!S33 -> 571500 | I28: ='2022 Sector View Gas'!R33 -> 735866.75 | J28: =G28+I28 -> 3114606
B29: E258 | C29: Large Power User - Self Directed Program Subtotal | F29: =F30+F31 -> 18176.194 | G29: =G30+G31 -> 7895207.604 | J29: =G29+I29 -> 7895207.604
B30: E258 | D30: 449 Customers | F30: ='2022 Sector View Electric'!S40/1000 -> 7917.921 | G30: ='2022 Sector View Electric'!R40 -> 3596034.899 | J30: 3596034.899
B31: E258 | D31: Non-449 Customers | F31: ='2022 Sector View Electric'!S41/1000 -> 10258.273 | G31: ='2022 Sector View Electric'!R41 -> 4299172.706 | J31: 4299172.706
B32: 261 | C32: Energy Efficient Technology Evaluation | F32: ='2022 Sector View Electric'!S42 -> 0 | G32: ='2022 Sector View Electric'!R42 -> 0 | H32: ='2022 Sector View Gas'!S37 -> 0 | I32: ='2022 Sector View Gas'!R37 -> 0 | J32: 0
B33: 262 | C33: Commercial Rebates | F33: ='2022 Sector View Electric'!S43/1000 -> 45208.7174 | G33: ='2022 Sector View Electric'!R43 -> 16133600.06 | H33: ='2022 Sector View Gas'!S38 -> 841816.4 | I33: ='2022 Sector View Gas'!R38 -> 3400182.525 | J33: 19533782.58
C34: Subtotal, Business Programs | F34: =SUM(F26:F29)+SUM(F32:F33) -> 182354.1104 | G34: =SUM(G26:G29)+SUM(G32:G33) -> 61063891.8 | H34: =SUM(H26:H33) -> 2106584.4 | I34: =SUM(I26:I33) -> 7351341.925 | J34: =G34+I34 -> 68415233.73
C36: Pilots With Uncertain Savings
B37: 249 | C37: Residential | F37: ='2022 Sector View Electric'!S55/1000 -> 360 | G37: ='2022 Sector View Electric'!R55 -> 52500 | H37: ='2022 Sector View Gas'!S50 -> 25125 | I37: ='2022 Sector View Gas'!R50 -> 0 | J37: =G37+I37 -> 52500
B38: 249 | C38: Commercial | F38: ='2022 Sector View Electric'!S59/1000 -> 1500 | G38: ='2022 Sector View Electric'!R59 -> 324350.25 | H38: ='2022 Sector View Gas'!S53 -> 7500 | I38: ='2022 Sector View Gas'!R53 -> 1870.05 | J38: 326220.3
C39: Subtotal, Pilots | F39: =SUM(F37:F38) -> 1860 | G39: =SUM(G37:G38) -> 376850.25 | H39: =SUM(H37:H38) -> 32625 | I39: =SUM(I37:I38) -> 1870.05 | J39: 378720.3
C41: Regional Efficiency Programs
B42: E254 | C42: NW Energy Efficiency Alliance (NEEA) | F42: ='2022 Sector View Electric'!S66/1000 -> 12964.8 | G42: ='2022 Sector View Electric'!R66 -> 4916640 | J42: =G42+I42 -> 4916640
C43: NEEA Natural Gas Market Transformation | H43: ='2022 Sector View Gas'!S61 -> 0 | I43: ='2022 Sector View Gas'!R61 -> 1590236 | J43: 1590236
B44: 219 | C44: Targeted DSM Pilot | F44: ='2022 Sector View Electric'!S67/1000 -> 0 | G44: ='2022 Sector View Electric'!R67 -> 616153.625 | H44: ='2022 Sector View Gas'!S60 -> 0 | I44: ='2022 Sector View Gas'!R60 -> 282280.125 | J44: 898433.75
B45: E292 | C45: Generation, Transmission and Distribution | F45: ='2022 Sector View Electric'!S68/1000 -> 6000 | G45: ='2022 Sector View Electric'!R68 -> 0 | J45: 0
C46: Subtotal, Regional Programs | F46: =SUM(F42:F45) -> 18964.8 | G46: =SUM(G42:G45) -> 5532793.625 | H46: =SUM(H42:H45) -> 0 | I46: =SUM(I42:I45) -> 1872516.125 | J46: 7405309.75
C48: Energy Efficiency Portfolio Support
C49: Data and Systems Services | G49: ='2022 Sector View Electric'!R74 -> 982456.2 | I49: ='2022 Sector View Gas'!R67 -> 146803.8 | J49: =G49+I49 -> 1129260
C50: Rebates Processing | G50: ='2022 Sector View Electric'!R75 -> 917965.39 | I50: ='2022 Sector View Gas'!R68 -> 138622.11 | J50: 1056587.5
C51: Verification Team | G51: ='2022 Sector View Electric'!R76 -> 611150.19 | I51: ='2022 Sector View Gas'!R69 -> 91177.31 | J51: 702327.5
C52: Programs Support | G52: ='2022 Sector View Electric'!R77 -> 764270.4225 | I52: ='2022 Sector View Gas'!R70 -> 24251.9225 | J52: 788522.345
C53: Trade Ally Memberships | G53: ='2022 Sector View Electric'!R78 -> 121800 | I53: ='2022 Sector View Gas'!R71 -> 18200 | J53: 140000
C54: Trade Ally Network (revenue + cost) | G54: ='2022 Sector View Electric'!R79 -> 12290.5855 | I54: ='2022 Sector View Gas'!R72 -> -19727.4145 | J54: -7436.829
C55: Automated Benchmarking System | G55: ='2022 Sector View Electric'!R80 -> 3076304 | I55: ='2022 Sector View Gas'!R73 -> 769076 | J55: 3845380
C56: Energy Advisors | G56: ='2022 Sector View Electric'!R81 -> 1312480.71 | I56: ='2022 Sector View Gas'!R74 -> 192290.29 | J56: 1504771
C57: Energy Efficient Communities | G57: ='2022 Sector View Electric'!R82 -> 1200990.107 | I57: ='2022 Sector View Gas'!R75 -> 184155.2645 | J57: 1385145.372
C58: Customer Digital Services | G58: ='2022 Sector View Electric'!R83 -> 1730227.285 | I58: ='2022 Sector View Gas'!R76 -> 564414.775 | J58: 2294642.06
C59: Market Integration | G59: ='2022 Sector View Electric'!R88 -> 1425046.8 | I59: ='2022 Sector View Gas'!R81 -> 211301.35 | J59: 1636348.15
C60: Events | G60: ='2022 Sector View Electric'!R89 -> 531567.45 | I60: ='2022 Sector View Gas'!R82 -> 109889.3 | J60: 641456.75
C61: Subtotal, Portfolio Support | G61: =SUM(G49:G60) -> 12686549.14 | I61: =SUM(I49:I60) -> 2430454.708 | J61: 15117003.85
C63: Energy Efficiency Research & Compliance
C64: Conservation Supply Curves | G64: ='2022 Sector View Electric'!R95 -> 440442.35 | I64: ='2022 Sector View Gas'!R88 -> 65813.65 | J64: =G64+I64 -> 506256
C65: Strategic Planning | G65: ='2022 Sector View Electric'!R96 -> 507927.75 | I65: ='2022 Sector View Gas'!R89 -> 75897.25 | J65: 583825
C66: Market Research | G66: ='2022 Sector View Electric'!R97 -> 203933.22 | I66: ='2022 Sector View Gas'!R90 -> 30472.78 | J66: 234406
C67: Program Evaluation | G67: ='2022 Sector View Electric'!R98 -> 1635802.7 | I67: ='2022 Sector View Gas'!R91 -> 355139.3 | J67: 1990942
C68: Biennial Electric Conservation Acquisition Review | G68: ='2022 Sector View Electric'!R99 -> 150000 | J68: 150000
C69: Subtotal, Research & Compliance | G69: =SUM(G64:G68) -> 2938106.02 | I69: =SUM(I64:I68) -> 527322.98 | J69: 3465429
B71: Total Savings, Efficiency Programs Included in CE Calculations | F71: =F23+F34+F39+F46 -> 298920.6454 | G71: =G23+G34+G39+G46+G61+G69 -> 120625625.1 | H71: =H23+H34+H39+H46 -> 6328675.378 | I71: =I23+I34+I39+I46+I61+I69 -> 24787620.77 | J71: =G71+I71 -> 145413245.9
C73: Other Customer Programs
B74: E150 | C74: Net Metering | G74: ='2022 Sector View Electric'!R105 -> 2190968.5 | J74: =G74+I74 -> 2190968.5
B75: 249A, 271 | C75: Demand Response Pilot | G75: ='2022 Sector View Electric'!R106 -> 340000 | I75: ='2022 Sector View Gas'!R97 -> 160000 | J75: 500000
C76: Subtotal, Other Energy Efficiency Programs | G76: =SUM(G74:G75) -> 2530968.5 | I76: =SUM(I74:I75) -> 160000 | J76: 2690968.5
C80: TOTAL SAVINGS AND TOTAL BUDGETS | F80: =F71 -> 298920.6454 | G80: =G71+G76 -> 123156593.6 | H80: =H71 -> 6328675.378 | I80: =I71+I76 -> 24947620.77 | J80: =G80+I80 -> 148104214.4
F81: =F80/8760 -> 34.12336135
D83: Blue cells = use for 10% "info-only" calculation: | G83: =(G39+G61)/G71 -> 0.1082970503 | I83: =(I39+I61)/I71 -> 0.0981265923
E84: Add up all blue cells and divide by "Total, Efficiency Programs Included in CE Calculations" line.
E85: HER program costs excluded from "info-only" calculation because savings will be measured.
D87: Purple cells = use to indicate a reasonable amt. spent on EM&V (condition (6)(c)): | G87: =(G49+G51+SUM(G67:G68))/(G23+G34) -> 0.03410398491 | I87: =(I49+I51+SUM(I67:I68))/(I23+I34) -> 0.02972221647
D88: EM&V Budget (WAC 480-109-120(1)(b)(vi)(B)) | G88: =(G49+G51+SUM(G67:G68)) -> 3379409.09 | I88: =(I49+I51+SUM(I67:I68)) -> 593120.41
E89: (Line bh) Add up the sum of [Data & Systems Services + Program Evaluation + BECAR + Verification] purple cells and divide by the [Residential + Business] purple cells.
E90: (Line bi) Add up the sum of [Data & Systems Services + Program Evaluation + BECAR + Verification] purple cells

Sheet Portfolio--2023 Specific
F1: ACP 2023
E2: PSE Conservation Rider Savings Goals and Budgets
C3: =NOW() -> 2022-10-14T15:28:56.580
B4: Schedule Nos. (Unless otherwise noted, applies to both electric and gas) | C4: Program Name | F4: MWh Savings | G4: Electric Rider Budget | H4: Therm Savings | I4: Gas Rider Budget | J4: Total Rider Budget
C5: (All indented program or activity names are color-coded and comprise the totals of the above program or activity grouping.)
C6: Residential Energy Management
B7: 201 | C7: Low Income Weatherization | F7: ='2023 Sector View Elect'!S8/1000 -> 1999.3202 | G7: ='2023 Sector View Elect'!R8 -> 8079753.158 | H7: ='2023 Sector View Gas'!S8 -> 19470.83 | I7: ='2023 Sector View Gas'!R8 -> 1265185.651 | J7: =G7+I7 -> 9344938.809
B8: 214 | C8: Single Family Existing Subtotal | F8: =SUM(F9:F18) -> 74813.49162 | G8: =SUM(G9:G18) -> 19208867.77 | H8: =SUM(H9:H18) -> 2739139.039 | I8: =SUM(I9:I18) -> 11331927.15 | J8: =G8+I8 -> 30540794.91
D9: Residential lighting | F9: ='2023 Sector View Elect'!S16/1000 -> 633.0574 | G9: ='2023 Sector View Elect'!R16 -> 738328.245 | J9: 738328.245
D10: Space heat | F10: ='2023 Sector View Elect'!S12/1000 -> 9290.926 | G10: ='2023 Sector View Elect'!R12 -> 5114068.965 | H10: ='2023 Sector View Gas'!S11 -> 623632.1 | I10: ='2023 Sector View Gas'!R11 -> 4626222.265 | J10: 9740291.23
D11: Water heat | F11: ='2023 Sector View Elect'!S10/1000 -> 1448.9933 | G11: ='2023 Sector View Elect'!R10 -> 1232073.775 | H11: ='2023 Sector View Gas'!S9 -> 65269.4 | I11: ='2023 Sector View Gas'!R9 -> 544805.925 | J11: 1776879.7
D12: Home Energy Assessment | F12: ='2023 Sector View Elect'!S9/1000 -> 0 | G12: ='2023 Sector View Elect'!R9 -> 0 | J12: =G12+I12 -> 0
D13: Home Appliances | F13: ='2023 Sector View Elect'!S14/1000 -> 828.09 | G13: ='2023 Sector View Elect'!R14 -> 912070.935 | H13: ='2023 Sector View Gas'!S14 -> 6108 | I13: ='2023 Sector View Gas'!R14 -> 0 | J13: 912070.935
D14: Smart Thermostats | F14: ='2023 Sector View Elect'!S18/1000 -> 762.29 | G14: ='2023 Sector View Elect'!R18 -> 1071596.2 | H14: ='2023 Sector View Gas'!S15 -> 253301.7 | I14: ='2023 Sector View Gas'!R15 -> 1885925.625 | J14: 2957521.825
D15: Water Use Reducers | F15: ='2023 Sector View Elect'!S15/1000 -> 0 | G15: ='2023 Sector View Elect'!R15 -> 0 | H15: ='2023 Sector View Gas'!S13 -> 0 | I15: ='2023 Sector View Gas'!R13 -> 0 | J15: 0
D16: Weatherization | F16: ='2023 Sector View Elect'!S11/1000 -> 1334.69492 | G16: ='2023 Sector View Elect'!R11 -> 1295885.7 | H16: ='2023 Sector View Gas'!S10 -> 251737.8395 | I16: ='2023 Sector View Gas'!R10 -> 2679766.14 | J16: 3975651.84
D17: Home Energy Reports | F17: ='2023 Sector View Elect'!S17/1000 -> 46739.22 | G17: ='2023 Sector View Elect'!R17 -> 2084682.88 | H17: ='2023 Sector View Gas'!S16 -> 1539090 | I17: ='2023 Sector View Gas'!R16 -> 1595207.195 | J17: 3679890.075
D18: Midstream HVAC and Water Heat | F18: ='2023 Sector View Elect'!S13/1000 -> 13776.22 | G18: ='2023 Sector View Elect'!R13 -> 6760161.065 | H18: ='2023 Sector View Gas'!S12 -> 0 | I18: ='2023 Sector View Gas'!R12 -> 0 | J18: 6760161.065
B19: 215 | C19: Single Family New Construction | F19: ='2023 Sector View Elect'!S19/1000+'2023 Sector View Elect'!S20/1000 -> 360.276 | G19: ='2023 Sector View Elect'!R19+'2023 Sector View Elect'!R20 -> 418070.0075 | H19: =+'2023 Sector View Gas'!S17+'2023 Sector View Gas'!S18 -> 6801.8 | I19: ='2023 Sector View Gas'!R17+'2023 Sector View Gas'!R18 -> 80754.49 | J19: 498824.4975
B20: 214 & 217 | C20: Moderate Income Residences | F20: ='2023 Sector View Elect'!S21 -> 0 | G20: ='2023 Sector View Elect'!R21 -> 86192.55 | H20: ='2023 Sector View Gas'!S19 -> 0 | I20: ='2023 Sector View Gas'!R19 -> 78983.925 | J20: 165176.475
B21: 217 | C21: Multifamily Retrofit | F21: =('2023 Sector View Elect'!S22+'2023 Sector View Elect'!S23)/1000 -> 9105.34772 | G21: ='2023 Sector View Elect'!R22+'2023 Sector View Elect'!R23 -> 9598797.423 | H21: ='2023 Sector View Gas'!S20+'2023 Sector View Gas'!S21 -> 37525.38 | I21: ='2023 Sector View Gas'!R21+'2023 Sector View Gas'!R20 -> 630814.277 | J21: 10229611.7
B22: 218 | C22: Multifamily New Construction | F22: ='2023 Sector View Elect'!S24/1000 -> 4000 | G22: ='2023 Sector View Elect'!R24 -> 2146821.995 | H22: ='2023 Sector View Gas'!S22 -> 15000 | I22: ='2023 Sector View Gas'!R22 -> 149536.55 | J22: 2296358.545
C23: Total, Residential Programs | F23: =F7+F8+SUM(F19:F22) -> 90278.43554 | G23: =G7+G8+SUM(G19:G22) -> 39538502.9 | H23: =H7+H8+SUM(H19:H22) -> 2817937.05 | I23: =I7+I8+SUM(I19:I22) -> 13537202.04 | J23: =G23+I23 -> 53075704.94
C25: Business Energy Management
B26: 250 | C26: Commercial / Industrial Retrofit | F26: =('2023 Sector View Elect'!S29/1000) -> 67050 | G26: ='2023 Sector View Elect'!R29 -> 27179818.17 | H26: ='2023 Sector View Gas'!S28 -> 507000 | I26: ='2023 Sector View Gas'!R28 -> 2693974.709 | J26: =G26+I26 -> 29873792.88
B27: 251 | C27: Commercial/Industrial New Construction | F27: ='2023 Sector View Elect'!S35/1000 -> 17500 | G27: ='2023 Sector View Elect'!R35 -> 7015395.95 | H27: ='2023 Sector View Gas'!S33 -> 90000 | I27: ='2023 Sector View Gas'!R33 -> 319918.09 | J27: 7335314.04
B28: 253 | C28: Commercial Strategic Energy Management | F28: ='2023 Sector View Elect'!S36/1000 -> 16000 | G28: ='2023 Sector View Elect'!R36 -> 2734046.975 | H28: ='2023 Sector View Gas'!S34 -> 401500 | I28: ='2023 Sector View Gas'!R34 -> 866419.075 | J28: 3600466.05
B29: E258 | C29: Large Power User - Self Directed Program Subtotal | F29: =F30+F31 -> 1866.286 | G29: =G30+G31 -> 1654075.604 | J29: 1654075.604
B30: E258 | D30: 449 Customers | F30: ='2023 Sector View Elect'!S41/1000 -> 1632.014 | G30: ='2023 Sector View Elect'!R41 -> 1235329.899 | J30: 1235329.899
B31: E258 | D31: Non-449 Customers | F31: ='2023 Sector View Elect'!S42/1000 -> 234.272 | G31: ='2023 Sector View Elect'!R42 -> 418745.7056 | J31: 418745.7056
B32: 261 | C32: Energy Efficient Technology Evaluation | F32: ='2023 Sector View Elect'!S43 -> 0 | G32: ='2023 Sector View Elect'!R43 -> 0 | H32: ='2023 Sector View Gas'!S38 -> 0 | I32: ='2023 Sector View Gas'!R38 -> 0 | J32: 0
B33: 262 | C33: Commercial Rebates | F33: ='2023 Sector View Elect'!S44/1000 -> 37990.3704 | G33: ='2023 Sector View Elect'!R44 -> 15385760.38 | H33: ='2023 Sector View Gas'!S39 -> 576802 | I33: ='2023 Sector View Gas'!R39 -> 3298198.173 | J33: 18683958.55
C34: Subtotal, Business Programs | F34: =SUM(F26:F29)+SUM(F32:F33) -> 140406.6564 | G34: =SUM(G26:G29)+SUM(G32:G33) -> 53969097.08 | H34: =SUM(H26:H33) -> 1575302 | I34: =SUM(I26:I33) -> 7178510.046 | J34: 61147607.12
C36: Pilots With Uncertain Savings
B37: 249 | C37: Residential | F37: ='2023 Sector View Elect'!S56/1000 -> 359.45 | G37: ='2023 Sector View Elect'!R56 -> 1961259.85 | H37: ='2023 Sector View Gas'!S51 -> 0 | I37: ='2023 Sector View Gas'!R51 -> 871983.55 | J37: =G37+I37 -> 2833243.4
B38: 249 | C38: Commercial | F38: ='2023 Sector View Elect'!S60/1000 -> 0 | G38: ='2023 Sector View Elect'!R60 -> 0 | H38: ='2023 Sector View Gas'!S54 -> 0 | I38: ='2023 Sector View Gas'!R54 -> 0 | J38: 0
C39: Subtotal, Pilots | F39: =SUM(F37:F38) -> 359.45 | G39: =SUM(G37:G38) -> 1961259.85 | H39: =SUM(H37:H38) -> 0 | I39: =SUM(I37:I38) -> 871983.55 | J39: 2833243.4
C41: Regional Efficiency Programs
B42: E254 | C42: NW Energy Efficiency Alliance (NEEA) | F42: ='2023 Sector View Elect'!S67/1000 -> 14628.41335 | G42: ='2023 Sector View Elect'!R67 -> 4916640 | J42: =G42+I42 -> 4916640
C43: NEEA Natural Gas Market Transformation | H43: ='2023 Sector View Gas'!S62 -> 0 | I43: ='2023 Sector View Gas'!R62 -> 1590236 | J43: 1590236
B44: 219 | C44: Targeted DSM Pilot | F44: ='2023 Sector View Elect'!S68/1000 -> 0 | G44: ='2023 Sector View Elect'!R68 -> 663641.3625 | H44: ='2023 Sector View Gas'!S61 -> 0 | I44: ='2023 Sector View Gas'!R61 -> 302632.0125 | J44: 966273.375
B45: E292 | C45: Generation, Transmission and Distribution | F45: ='2023 Sector View Elect'!S69/1000 -> 6000 | G45: ='2023 Sector View Elect'!R69 -> 0 | J45: 0
C46: Subtotal, Regional Programs | F46: =SUM(F42:F45) -> 20628.41335 | G46: =SUM(G42:G45) -> 5580281.362 | H46: =SUM(H42:H45) -> 0 | I46: =SUM(I42:I45) -> 1892868.012 | J46: 7473149.375
C48: Energy Efficiency Portfolio Support
C49: Data and Systems Services | G49: ='2023 Sector View Elect'!R75 -> 1058134.02 | I49: ='2023 Sector View Gas'!R68 -> 158111.98 | J49: =G49+I49 -> 1216246
C50: Rebates Processing | G50: ='2023 Sector View Elect'!R76 -> 1063196.012 | I50: ='2023 Sector View Gas'!R69 -> 158299.93 | J50: 1221495.942
C51: Verification Team | G51: ='2023 Sector View Elect'!R77 -> 731637.099 | I51: ='2023 Sector View Gas'!R70 -> 109275.651 | J51: 840912.75
C52: Programs Support | G52: ='2023 Sector View Elect'!R78 -> 1134297.3 | I52: ='2023 Sector View Gas'!R71 -> 169612.7 | J52: 1303910
C53: Trade Ally Memberships | G53: ='2023 Sector View Elect'!R79 -> 121800 | I53: ='2023 Sector View Gas'!R72 -> 18200 | J53: 140000
C54: Trade Ally Network (revenue + cost) | G54: ='2023 Sector View Elect'!R80 -> 68529.93 | I54: ='2023 Sector View Gas'!R73 -> 54967.31 | J54: 123497.24
C55: Automated Benchmarking System | G55: ='2023 Sector View Elect'!R81 -> 837425.9 | I55: ='2023 Sector View Gas'!R74 -> 209356.475 | J55: 1046782.375
C56: Energy Advisors | G56: ='2023 Sector View Elect'!R82 -> 1573473.015 | I56: ='2023 Sector View Gas'!R75 -> 225072.485 | J56: 1798545.5
C57: Energy Efficient Communities | G57: ='2023 Sector View Elect'!R83 -> 1312047.668 | I57: ='2023 Sector View Gas'!R76 -> 201030.4237 | J57: 1513078.091
C58: Customer Digital Services | G58: ='2023 Sector View Elect'!R84 -> 1999415.09 | I58: ='2023 Sector View Gas'!R77 -> 615743.275 | J58: 2615158.365
C59: Market Integration | G59: ='2023 Sector View Elect'!R89 -> 1506062.29 | I59: ='2023 Sector View Gas'!R82 -> 226385.495 | J59: 1732447.785
C60: Events | G60: ='2023 Sector View Elect'!R90 -> 976835.925 | I60: ='2023 Sector View Gas'!R83 -> 202192.025 | J60: 1179027.95
C61: Subtotal, Portfolio Support | G61: =SUM(G49:G60) -> 12382854.25 | I61: =SUM(I49:I60) -> 2348247.75 | J61: 14731102
C63: Energy Efficiency Research & Compliance
C64: Conservation Supply Curves | G64: ='2023 Sector View Elect'!R96 -> 492006.165 | I64: ='2023 Sector View Gas'!R89 -> 70376.09 | J64: =G64+I64 -> 562382.255
C65: Strategic Planning | G65: ='2023 Sector View Elect'!R97 -> 561395.775 | I65: ='2023 Sector View Gas'!R90 -> 83886.725 | J65: 645282.5
C66: Market Research | G66: ='2023 Sector View Elect'!R98 -> 224662.362 | I66: ='2023 Sector View Gas'!R91 -> 33570.238 | J66: 258232.6
C67: Program Evaluation | G67: ='2023 Sector View Elect'!R99 -> 1675751.27 | I67: ='2023 Sector View Gas'!R92 -> 363901.73 | J67: 2039653
C68: Biennial Electric Conservation Acquisition Review | G68: ='2023 Sector View Elect'!R100 -> 150000 | J68: 150000
C69: Subtotal, Research & Compliance | G69: =SUM(G64:G68) -> 3103815.572 | I69: =SUM(I64:I68) -> 551734.783 | J69: 3655550.355
B71: Total Savings, Efficiency Programs Included in CE Calculations | F71: =F23+F34+F39+F46 -> 251672.9553 | G71: =G23+G34+G39+G46+G61+G69 -> 116535811 | H71: =H23+H34+H39+H46 -> 4393239.049 | I71: =I23+I34+I39+I46+I61+I69 -> 26380546.18 | J71: =G71+I71 -> 142916357.2
C73: Other Customer Programs
B74: E150 | C74: Net Metering | G74: ='2023 Sector View Elect'!R106 -> 4852706.15 | J74: =G74+I74 -> 4852706.15
B75: 249A, 271 | C75: Demand Response Pilot | G75: ='2023 Sector View Elect'!R107 -> 300000 | I75: ='2023 Sector View Gas'!R98 -> 100000 | J75: 400000
B76: E271 | C76: Demand Response Administration | G76: ='2023 Sector View Elect'!R108 -> 1104696.3
C77: Subtotal, Other Energy Efficiency Programs | G77: =SUM(G74:G76) -> 6257402.45 | I77: =SUM(I74:I75) -> 100000 | J77: 6357402.45
C81: TOTAL SAVINGS AND TOTAL BUDGETS | F81: =F71 -> 251672.9553 | G81: =G71+G77 -> 122793213.5 | H81: =H71 -> 4393239.049 | I81: =I71+I77 -> 26480546.18 | J81: =G81+I81 -> 149273759.6
F82: =F81/8760 -> 28.72978942
D84: Blue cells = use for 10% "info-only" calculation: | G84: =(G39+G61)/G71 -> 0.1230876069 | I84: =(I39+I61)/I71 -> 0.1220684089
E85: Add up all blue cells and divide by "Total, Efficiency Programs Included in CE Calculations" line.
E86: HER program costs excluded from "info-only" calculation because savings will be measured.
D88: Purple cells = use to indicate a reasonable amt. spent on EM&V (condition (6)(c)): | G88: =(G49+G51+SUM(G67:G68))/(G23+G34) -> 0.0386655458 | I88: =(I49+I51+SUM(I67:I68))/(I23+I34) -> 0.0304739397
D89: EM&V Budget (WAC 480-109-120(1)(b)(vi)(B)) | G89: =(G49+G51+SUM(G67:G68)) -> 3615522.389 | I89: =(I49+I51+SUM(I67:I68)) -> 631289.361
E90: (Line bh) Add up the sum of [Data & Systems Services + Program Evaluation + BECAR + Verification] purple cells and divide by the [Residential + Business] purple cells.
E91: (Line bi) Add up the sum of [Data & Systems Services + Program Evaluation + BECAR + Verification] purple cells

Sheet 2-year Sector View Electric
C2: Energy Efficiency 2022-2023 Budgets and Aggregate Program Savings
C3: Two-Year Sector View
C4: Electric Programs | I4: Please see category descriptions at the bottom of the sector table.
I5: Budget Category
B6: Workbook Name | C6: Schedule | D6: Comment | E6: Description (Blue, indented text indicates a sub-total value) | H6: Order Number (Click on the order# below to link to the detail page) | I6: Program Labor | J6: Overhead | K6: Marketing | L6: Employee/Office Expense | M6: Outside Services | N6: Materials | O6: Miscellaneous | P6: DBtC | Q6: Revenue | R6: Total Budget | S6: Total Savings kWh | U6: Comments
C7: Residential Energy Management
B8: LIW Detail_REM E201_Elec | C8: E201 | E8: Low Income Weatherization | H8: 18230611 | I8: ='2022 Sector View Electric'!I8+'2023 Sector View Elect'!I8 -> 245065 | J8: ='2022 Sector View Electric'!J8+'2023 Sector View Elect'!J8 -> 192675.29 | K8: ='2022 Sector View Electric'!K8+'2023 Sector View Elect'!K8 -> 194400 | L8: ='2022 Sector View Electric'!L8+'2023 Sector View Elect'!L8 -> 9000 | M8: ='2022 Sector View Electric'!M8+'2023 Sector View Elect'!M8 -> 45000 | N8: ='2022 Sector View Electric'!N8+'2023 Sector View Elect'!N8 -> 2700 | O8: ='2022 Sector View Electric'!O8+'2023 Sector View Elect'!O8 -> 0 | P8: ='2022 Sector View Electric'!P8+'2023 Sector View Elect'!P8 -> 13499108.83 | Q8: ='2022 Sector View Electric'!Q8+'2023 Sector View Elect'!Q8 -> 0 | R8: ='2022 Sector View Electric'!R8+'2023 Sector View Elect'!R8 -> 14187949.12 | S8: ='2022 Sector View Electric'!S8+'2023 Sector View Elect'!S8 -> 3976761.2
B9: HomePrint Detail_REM_E214 Elec | C9: E214 | E9: Home Energy Assessments | H9: 18230625 | I9: ='2022 Sector View Electric'!I9+'2023 Sector View Elect'!I9 -> 0 | J9: ='2022 Sector View Electric'!J9+'2023 Sector View Elect'!J9 -> 0 | K9: ='2022 Sector View Electric'!K9+'2023 Sector View Elect'!K9 -> 0 | L9: ='2022 Sector View Electric'!L9+'2023 Sector View Elect'!L9 -> 0 | M9: ='2022 Sector View Electric'!M9+'2023 Sector View Elect'!M9 -> 0 | N9: ='2022 Sector View Electric'!N9+'2023 Sector View Elect'!N9 -> 0 | O9: ='2022 Sector View Electric'!O9+'2023 Sector View Elect'!O9 -> 0 | P9: ='2022 Sector View Electric'!P9+'2023 Sector View Elect'!P9 -> 0 | Q9: ='2022 Sector View Electric'!Q9+'2023 Sector View Elect'!Q9 -> 0 | R9: ='2022 Sector View Electric'!R9+'2023 Sector View Elect'!R9 -> 0 | S9: ='2022 Sector View Electric'!S9+'2023 Sector View Elect'!S9 -> 0
B10: WaterHea_Detail_REM_E214 Elec | C10: E214 | E10: SF Existing Water Heat | H10: 18230626 | I10: ='2022 Sector View Electric'!I10+'2023 Sector View Elect'!I10 -> 312775 | J10: ='2022 Sector View Electric'!J10+'2023 Sector View Elect'!J10 -> 247405.025 | K10: ='2022 Sector View Electric'!K10+'2023 Sector View Elect'!K10 -> 280000 | L10: ='2022 Sector View Electric'!L10+'2023 Sector View Elect'!L10 -> 1000 | M10: ='2022 Sector View Electric'!M10+'2023 Sector View Elect'!M10 -> 272780 | N10: ='2022 Sector View Electric'!N10+'2023 Sector View Elect'!N10 -> 1000 | O10: ='2022 Sector View Electric'!O10+'2023 Sector View Elect'!O10 -> 1000 | P10: ='2022 Sector View Electric'!P10+'2023 Sector View Elect'!P10 -> 1242450 | Q10: ='2022 Sector View Electric'!Q10+'2023 Sector View Elect'!Q10 -> 0 | R10: ='2022 Sector View Electric'!R10+'2023 Sector View Elect'!R10 -> 2358410.025 | S10: ='2022 Sector View Electric'!S10+'2023 Sector View Elect'!S10 -> 2897698.91
B11: Wx_Detail_REM E214 Elec | C11: E214 | E11: SF Existing Weatherization | H11: 18230627 | I11: ='2022 Sector View Electric'!I11+'2023 Sector View Elect'!I11 -> 177450 | J11: ='2022 Sector View Electric'!J11+'2023 Sector View Elect'!J11 -> 140362.95 | K11: ='2022 Sector View Electric'!K11+'2023 Sector View Elect'!K11 -> 220000 | L11: ='2022 Sector View Electric'!L11+'2023 Sector View Elect'!L11 -> 2000 | M11: ='2022 Sector View Electric'!M11+'2023 Sector View Elect'!M11 -> 7000 | N11: ='2022 Sector View Electric'!N11+'2023 Sector View Elect'!N11 -> 1000 | O11: ='2022 Sector View Electric'!O11+'2023 Sector View Elect'!O11 -> 5000 | P11: ='2022 Sector View Electric'!P11+'2023 Sector View Elect'!P11 -> 1874975.01 | Q11: ='2022 Sector View Electric'!Q11+'2023 Sector View Elect'!Q11 -> 0 | R11: ='2022 Sector View Electric'!R11+'2023 Sector View Elect'!R11 -> 2427787.96 | S11: ='2022 Sector View Electric'!S11+'2023 Sector View Elect'!S11 -> 2562797.136
B12: SpcHeat Detail_REM_E214 Elec | C12: E214 | E12: SF Existing Space Heat | H12: 18230628 | I12: ='2022 Sector View Electric'!I12+'2023 Sector View Elect'!I12 -> 171465 | J12: ='2022 Sector View Electric'!J12+'2023 Sector View Elect'!J12 -> 135628.815 | K12: ='2022 Sector View Electric'!K12+'2023 Sector View Elect'!K12 -> 450000 | L12: ='2022 Sector View Electric'!L12+'2023 Sector View Elect'!L12 -> 2000 | M12: ='2022 Sector View Electric'!M12+'2023 Sector View Elect'!M12 -> 80000 | N12: ='2022 Sector View Electric'!N12+'2023 Sector View Elect'!N12 -> 3000 | O12: ='2022 Sector View Electric'!O12+'2023 Sector View Elect'!O12 -> 0 | P12: ='2022 Sector View Electric'!P12+'2023 Sector View Elect'!P12 -> 8647800 | Q12: ='2022 Sector View Electric'!Q12+'2023 Sector View Elect'!Q12 -> 0 | R12: ='2022 Sector View Electric'!R12+'2023 Sector View Elect'!R12 -> 9489893.815 | S12: ='2022 Sector View Electric'!S12+'2023 Sector View Elect'!S12 -> 17549596
C13: E214 | E13: Residential Midstream HVAC and Water Heat | H13: 18230162 | I13: ='2022 Sector View Electric'!I13+'2023 Sector View Elect'!I13 -> 221865 | J13: ='2022 Sector View Electric'!J13+'2023 Sector View Elect'!J13 -> 175495.215 | K13: ='2022 Sector View Electric'!K13+'2023 Sector View Elect'!K13 -> 0 | L13: ='2022 Sector View Electric'!L13+'2023 Sector View Elect'!L13 -> 3000 | M13: ='2022 Sector View Electric'!M13+'2023 Sector View Elect'!M13 -> 6405000 | N13: ='2022 Sector View Electric'!N13+'2023 Sector View Elect'!N13 -> 3000 | O13: ='2022 Sector View Electric'!O13+'2023 Sector View Elect'!O13 -> 0 | P13: ='2022 Sector View Electric'!P13+'2023 Sector View Elect'!P13 -> 10596271 | Q13: ='2022 Sector View Electric'!Q13+'2023 Sector View Elect'!Q13 -> 0 | R13: ='2022 Sector View Electric'!R13+'2023 Sector View Elect'!R13 -> 17404631.21 | S13: ='2022 Sector View Electric'!S13+'2023 Sector View Elect'!S13 -> 30192956
B14: HmAppplc_Detail_REM_E214 Elec | C14: E214 | E14: Home Appliances | H14: 18230434 | I14: ='2022 Sector View Electric'!I14+'2023 Sector View Elect'!I14 -> 127635 | J14: ='2022 Sector View Electric'!J14+'2023 Sector View Elect'!J14 -> 100959.285 | K14: ='2022 Sector View Electric'!K14+'2023 Sector View Elect'!K14 -> 120000 | L14: ='2022 Sector View Electric'!L14+'2023 Sector View Elect'!L14 -> 1000 | M14: ='2022 Sector View Electric'!M14+'2023 Sector View Elect'!M14 -> 420000 | N14: ='2022 Sector View Electric'!N14+'2023 Sector View Elect'!N14 -> 1000 | O14: ='2022 Sector View Electric'!O14+'2023 Sector View Elect'!O14 -> 0 | P14: ='2022 Sector View Electric'!P14+'2023 Sector View Elect'!P14 -> 853920 | Q14: ='2022 Sector View Electric'!Q14+'2023 Sector View Elect'!Q14 -> 0 | R14: ='2022 Sector View Electric'!R14+'2023 Sector View Elect'!R14 -> 1624514.285 | S14: ='2022 Sector View Electric'!S14+'2023 Sector View Elect'!S14 -> 1467418
B15: ShwrHead_Detail_REM_E214 Elec | C15: E214 | E15: Residential Water Use Reducers | H15: 18230435 | I15: ='2022 Sector View Electric'!I15+'2023 Sector View Elect'!I15 -> 2850 | J15: ='2022 Sector View Electric'!J15+'2023 Sector View Elect'!J15 -> 2254.35 | K15: ='2022 Sector View Electric'!K15+'2023 Sector View Elect'!K15 -> 0 | L15: ='2022 Sector View Electric'!L15+'2023 Sector View Elect'!L15 -> 0 | M15: ='2022 Sector View Electric'!M15+'2023 Sector View Elect'!M15 -> 0 | N15: ='2022 Sector View Electric'!N15+'2023 Sector View Elect'!N15 -> 0 | O15: ='2022 Sector View Electric'!O15+'2023 Sector View Elect'!O15 -> 0 | P15: ='2022 Sector View Electric'!P15+'2023 Sector View Elect'!P15 -> 32.5 | Q15: ='2022 Sector View Electric'!Q15+'2023 Sector View Elect'!Q15 -> 0 | R15: ='2022 Sector View Electric'!R15+'2023 Sector View Elect'!R15 -> 5136.85 | S15: ='2022 Sector View Electric'!S15+'2023 Sector View Elect'!S15 -> 94.8
B16: Lighting Detail_REM_E214 Elec | C16: E214 | E16: Energy Efficient Lighting Services | H16: 18230440 | I16: ='2022 Sector View Electric'!I16+'2023 Sector View Elect'!I16 -> 189945 | J16: ='2022 Sector View Electric'!J16+'2023 Sector View Elect'!J16 -> 150246.495 | K16: ='2022 Sector View Electric'!K16+'2023 Sector View Elect'!K16 -> 160000 | L16: ='2022 Sector View Electric'!L16+'2023 Sector View Elect'!L16 -> 3500 | M16: ='2022 Sector View Electric'!M16+'2023 Sector View Elect'!M16 -> 343000 | N16: ='2022 Sector View Electric'!N16+'2023 Sector View Elect'!N16 -> 2200 | O16: ='2022 Sector View Electric'!O16+'2023 Sector View Elect'!O16 -> 0 | P16: ='2022 Sector View Electric'!P16+'2023 Sector View Elect'!P16 -> 1026503 | Q16: ='2022 Sector View Electric'!Q16+'2023 Sector View Elect'!Q16 -> 0 | R16: ='2022 Sector View Electric'!R16+'2023 Sector View Elect'!R16 -> 1875394.495 | S16: ='2022 Sector View Electric'!S16+'2023 Sector View Elect'!S16 -> 1706009.6
B17: HER Detail_REM_E214 elec. | C17: E214 | E17: Home Energy Reports | H17: 18230461 | I17: ='2022 Sector View Electric'!I17+'2023 Sector View Elect'!I17 -> 130620 | J17: ='2022 Sector View Electric'!J17+'2023 Sector View Elect'!J17 -> 103320.42 | K17: ='2022 Sector View Electric'!K17+'2023 Sector View Elect'!K17 -> 0 | L17: ='2022 Sector View Electric'!L17+'2023 Sector View Elect'!L17 -> 2650 | M17: ='2022 Sector View Electric'!M17+'2023 Sector View Elect'!M17 -> 1718004.14 | N17: ='2022 Sector View Electric'!N17+'2023 Sector View Elect'!N17 -> 0 | O17: ='2022 Sector View Electric'!O17+'2023 Sector View Elect'!O17 -> 0 | P17: ='2022 Sector View Electric'!P17+'2023 Sector View Elect'!P17 -> 1705243 | Q17: ='2022 Sector View Electric'!Q17+'2023 Sector View Elect'!Q17 -> 0 | R17: ='2022 Sector View Electric'!R17+'2023 Sector View Elect'!R17 -> 3659837.56 | S17: ='2022 Sector View Electric'!S17+'2023 Sector View Elect'!S17 -> 96223220
B18: Web Tstat Detail_REM E214 Elec | C18: E214 | E18: Smart Thermostats | H18: 18230023 | I18: ='2022 Sector View Electric'!I18+'2023 Sector View Elect'!I18 -> 130200 | J18: ='2022 Sector View Electric'!J18+'2023 Sector View Elect'!J18 -> 102988.2 | K18: ='2022 Sector View Electric'!K18+'2023 Sector View Elect'!K18 -> 88000 | L18: ='2022 Sector View Electric'!L18+'2023 Sector View Elect'!L18 -> 200 | M18: ='2022 Sector View Electric'!M18+'2023 Sector View Elect'!M18 -> 902000 | N18: ='2022 Sector View Electric'!N18+'2023 Sector View Elect'!N18 -> 2000 | O18: ='2022 Sector View Electric'!O18+'2023 Sector View Elect'!O18 -> 0 | P18: ='2022 Sector View Electric'!P18+'2023 Sector View Elect'!P18 -> 747025 | Q18: ='2022 Sector View Electric'!Q18+'2023 Sector View Elect'!Q18 -> 0 | R18: ='2022 Sector View Electric'!R18+'2023 Sector View Elect'!R18 -> 1972413.2 | S18: ='2022 Sector View Electric'!S18+'2023 Sector View Elect'!S18 -> 1997742
B19: SFNC Detail_REM E215 Elec | C19: E215 | E19: Single Family New Construction | H19: 18230405 | I19: ='2022 Sector View Electric'!I19+'2023 Sector View Elect'!I19 -> 75075 | J19: ='2022 Sector View Electric'!J19+'2023 Sector View Elect'!J19 -> 59384.325 | K19: ='2022 Sector View Electric'!K19+'2023 Sector View Elect'!K19 -> 20000 | L19: ='2022 Sector View Electric'!L19+'2023 Sector View Elect'!L19 -> 2000 | M19: ='2022 Sector View Electric'!M19+'2023 Sector View Elect'!M19 -> 12000 | N19: ='2022 Sector View Electric'!N19+'2023 Sector View Elect'!N19 -> 0 | O19: ='2022 Sector View Electric'!O19+'2023 Sector View Elect'!O19 -> 0 | P19: ='2022 Sector View Electric'!P19+'2023 Sector View Elect'!P19 -> 92500 | Q19: ='2022 Sector View Electric'!Q19+'2023 Sector View Elect'!Q19 -> 17500 | R19: ='2022 Sector View Electric'!R19+'2023 Sector View Elect'!R19 -> 278459.325 | S19: ='2022 Sector View Electric'!S19+'2023 Sector View Elect'!S19 -> 150000
B20: MfgHmNew Detail_REM E215 Elec | C20: E215 | E20: Manufactured Home New Construction | H20: 18230071 | I20: ='2022 Sector View Electric'!I20+'2023 Sector View Elect'!I20 -> 58957.5 | J20: ='2022 Sector View Electric'!J20+'2023 Sector View Elect'!J20 -> 46635.3825 | K20: ='2022 Sector View Electric'!K20+'2023 Sector View Elect'!K20 -> 10000 | L20: ='2022 Sector View Electric'!L20+'2023 Sector View Elect'!L20 -> 0 | M20: ='2022 Sector View Electric'!M20+'2023 Sector View Elect'!M20 -> 108000 | N20: ='2022 Sector View Electric'!N20+'2023 Sector View Elect'!N20 -> 0 | O20: ='2022 Sector View Electric'!O20+'2023 Sector View Elect'!O20 -> 0 | P20: ='2022 Sector View Electric'!P20+'2023 Sector View Elect'!P20 -> 364000 | Q20: ='2022 Sector View Electric'!Q20+'2023 Sector View Elect'!Q20 -> 0 | R20: ='2022 Sector View Electric'!R20+'2023 Sector View Elect'!R20 -> 587592.8825 | S20: ='2022 Sector View Electric'!S20+'2023 Sector View Elect'!S20 -> 620552
B21: Efficiency Boost E217 Elec | C21: E214 & 217 | E21: Moderate Income Residences | H21: 18230751 | I21: ='2022 Sector View Electric'!I21+'2023 Sector View Elect'!I21 -> 63200 | J21: ='2022 Sector View Electric'!J21+'2023 Sector View Elect'!J21 -> 49991.2 | K21: ='2022 Sector View Electric'!K21+'2023 Sector View Elect'!K21 -> 62000 | L21: ='2022 Sector View Electric'!L21+'2023 Sector View Elect'!L21 -> 0 | M21: ='2022 Sector View Electric'!M21+'2023 Sector View Elect'!M21 -> 0 | N21: ='2022 Sector View Electric'!N21+'2023 Sector View Elect'!N21 -> 0 | O21: ='2022 Sector View Electric'!O21+'2023 Sector View Elect'!O21 -> 0 | P21: ='2022 Sector View Electric'!P21+'2023 Sector View Elect'!P21 -> 0 | Q21: ='2022 Sector View Electric'!Q21+'2023 Sector View Elect'!Q21 -> 0 | R21: ='2022 Sector View Electric'!R21+'2023 Sector View Elect'!R21 -> 175191.2 | S21: ='2022 Sector View Electric'!S21+'2023 Sector View Elect'!S21 -> 0
B22: MF Retr Detail_REM E217 Elec | C22: E217 | E22: Multifamily Retrofit | H22: 18230407 | I22: ='2022 Sector View Electric'!I22+'2023 Sector View Elect'!I22 -> 294840 | J22: ='2022 Sector View Electric'!J22+'2023 Sector View Elect'!J22 -> 233218.44 | K22: ='2022 Sector View Electric'!K22+'2023 Sector View Elect'!K22 -> 120000 | L22: ='2022 Sector View Electric'!L22+'2023 Sector View Elect'!L22 -> 8000 | M22: ='2022 Sector View Electric'!M22+'2023 Sector View Elect'!M22 -> 2726298.738 | N22: ='2022 Sector View Electric'!N22+'2023 Sector View Elect'!N22 -> 0 | O22: ='2022 Sector View Electric'!O22+'2023 Sector View Elect'!O22 -> 0 | P22: ='2022 Sector View Electric'!P22+'2023 Sector View Elect'!P22 -> 13921401.4 | Q22: ='2022 Sector View Electric'!Q22+'2023 Sector View Elect'!Q22 -> 0 | R22: ='2022 Sector View Electric'!R22+'2023 Sector View Elect'!R22 -> 17303758.58 | S22: ='2022 Sector View Electric'!S22+'2023 Sector View Elect'!S22 -> 18175324.92
B23: MF Retr Grants Detail_REM E217 Elec | C23: E217 | E23: State Grants | H23: 18230747 | I23: ='2022 Sector View Electric'!I23+'2023 Sector View Elect'!I23 -> 0 | J23: ='2022 Sector View Electric'!J23+'2023 Sector View Elect'!J23 -> 0 | K23: ='2022 Sector View Electric'!K23+'2023 Sector View Elect'!K23 -> 0 | L23: ='2022 Sector View Electric'!L23+'2023 Sector View Elect'!L23 -> 0 | M23: ='2022 Sector View Electric'!M23+'2023 Sector View Elect'!M23 -> 0 | N23: ='2022 Sector View Electric'!N23+'2023 Sector View Elect'!N23 -> 0 | O23: ='2022 Sector View Electric'!O23+'2023 Sector View Elect'!O23 -> 0 | P23: ='2022 Sector View Electric'!P23+'2023 Sector View Elect'!P23 -> 0 | Q23: ='2022 Sector View Electric'!Q23+'2023 Sector View Elect'!Q23 -> 0 | R23: ='2022 Sector View Electric'!R23+'2023 Sector View Elect'!R23 -> 0 | S23: ='2022 Sector View Electric'!S23+'2023 Sector View Elect'!S23 -> 0
B24: MFNC Detail_REM E218 Elec | C24: E218 | E24: Multi-Family New Construction | H24: 18230486 | I24: ='2022 Sector View Electric'!I24+'2023 Sector View Elect'!I24 -> 144370 | J24: ='2022 Sector View Electric'!J24+'2023 Sector View Elect'!J24 -> 114196.67 | K24: ='2022 Sector View Electric'!K24+'2023 Sector View Elect'!K24 -> 30000 | L24: ='2022 Sector View Electric'!L24+'2023 Sector View Elect'!L24 -> 3000 | M24: ='2022 Sector View Electric'!M24+'2023 Sector View Elect'!M24 -> 955000 | N24: ='2022 Sector View Electric'!N24+'2023 Sector View Elect'!N24 -> 400 | O24: ='2022 Sector View Electric'!O24+'2023 Sector View Elect'!O24 -> 0 | P24: ='2022 Sector View Electric'!P24+'2023 Sector View Elect'!P24 -> 2968000 | Q24: ='2022 Sector View Electric'!Q24+'2023 Sector View Elect'!Q24 -> 0 | R24: ='2022 Sector View Electric'!R24+'2023 Sector View Elect'!R24 -> 4214966.67 | S24: ='2022 Sector View Electric'!S24+'2023 Sector View Elect'!S24 -> 8500000
G25: Total, Residential Energy Management | I25: =SUM(I8:I24) -> 2346312.5 | J25: 1854762.062 | K25: 1754400 | L25: 37350 | M25: 13994082.88 | N25: 16300 | O25: 6000 | P25: 57539229.74 | Q25: 17500 | R25: 77565937.18 | S25: 186020170.6
H27: 2020-2021 Figures | I27: 2378381 | J27: 2076326.613 | K27: 2418530 | L27: 62150 | M27: 8172905.98 | N27: 32200 | O27: 10200 | P27: 50989941.84 | Q27: 0 | R27: 66140635.44 | S27: 179872427.9
C28: Business Energy Managment
E29: Commercial/Industrial Retrofit | I29: =SUM(I30:I34) -> 5959108.4 | J29: 4652383.66 | K29: 256500 | L29: 95500 | M29: 2185918 | N29: 14000 | O29: 6000 | P29: 39849487 | Q29: 0 | R29: =SUM(R30:R34) -> 53018897.06 | S29: =SUM(S30:S34) -> 140519199
B30: CI Retr Detail_BEM E250 Elec | C30: E250 | E30: Retrofit Custom Grants | H30: 18230711 | I30: ='2022 Sector View Electric'!I30+'2023 Sector View Elect'!I30 -> 1490362.2 | J30: ='2022 Sector View Electric'!J30+'2023 Sector View Elect'!J30 -> 1163972.878 | K30: ='2022 Sector View Electric'!K30+'2023 Sector View Elect'!K30 -> 100000 | L30: ='2022 Sector View Electric'!L30+'2023 Sector View Elect'!L30 -> 50000 | M30: ='2022 Sector View Electric'!M30+'2023 Sector View Elect'!M30 -> 1024000 | N30: ='2022 Sector View Electric'!N30+'2023 Sector View Elect'!N30 -> 7000 | O30: ='2022 Sector View Electric'!O30+'2023 Sector View Elect'!O30 -> 0 | P30: ='2022 Sector View Electric'!P30+'2023 Sector View Elect'!P30 -> 9131555 | Q30: ='2022 Sector View Electric'!Q30+'2023 Sector View Elect'!Q30 -> 0 | R30: ='2022 Sector View Electric'!R30+'2023 Sector View Elect'!R30 -> 12966890.08 | S30: ='2022 Sector View Electric'!S30+'2023 Sector View Elect'!S30 -> 28500000
B31: BusLgtGrants_BEM E250 Elect | C31: E250 | E31: Custom Lighting Grants | H31: 18230724 | I31: ='2022 Sector View Electric'!I31+'2023 Sector View Elect'!I31 -> 3683500 | J31: ='2022 Sector View Electric'!J31+'2023 Sector View Elect'!J31 -> 2876813.5 | K31: ='2022 Sector View Electric'!K31+'2023 Sector View Elect'!K31 -> 94000 | L31: ='2022 Sector View Electric'!L31+'2023 Sector View Elect'!L31 -> 35000 | M31: ='2022 Sector View Electric'!M31+'2023 Sector View Elect'!M31 -> 205000 | N31: ='2022 Sector View Electric'!N31+'2023 Sector View Elect'!N31 -> 7000 | O31: ='2022 Sector View Electric'!O31+'2023 Sector View Elect'!O31 -> 6000 | P31: ='2022 Sector View Electric'!P31+'2023 Sector View Elect'!P31 -> 25700000 | Q31: ='2022 Sector View Electric'!Q31+'2023 Sector View Elect'!Q31 -> 0 | R31: ='2022 Sector View Electric'!R31+'2023 Sector View Elect'!R31 -> 32607313.5 | S31: ='2022 Sector View Electric'!S31+'2023 Sector View Elect'!S31 -> 88000000
B32: CI Indust_BEM_E250_Elec | C32: E250 | E32: Industrial Programs | H32: 18231137 | I32: ='2022 Sector View Electric'!I32+'2023 Sector View Elect'!I32 -> 777246.2 | J32: ='2022 Sector View Electric'!J32+'2023 Sector View Elect'!J32 -> 607029.2822 | K32: ='2022 Sector View Electric'!K32+'2023 Sector View Elect'!K32 -> 52500 | L32: ='2022 Sector View Electric'!L32+'2023 Sector View Elect'!L32 -> 10500 | M32: ='2022 Sector View Electric'!M32+'2023 Sector View Elect'!M32 -> 172000 | N32: ='2022 Sector View Electric'!N32+'2023 Sector View Elect'!N32 -> 0 | O32: ='2022 Sector View Electric'!O32+'2023 Sector View Elect'!O32 -> 0 | P32: ='2022 Sector View Electric'!P32+'2023 Sector View Elect'!P32 -> 5017932 | Q32: ='2022 Sector View Electric'!Q32+'2023 Sector View Elect'!Q32 -> 0 | R32: ='2022 Sector View Electric'!R32+'2023 Sector View Elect'!R32 -> 6637207.482 | S32: ='2022 Sector View Electric'!S32+'2023 Sector View Elect'!S32 -> 18019199
C33: E250 | E33: Clean Buildings Accelerator | H33: 18230013 | I33: ='2022 Sector View Electric'!I33+'2023 Sector View Elect'!I33 -> 0 | J33: ='2022 Sector View Electric'!J33+'2023 Sector View Elect'!J33 -> 0 | K33: ='2022 Sector View Electric'!K33+'2023 Sector View Elect'!K33 -> 10000 | L33: ='2022 Sector View Electric'!L33+'2023 Sector View Elect'!L33 -> 0 | M33: ='2022 Sector View Electric'!M33+'2023 Sector View Elect'!M33 -> 469918 | N33: ='2022 Sector View Electric'!N33+'2023 Sector View Elect'!N33 -> 0 | O33: ='2022 Sector View Electric'!O33+'2023 Sector View Elect'!O33 -> 0 | P33: ='2022 Sector View Electric'!P33+'2023 Sector View Elect'!P33 -> 0 | Q33: ='2022 Sector View Electric'!Q33+'2023 Sector View Elect'!Q33 -> 0 | R33: ='2022 Sector View Electric'!R33+'2023 Sector View Elect'!R33 -> 479918 | S33: ='2022 Sector View Electric'!S33+'2023 Sector View Elect'!S33 -> 4500000
C34: E250 | E34: Virtual Commissioning Contractor Services | H34: 18230015 | I34: ='2023 Sector View Elect'!I34 -> 8000 | J34: ='2023 Sector View Elect'!J34 -> 4568 | K34: ='2023 Sector View Elect'!K34 -> 0 | L34: ='2023 Sector View Elect'!L34 -> 0 | M34: ='2023 Sector View Elect'!M34 -> 315000 | N34: ='2023 Sector View Elect'!N34 -> 0 | O34: ='2023 Sector View Elect'!O34 -> 0 | P34: ='2023 Sector View Elect'!P34 -> 0 | Q34: ='2023 Sector View Elect'!Q34 -> 0 | R34: ='2023 Sector View Elect'!R34 -> 327568 | S34: ='2023 Sector View Elect'!S34 -> 1500000
B35: CI NC Detail_BEM E251 Elec | C35: E251 | E35: Commercial/Industrial New Construction | H35: 18230715 | I35: ='2022 Sector View Electric'!I34+'2023 Sector View Elect'!I35 -> 670950 | J35: ='2022 Sector View Electric'!J34+'2023 Sector View Elect'!J35 -> 524011.95 | K35: ='2022 Sector View Electric'!K34+'2023 Sector View Elect'!K35 -> 44600 | L35: ='2022 Sector View Electric'!L34+'2023 Sector View Elect'!L35 -> 9600 | M35: ='2022 Sector View Electric'!M34+'2023 Sector View Elect'!M35 -> 348000 | N35: ='2022 Sector View Electric'!N34+'2023 Sector View Elect'!N35 -> 10500 | O35: ='2022 Sector View Electric'!O34+'2023 Sector View Elect'!O35 -> 0 | P35: ='2022 Sector View Electric'!P34+'2023 Sector View Elect'!P35 -> 14225000 | Q35: ='2022 Sector View Electric'!Q34+'2023 Sector View Elect'!Q35 -> 0 | R35: ='2022 Sector View Electric'!R34+'2023 Sector View Elect'!R35 -> 15832661.95 | S35: ='2022 Sector View Electric'!S34+'2023 Sector View Elect'!S35 -> 47000000
E36: Commercial Strategic Energy Management | I36: ='2022 Sector View Electric'!I35+'2023 Sector View Elect'!I36 -> 1350725 | J36: ='2022 Sector View Electric'!J35+'2023 Sector View Elect'!J36 -> 1054916.225 | K36: ='2022 Sector View Electric'!K35+'2023 Sector View Elect'!K36 -> 8000 | L36: ='2022 Sector View Electric'!L35+'2023 Sector View Elect'!L36 -> 34900 | M36: ='2022 Sector View Electric'!M35+'2023 Sector View Elect'!M36 -> 510845 | N36: ='2022 Sector View Electric'!N35+'2023 Sector View Elect'!N36 -> 400 | O36: ='2022 Sector View Electric'!O35+'2023 Sector View Elect'!O36 -> 3000 | P36: ='2022 Sector View Electric'!P35+'2023 Sector View Elect'!P36 -> 2150000 | Q36: ='2022 Sector View Electric'!Q35+'2023 Sector View Elect'!Q36 -> 0 | R36: ='2022 Sector View Electric'!R35+'2023 Sector View Elect'!R36 -> 5112786.225 | S36: ='2022 Sector View Electric'!S35+'2023 Sector View Elect'!S36 -> 32000000
B37: RCM Detail_BEM E253 Elec | C37: E253 | E37: SEM | H37: 18230723 | I37: ='2022 Sector View Electric'!I36+'2023 Sector View Elect'!I37 -> 1238475 | J37: ='2022 Sector View Electric'!J36+'2023 Sector View Elect'!J37 -> 967248.975 | K37: ='2022 Sector View Electric'!K36+'2023 Sector View Elect'!K37 -> 7000 | L37: ='2022 Sector View Electric'!L36+'2023 Sector View Elect'!L37 -> 32900 | M37: ='2022 Sector View Electric'!M36+'2023 Sector View Elect'!M37 -> 490845 | N37: ='2022 Sector View Electric'!N36+'2023 Sector View Elect'!N37 -> 400 | O37: ='2022 Sector View Electric'!O36+'2023 Sector View Elect'!O37 -> 3000 | P37: ='2022 Sector View Electric'!P36+'2023 Sector View Elect'!P37 -> 1350000 | Q37: ='2022 Sector View Electric'!Q36+'2023 Sector View Elect'!Q37 -> 0 | R37: ='2022 Sector View Electric'!R36+'2023 Sector View Elect'!R37 -> 4089868.975 | S37: ='2022 Sector View Electric'!S36+'2023 Sector View Elect'!S37 -> 30000000
B38: ResAcctSW Detail_PSWE_Elec | C38: E253 | E38: Resource Accounting Software | H38: 18230502 | I38: ='2022 Sector View Electric'!I37+'2023 Sector View Elect'!I38 -> 0 | J38: ='2022 Sector View Electric'!J37+'2023 Sector View Elect'!J38 -> 0 | K38: ='2022 Sector View Electric'!K37+'2023 Sector View Elect'!K38 -> 0 | L38: ='2022 Sector View Electric'!L37+'2023 Sector View Elect'!L38 -> 0 | M38: ='2022 Sector View Electric'!M37+'2023 Sector View Elect'!M38 -> 0 | N38: ='2022 Sector View Electric'!N37+'2023 Sector View Elect'!N38 -> 0 | O38: ='2022 Sector View Electric'!O37+'2023 Sector View Elect'!O38 -> 0 | P38: ='2022 Sector View Electric'!P37+'2023 Sector View Elect'!P38 -> 0 | Q38: ='2022 Sector View Electric'!Q37+'2023 Sector View Elect'!Q38 -> 0 | R38: ='2022 Sector View Electric'!R37+'2023 Sector View Elect'!R38 -> 0 | S38: ='2022 Sector View Electric'!S37+'2023 Sector View Elect'!S38 -> 0
C39: E253 | E39: Pay For Performance | H39: 18236102 | I39: ='2022 Sector View Electric'!I38+'2023 Sector View Elect'!I39 -> 112250 | J39: ='2022 Sector View Electric'!J38+'2023 Sector View Elect'!J39 -> 87667.25 | K39: ='2022 Sector View Electric'!K38+'2023 Sector View Elect'!K39 -> 1000 | L39: ='2022 Sector View Electric'!L38+'2023 Sector View Elect'!L39 -> 2000 | M39: ='2022 Sector View Electric'!M38+'2023 Sector View Elect'!M39 -> 20000 | N39: ='2022 Sector View Electric'!N38+'2023 Sector View Elect'!N39 -> 0 | O39: ='2022 Sector View Electric'!O38+'2023 Sector View Elect'!O39 -> 0 | P39: ='2022 Sector View Electric'!P38+'2023 Sector View Elect'!P39 -> 800000 | Q39: ='2022 Sector View Electric'!Q38+'2023 Sector View Elect'!Q39 -> 0 | R39: ='2022 Sector View Electric'!R38+'2023 Sector View Elect'!R39 -> 1022917.25 | S39: ='2022 Sector View Electric'!S38+'2023 Sector View Elect'!S39 -> 2000000
E40: High Voltage, Self-Directed | I40: ='2022 Sector View Electric'!I39+'2023 Sector View Elect'!I40 -> 0 | J40: ='2022 Sector View Electric'!J39+'2023 Sector View Elect'!J40 -> 308855.2085 | K40: ='2022 Sector View Electric'!K39+'2023 Sector View Elect'!K40 -> 0 | L40: ='2022 Sector View Electric'!L39+'2023 Sector View Elect'!L40 -> 0 | M40: ='2022 Sector View Electric'!M39+'2023 Sector View Elect'!M40 -> 0 | N40: ='2022 Sector View Electric'!N39+'2023 Sector View Elect'!N40 -> 0 | O40: ='2022 Sector View Electric'!O39+'2023 Sector View Elect'!O40 -> 0 | P40: ='2022 Sector View Electric'!P39+'2023 Sector View Elect'!P40 -> 9240428 | Q40: ='2022 Sector View Electric'!Q39+'2023 Sector View Elect'!Q40 -> 0 | R40: ='2022 Sector View Electric'!R39+'2023 Sector View Elect'!R40 -> 9549283.208 | S40: ='2022 Sector View Electric'!S39+'2023 Sector View Elect'!S40 -> 20042480
B41: LPSD_Detail_449_Elec | C41: E258 | E41: 449 Customers | H41: 18230720 | I41: ='2022 Sector View Electric'!I40+'2023 Sector View Elect'!I41 -> 0 | J41: ='2022 Sector View Electric'!J40+'2023 Sector View Elect'!J41 -> 179642.3972 | K41: ='2022 Sector View Electric'!K40+'2023 Sector View Elect'!K41 -> 0 | L41: ='2022 Sector View Electric'!L40+'2023 Sector View Elect'!L41 -> 0 | M41: ='2022 Sector View Electric'!M40+'2023 Sector View Elect'!M41 -> 0 | N41: ='2022 Sector View Electric'!N40+'2023 Sector View Elect'!N41 -> 0 | O41: ='2022 Sector View Electric'!O40+'2023 Sector View Elect'!O41 -> 0 | P41: ='2022 Sector View Electric'!P40+'2023 Sector View Elect'!P41 -> 4651722.4 | Q41: ='2022 Sector View Electric'!Q40+'2023 Sector View Elect'!Q41 -> 0 | R41: ='2022 Sector View Electric'!R40+'2023 Sector View Elect'!R41 -> 4831364.797 | S41: ='2022 Sector View Electric'!S40+'2023 Sector View Elect'!S41 -> 9549935
B42: LPSD_Detail_Non-449 Elec | C42: E258 | E42: Non-449 Customers | H42: 18230721 | I42: ='2022 Sector View Electric'!I41+'2023 Sector View Elect'!I42 -> 0 | J42: ='2022 Sector View Electric'!J41+'2023 Sector View Elect'!J42 -> 129212.8112 | K42: ='2022 Sector View Electric'!K41+'2023 Sector View Elect'!K42 -> 0 | L42: ='2022 Sector View Electric'!L41+'2023 Sector View Elect'!L42 -> 0 | M42: ='2022 Sector View Electric'!M41+'2023 Sector View Elect'!M42 -> 0 | N42: ='2022 Sector View Electric'!N41+'2023 Sector View Elect'!N42 -> 0 | O42: ='2022 Sector View Electric'!O41+'2023 Sector View Elect'!O42 -> 0 | P42: ='2022 Sector View Electric'!P41+'2023 Sector View Elect'!P42 -> 4588705.6 | Q42: ='2022 Sector View Electric'!Q41+'2023 Sector View Elect'!Q42 -> 0 | R42: ='2022 Sector View Electric'!R41+'2023 Sector View Elect'!R42 -> 4717918.411 | S42: ='2022 Sector View Electric'!S41+'2023 Sector View Elect'!S42 -> 10492545
B43: TechEval Detail_BEM E261 Elec | C43: E261 | E43: Technology Evaluation | H43: 18230448 | I43: ='2022 Sector View Electric'!I42+'2023 Sector View Elect'!I43 -> 0 | J43: ='2022 Sector View Electric'!J42+'2023 Sector View Elect'!J43 -> 0 | K43: ='2022 Sector View Electric'!K42+'2023 Sector View Elect'!K43 -> 0 | L43: ='2022 Sector View Electric'!L42+'2023 Sector View Elect'!L43 -> 0 | M43: ='2022 Sector View Electric'!M42+'2023 Sector View Elect'!M43 -> 0 | N43: ='2022 Sector View Electric'!N42+'2023 Sector View Elect'!N43 -> 0 | O43: ='2022 Sector View Electric'!O42+'2023 Sector View Elect'!O43 -> 0 | P43: ='2022 Sector View Electric'!P42+'2023 Sector View Elect'!P43 -> 0 | Q43: ='2022 Sector View Electric'!Q42+'2023 Sector View Elect'!Q43 -> 0 | R43: ='2022 Sector View Electric'!R42+'2023 Sector View Elect'!R43 -> 0 | S43: ='2022 Sector View Electric'!S42+'2023 Sector View Elect'!S43 -> 0
C44: E262 | E44: Business Rebates | I44: ='2022 Sector View Electric'!I43+'2023 Sector View Elect'!I44 -> 843335 | J44: ='2022 Sector View Electric'!J43+'2023 Sector View Elect'!J44 -> 667077.985 | K44: ='2022 Sector View Electric'!K43+'2023 Sector View Elect'!K44 -> 342200 | L44: ='2022 Sector View Electric'!L43+'2023 Sector View Elect'!L44 -> 14400 | M44: ='2022 Sector View Electric'!M43+'2023 Sector View Elect'!M44 -> 6309163.45 | N44: ='2022 Sector View Electric'!N43+'2023 Sector View Elect'!N44 -> 3500 | O44: ='2022 Sector View Electric'!O43+'2023 Sector View Elect'!O44 -> 2000 | P44: ='2022 Sector View Electric'!P43+'2023 Sector View Elect'!P44 -> 23337684 | Q44: ='2022 Sector View Electric'!Q43+'2023 Sector View Elect'!Q44 -> 0 | R44: ='2022 Sector View Electric'!R43+'2023 Sector View Elect'!R44 -> 31519360.44 | S44: ='2022 Sector View Electric'!S43+'2023 Sector View Elect'!S44 -> 83199087.8
B45: Comm Lgt Mkdn_E262 Elect | C45: E262 | E45: Lighting to Go--also referred to as Business Lighting Markdowns | H45: 18230714 | I45: ='2022 Sector View Electric'!I44+'2023 Sector View Elect'!I45 -> 169220 | J45: ='2022 Sector View Electric'!J44+'2023 Sector View Elect'!J45 -> 133853.02 | K45: ='2022 Sector View Electric'!K44+'2023 Sector View Elect'!K45 -> 45000 | L45: ='2022 Sector View Electric'!L44+'2023 Sector View Elect'!L45 -> 4500 | M45: ='2022 Sector View Electric'!M44+'2023 Sector View Elect'!M45 -> 1741216.02 | N45: ='2022 Sector View Electric'!N44+'2023 Sector View Elect'!N45 -> 500 | O45: ='2022 Sector View Electric'!O44+'2023 Sector View Elect'!O45 -> 500 | P45: ='2022 Sector View Electric'!P44+'2023 Sector View Elect'!P45 -> 3984767 | Q45: ='2022 Sector View Electric'!Q44+'2023 Sector View Elect'!Q45 -> 0 | R45: ='2022 Sector View Electric'!R44+'2023 Sector View Elect'!R45 -> 6079556.04 | S45: ='2022 Sector View Electric'!S44+'2023 Sector View Elect'!S45 -> 38798703.8
B46: Comm Kit-Laund_E262 Elect | C46: E262 | E46: Commercial Foodservice | H46: 18230716 | I46: ='2022 Sector View Electric'!I45+'2023 Sector View Elect'!I46 -> 40005 | J46: ='2022 Sector View Electric'!J45+'2023 Sector View Elect'!J46 -> 31643.955 | K46: ='2022 Sector View Electric'!K45+'2023 Sector View Elect'!K46 -> 15200 | L46: ='2022 Sector View Electric'!L45+'2023 Sector View Elect'!L46 -> 0 | M46: ='2022 Sector View Electric'!M45+'2023 Sector View Elect'!M46 -> 353305.43 | N46: ='2022 Sector View Electric'!N45+'2023 Sector View Elect'!N46 -> 0 | O46: ='2022 Sector View Electric'!O45+'2023 Sector View Elect'!O46 -> 0 | P46: ='2022 Sector View Electric'!P45+'2023 Sector View Elect'!P46 -> 686951 | Q46: ='2022 Sector View Electric'!Q45+'2023 Sector View Elect'!Q46 -> 0 | R46: ='2022 Sector View Electric'!R45+'2023 Sector View Elect'!R46 -> 1127105.385 | S46: ='2022 Sector View Electric'!S45+'2023 Sector View Elect'!S46 -> 1930197
B47: Comm HVAC_E262 Elect | C47: E262 | E47: Commercial HVAC Rebates | H47: 18230718 | I47: ='2022 Sector View Electric'!I46+'2023 Sector View Elect'!I47 -> 151600 | J47: ='2022 Sector View Electric'!J46+'2023 Sector View Elect'!J47 -> 119915.6 | K47: ='2022 Sector View Electric'!K46+'2023 Sector View Elect'!K47 -> 30000 | L47: ='2022 Sector View Electric'!L46+'2023 Sector View Elect'!L47 -> 1000 | M47: ='2022 Sector View Electric'!M46+'2023 Sector View Elect'!M47 -> 24242 | N47: ='2022 Sector View Electric'!N46+'2023 Sector View Elect'!N47 -> 1000 | O47: ='2022 Sector View Electric'!O46+'2023 Sector View Elect'!O47 -> 1000 | P47: ='2022 Sector View Electric'!P46+'2023 Sector View Elect'!P47 -> 723488 | Q47: ='2022 Sector View Electric'!Q46+'2023 Sector View Elect'!Q47 -> 0 | R47: ='2022 Sector View Electric'!R46+'2023 Sector View Elect'!R47 -> 1052245.6 | S47: ='2022 Sector View Electric'!S46+'2023 Sector View Elect'!S47 -> 2686677
C48: E262 | E48: Commercial Midstream HVAC and Water Heat | H48: 18230524 | I48: ='2022 Sector View Electric'!I47+'2023 Sector View Elect'!I48 -> 116415 | J48: ='2022 Sector View Electric'!J47+'2023 Sector View Elect'!J48 -> 92084.265 | K48: ='2022 Sector View Electric'!K47+'2023 Sector View Elect'!K48 -> 0 | L48: ='2022 Sector View Electric'!L47+'2023 Sector View Elect'!L48 -> 2000 | M48: ='2022 Sector View Electric'!M47+'2023 Sector View Elect'!M48 -> 690000 | N48: ='2022 Sector View Electric'!N47+'2023 Sector View Elect'!N48 -> 0 | O48: ='2022 Sector View Electric'!O47+'2023 Sector View Elect'!O48 -> 0 | P48: ='2022 Sector View Electric'!P47+'2023 Sector View Elect'!P48 -> 1070250 | Q48: ='2022 Sector View Electric'!Q47+'2023 Sector View Elect'!Q48 -> 0 | R48: ='2022 Sector View Electric'!R47+'2023 Sector View Elect'!R48 -> 1970749.265 | S48: ='2022 Sector View Electric'!S47+'2023 Sector View Elect'!S48 -> 2712310
B49: Sm Bus DI_E262 Elect | C49: E262 | E49: Small Business Direct Install | H49: 18231134 | I49: ='2022 Sector View Electric'!I48+'2023 Sector View Elect'!I49 -> 205445 | J49: ='2022 Sector View Electric'!J48+'2023 Sector View Elect'!J49 -> 162506.995 | K49: ='2022 Sector View Electric'!K48+'2023 Sector View Elect'!K49 -> 162000 | L49: ='2022 Sector View Electric'!L48+'2023 Sector View Elect'!L49 -> 4900 | M49: ='2022 Sector View Electric'!M48+'2023 Sector View Elect'!M49 -> 3500400 | N49: ='2022 Sector View Electric'!N48+'2023 Sector View Elect'!N49 -> 1000 | O49: ='2022 Sector View Electric'!O48+'2023 Sector View Elect'!O49 -> 500 | P49: ='2022 Sector View Electric'!P48+'2023 Sector View Elect'!P49 -> 11472228 | Q49: ='2022 Sector View Electric'!Q48+'2023 Sector View Elect'!Q49 -> 0 | R49: ='2022 Sector View Electric'!R48+'2023 Sector View Elect'!R49 -> 15508980 | S49: ='2022 Sector View Electric'!S48+'2023 Sector View Elect'!S49 -> 32400000
B50: New BusRebt prgm_E262 Elec | C50: E262 | E50: Commercial General Rebates | H50: 1823nnnn | I50: ='2022 Sector View Electric'!I49+'2023 Sector View Elect'!I50 -> 0 | J50: ='2022 Sector View Electric'!J49+'2023 Sector View Elect'!J50 -> 0 | K50: ='2022 Sector View Electric'!K49+'2023 Sector View Elect'!K50 -> 0 | L50: ='2022 Sector View Electric'!L49+'2023 Sector View Elect'!L50 -> 0 | M50: ='2022 Sector View Electric'!M49+'2023 Sector View Elect'!M50 -> 0 | N50: ='2022 Sector View Electric'!N49+'2023 Sector View Elect'!N50 -> 0 | O50: ='2022 Sector View Electric'!O49+'2023 Sector View Elect'!O50 -> 0 | P50: ='2022 Sector View Electric'!P49+'2023 Sector View Elect'!P50 -> 0 | Q50: ='2022 Sector View Electric'!Q49+'2023 Sector View Elect'!Q50 -> 0 | R50: ='2022 Sector View Electric'!R49+'2023 Sector View Elect'!R50 -> 0 | S50: ='2022 Sector View Electric'!S49+'2023 Sector View Elect'!S50 -> 0
C51: E262 | E51: Lodging Rebates | H51: 18230014 | I51: ='2022 Sector View Electric'!I50+'2023 Sector View Elect'!I51 -> 160650 | J51: ='2022 Sector View Electric'!J50+'2023 Sector View Elect'!J51 -> 127074.15 | K51: ='2022 Sector View Electric'!K50+'2023 Sector View Elect'!K51 -> 90000 | L51: ='2022 Sector View Electric'!L50+'2023 Sector View Elect'!L51 -> 2000 | M51: ='2022 Sector View Electric'!M50+'2023 Sector View Elect'!M51 -> 0 | N51: ='2022 Sector View Electric'!N50+'2023 Sector View Elect'!N51 -> 1000 | O51: ='2022 Sector View Electric'!O50+'2023 Sector View Elect'!O51 -> 0 | P51: ='2022 Sector View Electric'!P50+'2023 Sector View Elect'!P51 -> 5400000 | Q51: ='2022 Sector View Electric'!Q50+'2023 Sector View Elect'!Q51 -> 0 | R51: ='2022 Sector View Electric'!R50+'2023 Sector View Elect'!R51 -> 5780724.15 | S51: ='2022 Sector View Electric'!S50+'2023 Sector View Elect'!S51 -> 4671200
G52: Total, Business Energy Management | I52: =I29+I35+I36+I40+I43+I44 -> 8824118.4 | J52: =J29+J35+J36+J40+J43+J44 -> 7207245.029 | K52: =K29+K35+K36+K40+K43+K44 -> 651300 | L52: 154400 | M52: 9353926.45 | N52: 28400 | O52: 11000 | P52: 88802599 | Q52: 0 | R52: =R29+R35+R36+R40+R43+R44 -> 115032988.9 | S52: =S29+S35+S36+S40+S43+S44 -> 322760766.8
H54: 2020-2021 Figures | I54: 7367720.681 | J54: 6839010.228 | K54: 575063 | L54: 317400 | M54: 6224702 | N54: 31900 | O54: 25000 | P54: 67474146.29 | Q54: 0 | R54: 88854942.2 | S54: 306026874.6
C55: Pilots With Uncertain Savings
B56: REM Pilots E249 Elec | C56: E249 | E56: Residential Pilots | I56: ='2022 Sector View Electric'!I55+'2023 Sector View Elect'!I56 -> 141850 | J56: ='2022 Sector View Electric'!J55+'2023 Sector View Elect'!J56 -> 112203.35 | K56: ='2022 Sector View Electric'!K55+'2023 Sector View Elect'!K56 -> 30000 | L56: ='2022 Sector View Electric'!L55+'2023 Sector View Elect'!L56 -> 0 | M56: ='2022 Sector View Electric'!M55+'2023 Sector View Elect'!M56 -> 150440 | N56: ='2022 Sector View Electric'!N55+'2023 Sector View Elect'!N56 -> 56000 | O56: ='2022 Sector View Electric'!O55+'2023 Sector View Elect'!O56 -> 0 | P56: ='2022 Sector View Electric'!P55+'2023 Sector View Elect'!P56 -> 1523266.5 | Q56: ='2022 Sector View Electric'!Q55+'2023 Sector View Elect'!Q56 -> 0 | R56: ='2022 Sector View Electric'!R55+'2023 Sector View Elect'!R56 -> 2013759.85 | S56: ='2022 Sector View Electric'!S55+'2023 Sector View Elect'!S56 -> 719450
C57: E249 | E57: Hybrid HP Pilot | H57: 18230526 | I57: ='2022 Sector View Electric'!I56+'2023 Sector View Elect'!I57 -> 34050 | J57: ='2022 Sector View Electric'!J56+'2023 Sector View Elect'!J57 -> 26933.55 | K57: ='2022 Sector View Electric'!K56+'2023 Sector View Elect'!K57 -> 20000 | L57: ='2022 Sector View Electric'!L56+'2023 Sector View Elect'!L57 -> 0 | M57: ='2022 Sector View Electric'!M56+'2023 Sector View Elect'!M57 -> 75000 | N57: ='2022 Sector View Electric'!N56+'2023 Sector View Elect'!N57 -> 56000 | O57: ='2022 Sector View Electric'!O56+'2023 Sector View Elect'!O57 -> 0 | P57: ='2022 Sector View Electric'!P56+'2023 Sector View Elect'!P57 -> 1470766.5 | Q57: ='2022 Sector View Electric'!Q56+'2023 Sector View Elect'!Q57 -> 0 | R57: ='2022 Sector View Electric'!R56+'2023 Sector View Elect'!R57 -> 1682750.05 | S57: ='2022 Sector View Electric'!S56+'2023 Sector View Elect'!S57 -> 134750
C58: E249 | E58: Retail Choice | H58: 18230750 | I58: ='2022 Sector View Electric'!I57+'2023 Sector View Elect'!I58 -> 28875 | J58: ='2022 Sector View Electric'!J57+'2023 Sector View Elect'!J58 -> 22840.125 | K58: ='2022 Sector View Electric'!K57+'2023 Sector View Elect'!K58 -> 0 | L58: ='2022 Sector View Electric'!L57+'2023 Sector View Elect'!L58 -> 0 | M58: ='2022 Sector View Electric'!M57+'2023 Sector View Elect'!M58 -> 20000 | N58: ='2022 Sector View Electric'!N57+'2023 Sector View Elect'!N58 -> 0 | O58: ='2022 Sector View Electric'!O57+'2023 Sector View Elect'!O58 -> 0 | P58: ='2022 Sector View Electric'!P57+'2023 Sector View Elect'!P58 -> 0 | Q58: ='2022 Sector View Electric'!Q57+'2023 Sector View Elect'!Q58 -> 0 | R58: ='2022 Sector View Electric'!R57+'2023 Sector View Elect'!R58 -> 71715.125 | S58: ='2022 Sector View Electric'!S57+'2023 Sector View Elect'!S58 -> 0
C59: E249 | E59: Single Family AMI Engagement | H59: 18230749 | I59: ='2022 Sector View Electric'!I58+'2023 Sector View Elect'!I59 -> 78925 | J59: ='2022 Sector View Electric'!J58+'2023 Sector View Elect'!J59 -> 62429.675 | K59: ='2022 Sector View Electric'!K58+'2023 Sector View Elect'!K59 -> 10000 | L59: ='2022 Sector View Electric'!L58+'2023 Sector View Elect'!L59 -> 0 | M59: ='2022 Sector View Electric'!M58+'2023 Sector View Elect'!M59 -> 55440 | N59: ='2022 Sector View Electric'!N58+'2023 Sector View Elect'!N59 -> 0 | O59: ='2022 Sector View Electric'!O58+'2023 Sector View Elect'!O59 -> 0 | P59: ='2022 Sector View Electric'!P58+'2023 Sector View Elect'!P59 -> 52500 | Q59: ='2022 Sector View Electric'!Q58+'2023 Sector View Elect'!Q59 -> 0 | R59: ='2022 Sector View Electric'!R58+'2023 Sector View Elect'!R59 -> 259294.675 | S59: ='2022 Sector View Electric'!S58+'2023 Sector View Elect'!S59 -> 584700
B60: BEM Pilots E249 Elec | C60: E249 | E60: Commercial Pilots | I60: ='2022 Sector View Electric'!I59+'2023 Sector View Elect'!I60 -> 5250 | J60: ='2022 Sector View Electric'!J59+'2023 Sector View Elect'!J60 -> 4100.25 | K60: ='2022 Sector View Electric'!K59+'2023 Sector View Elect'!K60 -> 0 | L60: ='2022 Sector View Electric'!L59+'2023 Sector View Elect'!L60 -> 0 | M60: ='2022 Sector View Electric'!M59+'2023 Sector View Elect'!M60 -> 315000 | N60: ='2022 Sector View Electric'!N59+'2023 Sector View Elect'!N60 -> 0 | O60: ='2022 Sector View Electric'!O59+'2023 Sector View Elect'!O60 -> 0 | P60: ='2022 Sector View Electric'!P59+'2023 Sector View Elect'!P60 -> 0 | Q60: ='2022 Sector View Electric'!Q59+'2023 Sector View Elect'!Q60 -> 0 | R60: ='2022 Sector View Electric'!R59+'2023 Sector View Elect'!R60 -> 324350.25 | S60: ='2022 Sector View Electric'!S59+'2023 Sector View Elect'!S60 -> 1500000
C61: E249 | E61: SMB AMI Engagement | H61: 18231128 | I61: ='2022 Sector View Electric'!I60+'2023 Sector View Elect'!I61 -> 5250 | J61: ='2022 Sector View Electric'!J60+'2023 Sector View Elect'!J61 -> 4100.25 | K61: ='2022 Sector View Electric'!K60+'2023 Sector View Elect'!K61 -> 0 | L61: ='2022 Sector View Electric'!L60+'2023 Sector View Elect'!L61 -> 0 | M61: ='2022 Sector View Electric'!M60+'2023 Sector View Elect'!M61 -> 315000 | N61: ='2022 Sector View Electric'!N60+'2023 Sector View Elect'!N61 -> 0 | O61: ='2022 Sector View Electric'!O60+'2023 Sector View Elect'!O61 -> 0 | P61: ='2022 Sector View Electric'!P60+'2023 Sector View Elect'!P61 -> 0 | Q61: ='2022 Sector View Electric'!Q60+'2023 Sector View Elect'!Q61 -> 0 | R61: ='2022 Sector View Electric'!R60+'2023 Sector View Elect'!R61 -> 324350.25 | S61: ='2022 Sector View Electric'!S60+'2023 Sector View Elect'!S61 -> 1500000
G62: Total, Pilots | I62: =I56+I60 -> 147100 | J62: =J56+J60 -> 116303.6 | K62: 30000 | L62: 0 | M62: 465440 | N62: 56000 | O62: 0 | P62: 1523266.5 | Q62: 0 | R62: 2338110.1 | S62: 2219450
H64: 2020-2021 Figures | I64: 241500 | J64: 204169.5 | K64: 220000 | L64: 0 | M64: 1480000 | N64: 0 | O64: 432000 | P64: 1413500 | Q64: 0 | R64: 3991169.5 | S64: 15080000
C66: Regional Efficiency Programs
B67: NEEA Detail_E254 elec | C67: E254 | E67: Northwest Energy Efficiency Alliance | H67: 18230421 | I67: ='2022 Sector View Electric'!I66+'2023 Sector View Elect'!I67 -> 0 | J67: ='2022 Sector View Electric'!J66+'2023 Sector View Elect'!J67 -> 0 | K67: ='2022 Sector View Electric'!K66+'2023 Sector View Elect'!K67 -> 0 | L67: ='2022 Sector View Electric'!L66+'2023 Sector View Elect'!L67 -> 0 | M67: ='2022 Sector View Electric'!M66+'2023 Sector View Elect'!M67 -> 9833280 | N67: ='2022 Sector View Electric'!N66+'2023 Sector View Elect'!N67 -> 0 | O67: ='2022 Sector View Electric'!O66+'2023 Sector View Elect'!O67 -> 0 | P67: ='2022 Sector View Electric'!P66+'2023 Sector View Elect'!P67 -> 0 | Q67: ='2022 Sector View Electric'!Q66+'2023 Sector View Elect'!Q67 -> 0 | R67: ='2022 Sector View Electric'!R66+'2023 Sector View Elect'!R67 -> 9833280 | S67: ='2022 Sector View Electric'!S66+'2023 Sector View Elect'!S67 -> 27593213.35
B68: TDSM_Regnl_elec_e219 | C68: E219 | E68: Targeted DSM | H68: 18230134 | I68: ='2022 Sector View Electric'!I67+'2023 Sector View Elect'!I68 -> 527362.5 | J68: ='2022 Sector View Electric'!J67+'2023 Sector View Elect'!J68 -> 414632.4875 | K68: ='2022 Sector View Electric'!K67+'2023 Sector View Elect'!K68 -> 20000 | L68: ='2022 Sector View Electric'!L67+'2023 Sector View Elect'!L68 -> 2800 | M68: ='2022 Sector View Electric'!M67+'2023 Sector View Elect'!M68 -> 210000 | N68: ='2022 Sector View Electric'!N67+'2023 Sector View Elect'!N68 -> 0 | O68: ='2022 Sector View Electric'!O67+'2023 Sector View Elect'!O68 -> 0 | P68: ='2022 Sector View Electric'!P67+'2023 Sector View Elect'!P68 -> 105000 | Q68: ='2022 Sector View Electric'!Q67+'2023 Sector View Elect'!Q68 -> 0 | R68: ='2022 Sector View Electric'!R67+'2023 Sector View Elect'!R68 -> 1279794.988 | S68: ='2022 Sector View Electric'!S67+'2023 Sector View Elect'!S68 -> 0
B69: T&D Detail_Reg E292 elec | C69: E292 | E69: Transmission & Distribution | H69: 18230713 | I69: ='2022 Sector View Electric'!I68+'2023 Sector View Elect'!I69 -> 0 | J69: ='2022 Sector View Electric'!J68+'2023 Sector View Elect'!J69 -> 0 | K69: ='2022 Sector View Electric'!K68+'2023 Sector View Elect'!K69 -> 0 | L69: ='2022 Sector View Electric'!L68+'2023 Sector View Elect'!L69 -> 0 | M69: ='2022 Sector View Electric'!M68+'2023 Sector View Elect'!M69 -> 0 | N69: ='2022 Sector View Electric'!N68+'2023 Sector View Elect'!N69 -> 0 | O69: ='2022 Sector View Electric'!O68+'2023 Sector View Elect'!O69 -> 0 | P69: ='2022 Sector View Electric'!P68+'2023 Sector View Elect'!P69 -> 0 | Q69: ='2022 Sector View Electric'!Q68+'2023 Sector View Elect'!Q69 -> 0 | R69: ='2022 Sector View Electric'!R68+'2023 Sector View Elect'!R69 -> 0 | S69: ='2022 Sector View Electric'!S68+'2023 Sector View Elect'!S69 -> 12000000
G70: Total, Regional Efficiency Programs | I70: =SUM(I67:I69) -> 527362.5 | J70: =SUM(J67:J69) -> 414632.4875 | K70: 20000 | L70: 2800 | M70: 10043280 | N70: 0 | O70: 0 | P70: 105000 | Q70: 0 | R70: =SUM(R67:R69) -> 11113074.99 | S70: 39593213.35
H72: 2020-2021 Figures | I72: 401380 | J72: 350404.74 | K72: 0 | L72: 0 | M72: 2849323 | N72: 0 | O72: 0 | P72: 6240087 | Q72: 0 | R72: 9841194.74 | S72: 25064400
C74: Energy Efficiency Portfolio Support
B75: Data & Systm Svcs_Elect | E75: Data and Systems Services | H75: 18230745 | I75: ='2022 Sector View Electric'!I74+'2023 Sector View Elect'!I75 -> 840420 | J75: ='2022 Sector View Electric'!J74+'2023 Sector View Elect'!J75 -> 660770.22 | K75: ='2022 Sector View Electric'!K74+'2023 Sector View Elect'!K75 -> 0 | L75: ='2022 Sector View Electric'!L74+'2023 Sector View Elect'!L75 -> 17400 | M75: ='2022 Sector View Electric'!M74+'2023 Sector View Elect'!M75 -> 522000 | N75: ='2022 Sector View Electric'!N74+'2023 Sector View Elect'!N75 -> 0 | O75: ='2022 Sector View Electric'!O74+'2023 Sector View Elect'!O75 -> 0 | P75: ='2022 Sector View Electric'!P74+'2023 Sector View Elect'!P75 -> 0 | Q75: ='2022 Sector View Electric'!Q74+'2023 Sector View Elect'!Q75 -> 0 | R75: ='2022 Sector View Electric'!R74+'2023 Sector View Elect'!R75 -> 2040590.22
B76: Rebt Procg Detail_Elect | E76: Rebates Processing | H76: 18230507 | I76: ='2022 Sector View Electric'!I75+'2023 Sector View Elect'!I76 -> 981577.5 | J76: ='2022 Sector View Electric'!J75+'2023 Sector View Elect'!J76 -> 771755.9025 | K76: ='2022 Sector View Electric'!K75+'2023 Sector View Elect'!K76 -> 0 | L76: ='2022 Sector View Electric'!L75+'2023 Sector View Elect'!L76 -> 40000 | M76: ='2022 Sector View Electric'!M75+'2023 Sector View Elect'!M76 -> 177828 | N76: ='2022 Sector View Electric'!N75+'2023 Sector View Elect'!N76 -> 10000 | O76: ='2022 Sector View Electric'!O75+'2023 Sector View Elect'!O76 -> 0 | P76: ='2022 Sector View Electric'!P75+'2023 Sector View Elect'!P76 -> 0 | Q76: ='2022 Sector View Electric'!Q75+'2023 Sector View Elect'!Q76 -> 0 | R76: ='2022 Sector View Electric'!R75+'2023 Sector View Elect'!R76 -> 1981161.402
B77: VTeam Detail_R&C_Elec | E77: Verification Team | H77: 18230418 | I77: ='2022 Sector View Electric'!I76+'2023 Sector View Elect'!I77 -> 688779 | J77: ='2022 Sector View Electric'!J76+'2023 Sector View Elect'!J77 -> 541544.289 | K77: ='2022 Sector View Electric'!K76+'2023 Sector View Elect'!K77 -> 0 | L77: ='2022 Sector View Electric'!L76+'2023 Sector View Elect'!L77 -> 40000 | M77: ='2022 Sector View Electric'!M76+'2023 Sector View Elect'!M77 -> 58464 | N77: ='2022 Sector View Electric'!N76+'2023 Sector View Elect'!N77 -> 14000 | O77: ='2022 Sector View Electric'!O76+'2023 Sector View Elect'!O77 -> 0 | P77: ='2022 Sector View Electric'!P76+'2023 Sector View Elect'!P77 -> 0 | Q77: ='2022 Sector View Electric'!Q76+'2023 Sector View Elect'!Q77 -> 0 | R77: ='2022 Sector View Electric'!R76+'2023 Sector View Elect'!R77 -> 1342787.289
B78: ProgDev Detail_R&C_ Elec | E78: Programs Support | H78: 18230810 | I78: ='2022 Sector View Electric'!I77+'2023 Sector View Elect'!I78 -> 997672.5 | J78: ='2022 Sector View Electric'!J77+'2023 Sector View Elect'!J78 -> 785185.2225 | K78: ='2022 Sector View Electric'!K77+'2023 Sector View Elect'!K78 -> 0 | L78: ='2022 Sector View Electric'!L77+'2023 Sector View Elect'!L78 -> 28710 | M78: ='2022 Sector View Electric'!M77+'2023 Sector View Elect'!M78 -> 87000 | N78: ='2022 Sector View Electric'!N77+'2023 Sector View Elect'!N78 -> 0 | O78: ='2022 Sector View Electric'!O77+'2023 Sector View Elect'!O78 -> 0 | P78: ='2022 Sector View Electric'!P77+'2023 Sector View Elect'!P78 -> 0 | Q78: ='2022 Sector View Electric'!Q77+'2023 Sector View Elect'!Q78 -> 0 | R78: ='2022 Sector View Electric'!R77+'2023 Sector View Elect'!R78 -> 1898567.723
B79: TradeAlly Detail_PS_ Elec | E79: Trade Ally Memberships | H79: 18230730 | I79: ='2022 Sector View Electric'!I78+'2023 Sector View Elect'!I79 -> 0 | J79: ='2022 Sector View Electric'!J78+'2023 Sector View Elect'!J79 -> 0 | K79: ='2022 Sector View Electric'!K78+'2023 Sector View Elect'!K79 -> 0 | L79: ='2022 Sector View Electric'!L78+'2023 Sector View Elect'!L79 -> 0 | M79: ='2022 Sector View Electric'!M78+'2023 Sector View Elect'!M79 -> 243600 | N79: ='2022 Sector View Electric'!N78+'2023 Sector View Elect'!N79 -> 0 | O79: ='2022 Sector View Electric'!O78+'2023 Sector View Elect'!O79 -> 0 | P79: ='2022 Sector View Electric'!P78+'2023 Sector View Elect'!P79 -> 0 | Q79: ='2022 Sector View Electric'!Q78+'2023 Sector View Elect'!Q79 -> 0 | R79: ='2022 Sector View Electric'!R78+'2023 Sector View Elect'!R79 -> 243600
B80: CAN_Elect | E80: Trade Ally Network (revenue + cost) | H80: 18230746 | I80: ='2022 Sector View Electric'!I79+'2023 Sector View Elect'!I80 -> 255345.5 | J80: ='2022 Sector View Electric'!J79+'2023 Sector View Elect'!J80 -> 200882.3355 | K80: ='2022 Sector View Electric'!K79+'2023 Sector View Elect'!K80 -> 40000 | L80: ='2022 Sector View Electric'!L79+'2023 Sector View Elect'!L80 -> 10000 | M80: ='2022 Sector View Electric'!M79+'2023 Sector View Elect'!M80 -> 95000 | N80: ='2022 Sector View Electric'!N79+'2023 Sector View Elect'!N80 -> 3000 | O80: ='2022 Sector View Electric'!O79+'2023 Sector View Elect'!O80 -> 0 | P80: ='2022 Sector View Electric'!P79+'2023 Sector View Elect'!P80 -> 0 | Q80: ='2022 Sector View Electric'!Q79+'2023 Sector View Elect'!Q80 -> -523407.32 | R80: ='2022 Sector View Electric'!R79+'2023 Sector View Elect'!R80 -> 80820.5155
B81: ABS Detail_PSWE_Elec | E81: Automated Benchmarking System | H81: 18230411 | I81: ='2022 Sector View Electric'!I80+'2023 Sector View Elect'!I81 -> 938900 | J81: ='2022 Sector View Electric'!J80+'2023 Sector View Elect'!J81 -> 734829.9 | K81: ='2022 Sector View Electric'!K80+'2023 Sector View Elect'!K81 -> 0 | L81: ='2022 Sector View Electric'!L80+'2023 Sector View Elect'!L81 -> 0 | M81: ='2022 Sector View Electric'!M80+'2023 Sector View Elect'!M81 -> 2240000 | N81: ='2022 Sector View Electric'!N80+'2023 Sector View Elect'!N81 -> 0 | O81: ='2022 Sector View Electric'!O80+'2023 Sector View Elect'!O81 -> 0 | P81: ='2022 Sector View Electric'!P80+'2023 Sector View Elect'!P81 -> 0 | Q81: ='2022 Sector View Electric'!Q80+'2023 Sector View Elect'!Q81 -> 0 | R81: ='2022 Sector View Electric'!R80+'2023 Sector View Elect'!R81 -> 3913729.9
B82: Engy Adv Detail_PSCE Elec | E82: Energy Advisors | H82: 18230610 | I82: ='2022 Sector View Electric'!I81+'2023 Sector View Elect'!I82 -> 1563575 | J82: ='2022 Sector View Electric'!J81+'2023 Sector View Elect'!J82 -> 1229678.725 | K82: ='2022 Sector View Electric'!K81+'2023 Sector View Elect'!K82 -> 0 | L82: ='2022 Sector View Electric'!L81+'2023 Sector View Elect'!L82 -> 88000 | M82: ='2022 Sector View Electric'!M81+'2023 Sector View Elect'!M82 -> 2000 | N82: ='2022 Sector View Electric'!N81+'2023 Sector View Elect'!N82 -> 0 | O82: ='2022 Sector View Electric'!O81+'2023 Sector View Elect'!O82 -> 2700 | P82: ='2022 Sector View Electric'!P81+'2023 Sector View Elect'!P82 -> 0 | Q82: ='2022 Sector View Electric'!Q81+'2023 Sector View Elect'!Q82 -> 0 | R82: ='2022 Sector View Electric'!R81+'2023 Sector View Elect'!R82 -> 2885953.725
B83: EEC Detail_PS_Elec | E83: Energy Efficient Communities | H83: 18230811 | I83: ='2022 Sector View Electric'!I82+'2023 Sector View Elect'!I83 -> 1233320.34 | J83: ='2022 Sector View Electric'!J82+'2023 Sector View Elect'!J83 -> 969683.4349 | K83: ='2022 Sector View Electric'!K82+'2023 Sector View Elect'!K83 -> 47576 | L83: ='2022 Sector View Electric'!L82+'2023 Sector View Elect'!L83 -> 34816 | M83: ='2022 Sector View Electric'!M82+'2023 Sector View Elect'!M83 -> 220000 | N83: ='2022 Sector View Electric'!N82+'2023 Sector View Elect'!N83 -> 7642 | O83: ='2022 Sector View Electric'!O82+'2023 Sector View Elect'!O83 -> 0 | P83: ='2022 Sector View Electric'!P82+'2023 Sector View Elect'!P83 -> 0 | Q83: ='2022 Sector View Electric'!Q82+'2023 Sector View Elect'!Q83 -> 0 | R83: ='2022 Sector View Electric'!R82+'2023 Sector View Elect'!R83 -> 2513037.775
B84: CustOnline Detail_PSWE_Elec | D84: New Name | E84: Customer Digital Services | I84: =SUM(I85:I88) -> 489195 | J84: =SUM(J85:J88) -> 396757.955 | K84: 260000 | L84: 5250 | M84: 2562779.42 | N84: 0 | O84: 0 | P84: 0 | Q84: 0 | R84: =SUM(R85:R88) -> 3729642.375
F85: Digital Experience | H85: 18230400 | I85: ='2022 Sector View Electric'!I84+'2023 Sector View Elect'!I85 -> 121800 | J85: ='2022 Sector View Electric'!J84+'2023 Sector View Elect'!J85 -> 108121.86 | K85: ='2022 Sector View Electric'!K84+'2023 Sector View Elect'!K85 -> 0 | L85: ='2022 Sector View Electric'!L84+'2023 Sector View Elect'!L85 -> 0 | M85: ='2022 Sector View Electric'!M84+'2023 Sector View Elect'!M85 -> 0 | N85: ='2022 Sector View Electric'!N84+'2023 Sector View Elect'!N85 -> 0 | O85: ='2022 Sector View Electric'!O84+'2023 Sector View Elect'!O85 -> 0 | P85: ='2022 Sector View Electric'!P84+'2023 Sector View Elect'!P85 -> 0 | Q85: ='2022 Sector View Electric'!Q84+'2023 Sector View Elect'!Q85 -> 0 | R85: ='2022 Sector View Electric'!R84+'2023 Sector View Elect'!R85 -> 245581.86
F86: Customer Digital Experience | H86: 18230408 | I86: ='2022 Sector View Electric'!I85+'2023 Sector View Elect'!I86 -> 52500 | J86: ='2022 Sector View Electric'!J85+'2023 Sector View Elect'!J86 -> 41002.5 | K86: ='2022 Sector View Electric'!K85+'2023 Sector View Elect'!K86 -> 0 | L86: ='2022 Sector View Electric'!L85+'2023 Sector View Elect'!L86 -> 0 | M86: ='2022 Sector View Electric'!M85+'2023 Sector View Elect'!M86 -> 1377152 | N86: ='2022 Sector View Electric'!N85+'2023 Sector View Elect'!N86 -> 0 | O86: ='2022 Sector View Electric'!O85+'2023 Sector View Elect'!O86 -> 0 | P86: ='2022 Sector View Electric'!P85+'2023 Sector View Elect'!P86 -> 0 | Q86: ='2022 Sector View Electric'!Q85+'2023 Sector View Elect'!Q86 -> 0 | R86: ='2022 Sector View Electric'!R85+'2023 Sector View Elect'!R86 -> 1470654.5
B87: CustAwarTools_elec | F87: Customer Awareness Tools | H87: 18230508 | I87: ='2022 Sector View Electric'!I86+'2023 Sector View Elect'!I87 -> 108570 | J87: ='2022 Sector View Electric'!J86+'2023 Sector View Elect'!J87 -> 85396.52 | K87: ='2022 Sector View Electric'!K86+'2023 Sector View Elect'!K87 -> 0 | L87: ='2022 Sector View Electric'!L86+'2023 Sector View Elect'!L87 -> 250 | M87: ='2022 Sector View Electric'!M86+'2023 Sector View Elect'!M87 -> 1164467.42 | N87: ='2022 Sector View Electric'!N86+'2023 Sector View Elect'!N87 -> 0 | O87: ='2022 Sector View Electric'!O86+'2023 Sector View Elect'!O87 -> 0 | P87: ='2022 Sector View Electric'!P86+'2023 Sector View Elect'!P87 -> 0 | Q87: ='2022 Sector View Electric'!Q86+'2023 Sector View Elect'!Q87 -> 0 | R87: ='2022 Sector View Electric'!R86+'2023 Sector View Elect'!R87 -> 1358683.94
B88: ShopPSE_elec | F88: PSE Marketplace | H88: 18230509 | I88: ='2022 Sector View Electric'!I87+'2023 Sector View Elect'!I88 -> 206325 | J88: ='2022 Sector View Electric'!J87+'2023 Sector View Elect'!J88 -> 162237.075 | K88: ='2022 Sector View Electric'!K87+'2023 Sector View Elect'!K88 -> 260000 | L88: ='2022 Sector View Electric'!L87+'2023 Sector View Elect'!L88 -> 5000 | M88: ='2022 Sector View Electric'!M87+'2023 Sector View Elect'!M88 -> 21160 | N88: ='2022 Sector View Electric'!N87+'2023 Sector View Elect'!N88 -> 0 | O88: ='2022 Sector View Electric'!O87+'2023 Sector View Elect'!O88 -> 0 | P88: ='2022 Sector View Electric'!P87+'2023 Sector View Elect'!P88 -> 0 | Q88: ='2022 Sector View Electric'!Q87+'2023 Sector View Elect'!Q88 -> 0 | R88: ='2022 Sector View Electric'!R87+'2023 Sector View Elect'!R88 -> 654722.075
B89: Mkt Intgn Detail_PSWE_Elec | E89: Market Integration | H89: 18230466 | I89: ='2022 Sector View Electric'!I88+'2023 Sector View Elect'!I89 -> 551880 | J89: ='2022 Sector View Electric'!J88+'2023 Sector View Elect'!J89 -> 433909.08 | K89: ='2022 Sector View Electric'!K88+'2023 Sector View Elect'!K89 -> 1914000.01 | L89: ='2022 Sector View Electric'!L88+'2023 Sector View Elect'!L89 -> 0 | M89: ='2022 Sector View Electric'!M88+'2023 Sector View Elect'!M89 -> 31320 | N89: ='2022 Sector View Electric'!N88+'2023 Sector View Elect'!N89 -> 0 | O89: ='2022 Sector View Electric'!O88+'2023 Sector View Elect'!O89 -> 0 | P89: ='2022 Sector View Electric'!P88+'2023 Sector View Elect'!P89 -> 0 | Q89: ='2022 Sector View Electric'!Q88+'2023 Sector View Elect'!Q89 -> 0 | R89: ='2022 Sector View Electric'!R88+'2023 Sector View Elect'!R89 -> 2931109.09
B90: Events Detail_PSCE Elec | E90: Events | H90: 18230487 | I90: ='2022 Sector View Electric'!I89+'2023 Sector View Elect'!I90 -> 574125 | J90: ='2022 Sector View Electric'!J89+'2023 Sector View Elect'!J90 -> 452068.375 | K90: ='2022 Sector View Electric'!K89+'2023 Sector View Elect'!K90 -> 26000 | L90: ='2022 Sector View Electric'!L89+'2023 Sector View Elect'!L90 -> 7810 | M90: ='2022 Sector View Electric'!M89+'2023 Sector View Elect'!M90 -> 352700 | N90: ='2022 Sector View Electric'!N89+'2023 Sector View Elect'!N90 -> 95700 | O90: ='2022 Sector View Electric'!O89+'2023 Sector View Elect'!O90 -> 0 | P90: ='2022 Sector View Electric'!P89+'2023 Sector View Elect'!P90 -> 0 | Q90: ='2022 Sector View Electric'!Q89+'2023 Sector View Elect'!Q90 -> 0 | R90: ='2022 Sector View Electric'!R89+'2023 Sector View Elect'!R90 -> 1508403.375
G91: Total, Portfolio Support | I91: =SUM(I75:I84)+SUM(I89:I90) -> 9114789.84 | J91: 7177065.439 | K91: 2287576.01 | L91: 271986 | M91: 6592691.42 | N91: 130342 | O91: 2700 | P91: 0 | Q91: -523407.32 | R91: 25069403.39
H93: 2020-2021 Figures | I93: 6759099 | J93: 5199883.947 | K93: 146000 | L93: 257690 | M93: 3856829.82 | N93: 117620 | O93: 2700 | P93: 0 | Q93: -415000 | R93: 15122062.77
C95: Research & Compliance
B96: SuppCrv Detail_R&C_Elec | E96: Conservation Supply Curves | H96: 18230809 | I96: ='2022 Sector View Electric'!I95+'2023 Sector View Elect'!I96 -> 210665 | J96: ='2022 Sector View Electric'!J95+'2023 Sector View Elect'!J96 -> 165722.515 | K96: ='2022 Sector View Electric'!K95+'2023 Sector View Elect'!K96 -> 0 | L96: ='2022 Sector View Electric'!L95+'2023 Sector View Elect'!L96 -> 1435 | M96: ='2022 Sector View Electric'!M95+'2023 Sector View Elect'!M96 -> 554626 | N96: ='2022 Sector View Electric'!N95+'2023 Sector View Elect'!N96 -> 0 | O96: ='2022 Sector View Electric'!O95+'2023 Sector View Elect'!O96 -> 0 | P96: ='2022 Sector View Electric'!P95+'2023 Sector View Elect'!P96 -> 0 | Q96: ='2022 Sector View Electric'!Q95+'2023 Sector View Elect'!Q96 -> 0 | R96: ='2022 Sector View Electric'!R95+'2023 Sector View Elect'!R96 -> 932448.515
B97: Strat Plan Detail_R&C_Elec | E97: Strategic Planning | H97: 18230469 | I97: ='2022 Sector View Electric'!I96+'2023 Sector View Elect'!I97 -> 593775 | J97: ='2022 Sector View Electric'!J96+'2023 Sector View Elect'!J97 -> 466848.525 | K97: ='2022 Sector View Electric'!K96+'2023 Sector View Elect'!K97 -> 0 | L97: ='2022 Sector View Electric'!L96+'2023 Sector View Elect'!L97 -> 8700 | M97: ='2022 Sector View Electric'!M96+'2023 Sector View Elect'!M97 -> 0 | N97: ='2022 Sector View Electric'!N96+'2023 Sector View Elect'!N97 -> 0 | O97: ='2022 Sector View Electric'!O96+'2023 Sector View Elect'!O97 -> 0 | P97: ='2022 Sector View Electric'!P96+'2023 Sector View Elect'!P97 -> 0 | Q97: ='2022 Sector View Electric'!Q96+'2023 Sector View Elect'!Q97 -> 0 | R97: ='2022 Sector View Electric'!R96+'2023 Sector View Elect'!R97 -> 1069323.525
B98: Mktg Resch Detail_PS_ Elec | E98: Market Research | H98: 18230413 | I98: ='2022 Sector View Electric'!I97+'2023 Sector View Elect'!I98 -> 230202 | J98: ='2022 Sector View Electric'!J97+'2023 Sector View Elect'!J98 -> 180993.582 | K98: ='2022 Sector View Electric'!K97+'2023 Sector View Elect'!K98 -> 0 | L98: ='2022 Sector View Electric'!L97+'2023 Sector View Elect'!L98 -> 0 | M98: ='2022 Sector View Electric'!M97+'2023 Sector View Elect'!M98 -> 0 | N98: ='2022 Sector View Electric'!N97+'2023 Sector View Elect'!N98 -> 0 | O98: ='2022 Sector View Electric'!O97+'2023 Sector View Elect'!O98 -> 17400 | P98: ='2022 Sector View Electric'!P97+'2023 Sector View Elect'!P98 -> 0 | Q98: ='2022 Sector View Electric'!Q97+'2023 Sector View Elect'!Q98 -> 0 | R98: ='2022 Sector View Electric'!R97+'2023 Sector View Elect'!R98 -> 428595.582
B99: Eval Detail_R&C_Elec | E99: Program Evaluation | H99: 18230802 | I99: ='2022 Sector View Electric'!I98+'2023 Sector View Elect'!I99 -> 383670 | J99: ='2022 Sector View Electric'!J98+'2023 Sector View Elect'!J99 -> 301655.97 | K99: ='2022 Sector View Electric'!K98+'2023 Sector View Elect'!K99 -> 0 | L99: ='2022 Sector View Electric'!L98+'2023 Sector View Elect'!L99 -> 8700 | M99: ='2022 Sector View Electric'!M98+'2023 Sector View Elect'!M99 -> 2179928 | N99: ='2022 Sector View Electric'!N98+'2023 Sector View Elect'!N99 -> 0 | O99: ='2022 Sector View Electric'!O98+'2023 Sector View Elect'!O99 -> 437600 | P99: ='2022 Sector View Electric'!P98+'2023 Sector View Elect'!P99 -> 0 | Q99: ='2022 Sector View Electric'!Q98+'2023 Sector View Elect'!Q99 -> 0 | R99: ='2022 Sector View Electric'!R98+'2023 Sector View Elect'!R99 -> 3311553.97
B100: BECAR Detail_R&C Elec | E100: Biennial Elec. Consv. Aquisitn. Review | H100: 18230624 | I100: ='2022 Sector View Electric'!I99+'2023 Sector View Elect'!I100 -> 0 | J100: ='2022 Sector View Electric'!J99+'2023 Sector View Elect'!J100 -> 0 | K100: ='2022 Sector View Electric'!K99+'2023 Sector View Elect'!K100 -> 0 | L100: ='2022 Sector View Electric'!L99+'2023 Sector View Elect'!L100 -> 0 | M100: ='2022 Sector View Electric'!M99+'2023 Sector View Elect'!M100 -> 300000 | N100: ='2022 Sector View Electric'!N99+'2023 Sector View Elect'!N100 -> 0 | O100: ='2022 Sector View Electric'!O99+'2023 Sector View Elect'!O100 -> 0 | P100: ='2022 Sector View Electric'!P99+'2023 Sector View Elect'!P100 -> 0 | Q100: ='2022 Sector View Electric'!Q99+'2023 Sector View Elect'!Q100 -> 0 | R100: ='2022 Sector View Electric'!R99+'2023 Sector View Elect'!R100 -> 300000
G101: Total, Research & Compliance | I101: =SUM(I96:I100) -> 1418312 | J101: 1115220.592 | K101: 0 | L101: =SUM(L96:L100) -> 18835 | M101: 3034554 | N101: 0 | O101: =SUM(O96:O100) -> 455000 | P101: 0 | Q101: 0 | R101: 6041921.592
H103: 2020-2021 Figures | I103: 995320 | J103: 868914.36 | K103: 0 | L103: 20532 | M103: 4240013 | N103: 0 | O103: 408390 | P103: 0 | Q103: 0 | R103: 6533169.36
C105: Other Customer Programs
B106: Net Mtr Details_Oth Elec E150 | C106: E150 | E106: Net Metering | H106: 18230128 | I106: ='2022 Sector View Electric'!I105+'2023 Sector View Elect'!I106 -> 1001150 | J106: ='2022 Sector View Electric'!J105+'2023 Sector View Elect'!J106 -> 787524.65 | K106: ='2022 Sector View Electric'!K105+'2023 Sector View Elect'!K106 -> 0 | L106: ='2022 Sector View Electric'!L105+'2023 Sector View Elect'!L106 -> 20000 | M106: ='2022 Sector View Electric'!M105+'2023 Sector View Elect'!M106 -> 235000 | N106: ='2022 Sector View Electric'!N105+'2023 Sector View Elect'!N106 -> 0 | O106: ='2022 Sector View Electric'!O105+'2023 Sector View Elect'!O106 -> 5000000 | P106: ='2022 Sector View Electric'!P105+'2023 Sector View Elect'!P106 -> 0 | Q106: ='2022 Sector View Electric'!Q105+'2023 Sector View Elect'!Q106 -> 0 | R106: ='2022 Sector View Electric'!R105+'2023 Sector View Elect'!R106 -> 7043674.65
B107: DemndResp_Detail_E249_Elec | C107: 249A, 271 | E107: Demand Response Pilot | H107: 18230133 | I107: ='2022 Sector View Electric'!I106+'2023 Sector View Elect'!I107 -> 0 | J107: ='2022 Sector View Electric'!J106+'2023 Sector View Elect'!J107 -> 0 | K107: ='2022 Sector View Electric'!K106+'2023 Sector View Elect'!K107 -> 0 | L107: ='2022 Sector View Electric'!L106+'2023 Sector View Elect'!L107 -> 0 | M107: ='2022 Sector View Electric'!M106+'2023 Sector View Elect'!M107 -> 640000 | N107: ='2022 Sector View Electric'!N106+'2023 Sector View Elect'!N107 -> 0 | O107: ='2022 Sector View Electric'!O106+'2023 Sector View Elect'!O107 -> 0 | P107: ='2022 Sector View Electric'!P106+'2023 Sector View Elect'!P107 -> 0 | Q107: ='2022 Sector View Electric'!Q106+'2023 Sector View Elect'!Q107 -> 0 | R107: ='2022 Sector View Electric'!R106+'2023 Sector View Elect'!R107 -> 640000
B108: DmndResp_Admin_E271_Elec | C108: E271 | E108: Demand Response Admin | H108: 18230753 | I108: ='2023 Sector View Elect'!I108 -> 449300 | J108: ='2023 Sector View Elect'!J108 -> 355396.3 | K108: ='2023 Sector View Elect'!K108 -> 200000 | L108: ='2023 Sector View Elect'!L108 -> 0 | M108: ='2023 Sector View Elect'!M108 -> 100000 | N108: ='2023 Sector View Elect'!N108 -> 0 | O108: ='2023 Sector View Elect'!O108 -> 0 | P108: ='2023 Sector View Elect'!P108 -> 0 | Q108: ='2023 Sector View Elect'!Q108 -> 0 | R108: ='2023 Sector View Elect'!R108 -> 1104696.3
G109: Total, Other Energy Efficiency Programs | I109: =SUM(I106:I108) -> 1450450 | J109: 1142920.95 | K109: 200000 | L109: 20000 | M109: 975000 | N109: 0 | O109: 5000000 | P109: 0 | Q109: 0 | R109: =SUM(R106:R108) -> 8788370.95
H111: 2020-2021 Figures | I111: 586500 | J111: 512014.5 | K111: 0 | L111: 20000 | M111: 625100 | N111: 0 | O111: 1650000 | P111: 0 | Q111: 0 | R111: 3393614.5
G113: GRAND TOTAL, ELECTRIC PROGRAMS | I113: =I109+I101+I70+I62+I52+I25+I91 -> 23828445.24 | J113: =J109+J101+J70+J62+J52+J25+J91 -> 19028150.16 | K113: 4943276.01 | L113: 505371 | M113: 44458974.75 | N113: 231042 | O113: 5474700 | P113: 147970095.2 | Q113: -505907.32 | R113: =R109+R101+R91+R70+R62+R52+R25 -> 245949807.1 | S113: =S109+S101+S70+S62+S52+S25+S91 -> 550593600.7
H115: 2020-2021 Figures | I115: 18729900.68 | J115: 16050723.89 | K115: 3359593 | L115: 677772 | M115: 27448873.8 | N115: 181720 | O115: 2528290 | P115: 126117675.1 | Q115: -415000 | R115: 193876788.5 | S115: 526043702.5
S116: =S113/1000/8760 -> 62.85315077
G117: Budget Category Includes | H117: This is the main level of tracking expenditures and expenses in EES. Per FERC rules, all conservation order numbers start with a "1823nnnn", where "n" is some number. Cost elements apply to all order numbers (for instance, all conservation programs that | I117: Energy Efficiency program staff labor. Average FTE cost including management assessments. This Budget Category group includes assessments from Major Accounts management, Resource Planning, Corporate Communications management, IT specialists and some building maintenance allocations. | J117: Overhead--costs associated with primarily employee labor; benefits, for instance. For 2017, includes micro-overhead. | K117: Service and materials associated with the cost of printing program brochures, marketing pieces, advertising, banners, etc. Also includes marketing conducted by vendors and contractors. | L117: Costs associated with EE staff attending events, employee training, conferences, business meals, business parking, ferry & bridge tolls, mileage incurred on employee automobiles, office supplies, phones, subscriptions, software/hardware, etc. | M117: Contractors and vendors, such as PECI, Ecos, CostCo, EFI, etc. Legal expenses, technical services (CMS design, PSE.com web portals, etc.). These costs do NOT include brochure development, marketing pieces, (which are classified under MARKETING). These costs do NOT include incentives paid to customers by contractors. | N117: Primarily tools, trade show equipment, etc. | O117: This category should seldomly be used, and only expenses that cannot be classified under one of the above categories. | P117: All costs associated with rebates, grants, remuneration, value-added services that have a direct bearing on a customer's perceived value of PSE offerings. | Q117: Any amount that PSE is paid by a customer, partner, municipality or outside entity.

Sheet 2022 Sector View Electric (hidden)
C2: Energy Efficiency 2022 Budgets and Aggregate Program Savings
C3: Sector View
C4: Electric Programs | I4: Please see category descriptions at the bottom of the sector table.
I5: Budget Category
B6: Workbook Name | C6: Schedule | D6: Comment | E6: Description (Blue, indented text indicates a sub-total value) | H6: Order Number (Click on the order# below to link to the detail page) | I6: Labor | J6: Overhead | K6: Marketing | L6: Employee/Office Expense | M6: Outside Services | N6: Materials | O6: Miscellaneous | P6: DBtC | Q6: Revenue | R6: Total Budget | S6: Total Savings kWh | U6: Comments
C7: Residential Energy Management
B8: LIW Detail_REM E201_Elec | C8: E201 | E8: Low Income Weatherization | H8: 18230611 | I8: =' LowIncWx Detail_REM E201_Elec'!D5 -> 117112.5 | J8: =' LowIncWx Detail_REM E201_Elec'!E5 -> 91464.8625 | K8: =' LowIncWx Detail_REM E201_Elec'!F5 -> 97200 | L8: =' LowIncWx Detail_REM E201_Elec'!G5 -> 4500 | M8: =' LowIncWx Detail_REM E201_Elec'!H5 -> 22500 | N8: =' LowIncWx Detail_REM E201_Elec'!I5 -> 1350 | O8: =' LowIncWx Detail_REM E201_Elec'!J5 -> 0 | P8: =' LowIncWx Detail_REM E201_Elec'!K5 -> 5774068.603 | Q8: =' LowIncWx Detail_REM E201_Elec'!L5 -> 0 | R8: =' LowIncWx Detail_REM E201_Elec'!M5 -> 6108195.965 | S8: =' LowIncWx Detail_REM E201_Elec'!N5 -> 1977441
B9: HomePrint Detail_REM_E214 Elec | C9: E214 | E9: Home Energy Assessments | H9: 18230625 | I9: ='HmEnrgAsmt Detail_REM_E214 Elec'!D5 -> 0 | J9: ='HmEnrgAsmt Detail_REM_E214 Elec'!E5 -> 0 | K9: ='HmEnrgAsmt Detail_REM_E214 Elec'!F5 -> 0 | L9: ='HmEnrgAsmt Detail_REM_E214 Elec'!G5 -> 0 | M9: ='HmEnrgAsmt Detail_REM_E214 Elec'!H5 -> 0 | N9: ='HmEnrgAsmt Detail_REM_E214 Elec'!I5 -> 0 | O9: ='HmEnrgAsmt Detail_REM_E214 Elec'!J5 -> 0 | P9: ='HmEnrgAsmt Detail_REM_E214 Elec'!K5 -> 0 | Q9: ='HmEnrgAsmt Detail_REM_E214 Elec'!L5 -> 0 | R9: ='HmEnrgAsmt Detail_REM_E214 Elec'!M5 -> 0 | S9: ='HmEnrgAsmt Detail_REM_E214 Elec'!N5 -> 0
B10: WaterHea_Detail_REM_E214 Elec | C10: E214 | E10: SF Existing Water Heat | H10: 18230626 | I10: ='WaterHea_Detail_REM_E214 Elec'!D5 -> 153750 | J10: ='WaterHea_Detail_REM_E214 Elec'!E5 -> 121616.25 | K10: ='WaterHea_Detail_REM_E214 Elec'!F5 -> 140000 | L10: ='WaterHea_Detail_REM_E214 Elec'!G5 -> 500 | M10: ='WaterHea_Detail_REM_E214 Elec'!H5 -> 93520 | N10: ='WaterHea_Detail_REM_E214 Elec'!I5 -> 500 | O10: ='WaterHea_Detail_REM_E214 Elec'!J5 -> 500 | P10: ='WaterHea_Detail_REM_E214 Elec'!K5 -> 615950 | Q10: ='WaterHea_Detail_REM_E214 Elec'!L5 -> 0 | R10: ='WaterHea_Detail_REM_E214 Elec'!M5 -> 1126336.25 | S10: ='WaterHea_Detail_REM_E214 Elec'!N5 -> 1448705.61
B11: Wx_Detail_REM E214 Elec | C11: E214 | E11: SF Existing Weatherization | H11: 18230627 | I11: ='Wx_Detail_REM E214 Elec'!D5 -> 84500 | J11: ='Wx_Detail_REM E214 Elec'!E5 -> 66839.5 | K11: ='Wx_Detail_REM E214 Elec'!F5 -> 110000 | L11: ='Wx_Detail_REM E214 Elec'!G5 -> 1000 | M11: ='Wx_Detail_REM E214 Elec'!H5 -> 3500 | N11: ='Wx_Detail_REM E214 Elec'!I5 -> 500 | O11: ='Wx_Detail_REM E214 Elec'!J5 -> 2500 | P11: ='Wx_Detail_REM E214 Elec'!K5 -> 863062.76 | Q11: ='Wx_Detail_REM E214 Elec'!L5 -> 0 | R11: ='Wx_Detail_REM E214 Elec'!M5 -> 1131902.26 | S11: ='Wx_Detail_REM E214 Elec'!N5 -> 1228102.216
B12: SpcHeat Detail_REM_E214 Elec | C12: E214 | E12: SF Existing Space Heat | H12: 18230628 | I12: ='SpcHeat Detail_REM_E214 Elec'!D5 -> 78350 | J12: ='SpcHeat Detail_REM_E214 Elec'!E5 -> 61974.85 | K12: ='SpcHeat Detail_REM_E214 Elec'!F5 -> 225000 | L12: ='SpcHeat Detail_REM_E214 Elec'!G5 -> 1000 | M12: ='SpcHeat Detail_REM_E214 Elec'!H5 -> 40000 | N12: ='SpcHeat Detail_REM_E214 Elec'!I5 -> 1500 | O12: ='SpcHeat Detail_REM_E214 Elec'!J5 -> 0 | P12: ='SpcHeat Detail_REM_E214 Elec'!K5 -> 3968000 | Q12: ='SpcHeat Detail_REM_E214 Elec'!L5 -> 0 | R12: ='SpcHeat Detail_REM_E214 Elec'!M5 -> 4375824.85 | S12: ='SpcHeat Detail_REM_E214 Elec'!N5 -> 8258670
C13: E214 | E13: Residential Midstream HVAC and Water Heat | H13: 18230162 | I13: ='HVAC&WH Mdsrm_E214_Elec'!D5 -> 105650 | J13: ='HVAC&WH Mdsrm_E214_Elec'!E5 -> 83569.15 | K13: ='HVAC&WH Mdsrm_E214_Elec'!F5 -> 0 | L13: ='HVAC&WH Mdsrm_E214_Elec'!G5 -> 1500 | M13: ='HVAC&WH Mdsrm_E214_Elec'!H5 -> 3405000 | N13: ='HVAC&WH Mdsrm_E214_Elec'!I5 -> 1500 | O13: ='HVAC&WH Mdsrm_E214_Elec'!J5 -> 0 | P13: ='HVAC&WH Mdsrm_E214_Elec'!K5 -> 7047251 | Q13: ='HVAC&WH Mdsrm_E214_Elec'!L5 -> 0 | R13: ='HVAC&WH Mdsrm_E214_Elec'!M5 -> 10644470.15 | S13: ='HVAC&WH Mdsrm_E214_Elec'!N5 -> 16416736
B14: HmAppplc_Detail_REM_E214 Elec | C14: E214 | E14: Home Appliances | H14: 18230434 | I14: ='HmAppplc_Detail_REM_E214 Elec'!D5 -> 61850 | J14: ='HmAppplc_Detail_REM_E214 Elec'!E5 -> 48923.35 | K14: ='HmAppplc_Detail_REM_E214 Elec'!F5 -> 60000 | L14: ='HmAppplc_Detail_REM_E214 Elec'!G5 -> 500 | M14: ='HmAppplc_Detail_REM_E214 Elec'!H5 -> 240000 | N14: ='HmAppplc_Detail_REM_E214 Elec'!I5 -> 500 | O14: ='HmAppplc_Detail_REM_E214 Elec'!J5 -> 0 | P14: ='HmAppplc_Detail_REM_E214 Elec'!K5 -> 300670 | Q14: ='HmAppplc_Detail_REM_E214 Elec'!L5 -> 0 | R14: ='HmAppplc_Detail_REM_E214 Elec'!M5 -> 712443.35 | S14: ='HmAppplc_Detail_REM_E214 Elec'!N5 -> 639328
B15: ShwrHead_Detail_REM_E214 Elec | C15: E214 | E15: Residential Water Use Reducers | H15: 18230435 | I15: ='Water Use Rdsrs_E214 Elec'!D5 -> 2850 | J15: ='Water Use Rdsrs_E214 Elec'!E5 -> 2254.35 | K15: ='Water Use Rdsrs_E214 Elec'!F5 -> 0 | L15: ='Water Use Rdsrs_E214 Elec'!G5 -> 0 | M15: ='Water Use Rdsrs_E214 Elec'!H5 -> 0 | N15: ='Water Use Rdsrs_E214 Elec'!I5 -> 0 | O15: ='Water Use Rdsrs_E214 Elec'!J5 -> 0 | P15: ='Water Use Rdsrs_E214 Elec'!K5 -> 32.5 | Q15: ='Water Use Rdsrs_E214 Elec'!L5 -> 0 | R15: ='Water Use Rdsrs_E214 Elec'!M5 -> 5136.85 | S15: ='Water Use Rdsrs_E214 Elec'!N5 -> 94.8
B16: Lighting Detail_REM_E214 Elec | C16: E214 | E16: Energy Efficient Lighting Services | H16: 18230440 | I16: ='Lighting Detail_REM_E214 Elec'!D5 -> 93750 | J16: ='Lighting Detail_REM_E214 Elec'!E5 -> 74156.25 | K16: ='Lighting Detail_REM_E214 Elec'!F5 -> 80000 | L16: ='Lighting Detail_REM_E214 Elec'!G5 -> 2500 | M16: ='Lighting Detail_REM_E214 Elec'!H5 -> 225000 | N16: ='Lighting Detail_REM_E214 Elec'!I5 -> 2000 | O16: ='Lighting Detail_REM_E214 Elec'!J5 -> 0 | P16: ='Lighting Detail_REM_E214 Elec'!K5 -> 659660 | Q16: ='Lighting Detail_REM_E214 Elec'!L5 -> 0 | R16: ='Lighting Detail_REM_E214 Elec'!M5 -> 1137066.25 | S16: ='Lighting Detail_REM_E214 Elec'!N5 -> 1072952.2
B17: HER Detail_REM_E214 elec. | C17: E214 | E17: Home Energy Reports | H17: 18230461 | I17: ='HER Detail_REM_E214 elec.'!D5 -> 62200 | J17: ='HER Detail_REM_E214 elec.'!E5 -> 49200.2 | K17: ='HER Detail_REM_E214 elec.'!F5 -> 0 | L17: ='HER Detail_REM_E214 elec.'!G5 -> 1450 | M17: ='HER Detail_REM_E214 elec.'!H5 -> 734704.48 | N17: ='HER Detail_REM_E214 elec.'!I5 -> 0 | O17: ='HER Detail_REM_E214 elec.'!J5 -> 0 | P17: ='HER Detail_REM_E214 elec.'!K5 -> 727600 | Q17: ='HER Detail_REM_E214 elec.'!L5 -> 0 | R17: ='HER Detail_REM_E214 elec.'!M5 -> 1575154.68 | S17: ='HER Detail_REM_E214 elec.'!N5 -> 49484000
B18: Web Tstat Detail_REM E214 Elec | C18: E214 | E18: Smart Thermostats | H18: 18230023 | I18: ='Web Tstat Detail_REM E214 Elec'!D5 -> 62000 | J18: ='Web Tstat Detail_REM E214 Elec'!E5 -> 49042 | K18: ='Web Tstat Detail_REM E214 Elec'!F5 -> 44000 | L18: ='Web Tstat Detail_REM E214 Elec'!G5 -> 100 | M18: ='Web Tstat Detail_REM E214 Elec'!H5 -> 452000 | N18: ='Web Tstat Detail_REM E214 Elec'!I5 -> 1000 | O18: ='Web Tstat Detail_REM E214 Elec'!J5 -> 0 | P18: ='Web Tstat Detail_REM E214 Elec'!K5 -> 292675 | Q18: ='Web Tstat Detail_REM E214 Elec'!L5 -> 0 | R18: ='Web Tstat Detail_REM E214 Elec'!M5 -> 900817 | S18: ='Web Tstat Detail_REM E214 Elec'!N5 -> 1235452
B19: SFNC Detail_REM E215 Elec | C19: E215 | E19: Single Family New Construction | H19: 18230405 | I19: ='SFNC Detail_REM E215 Elec'!D5 -> 35875 | J19: ='SFNC Detail_REM E215 Elec'!E5 -> 28377.125 | K19: ='SFNC Detail_REM E215 Elec'!F5 -> 10000 | L19: ='SFNC Detail_REM E215 Elec'!G5 -> 1000 | M19: ='SFNC Detail_REM E215 Elec'!H5 -> 6000 | N19: ='SFNC Detail_REM E215 Elec'!I5 -> 0 | O19: ='SFNC Detail_REM E215 Elec'!J5 -> 0 | P19: ='SFNC Detail_REM E215 Elec'!K5 -> 75000 | Q19: ='SFNC Detail_REM E215 Elec'!L5 -> 0 | R19: ='SFNC Detail_REM E215 Elec'!M5 -> 156252.125 | S19: ='SFNC Detail_REM E215 Elec'!N5 -> 100000
B20: MfgHmNew Detail_REM E215 Elec | C20: E215 | E20: Manufactured Home New Construction | H20: 18230071 | I20: ='NCMfgHome Detail_REM E215 Elec'!D5 -> 28325 | J20: ='NCMfgHome Detail_REM E215 Elec'!E5 -> 22405.075 | K20: ='NCMfgHome Detail_REM E215 Elec'!F5 -> 5000 | L20: ='NCMfgHome Detail_REM E215 Elec'!G5 -> 0 | M20: ='NCMfgHome Detail_REM E215 Elec'!H5 -> 54000 | N20: ='NCMfgHome Detail_REM E215 Elec'!I5 -> 0 | O20: ='NCMfgHome Detail_REM E215 Elec'!J5 -> 0 | P20: ='NCMfgHome Detail_REM E215 Elec'!K5 -> 182000 | Q20: ='NCMfgHome Detail_REM E215 Elec'!L5 -> 0 | R20: ='NCMfgHome Detail_REM E215 Elec'!M5 -> 291730.075 | S20: ='NCMfgHome Detail_REM E215 Elec'!N5 -> 310276
B21: Efficiency Boost E217 Elec | C21: E214 & 217 | E21: Moderate Income Residences | H21: 18230751 | I21: ='Moderate Income_E217 Elec'!D5 -> 30150 | J21: ='Moderate Income_E217 Elec'!E5 -> 23848.65 | K21: ='Moderate Income_E217 Elec'!F5 -> 35000 | L21: ='Moderate Income_E217 Elec'!G5 -> 0 | M21: ='Moderate Income_E217 Elec'!H5 -> 0 | N21: ='Moderate Income_E217 Elec'!I5 -> 0 | O21: ='Moderate Income_E217 Elec'!J5 -> 0 | P21: ='Moderate Income_E217 Elec'!K5 -> 0 | Q21: ='Moderate Income_E217 Elec'!L5 -> 0 | R21: ='Moderate Income_E217 Elec'!M5 -> 88998.65 | S21: ='Moderate Income_E217 Elec'!N5 -> 0
B22: MF Retr Detail_REM E217 Elec | C22: E217 | E22: Multifamily Retrofit | H22: 18230407 | I22: ='MF Retr Detail_REM E217 Elec'!D5 -> 140125 | J22: ='MF Retr Detail_REM E217 Elec'!E5 -> 110838.875 | K22: ='MF Retr Detail_REM E217 Elec'!F5 -> 60000 | L22: ='MF Retr Detail_REM E217 Elec'!G5 -> 4000 | M22: ='MF Retr Detail_REM E217 Elec'!H5 -> 1360496.58 | N22: ='MF Retr Detail_REM E217 Elec'!I5 -> 0 | O22: ='MF Retr Detail_REM E217 Elec'!J5 -> 0 | P22: ='MF Retr Detail_REM E217 Elec'!K5 -> 6029500.7 | Q22: ='MF Retr Detail_REM E217 Elec'!L5 -> 0 | R22: ='MF Retr Detail_REM E217 Elec'!M5 -> 7704961.155 | S22: ='MF Retr Detail_REM E217 Elec'!N5 -> 9069977.2
B23: MF Retr Grants Detail_REM E217 Elec | C23: E217 | E23: State Grants | H23: 18230747 | I23: ='MF Retr-Grnts Detail_E217 Elect'!D5 -> 0 | J23: ='MF Retr-Grnts Detail_E217 Elect'!E5 -> 0 | K23: ='MF Retr-Grnts Detail_E217 Elect'!F5 -> 0 | L23: ='MF Retr-Grnts Detail_E217 Elect'!G5 -> 0 | M23: ='MF Retr-Grnts Detail_E217 Elect'!H5 -> 0 | N23: ='MF Retr-Grnts Detail_E217 Elect'!I5 -> 0 | O23: ='MF Retr-Grnts Detail_E217 Elect'!J5 -> 0 | P23: ='MF Retr-Grnts Detail_E217 Elect'!K5 -> 0 | Q23: ='MF Retr-Grnts Detail_E217 Elect'!L5 -> 0 | R23: ='MF Retr-Grnts Detail_E217 Elect'!M5 -> 0 | S23: ='MF Retr-Grnts Detail_E217 Elect'!N5 -> 0
B24: MFNC Detail_REM E218 Elec | C24: E218 | E24: Multi-Family New Construction | H24: 18230486 | I24: ='MFNC Detail_REM E218 Elec'!D5 -> 68925 | J24: ='MFNC Detail_REM E218 Elec'!E5 -> 54519.675 | K24: ='MFNC Detail_REM E218 Elec'!F5 -> 20000 | L24: ='MFNC Detail_REM E218 Elec'!G5 -> 1500 | M24: ='MFNC Detail_REM E218 Elec'!H5 -> 555000 | N24: ='MFNC Detail_REM E218 Elec'!I5 -> 200 | O24: ='MFNC Detail_REM E218 Elec'!J5 -> 0 | P24: ='MFNC Detail_REM E218 Elec'!K5 -> 1368000 | Q24: ='MFNC Detail_REM E218 Elec'!L5 -> 0 | R24: ='MFNC Detail_REM E218 Elec'!M5 -> 2068144.675 | S24: ='MFNC Detail_REM E218 Elec'!N5 -> 4500000
G25: Total, Residential Energy Management | I25: =SUM(I8:I24) -> 1125412.5 | J25: 889030.1625 | K25: 886200 | L25: 19550 | M25: 7191721.06 | N25: 9050 | O25: 3000 | P25: 27903470.56 | Q25: 0 | R25: 38027434.29 | S25: 95741735.03
C28: Business Energy Managment
E29: Commercial/Industrial Retrofit | I29: =SUM(I30:I33) -> 2838448 | J29: 2216827.888 | K29: 123000 | L29: 65000 | M29: 1036388 | N29: 7000 | O29: 3000 | P29: 19549415 | Q29: 0 | R29: =SUM(R30:R33) -> 25839078.89 | S29: =SUM(S30:S33) -> 73469199
B30: CI Retr Detail_BEM E250 Elec | C30: E250 | E30: Retrofit Custom Grants | H30: 18230711 | I30: ='CI Retr Detail_BEM E250 Elec'!C5 -> 733483 | J30: ='CI Retr Detail_BEM E250 Elec'!D5 -> 572850.223 | K30: ='CI Retr Detail_BEM E250 Elec'!E5 -> 50000 | L30: ='CI Retr Detail_BEM E250 Elec'!F5 -> 25000 | M30: ='CI Retr Detail_BEM E250 Elec'!G5 -> 558000 | N30: ='CI Retr Detail_BEM E250 Elec'!H5 -> 3500 | O30: ='CI Retr Detail_BEM E250 Elec'!I5 -> 0 | P30: ='CI Retr Detail_BEM E250 Elec'!J5 -> 4131483 | Q30: ='CI Retr Detail_BEM E250 Elec'!K5 -> 0 | R30: ='CI Retr Detail_BEM E250 Elec'!L5 -> 6074316.223 | S30: ='CI Retr Detail_BEM E250 Elec'!M5 -> 13600000
B31: BusLgtGrants_BEM E250 Elect | C31: E250 | E31: Custom Lighting Grants | H31: 18230724 | I31: ='BusLgtGrants_BEM E250 Elect'!C5 -> 1750000 | J31: ='BusLgtGrants_BEM E250 Elect'!D5 -> 1366750 | K31: ='BusLgtGrants_BEM E250 Elect'!E5 -> 47000 | L31: ='BusLgtGrants_BEM E250 Elect'!F5 -> 35000 | M31: ='BusLgtGrants_BEM E250 Elect'!G5 -> 102500 | N31: ='BusLgtGrants_BEM E250 Elect'!H5 -> 3500 | O31: ='BusLgtGrants_BEM E250 Elect'!I5 -> 3000 | P31: ='BusLgtGrants_BEM E250 Elect'!J5 -> 13200000 | Q31: ='BusLgtGrants_BEM E250 Elect'!K5 -> 0 | R31: ='BusLgtGrants_BEM E250 Elect'!L5 -> 16507750 | S31: ='BusLgtGrants_BEM E250 Elect'!M5 -> 48000000
B32: CI Indust_BEM_E250_Elec | C32: E250 | E32: Industrial Programs | H32: 18231137 | I32: ='CI Indust_BEM_E250_Elec'!C5 -> 354965 | J32: ='CI Indust_BEM_E250_Elec'!D5 -> 277227.665 | K32: ='CI Indust_BEM_E250_Elec'!E5 -> 25000 | L32: ='CI Indust_BEM_E250_Elec'!F5 -> 5000 | M32: ='CI Indust_BEM_E250_Elec'!G5 -> 86000 | N32: ='CI Indust_BEM_E250_Elec'!H5 -> 0 | O32: ='CI Indust_BEM_E250_Elec'!I5 -> 0 | P32: ='CI Indust_BEM_E250_Elec'!J5 -> 2217932 | Q32: ='CI Indust_BEM_E250_Elec'!K5 -> 0 | R32: ='CI Indust_BEM_E250_Elec'!L5 -> 2966124.665 | S32: ='CI Indust_BEM_E250_Elec'!M5 -> 7869199
C33: E250 | E33: Clean Buildings Accelerator | H33: 18230013 | I33: ='Cln Build Accel_E250_Elec'!C5 -> 0 | J33: ='Cln Build Accel_E250_Elec'!D5 -> 0 | K33: ='Cln Build Accel_E250_Elec'!E5 -> 1000 | L33: ='Cln Build Accel_E250_Elec'!F5 -> 0 | M33: ='Cln Build Accel_E250_Elec'!G5 -> 289888 | N33: ='Cln Build Accel_E250_Elec'!H5 -> 0 | O33: ='Cln Build Accel_E250_Elec'!I5 -> 0 | P33: ='Cln Build Accel_E250_Elec'!J5 -> 0 | Q33: ='Cln Build Accel_E250_Elec'!K5 -> 0 | R33: ='Cln Build Accel_E250_Elec'!L5 -> 290888 | S33: ='Cln Build Accel_E250_Elec'!M5 -> 4000000
B34: CI NC Detail_BEM E251 Elec | C34: E251 | E34: Commercial/Industrial New Construction | H34: 18230715 | I34: ='CI NC Detail_BEM E251 Elec'!C5 -> 336000 | J34: ='CI NC Detail_BEM E251 Elec'!D5 -> 262416 | K34: ='CI NC Detail_BEM E251 Elec'!E5 -> 22300 | L34: ='CI NC Detail_BEM E251 Elec'!F5 -> 4800 | M34: ='CI NC Detail_BEM E251 Elec'!G5 -> 174000 | N34: ='CI NC Detail_BEM E251 Elec'!H5 -> 5250 | O34: ='CI NC Detail_BEM E251 Elec'!I5 -> 0 | P34: ='CI NC Detail_BEM E251 Elec'!J5 -> 8012500 | Q34: ='CI NC Detail_BEM E251 Elec'!K5 -> 0 | R34: ='CI NC Detail_BEM E251 Elec'!L5 -> 8817266 | S34: ='CI NC Detail_BEM E251 Elec'!M5 -> 29500000
E35: Commercial Strategic Energy Management | I35: =SUM(I36:I38) -> 643250 | J35: =SUM(J36:J38) -> 502378.25 | K35: 3500 | L35: 17450 | M35: 210461 | N35: 200 | O35: 1500 | P35: 1000000 | Q35: 0 | R35: =SUM(R36:R38) -> 2378739.25 | S35: =SUM(S36:S38) -> 16000000
B36: RCM Detail_BEM E253 Elec | C36: E253 | E36: SEM | H36: 18230723 | I36: ='RCM Detail_BEM E253 Elec'!C5 -> 589750 | J36: ='RCM Detail_BEM E253 Elec'!D5 -> 460594.75 | K36: ='RCM Detail_BEM E253 Elec'!E5 -> 3500 | L36: ='RCM Detail_BEM E253 Elec'!F5 -> 16450 | M36: ='RCM Detail_BEM E253 Elec'!G5 -> 210461 | N36: ='RCM Detail_BEM E253 Elec'!H5 -> 200 | O36: ='RCM Detail_BEM E253 Elec'!I5 -> 1500 | P36: ='RCM Detail_BEM E253 Elec'!J5 -> 600000 | Q36: ='RCM Detail_BEM E253 Elec'!K5 -> 0 | R36: ='RCM Detail_BEM E253 Elec'!L5 -> 1882455.75 | S36: ='RCM Detail_BEM E253 Elec'!M5 -> 15000000
B37: ResAcctSW Detail_PSWE_Elec | C37: E253 | E37: Resource Accounting Software | H37: 18230502 | I37: ='ResAcctSW Detail_PSWE_Elec'!D5 -> 0 | J37: ='ResAcctSW Detail_PSWE_Elec'!E5 -> 0 | K37: ='ResAcctSW Detail_PSWE_Elec'!F5 -> 0 | L37: ='ResAcctSW Detail_PSWE_Elec'!G5 -> 0 | M37: ='ResAcctSW Detail_PSWE_Elec'!H5 -> 0 | N37: ='ResAcctSW Detail_PSWE_Elec'!I5 -> 0 | O37: ='ResAcctSW Detail_PSWE_Elec'!J5 -> 0 | P37: ='ResAcctSW Detail_PSWE_Elec'!K5 -> 0 | Q37: ='ResAcctSW Detail_PSWE_Elec'!L5 -> 0 | R37: ='ResAcctSW Detail_PSWE_Elec'!M5 -> 0 | S37: ='ResAcctSW Detail_PSWE_Elec'!N5 -> 0
C38: E253 | E38: Pay For Performance | H38: 18236102 | I38: ='Pay For Perf_E253_Elec'!C5 -> 53500 | J38: ='Pay For Perf_E253_Elec'!D5 -> 41783.5 | K38: ='Pay For Perf_E253_Elec'!E5 -> 0 | L38: ='Pay For Perf_E253_Elec'!F5 -> 1000 | M38: ='Pay For Perf_E253_Elec'!G5 -> 0 | N38: ='Pay For Perf_E253_Elec'!H5 -> 0 | O38: ='Pay For Perf_E253_Elec'!I5 -> 0 | P38: ='Pay For Perf_E253_Elec'!J5 -> 400000 | Q38: ='Pay For Perf_E253_Elec'!K5 -> 0 | R38: ='Pay For Perf_E253_Elec'!L5 -> 496283.5 | S38: ='Pay For Perf_E253_Elec'!M5 -> 1000000
E39: High Voltage, Self-Directed | I39: =SUM(I40:I41) -> 0 | J39: =SUM(J40:J41) -> 154427.6042 | K39: 0 | L39: 0 | M39: 0 | N39: 0 | O39: 0 | P39: 7740780 | Q39: 0 | R39: =SUM(R40:R41) -> 7895207.604 | S39: =SUM(S40:S41) -> 18176194
B40: LPSD_Detail_449_Elec | C40: E258 | E40: 449 Customers | H40: 18230720 | I40: =LPSD_Detail_449_Elec!C5 -> 0 | J40: =LPSD_Detail_449_Elec!D5 -> 89821.19862 | K40: =LPSD_Detail_449_Elec!E5 -> 0 | L40: =LPSD_Detail_449_Elec!F5 -> 0 | M40: =LPSD_Detail_449_Elec!G5 -> 0 | N40: =LPSD_Detail_449_Elec!H5 -> 0 | O40: =LPSD_Detail_449_Elec!I5 -> 0 | P40: =LPSD_Detail_449_Elec!J5 -> 3506213.7 | Q40: =LPSD_Detail_449_Elec!K5 -> 0 | R40: =LPSD_Detail_449_Elec!L5 -> 3596034.899 | S40: =LPSD_Detail_449_Elec!M5 -> 7917921
B41: LPSD_Detail_Non-449 Elec | C41: E258 | E41: Non-449 Customers | H41: 18230721 | I41: ='LPSD_Detail_Non-449 Elec'!C5 -> 0 | J41: ='LPSD_Detail_Non-449 Elec'!D5 -> 64606.40562 | K41: ='LPSD_Detail_Non-449 Elec'!E5 -> 0 | L41: ='LPSD_Detail_Non-449 Elec'!F5 -> 0 | M41: ='LPSD_Detail_Non-449 Elec'!G5 -> 0 | N41: ='LPSD_Detail_Non-449 Elec'!H5 -> 0 | O41: ='LPSD_Detail_Non-449 Elec'!I5 -> 0 | P41: ='LPSD_Detail_Non-449 Elec'!J5 -> 4234566.3 | Q41: ='LPSD_Detail_Non-449 Elec'!K5 -> 0 | R41: ='LPSD_Detail_Non-449 Elec'!L5 -> 4299172.706 | S41: ='LPSD_Detail_Non-449 Elec'!M5 -> 10258273
B42: TechEval Detail_BEM E261 Elec | C42: E261 | E42: Technology Evaluation | H42: 18230448 | I42: ='TechEval Detail_BEM E261 Elec'!C5 -> 0 | J42: ='TechEval Detail_BEM E261 Elec'!D5 -> 0 | K42: ='TechEval Detail_BEM E261 Elec'!E5 -> 0 | L42: ='TechEval Detail_BEM E261 Elec'!F5 -> 0 | M42: ='TechEval Detail_BEM E261 Elec'!G5 -> 0 | N42: ='TechEval Detail_BEM E261 Elec'!H5 -> 0 | O42: ='TechEval Detail_BEM E261 Elec'!I5 -> 0 | P42: ='TechEval Detail_BEM E261 Elec'!J5 -> 0 | Q42: ='TechEval Detail_BEM E261 Elec'!K5 -> 0 | R42: ='TechEval Detail_BEM E261 Elec'!L5 -> 0 | S42: ='TechEval Detail_BEM E261 Elec'!M5 -> 0
C43: E262 | E43: Business Rebates | I43: =SUM(I44:I50) -> 395700 | J43: =SUM(J44:J50) -> 312998.7 | K43: 168000 | L43: 4700 | M43: 3040568.36 | N43: 1750 | O43: 1000 | P43: 12208883 | Q43: 0 | R43: =SUM(R44:R50) -> 16133600.06 | S43: =SUM(S44:S50) -> 45208717.4
B44: Comm Lgt Mkdn_E262 Elect | C44: E262 | E44: Lighting to Go--also referred to as Business Lighting Markdowns | H44: 18230714 | I44: ='Comm Lgt Mkdn_E262 Elect'!D5 -> 80700 | J44: ='Comm Lgt Mkdn_E262 Elect'!E5 -> 63833.7 | K44: ='Comm Lgt Mkdn_E262 Elect'!F5 -> 25000 | L44: ='Comm Lgt Mkdn_E262 Elect'!G5 -> 1000 | M44: ='Comm Lgt Mkdn_E262 Elect'!H5 -> 924695.93 | N44: ='Comm Lgt Mkdn_E262 Elect'!I5 -> 250 | O44: ='Comm Lgt Mkdn_E262 Elect'!J5 -> 250 | P44: ='Comm Lgt Mkdn_E262 Elect'!K5 -> 2402964 | Q44: ='Comm Lgt Mkdn_E262 Elect'!L5 -> 0 | R44: ='Comm Lgt Mkdn_E262 Elect'!M5 -> 3498693.63 | S44: ='Comm Lgt Mkdn_E262 Elect'!N5 -> 21711025.4
B45: Comm Kit-Laund_E262 Elect | C45: E262 | E45: Commercial Foodservice | H45: 18230716 | I45: ='Comm Foodservice_E262 Elect'!D5 -> 19050 | J45: ='Comm Foodservice_E262 Elect'!E5 -> 15068.55 | K45: ='Comm Foodservice_E262 Elect'!F5 -> 7000 | L45: ='Comm Foodservice_E262 Elect'!G5 -> 0 | M45: ='Comm Foodservice_E262 Elect'!H5 -> 77772.43 | N45: ='Comm Foodservice_E262 Elect'!I5 -> 0 | O45: ='Comm Foodservice_E262 Elect'!J5 -> 0 | P45: ='Comm Foodservice_E262 Elect'!K5 -> 92981 | Q45: ='Comm Foodservice_E262 Elect'!L5 -> 0 | R45: ='Comm Foodservice_E262 Elect'!M5 -> 211871.98 | S45: ='Comm Foodservice_E262 Elect'!N5 -> 450000
B46: Comm HVAC_E262 Elect | C46: E262 | E46: Commercial HVAC Rebates | H46: 18230718 | I46: ='Comm HVAC_E262 Elect'!D5 -> 72350 | J46: ='Comm HVAC_E262 Elect'!E5 -> 57228.85 | K46: ='Comm HVAC_E262 Elect'!F5 -> 10000 | L46: ='Comm HVAC_E262 Elect'!G5 -> 500 | M46: ='Comm HVAC_E262 Elect'!H5 -> 100 | N46: ='Comm HVAC_E262 Elect'!I5 -> 500 | O46: ='Comm HVAC_E262 Elect'!J5 -> 500 | P46: ='Comm HVAC_E262 Elect'!K5 -> 400188 | Q46: ='Comm HVAC_E262 Elect'!L5 -> 0 | R46: ='Comm HVAC_E262 Elect'!M5 -> 541366.85 | S46: ='Comm HVAC_E262 Elect'!N5 -> 1533692
C47: E262 | E47: Commercial Midstream HVAC and Water Heat | H47: 18230524 | I47: ='Comm Midstream_E262 Elect'!D5 -> 49150 | J47: ='Comm Midstream_E262 Elect'!E5 -> 38877.65 | K47: ='Comm Midstream_E262 Elect'!F5 -> 0 | L47: ='Comm Midstream_E262 Elect'!G5 -> 1000 | M47: ='Comm Midstream_E262 Elect'!H5 -> 340000 | N47: ='Comm Midstream_E262 Elect'!I5 -> 0 | O47: ='Comm Midstream_E262 Elect'!J5 -> 0 | P47: ='Comm Midstream_E262 Elect'!K5 -> 672750 | Q47: ='Comm Midstream_E262 Elect'!L5 -> 0 | R47: ='Comm Midstream_E262 Elect'!M5 -> 1101777.65 | S47: ='Comm Midstream_E262 Elect'!N5 -> 1514000
B48: Sm Bus DI_E262 Elect | C48: E262 | E48: Small Business Direct Install | H48: 18231134 | I48: ='Sm Bus DI_E262 Elect'!D5 -> 97950 | J48: ='Sm Bus DI_E262 Elect'!E5 -> 77478.45 | K48: ='Sm Bus DI_E262 Elect'!F5 -> 76000 | L48: ='Sm Bus DI_E262 Elect'!G5 -> 1200 | M48: ='Sm Bus DI_E262 Elect'!H5 -> 1698000 | N48: ='Sm Bus DI_E262 Elect'!I5 -> 500 | O48: ='Sm Bus DI_E262 Elect'!J5 -> 250 | P48: ='Sm Bus DI_E262 Elect'!K5 -> 6120000 | Q48: ='Sm Bus DI_E262 Elect'!L5 -> 0 | R48: ='Sm Bus DI_E262 Elect'!M5 -> 8071378.45 | S48: ='Sm Bus DI_E262 Elect'!N5 -> 18000000
B49: New BusRebt prgm_E262 Elec | C49: E262 | E49: Commercial General Rebates | H49: 1823nnnn | I49: ='Comm Genl Rbats_E262 Elec'!D5 -> 0 | J49: ='Comm Genl Rbats_E262 Elec'!E5 -> 0 | K49: ='Comm Genl Rbats_E262 Elec'!F5 -> 0 | L49: ='Comm Genl Rbats_E262 Elec'!G5 -> 0 | M49: ='Comm Genl Rbats_E262 Elec'!H5 -> 0 | N49: ='Comm Genl Rbats_E262 Elec'!I5 -> 0 | O49: ='Comm Genl Rbats_E262 Elec'!J5 -> 0 | P49: ='Comm Genl Rbats_E262 Elec'!K5 -> 0 | Q49: ='Comm Genl Rbats_E262 Elec'!L5 -> 0 | R49: ='Comm Genl Rbats_E262 Elec'!M5 -> 0 | S49: ='Comm Genl Rbats_E262 Elec'!N5 -> 0
C50: E262 | E50: Lodging Rebates | H50: 18230014 | I50: ='Lodging Rbats_E262 Elec'!D5 -> 76500 | J50: ='Lodging Rbats_E262 Elec'!E5 -> 60511.5 | K50: ='Lodging Rbats_E262 Elec'!F5 -> 50000 | L50: ='Lodging Rbats_E262 Elec'!G5 -> 1000 | M50: ='Lodging Rbats_E262 Elec'!H5 -> 0 | N50: ='Lodging Rbats_E262 Elec'!I5 -> 500 | O50: ='Lodging Rbats_E262 Elec'!J5 -> 0 | P50: ='Lodging Rbats_E262 Elec'!K5 -> 2520000 | Q50: ='Lodging Rbats_E262 Elec'!L5 -> 0 | R50: ='Lodging Rbats_E262 Elec'!M5 -> 2708511.5 | S50: ='Lodging Rbats_E262 Elec'!N5 -> 2000000
G51: Total, Business Energy Management | I51: =SUM(I30:I35)+I39+I42+I43 -> 4213398 | J51: =SUM(J30:J35)+J39+J42+J43 -> 3449048.442 | K51: 316800 | L51: 91950 | M51: 4461417.36 | N51: 14200 | O51: 5500 | P51: 48511578 | Q51: 0 | R51: =SUM(R30:R35)+R39+R42+R43 -> 61063891.8 | S51: =SUM(S30:S35)+S39+S42+S43 -> 182354110.4
C54: Pilots With Uncertain Savings
B55: REM Pilots E249 Elec | C55: E249 | E55: Residential Pilots | I55: =SUM(I56:I58) -> 0 | J55: =SUM(J56:J58) -> 0 | K55: 0 | L55: 0 | M55: 0 | N55: 0 | O55: 0 | P55: =SUM(P56:P58) -> 52500 | Q55: 0 | R55: =SUM(R56:R58) -> 52500 | S55: =SUM(S56:S58) -> 360000
C56: E249 | E56: HEA Behavioral | H56: 18230748 | I56: ='Hybrid HP Pilot_Elec'!D5 -> 0 | J56: ='Hybrid HP Pilot_Elec'!E5 -> 0 | K56: ='Hybrid HP Pilot_Elec'!F5 -> 0 | L56: ='Hybrid HP Pilot_Elec'!G5 -> 0 | M56: ='Hybrid HP Pilot_Elec'!H5 -> 0 | N56: ='Hybrid HP Pilot_Elec'!I5 -> 0 | O56: ='Hybrid HP Pilot_Elec'!J5 -> 0 | P56: ='Hybrid HP Pilot_Elec'!K5 -> 0 | Q56: ='Hybrid HP Pilot_Elec'!L5 -> 0 | R56: ='Hybrid HP Pilot_Elec'!M5 -> 0 | S56: ='Hybrid HP Pilot_Elec'!N5 -> 0
C57: E249 | E57: Retail Choice | H57: 18230750 | I57: ='Retail Choice Pilot_Elec'!D5 -> 0 | J57: ='Retail Choice Pilot_Elec'!E5 -> 0 | K57: ='Retail Choice Pilot_Elec'!F5 -> 0 | L57: ='Retail Choice Pilot_Elec'!G5 -> 0 | M57: ='Retail Choice Pilot_Elec'!H5 -> 0 | N57: ='Retail Choice Pilot_Elec'!I5 -> 0 | O57: ='Retail Choice Pilot_Elec'!J5 -> 0 | P57: ='Retail Choice Pilot_Elec'!K5 -> 0 | Q57: ='Retail Choice Pilot_Elec'!L5 -> 0 | R57: ='Retail Choice Pilot_Elec'!M5 -> 0 | S57: ='Retail Choice Pilot_Elec'!N5 -> 0
C58: E249 | E58: Single Family AMI Engagement | H58: 18230749 | I58: ='SF AMI Engmt Pilot_Elec'!D5 -> 0 | J58: ='SF AMI Engmt Pilot_Elec'!E5 -> 0 | K58: ='SF AMI Engmt Pilot_Elec'!F5 -> 0 | L58: ='SF AMI Engmt Pilot_Elec'!G5 -> 0 | M58: ='SF AMI Engmt Pilot_Elec'!H5 -> 0 | N58: ='SF AMI Engmt Pilot_Elec'!I5 -> 0 | O58: ='SF AMI Engmt Pilot_Elec'!J5 -> 0 | P58: ='SF AMI Engmt Pilot_Elec'!K5 -> 52500 | Q58: ='SF AMI Engmt Pilot_Elec'!L5 -> 0 | R58: ='SF AMI Engmt Pilot_Elec'!M5 -> 52500 | S58: ='SF AMI Engmt Pilot_Elec'!N5 -> 360000
B59: BEM Pilots E249 Elec | C59: E249 | E59: Commercial Pilots | I59: =SUM(I60) -> 5250 | J59: =SUM(J60) -> 4100.25 | K59: 0 | L59: 0 | M59: 315000 | N59: 0 | O59: 0 | P59: 0 | Q59: 0 | R59: =SUM(R60) -> 324350.25 | S59: 1500000
C60: E249 | E60: SMB AMI Engagement | H60: 18231128 | I60: ='SMB AMI Engmt Pilot_Elec'!E5 -> 5250 | J60: ='SMB AMI Engmt Pilot_Elec'!F5 -> 4100.25 | K60: ='SMB AMI Engmt Pilot_Elec'!G5 -> 0 | L60: ='SMB AMI Engmt Pilot_Elec'!H5 -> 0 | M60: ='SMB AMI Engmt Pilot_Elec'!I5 -> 315000 | N60: ='SMB AMI Engmt Pilot_Elec'!J5 -> 0 | O60: ='SMB AMI Engmt Pilot_Elec'!K5 -> 0 | P60: ='SMB AMI Engmt Pilot_Elec'!L5 -> 0 | Q60: ='SMB AMI Engmt Pilot_Elec'!M5 -> 0 | R60: ='SMB AMI Engmt Pilot_Elec'!N5 -> 324350.25 | S60: ='SMB AMI Engmt Pilot_Elec'!O5 -> 1500000
G61: Total, Pilots | I61: =SUM(I55)+I59 -> 5250 | J61: =SUM(J55)+J59 -> 4100.25 | K61: 0 | L61: 0 | M61: 315000 | N61: 0 | O61: 0 | P61: 52500 | Q61: 0 | R61: 376850.25 | S61: 1860000
C65: Regional Efficiency Programs
B66: NEEA Detail_E254 elec | C66: E254 | E66: Northwest Energy Efficiency Alliance | H66: 18230421 | I66: ='NEEA Detail_E254 elec'!D5 -> 0 | J66: ='NEEA Detail_E254 elec'!E5 -> 0 | K66: ='NEEA Detail_E254 elec'!F5 -> 0 | L66: ='NEEA Detail_E254 elec'!G5 -> 0 | M66: ='NEEA Detail_E254 elec'!H5 -> 4916640 | N66: ='NEEA Detail_E254 elec'!I5 -> 0 | O66: ='NEEA Detail_E254 elec'!J5 -> 0 | P66: ='NEEA Detail_E254 elec'!K5 -> 0 | Q66: ='NEEA Detail_E254 elec'!L5 -> 0 | R66: ='NEEA Detail_E254 elec'!M5 -> 4916640 | S66: ='NEEA Detail_E254 elec'!N5 -> 12964800
B67: TDSM_Regnl_elec_e219 | C67: E219 | E67: Targeted DSM | H67: 18230134 | I67: ='TDSM_Regnl_E219 Elec'!D5 -> 251125 | J67: ='TDSM_Regnl_E219 Elec'!E5 -> 196128.625 | K67: ='TDSM_Regnl_E219 Elec'!F5 -> 10000 | L67: ='TDSM_Regnl_E219 Elec'!G5 -> 1400 | M67: ='TDSM_Regnl_E219 Elec'!H5 -> 105000 | N67: ='TDSM_Regnl_E219 Elec'!I5 -> 0 | O67: ='TDSM_Regnl_E219 Elec'!J5 -> 0 | P67: ='TDSM_Regnl_E219 Elec'!K5 -> 52500 | Q67: ='TDSM_Regnl_E219 Elec'!L5 -> 0 | R67: ='TDSM_Regnl_E219 Elec'!M5 -> 616153.625 | S67: ='TDSM_Regnl_E219 Elec'!N5 -> 0
B68: T&D Detail_Reg E292 elec | C68: E292 | E68: Transmission & Distribution | H68: 18230713 | I68: ='T&D Detail_Reg E292 elec'!C5 -> 0 | J68: ='T&D Detail_Reg E292 elec'!D5 -> 0 | K68: ='T&D Detail_Reg E292 elec'!E5 -> 0 | L68: ='T&D Detail_Reg E292 elec'!F5 -> 0 | M68: ='T&D Detail_Reg E292 elec'!G5 -> 0 | N68: ='T&D Detail_Reg E292 elec'!H5 -> 0 | O68: ='T&D Detail_Reg E292 elec'!I5 -> 0 | P68: ='T&D Detail_Reg E292 elec'!J5 -> 0 | Q68: ='T&D Detail_Reg E292 elec'!K5 -> 0 | R68: ='T&D Detail_Reg E292 elec'!L5 -> 0 | S68: ='T&D Detail_Reg E292 elec'!M5 -> 6000000
G69: Total, Regional Efficiency Programs | I69: =SUM(I66:I68) -> 251125 | J69: 196128.625 | K69: 10000 | L69: 1400 | M69: 5021640 | N69: 0 | O69: 0 | P69: 52500 | Q69: 0 | R69: =SUM(R66:R68) -> 5532793.625 | S69: =SUM(S66:S68) -> 18964800
C73: Energy Efficiency Portfolio Support
B74: Data & Systm Svcs_Elect | E74: Data and Systems Services | H74: 18230745 | I74: ='Data & Systm Svcs_Elect'!D5 -> 400200 | J74: ='Data & Systm Svcs_Elect'!E5 -> 312556.2 | K74: ='Data & Systm Svcs_Elect'!F5 -> 0 | L74: ='Data & Systm Svcs_Elect'!G5 -> 8700 | M74: ='Data & Systm Svcs_Elect'!H5 -> 261000 | N74: ='Data & Systm Svcs_Elect'!I5 -> 0 | O74: ='Data & Systm Svcs_Elect'!J5 -> 0 | P74: ='Data & Systm Svcs_Elect'!K5 -> 0 | Q74: ='Data & Systm Svcs_Elect'!L5 -> 0 | R74: ='Data & Systm Svcs_Elect'!M5 -> 982456.2
B75: Rebt Procg Detail_Elect | E75: Rebates Processing | H75: 18230507 | I75: ='Rebt Procg Detail_Elect'!D5 -> 467190 | J75: ='Rebt Procg Detail_Elect'!E5 -> 364875.39 | K75: ='Rebt Procg Detail_Elect'!F5 -> 0 | L75: ='Rebt Procg Detail_Elect'!G5 -> 20000 | M75: ='Rebt Procg Detail_Elect'!H5 -> 60900 | N75: ='Rebt Procg Detail_Elect'!I5 -> 5000 | O75: ='Rebt Procg Detail_Elect'!J5 -> 0 | P75: ='Rebt Procg Detail_Elect'!K5 -> 0 | Q75: ='Rebt Procg Detail_Elect'!L5 -> 0 | R75: ='Rebt Procg Detail_Elect'!M5 -> 917965.39
B76: VTeam Detail_R&C_Elec | E76: Verification Team | H76: 18230418 | I76: ='Verifctn Team Detail Elec'!D5 -> 327990 | J76: ='Verifctn Team Detail Elec'!E5 -> 256160.19 | K76: ='Verifctn Team Detail Elec'!F5 -> 0 | L76: ='Verifctn Team Detail Elec'!G5 -> 20000 | M76: ='Verifctn Team Detail Elec'!H5 -> 0 | N76: ='Verifctn Team Detail Elec'!I5 -> 7000 | O76: ='Verifctn Team Detail Elec'!J5 -> 0 | P76: ='Verifctn Team Detail Elec'!K5 -> 0 | Q76: ='Verifctn Team Detail Elec'!L5 -> 0 | R76: ='Verifctn Team Detail Elec'!M5 -> 611150.19
B77: ProgDev Detail_R&C_ Elec | E77: Programs Support | H77: 18230810 | I77: ='Progs Supp Detail_PS_ Elec'!D5 -> 397372.5 | J77: ='Progs Supp Detail_PS_ Elec'!E5 -> 310347.9225 | K77: ='Progs Supp Detail_PS_ Elec'!F5 -> 0 | L77: ='Progs Supp Detail_PS_ Elec'!G5 -> 13050 | M77: ='Progs Supp Detail_PS_ Elec'!H5 -> 43500 | N77: ='Progs Supp Detail_PS_ Elec'!I5 -> 0 | O77: ='Progs Supp Detail_PS_ Elec'!J5 -> 0 | P77: ='Progs Supp Detail_PS_ Elec'!K5 -> 0 | Q77: ='Progs Supp Detail_PS_ Elec'!L5 -> 0 | R77: ='Progs Supp Detail_PS_ Elec'!M5 -> 764270.4225
B78: TradeAlly Detail_PS_ Elec | E78: Trade Ally Memberships | H78: 18230730 | I78: ='TradeAlly Detail_PS_ Elec'!D5 -> 0 | J78: ='TradeAlly Detail_PS_ Elec'!E5 -> 0 | K78: ='TradeAlly Detail_PS_ Elec'!F5 -> 0 | L78: ='TradeAlly Detail_PS_ Elec'!G5 -> 0 | M78: ='TradeAlly Detail_PS_ Elec'!H5 -> 121800 | N78: ='TradeAlly Detail_PS_ Elec'!I5 -> 0 | O78: ='TradeAlly Detail_PS_ Elec'!J5 -> 0 | P78: ='TradeAlly Detail_PS_ Elec'!K5 -> 0 | Q78: ='TradeAlly Detail_PS_ Elec'!L5 -> 0 | R78: ='TradeAlly Detail_PS_ Elec'!M5 -> 121800
B79: CAN_Elect | E79: Trade Ally Network (revenue + cost) | H79: 18230746 | I79: =REP_Elect!D5 -> 109595.5 | J79: =REP_Elect!E5 -> 85594.0855 | K79: =REP_Elect!F5 -> 20000 | L79: =REP_Elect!G5 -> 5000 | M79: =REP_Elect!H5 -> 37500 | N79: =REP_Elect!I5 -> 1500 | O79: =REP_Elect!J5 -> 0 | P79: =REP_Elect!K5 -> 0 | Q79: =REP_Elect!L5 -> -246899 | R79: =REP_Elect!M5 -> 12290.5855
B80: ABS Detail_PSWE_Elec | E80: Automated Benchmarking System | H80: 18230411 | I80: ='ABS Detail_PSWE_Elec'!D5 -> 784000 | J80: ='ABS Detail_PSWE_Elec'!E5 -> 612304 | K80: ='ABS Detail_PSWE_Elec'!F5 -> 0 | L80: ='ABS Detail_PSWE_Elec'!G5 -> 0 | M80: ='ABS Detail_PSWE_Elec'!H5 -> 1680000 | N80: ='ABS Detail_PSWE_Elec'!I5 -> 0 | O80: ='ABS Detail_PSWE_Elec'!J5 -> 0 | P80: ='ABS Detail_PSWE_Elec'!K5 -> 0 | Q80: ='ABS Detail_PSWE_Elec'!L5 -> 0 | R80: ='ABS Detail_PSWE_Elec'!M5 -> 3076304
B81: Engy Adv Detail_PSCE Elec | E81: Energy Advisors | H81: 18230610 | I81: ='Engy Adv Detail_PSCE Elec'!D5 -> 710910 | J81: ='Engy Adv Detail_PSCE Elec'!E5 -> 555220.71 | K81: ='Engy Adv Detail_PSCE Elec'!F5 -> 0 | L81: ='Engy Adv Detail_PSCE Elec'!G5 -> 44000 | M81: ='Engy Adv Detail_PSCE Elec'!H5 -> 1000 | N81: ='Engy Adv Detail_PSCE Elec'!I5 -> 0 | O81: ='Engy Adv Detail_PSCE Elec'!J5 -> 1350 | P81: ='Engy Adv Detail_PSCE Elec'!K5 -> 0 | Q81: ='Engy Adv Detail_PSCE Elec'!L5 -> 0 | R81: ='Engy Adv Detail_PSCE Elec'!M5 -> 1312480.71
B82: EEC Detail_PS_Elec | E82: Energy Efficient Communities | H82: 18230811 | I82: ='EEC Detail_PS_Elec'!D5 -> 587295.4 | J82: ='EEC Detail_PS_Elec'!E5 -> 458677.7074 | K82: ='EEC Detail_PS_Elec'!F5 -> 25796 | L82: ='EEC Detail_PS_Elec'!G5 -> 15400 | M82: ='EEC Detail_PS_Elec'!H5 -> 110000 | N82: ='EEC Detail_PS_Elec'!I5 -> 3821 | O82: ='EEC Detail_PS_Elec'!J5 -> 0 | P82: ='EEC Detail_PS_Elec'!K5 -> 0 | Q82: ='EEC Detail_PS_Elec'!L5 -> 0 | R82: ='EEC Detail_PS_Elec'!M5 -> 1200990.107
B83: CustOnline Detail_PSWE_Elec | D83: New Name | E83: Customer Digital Services | I83: =SUM(I84:I87) -> 231985 | J83: =SUM(J84:J87) -> 181180.285 | K83: 130000 | L83: 2750 | M83: 1184312 | N83: 0 | O83: 0 | P83: 0 | Q83: =SUM(Q84:Q87) -> 0 | R83: =SUM(R84:R87) -> 1730227.285
F84: Digital Experience | H84: 18230400 | I84: ='Dig Exprnc_Elec'!D5 -> 60900 | J84: ='Dig Exprnc_Elec'!E5 -> 47562.9 | K84: ='Dig Exprnc_Elec'!F5 -> 0 | L84: ='Dig Exprnc_Elec'!G5 -> 0 | M84: ='Dig Exprnc_Elec'!H5 -> 0 | N84: ='Dig Exprnc_Elec'!I5 -> 0 | O84: ='Dig Exprnc_Elec'!J5 -> 0 | P84: ='Dig Exprnc_Elec'!K5 -> 0 | Q84: ='Dig Exprnc_Elec'!L5 -> 0 | R84: ='Dig Exprnc_Elec'!M5 -> 108462.9
F85: Customer Digital Experience | H85: 18230408 | I85: ='Customer Dig Exprnc_Elec'!D5 -> 26250 | J85: ='Customer Dig Exprnc_Elec'!E5 -> 20501.25 | K85: ='Customer Dig Exprnc_Elec'!F5 -> 0 | L85: ='Customer Dig Exprnc_Elec'!G5 -> 0 | M85: ='Customer Dig Exprnc_Elec'!H5 -> 688576 | N85: ='Customer Dig Exprnc_Elec'!I5 -> 0 | O85: ='Customer Dig Exprnc_Elec'!J5 -> 0 | P85: ='Customer Dig Exprnc_Elec'!K5 -> 0 | Q85: ='Customer Dig Exprnc_Elec'!L5 -> 0 | R85: ='Customer Dig Exprnc_Elec'!M5 -> 735327.25
B86: CustAwarTools_elec | F86: Customer Awareness Tools | H86: 18230508 | I86: =CustAwarTools_Elect!D5 -> 48235 | J86: =CustAwarTools_Elect!E5 -> 37671.535 | K86: =CustAwarTools_Elect!F5 -> 0 | L86: =CustAwarTools_Elect!G5 -> 250 | M86: =CustAwarTools_Elect!H5 -> 485156 | N86: =CustAwarTools_Elect!I5 -> 0 | O86: =CustAwarTools_Elect!J5 -> 0 | P86: =CustAwarTools_Elect!K5 -> 0 | Q86: =CustAwarTools_Elect!L5 -> 0 | R86: =CustAwarTools_Elect!M5 -> 571312.535
B87: ShopPSE_elec | F87: PSE Marketplace | H87: 18230509 | I87: ='PSE Mktplce_elect'!D5 -> 96600 | J87: ='PSE Mktplce_elect'!E5 -> 75444.6 | K87: ='PSE Mktplce_elect'!F5 -> 130000 | L87: ='PSE Mktplce_elect'!G5 -> 2500 | M87: ='PSE Mktplce_elect'!H5 -> 10580 | N87: ='PSE Mktplce_elect'!I5 -> 0 | O87: ='PSE Mktplce_elect'!J5 -> 0 | P87: ='PSE Mktplce_elect'!K5 -> 0 | Q87: ='PSE Mktplce_elect'!L5 -> 0 | R87: ='PSE Mktplce_elect'!M5 -> 315124.6
B88: Mkt Intgn Detail_PSWE_Elec | E88: Market Integration | H88: 18230466 | I88: ='Mkt Intgn Detail_PSWE_Elec'!D5 -> 262800 | J88: ='Mkt Intgn Detail_PSWE_Elec'!E5 -> 205246.8 | K88: ='Mkt Intgn Detail_PSWE_Elec'!F5 -> 957000 | L88: ='Mkt Intgn Detail_PSWE_Elec'!G5 -> 0 | M88: ='Mkt Intgn Detail_PSWE_Elec'!H5 -> 0 | N88: ='Mkt Intgn Detail_PSWE_Elec'!I5 -> 0 | O88: ='Mkt Intgn Detail_PSWE_Elec'!J5 -> 0 | P88: ='Mkt Intgn Detail_PSWE_Elec'!K5 -> 0 | Q88: ='Mkt Intgn Detail_PSWE_Elec'!L5 -> 0 | R88: ='Mkt Intgn Detail_PSWE_Elec'!M5 -> 1425046.8
B89: Events Detail_PSCE Elec | E89: Events | H89: 18230602 | I89: ='Events Detail_PSCE Elec'!D5 -> 206450 | J89: ='Events Detail_PSCE Elec'!E5 -> 161237.45 | K89: ='Events Detail_PSCE Elec'!F5 -> 13000 | L89: ='Events Detail_PSCE Elec'!G5 -> 3905 | M89: ='Events Detail_PSCE Elec'!H5 -> 112610 | N89: ='Events Detail_PSCE Elec'!I5 -> 34365 | O89: ='Events Detail_PSCE Elec'!J5 -> 0 | P89: ='Events Detail_PSCE Elec'!K5 -> 0 | Q89: ='Events Detail_PSCE Elec'!L5 -> 0 | R89: ='Events Detail_PSCE Elec'!M5 -> 531567.45
G90: Total, Portfolio Support | I90: =SUM(I74:I83)+SUM(I88:I89) -> 4485788.4 | J90: 3503400.74 | K90: 1145796 | L90: 132805 | M90: 3612622 | N90: 51686 | O90: 1350 | P90: 0 | Q90: -246899 | R90: 12686549.14
C94: Research & Compliance
B95: SuppCrv Detail_R&C_Elec | E95: Conservation Supply Curves | H95: 18230809 | I95: ='SuppCrv Detail_R&C_Elec'!D5 -> 91350 | J95: ='SuppCrv Detail_R&C_Elec'!E5 -> 71344.35 | K95: ='SuppCrv Detail_R&C_Elec'!F5 -> 0 | L95: ='SuppCrv Detail_R&C_Elec'!G5 -> 435 | M95: ='SuppCrv Detail_R&C_Elec'!H5 -> 277313 | N95: ='SuppCrv Detail_R&C_Elec'!I5 -> 0 | O95: ='SuppCrv Detail_R&C_Elec'!J5 -> 0 | P95: ='SuppCrv Detail_R&C_Elec'!K5 -> 0 | Q95: ='SuppCrv Detail_R&C_Elec'!L5 -> 0 | R95: ='SuppCrv Detail_R&C_Elec'!M5 -> 440442.35
B96: Strat Plan Detail_R&C_Elec | E96: Strategic Planning | H96: 18230469 | I96: ='Strat Plan Detail_R&C_Elec'!D5 -> 282750 | J96: ='Strat Plan Detail_R&C_Elec'!E5 -> 220827.75 | K96: ='Strat Plan Detail_R&C_Elec'!F5 -> 0 | L96: ='Strat Plan Detail_R&C_Elec'!G5 -> 4350 | M96: ='Strat Plan Detail_R&C_Elec'!H5 -> 0 | N96: ='Strat Plan Detail_R&C_Elec'!I5 -> 0 | O96: ='Strat Plan Detail_R&C_Elec'!J5 -> 0 | P96: ='Strat Plan Detail_R&C_Elec'!K5 -> 0 | Q96: ='Strat Plan Detail_R&C_Elec'!L5 -> 0 | R96: ='Strat Plan Detail_R&C_Elec'!M5 -> 507927.75
B97: Mktg Resch Detail_PS_ Elec | E97: Market Research | H97: 18230413 | I97: ='Mktg Resch Detail_PS_ Elec'!D5 -> 109620 | J97: ='Mktg Resch Detail_PS_ Elec'!E5 -> 85613.22 | K97: ='Mktg Resch Detail_PS_ Elec'!F5 -> 0 | L97: ='Mktg Resch Detail_PS_ Elec'!G5 -> 0 | M97: ='Mktg Resch Detail_PS_ Elec'!H5 -> 0 | N97: ='Mktg Resch Detail_PS_ Elec'!I5 -> 0 | O97: ='Mktg Resch Detail_PS_ Elec'!J5 -> 8700 | P97: ='Mktg Resch Detail_PS_ Elec'!K5 -> 0 | Q97: ='Mktg Resch Detail_PS_ Elec'!L5 -> 0 | R97: ='Mktg Resch Detail_PS_ Elec'!M5 -> 203933.22
B98: Eval Detail_R&C_Elec | E98: Program Evaluation | H98: 18230802 | I98: ='Eval Detail_R&C_Elec'!D5 -> 182700 | J98: ='Eval Detail_R&C_Elec'!E5 -> 142688.7 | K98: ='Eval Detail_R&C_Elec'!F5 -> 0 | L98: ='Eval Detail_R&C_Elec'!G5 -> 4350 | M98: ='Eval Detail_R&C_Elec'!H5 -> 1089964 | N98: ='Eval Detail_R&C_Elec'!I5 -> 0 | O98: ='Eval Detail_R&C_Elec'!J5 -> 216100 | P98: ='Eval Detail_R&C_Elec'!K5 -> 0 | Q98: ='Eval Detail_R&C_Elec'!L5 -> 0 | R98: ='Eval Detail_R&C_Elec'!M5 -> 1635802.7
B99: BECAR Detail_R&C Elec | E99: Biennial Elec. Consv. Aquisitn. Review | H99: 18230624 | I99: ='BECAR Detail_R&C Elec'!D5 -> 0 | J99: ='BECAR Detail_R&C Elec'!E5 -> 0 | K99: ='BECAR Detail_R&C Elec'!F5 -> 0 | L99: ='BECAR Detail_R&C Elec'!G5 -> 0 | M99: ='BECAR Detail_R&C Elec'!H5 -> 150000 | N99: ='BECAR Detail_R&C Elec'!I5 -> 0 | O99: ='BECAR Detail_R&C Elec'!J5 -> 0 | P99: ='BECAR Detail_R&C Elec'!K5 -> 0 | Q99: ='BECAR Detail_R&C Elec'!L5 -> 0 | R99: ='BECAR Detail_R&C Elec'!M5 -> 150000
G100: Total, Research & Compliance | I100: =SUM(I95:I99) -> 666420 | J100: 520474.02 | K100: 0 | L100: 9135 | M100: 1517277 | N100: 0 | O100: 224800 | P100: 0 | Q100: 0 | R100: 2938106.02
C104: Other Customer Programs
B105: Net Mtr Details_Oth Elec E150 | C105: E150 | E105: Net Metering | H105: 18230128 | I105: ='Net Mtr Details_Oth Elec E150'!D5 -> 438500 | J105: ='Net Mtr Details_Oth Elec E150'!E5 -> 342468.5 | K105: ='Net Mtr Details_Oth Elec E150'!F5 -> 0 | L105: ='Net Mtr Details_Oth Elec E150'!G5 -> 10000 | M105: ='Net Mtr Details_Oth Elec E150'!H5 -> 100000 | N105: ='Net Mtr Details_Oth Elec E150'!I5 -> 0 | O105: ='Net Mtr Details_Oth Elec E150'!J5 -> 1300000 | P105: ='Net Mtr Details_Oth Elec E150'!K5 -> 0 | Q105: ='Net Mtr Details_Oth Elec E150'!L5 -> 0 | R105: ='Net Mtr Details_Oth Elec E150'!M5 -> 2190968.5
B106: DemndResp_Detail_E249_Elec | C106: 249A, 271 | E106: Demand Response Pilot | H106: 18230133 | I106: =DmndResp_Detail_E249_Elec!D5 -> 0 | J106: =DmndResp_Detail_E249_Elec!E5 -> 0 | K106: =DmndResp_Detail_E249_Elec!F5 -> 0 | L106: =DmndResp_Detail_E249_Elec!G5 -> 0 | M106: =DmndResp_Detail_E249_Elec!H5 -> 340000 | N106: =DmndResp_Detail_E249_Elec!I5 -> 0 | O106: =DmndResp_Detail_E249_Elec!J5 -> 0 | P106: =DmndResp_Detail_E249_Elec!K5 -> 0 | Q106: =DmndResp_Detail_E249_Elec!L5 -> 0 | R106: =DmndResp_Detail_E249_Elec!M5 -> 340000
G107: Total, Other Energy Efficiency Programs | I107: =SUM(I105:I106) -> 438500 | J107: =SUM(J105:J106) -> 342468.5 | K107: 0 | L107: 10000 | M107: 440000 | N107: 0 | O107: 1300000 | P107: 0 | Q107: 0 | R107: 2530968.5
G111: GRAND TOTAL, ELECTRIC PROGRAMS | I111: =I107+I100+I69+I61+I51+I25+I90 -> 11185893.9 | J111: =J107+J100+J69+J61+J51+J25+J90 -> 8904650.74 | K111: 2358796 | L111: 264840 | M111: 22559677.42 | N111: 74936 | O111: 1534650 | P111: 76520048.56 | Q111: -246899 | R111: =R107+R100+R90+R69+R61+R51+R25 -> 123156593.6 | S111: =S107+S100+S69+S61+S51+S25+S90 -> 298920645.4
S114: =S111/1000/8760 -> 34.12336135
G115: Budget Category Includes | H115: This is the main level of tracking expenditures and expenses in EES. Per FERC rules, all conservation order numbers start with a "1823nnnn", where "n" is some number. Cost elements apply to all order numbers (for instance, all conservation programs that | I115: Energy Efficiency program staff labor. Average FTE cost including management assessments. This Budget Category group includes assessments from Major Accounts management, Resource Planning, Corporate Communications management, IT specialists and some building maintenance allocations. | J115: Overhead--costs associated with primarily employee labor; benefits, for instance. For 2017, includes micro-overhead. | K115: Service and materials associated with the cost of printing program brochures, marketing pieces, advertising, banners, etc. Also includes marketing conducted by vendors and contractors. | L115: Costs associated with EE staff attending events, employee training, conferences, business meals, business parking, ferry & bridge tolls, mileage incurred on employee automobiles, office supplies, phones, subscriptions, software/hardware, etc. | M115: Contractors and vendors, such as PECI, Ecos, CostCo, EFI, etc. Legal expenses, technical services (CMS design, PSE.com web portals, etc.). These costs do NOT include brochure development, marketing pieces, (which are classified under MARKETING). These costs do NOT include incentives paid to customers by contractors. | N115: Primarily tools, trade show equipment, etc. | O115: This category should seldomly be used, and only expenses that cannot be classified under one of the above categories. | P115: All costs associated with rebates, grants, remuneration, value-added services that have a direct bearing on a customer's perceived value of PSE offerings. | Q115: Any amount that PSE is paid by a customer, partner, municipality or outside entity.

Sheet 2023 Sector View Elect
C2: Energy Efficiency 2023 Budgets and Aggregate Program Savings
C3: Sector View | I3: Please see category descriptions at the bottom of the sector table.
C4: Electric Programs
I5: Budget Category
B6: Workbook Name | C6: Schedule | D6: Comment | E6: Description (Blue, indented text indicates a sub-total value) | H6: Order Number (Click on the order# below to link to the detail page) | I6: Labor | J6: Overhead | K6: Marketing | L6: Employee/Office Expense | M6: Outside Services | N6: Materials | O6: Miscellaneous | P6: DBtC | Q6: Revenue | R6: Total Budget | S6: Total Savings kWh | U6: Comments
C7: Residential Energy Management
B8: LIW Detail_REM E201_Elec | C8: E201 | E8: Low Income Weatherization | H8: 18230611 | I8: =' LowIncWx Detail_REM E201_Elec'!D6 -> 127952.5 | J8: =' LowIncWx Detail_REM E201_Elec'!E6 -> 101210.4275 | K8: =' LowIncWx Detail_REM E201_Elec'!F6 -> 97200 | L8: =' LowIncWx Detail_REM E201_Elec'!G6 -> 4500 | M8: =' LowIncWx Detail_REM E201_Elec'!H6 -> 22500 | N8: =' LowIncWx Detail_REM E201_Elec'!I6 -> 1350 | O8: =' LowIncWx Detail_REM E201_Elec'!J6 -> 0 | P8: =' LowIncWx Detail_REM E201_Elec'!K6 -> 7725040.23 | Q8: =' LowIncWx Detail_REM E201_Elec'!L6 -> 0 | R8: =' LowIncWx Detail_REM E201_Elec'!M6 -> 8079753.158 | S8: =' LowIncWx Detail_REM E201_Elec'!N6 -> 1999320.2
B9: HomePrint Detail_REM_E214 Elec | C9: E214 | E9: Home Energy Assessments | H9: 18230625 | I9: ='HmEnrgAsmt Detail_REM_E214 Elec'!D6 -> 0 | J9: ='HmEnrgAsmt Detail_REM_E214 Elec'!E6 -> 0 | K9: ='HmEnrgAsmt Detail_REM_E214 Elec'!F6 -> 0 | L9: ='HmEnrgAsmt Detail_REM_E214 Elec'!G6 -> 0 | M9: ='HmEnrgAsmt Detail_REM_E214 Elec'!H6 -> 0 | N9: ='HmEnrgAsmt Detail_REM_E214 Elec'!I6 -> 0 | O9: ='HmEnrgAsmt Detail_REM_E214 Elec'!J6 -> 0 | P9: ='HmEnrgAsmt Detail_REM_E214 Elec'!K6 -> 0 | Q9: ='HmEnrgAsmt Detail_REM_E214 Elec'!L6 -> 0 | R9: ='HmEnrgAsmt Detail_REM_E214 Elec'!M6 -> 0 | S9: ='HmEnrgAsmt Detail_REM_E214 Elec'!N6 -> 0
B10: WaterHea_Detail_REM_E214 Elec | C10: E214 | E10: SF Existing Water Heat | H10: 18230626 | I10: ='WaterHea_Detail_REM_E214 Elec'!D6 -> 159025 | J10: ='WaterHea_Detail_REM_E214 Elec'!E6 -> 125788.775 | K10: ='WaterHea_Detail_REM_E214 Elec'!F6 -> 140000 | L10: ='WaterHea_Detail_REM_E214 Elec'!G6 -> 500 | M10: ='WaterHea_Detail_REM_E214 Elec'!H6 -> 179260 | N10: ='WaterHea_Detail_REM_E214 Elec'!I6 -> 500 | O10: ='WaterHea_Detail_REM_E214 Elec'!J6 -> 500 | P10: ='WaterHea_Detail_REM_E214 Elec'!K6 -> 626500 | Q10: ='WaterHea_Detail_REM_E214 Elec'!L6 -> 0 | R10: ='WaterHea_Detail_REM_E214 Elec'!M6 -> 1232073.775 | S10: ='WaterHea_Detail_REM_E214 Elec'!N6 -> 1448993.3
B11: Wx_Detail_REM E214 Elec | C11: E214 | E11: SF Existing Weatherization | H11: 18230627 | I11: ='Wx_Detail_REM E214 Elec'!D6 -> 92950 | J11: ='Wx_Detail_REM E214 Elec'!E6 -> 73523.45 | K11: ='Wx_Detail_REM E214 Elec'!F6 -> 110000 | L11: ='Wx_Detail_REM E214 Elec'!G6 -> 1000 | M11: ='Wx_Detail_REM E214 Elec'!H6 -> 3500 | N11: ='Wx_Detail_REM E214 Elec'!I6 -> 500 | O11: ='Wx_Detail_REM E214 Elec'!J6 -> 2500 | P11: ='Wx_Detail_REM E214 Elec'!K6 -> 1011912.25 | Q11: ='Wx_Detail_REM E214 Elec'!L6 -> 0 | R11: ='Wx_Detail_REM E214 Elec'!M6 -> 1295885.7 | S11: ='Wx_Detail_REM E214 Elec'!N6 -> 1334694.92
B12: SpcHeat Detail_REM_E214 Elec | C12: E214 | E12: SF Existing Space Heat | H12: 18230628 | I12: ='SpcHeat Detail_REM_E214 Elec'!D6 -> 93115 | J12: ='SpcHeat Detail_REM_E214 Elec'!E6 -> 73653.965 | K12: ='SpcHeat Detail_REM_E214 Elec'!F6 -> 225000 | L12: ='SpcHeat Detail_REM_E214 Elec'!G6 -> 1000 | M12: ='SpcHeat Detail_REM_E214 Elec'!H6 -> 40000 | N12: ='SpcHeat Detail_REM_E214 Elec'!I6 -> 1500 | O12: ='SpcHeat Detail_REM_E214 Elec'!J6 -> 0 | P12: ='SpcHeat Detail_REM_E214 Elec'!K6 -> 4679800 | Q12: ='SpcHeat Detail_REM_E214 Elec'!L6 -> 0 | R12: ='SpcHeat Detail_REM_E214 Elec'!M6 -> 5114068.965 | S12: ='SpcHeat Detail_REM_E214 Elec'!N6 -> 9290926
C13: E214 | E13: Residential Midstream HVAC and Water Heat | H13: 18230162 | I13: ='HVAC&WH Mdsrm_E214_Elec'!D6 -> 116215 | J13: ='HVAC&WH Mdsrm_E214_Elec'!E6 -> 91926.065 | K13: ='HVAC&WH Mdsrm_E214_Elec'!F6 -> 0 | L13: ='HVAC&WH Mdsrm_E214_Elec'!G6 -> 1500 | M13: ='HVAC&WH Mdsrm_E214_Elec'!H6 -> 3000000 | N13: ='HVAC&WH Mdsrm_E214_Elec'!I6 -> 1500 | O13: ='HVAC&WH Mdsrm_E214_Elec'!J6 -> 0 | P13: ='HVAC&WH Mdsrm_E214_Elec'!K6 -> 3549020 | Q13: ='HVAC&WH Mdsrm_E214_Elec'!L6 -> 0 | R13: ='HVAC&WH Mdsrm_E214_Elec'!M6 -> 6760161.065 | S13: ='HVAC&WH Mdsrm_E214_Elec'!N6 -> 13776220
B14: HmAppplc_Detail_REM_E214 Elec | C14: E214 | E14: Home Appliances | H14: 18230434 | I14: ='HmAppplc_Detail_REM_E214 Elec'!D6 -> 65785 | J14: ='HmAppplc_Detail_REM_E214 Elec'!E6 -> 52035.935 | K14: ='HmAppplc_Detail_REM_E214 Elec'!F6 -> 60000 | L14: ='HmAppplc_Detail_REM_E214 Elec'!G6 -> 500 | M14: ='HmAppplc_Detail_REM_E214 Elec'!H6 -> 180000 | N14: ='HmAppplc_Detail_REM_E214 Elec'!I6 -> 500 | O14: ='HmAppplc_Detail_REM_E214 Elec'!J6 -> 0 | P14: ='HmAppplc_Detail_REM_E214 Elec'!K6 -> 553250 | Q14: ='HmAppplc_Detail_REM_E214 Elec'!L6 -> 0 | R14: ='HmAppplc_Detail_REM_E214 Elec'!M6 -> 912070.935 | S14: ='HmAppplc_Detail_REM_E214 Elec'!N6 -> 828090
B15: ShwrHead_Detail_REM_E214 Elec | C15: E214 | E15: Residential Water Use Reducers | H15: 18230435 | I15: ='Water Use Rdsrs_E214 Elec'!D6 -> 0 | J15: ='Water Use Rdsrs_E214 Elec'!E6 -> 0 | K15: ='Water Use Rdsrs_E214 Elec'!F6 -> 0 | L15: ='Water Use Rdsrs_E214 Elec'!G6 -> 0 | M15: ='Water Use Rdsrs_E214 Elec'!H6 -> 0 | N15: ='Water Use Rdsrs_E214 Elec'!I6 -> 0 | O15: ='Water Use Rdsrs_E214 Elec'!J6 -> 0 | P15: ='Water Use Rdsrs_E214 Elec'!K6 -> 0 | Q15: ='Water Use Rdsrs_E214 Elec'!L6 -> 0 | R15: ='Water Use Rdsrs_E214 Elec'!M6 -> 0 | S15: ='Water Use Rdsrs_E214 Elec'!N6 -> 0
B16: Lighting Detail_REM_E214 Elec | C16: E214 | E16: Energy Efficient Lighting Services | H16: 18230440 | I16: ='Lighting Detail_REM_E214 Elec'!D6 -> 96195 | J16: ='Lighting Detail_REM_E214 Elec'!E6 -> 76090.245 | K16: ='Lighting Detail_REM_E214 Elec'!F6 -> 80000 | L16: ='Lighting Detail_REM_E214 Elec'!G6 -> 1000 | M16: ='Lighting Detail_REM_E214 Elec'!H6 -> 118000 | N16: ='Lighting Detail_REM_E214 Elec'!I6 -> 200 | O16: ='Lighting Detail_REM_E214 Elec'!J6 -> 0 | P16: ='Lighting Detail_REM_E214 Elec'!K6 -> 366843 | Q16: ='Lighting Detail_REM_E214 Elec'!L6 -> 0 | R16: ='Lighting Detail_REM_E214 Elec'!M6 -> 738328.245 | S16: ='Lighting Detail_REM_E214 Elec'!N6 -> 633057.4
B17: HER Detail_REM_E214 elec. | C17: E214 | E17: Home Energy Reports | H17: 18230461 | I17: ='HER Detail_REM_E214 elec.'!D6 -> 68420 | J17: ='HER Detail_REM_E214 elec.'!E6 -> 54120.22 | K17: ='HER Detail_REM_E214 elec.'!F6 -> 0 | L17: ='HER Detail_REM_E214 elec.'!G6 -> 1200 | M17: ='HER Detail_REM_E214 elec.'!H6 -> 983299.66 | N17: ='HER Detail_REM_E214 elec.'!I6 -> 0 | O17: ='HER Detail_REM_E214 elec.'!J6 -> 0 | P17: ='HER Detail_REM_E214 elec.'!K6 -> 977643 | Q17: ='HER Detail_REM_E214 elec.'!L6 -> 0 | R17: ='HER Detail_REM_E214 elec.'!M6 -> 2084682.88 | S17: ='HER Detail_REM_E214 elec.'!N6 -> 46739220
B18: Web Tstat Detail_REM E214 Elec | C18: E214 | E18: Smart Thermostats | H18: 18230023 | I18: ='Web Tstat Detail_REM E214 Elec'!D6 -> 68200 | J18: ='Web Tstat Detail_REM E214 Elec'!E6 -> 53946.2 | K18: ='Web Tstat Detail_REM E214 Elec'!F6 -> 44000 | L18: ='Web Tstat Detail_REM E214 Elec'!G6 -> 100 | M18: ='Web Tstat Detail_REM E214 Elec'!H6 -> 450000 | N18: ='Web Tstat Detail_REM E214 Elec'!I6 -> 1000 | O18: ='Web Tstat Detail_REM E214 Elec'!J6 -> 0 | P18: ='Web Tstat Detail_REM E214 Elec'!K6 -> 454350 | Q18: ='Web Tstat Detail_REM E214 Elec'!L6 -> 0 | R18: ='Web Tstat Detail_REM E214 Elec'!M6 -> 1071596.2 | S18: ='Web Tstat Detail_REM E214 Elec'!N6 -> 762290
B19: SFNC Detail_REM E215 Elec | C19: E215 | E19: Single Family New Construction | H19: 18230405 | I19: ='SFNC Detail_REM E215 Elec'!D6 -> 39200 | J19: ='SFNC Detail_REM E215 Elec'!E6 -> 31007.2 | K19: ='SFNC Detail_REM E215 Elec'!F6 -> 10000 | L19: ='SFNC Detail_REM E215 Elec'!G6 -> 1000 | M19: ='SFNC Detail_REM E215 Elec'!H6 -> 6000 | N19: ='SFNC Detail_REM E215 Elec'!I6 -> 0 | O19: ='SFNC Detail_REM E215 Elec'!J6 -> 0 | P19: ='SFNC Detail_REM E215 Elec'!K6 -> 17500 | Q19: ='SFNC Detail_REM E215 Elec'!L6 -> 17500 | R19: ='SFNC Detail_REM E215 Elec'!M6 -> 122207.2 | S19: ='SFNC Detail_REM E215 Elec'!N6 -> 50000
B20: MfgHmNew Detail_REM E215 Elec | C20: E215 | E20: Manufactured Home New Construction | H20: 18230071 | I20: ='NCMfgHome Detail_REM E215 Elec'!D6 -> 30632.5 | J20: ='NCMfgHome Detail_REM E215 Elec'!E6 -> 24230.3075 | K20: ='NCMfgHome Detail_REM E215 Elec'!F6 -> 5000 | L20: ='NCMfgHome Detail_REM E215 Elec'!G6 -> 0 | M20: ='NCMfgHome Detail_REM E215 Elec'!H6 -> 54000 | N20: ='NCMfgHome Detail_REM E215 Elec'!I6 -> 0 | O20: ='NCMfgHome Detail_REM E215 Elec'!J6 -> 0 | P20: ='NCMfgHome Detail_REM E215 Elec'!K6 -> 182000 | Q20: ='NCMfgHome Detail_REM E215 Elec'!L6 -> 0 | R20: ='NCMfgHome Detail_REM E215 Elec'!M6 -> 295862.8075 | S20: ='NCMfgHome Detail_REM E215 Elec'!N6 -> 310276
B21: Efficiency Boost E217 Elec | C21: E214 & 217 | E21: Moderate Income Residences | H21: 18230751 | I21: ='Moderate Income_E217 Elec'!D6 -> 33050 | J21: ='Moderate Income_E217 Elec'!E6 -> 26142.55 | K21: ='Moderate Income_E217 Elec'!F6 -> 27000 | L21: ='Moderate Income_E217 Elec'!G6 -> 0 | M21: ='Moderate Income_E217 Elec'!H6 -> 0 | N21: ='Moderate Income_E217 Elec'!I6 -> 0 | O21: ='Moderate Income_E217 Elec'!J6 -> 0 | P21: ='Moderate Income_E217 Elec'!K6 -> 0 | Q21: ='Moderate Income_E217 Elec'!L6 -> 0 | R21: ='Moderate Income_E217 Elec'!M6 -> 86192.55 | S21: ='Moderate Income_E217 Elec'!N6 -> 0
B22: MF Retr Detail_REM E217 Elec | C22: E217 | E22: Multifamily Retrofit | H22: 18230407 | I22: ='MF Retr Detail_REM E217 Elec'!D6 -> 154715 | J22: ='MF Retr Detail_REM E217 Elec'!E6 -> 122379.565 | K22: ='MF Retr Detail_REM E217 Elec'!F6 -> 60000 | L22: ='MF Retr Detail_REM E217 Elec'!G6 -> 4000 | M22: ='MF Retr Detail_REM E217 Elec'!H6 -> 1365802.158 | N22: ='MF Retr Detail_REM E217 Elec'!I6 -> 0 | O22: ='MF Retr Detail_REM E217 Elec'!J6 -> 0 | P22: ='MF Retr Detail_REM E217 Elec'!K6 -> 7891900.7 | Q22: ='MF Retr Detail_REM E217 Elec'!L6 -> 0 | R22: ='MF Retr Detail_REM E217 Elec'!M6 -> 9598797.423 | S22: ='MF Retr Detail_REM E217 Elec'!N6 -> 9105347.72
B23: MF Retr Grants Detail_REM E217 Elec | C23: E217 | E23: State Grants | H23: 18230747 | I23: ='MF Retr-Grnts Detail_E217 Elect'!D6 -> 0 | J23: ='MF Retr-Grnts Detail_E217 Elect'!E6 -> 0 | K23: ='MF Retr-Grnts Detail_E217 Elect'!F6 -> 0 | L23: ='MF Retr-Grnts Detail_E217 Elect'!G6 -> 0 | M23: ='MF Retr-Grnts Detail_E217 Elect'!H6 -> 0 | N23: ='MF Retr-Grnts Detail_E217 Elect'!I6 -> 0 | O23: ='MF Retr-Grnts Detail_E217 Elect'!J6 -> 0 | P23: ='MF Retr-Grnts Detail_E217 Elect'!K6 -> 0 | Q23: ='MF Retr-Grnts Detail_E217 Elect'!L6 -> 0 | R23: ='MF Retr-Grnts Detail_E217 Elect'!M6 -> 0 | S23: ='MF Retr-Grnts Detail_E217 Elect'!N6 -> 0
B24: MFNC Detail_REM E218 Elec | C24: E218 | E24: Multi-Family New Construction | H24: 18230486 | I24: ='MFNC Detail_REM E218 Elec'!D6 -> 75445 | J24: ='MFNC Detail_REM E218 Elec'!E6 -> 59676.995 | K24: ='MFNC Detail_REM E218 Elec'!F6 -> 10000 | L24: ='MFNC Detail_REM E218 Elec'!G6 -> 1500 | M24: ='MFNC Detail_REM E218 Elec'!H6 -> 400000 | N24: ='MFNC Detail_REM E218 Elec'!I6 -> 200 | O24: ='MFNC Detail_REM E218 Elec'!J6 -> 0 | P24: ='MFNC Detail_REM E218 Elec'!K6 -> 1600000 | Q24: ='MFNC Detail_REM E218 Elec'!L6 -> 0 | R24: ='MFNC Detail_REM E218 Elec'!M6 -> 2146821.995 | S24: ='MFNC Detail_REM E218 Elec'!N6 -> 4000000
G25: Total, Residential Energy Management | I25: =SUM(I8:I24) -> 1220900 | J25: 965731.9 | K25: 868200 | L25: 17800 | M25: 6802361.818 | N25: 7250 | O25: 3000 | P25: 29635759.18 | Q25: 17500 | R25: 39538502.9 | S25: 90278435.54
C28: Business Energy Managment
E29: Commercial/Industrial Retrofit | I29: =SUM(I30:I34) -> 3120660.4 | J29: =SUM(J30:J34) -> 2435555.772 | K29: 133500 | L29: 30500 | M29: 1149530 | N29: 7000 | O29: 3000 | P29: 20300072 | Q29: 0 | R29: =SUM(R30:R34) -> 27179818.17 | S29: =SUM(S30:S34) -> 67050000
B30: CI Retr Detail_BEM E250 Elec | C30: E250 | E30: Retrofit Custom Grants | H30: 18230711 | I30: ='CI Retr Detail_BEM E250 Elec'!C6 -> 756879.2 | J30: ='CI Retr Detail_BEM E250 Elec'!D6 -> 591122.6552 | K30: ='CI Retr Detail_BEM E250 Elec'!E6 -> 50000 | L30: ='CI Retr Detail_BEM E250 Elec'!F6 -> 25000 | M30: ='CI Retr Detail_BEM E250 Elec'!G6 -> 466000 | N30: ='CI Retr Detail_BEM E250 Elec'!H6 -> 3500 | O30: ='CI Retr Detail_BEM E250 Elec'!I6 -> 0 | P30: ='CI Retr Detail_BEM E250 Elec'!J6 -> 5000072 | Q30: ='CI Retr Detail_BEM E250 Elec'!K6 -> 0 | R30: ='CI Retr Detail_BEM E250 Elec'!L6 -> 6892573.855 | S30: ='CI Retr Detail_BEM E250 Elec'!M6 -> 14900000
B31: BusLgtGrants_BEM E250 Elect | C31: E250 | E31: Custom Lighting Grants | H31: 18230724 | I31: ='BusLgtGrants_BEM E250 Elect'!C6 -> 1933500 | J31: ='BusLgtGrants_BEM E250 Elect'!D6 -> 1510063.5 | K31: ='BusLgtGrants_BEM E250 Elect'!E6 -> 47000 | L31: ='BusLgtGrants_BEM E250 Elect'!F6 -> 0 | M31: ='BusLgtGrants_BEM E250 Elect'!G6 -> 102500 | N31: ='BusLgtGrants_BEM E250 Elect'!H6 -> 3500 | O31: ='BusLgtGrants_BEM E250 Elect'!I6 -> 3000 | P31: ='BusLgtGrants_BEM E250 Elect'!J6 -> 12500000 | Q31: ='BusLgtGrants_BEM E250 Elect'!K6 -> 0 | R31: ='BusLgtGrants_BEM E250 Elect'!L6 -> 16099563.5 | S31: ='BusLgtGrants_BEM E250 Elect'!M6 -> 40000000
B32: CI Indust_BEM_E250_Elec | C32: E250 | E32: Industrial Programs | H32: 18231137 | I32: ='CI Indust_BEM_E250_Elec'!C6 -> 422281.2 | J32: ='CI Indust_BEM_E250_Elec'!D6 -> 329801.6172 | K32: ='CI Indust_BEM_E250_Elec'!E6 -> 27500 | L32: ='CI Indust_BEM_E250_Elec'!F6 -> 5500 | M32: ='CI Indust_BEM_E250_Elec'!G6 -> 86000 | N32: ='CI Indust_BEM_E250_Elec'!H6 -> 0 | O32: ='CI Indust_BEM_E250_Elec'!I6 -> 0 | P32: ='CI Indust_BEM_E250_Elec'!J6 -> 2800000 | Q32: ='CI Indust_BEM_E250_Elec'!K6 -> 0 | R32: ='CI Indust_BEM_E250_Elec'!L6 -> 3671082.817 | S32: ='CI Indust_BEM_E250_Elec'!M6 -> 10150000
C33: E250 | E33: Clean Buildings Accelerator | H33: 18230013 | I33: ='Cln Build Accel_E250_Elec'!C6 -> 0 | J33: ='Cln Build Accel_E250_Elec'!D6 -> 0 | K33: ='Cln Build Accel_E250_Elec'!E6 -> 9000 | L33: ='Cln Build Accel_E250_Elec'!F6 -> 0 | M33: ='Cln Build Accel_E250_Elec'!G6 -> 180030 | N33: ='Cln Build Accel_E250_Elec'!H6 -> 0 | O33: ='Cln Build Accel_E250_Elec'!I6 -> 0 | P33: ='Cln Build Accel_E250_Elec'!J6 -> 0 | Q33: ='Cln Build Accel_E250_Elec'!K6 -> 0 | R33: ='Cln Build Accel_E250_Elec'!L6 -> 189030 | S33: ='Cln Build Accel_E250_Elec'!M6 -> 500000
C34: E250 | E34: Virtual Commissioning Contractor Services | H34: 18230015 | I34: ='Virt Commiss_E250_Elec'!C6 -> 8000 | J34: ='Virt Commiss_E250_Elec'!D6 -> 4568 | K34: ='Virt Commiss_E250_Elec'!E6 -> 0 | L34: ='Virt Commiss_E250_Elec'!F6 -> 0 | M34: ='Virt Commiss_E250_Elec'!G6 -> 315000 | N34: ='Virt Commiss_E250_Elec'!H6 -> 0 | O34: ='Virt Commiss_E250_Elec'!I6 -> 0 | P34: ='Virt Commiss_E250_Elec'!J6 -> 0 | Q34: ='Virt Commiss_E250_Elec'!K6 -> 0 | R34: ='Virt Commiss_E250_Elec'!L6 -> 327568 | S34: ='Virt Commiss_E250_Elec'!M6 -> 1500000
B35: CI NC Detail_BEM E251 Elec | C35: E251 | E35: Commercial/Industrial New Construction | H35: 18230715 | I35: ='CI NC Detail_BEM E251 Elec'!C6 -> 334950 | J35: ='CI NC Detail_BEM E251 Elec'!D6 -> 261595.95 | K35: ='CI NC Detail_BEM E251 Elec'!E6 -> 22300 | L35: ='CI NC Detail_BEM E251 Elec'!F6 -> 4800 | M35: ='CI NC Detail_BEM E251 Elec'!G6 -> 174000 | N35: ='CI NC Detail_BEM E251 Elec'!H6 -> 5250 | O35: ='CI NC Detail_BEM E251 Elec'!I6 -> 0 | P35: ='CI NC Detail_BEM E251 Elec'!J6 -> 6212500 | Q35: ='CI NC Detail_BEM E251 Elec'!K6 -> 0 | R35: ='CI NC Detail_BEM E251 Elec'!L6 -> 7015395.95 | S35: ='CI NC Detail_BEM E251 Elec'!M6 -> 17500000
E36: Commercial Strategic Energy Management | I36: =SUM(I37:I39) -> 707475 | J36: =SUM(J37:J39) -> 552537.975 | K36: 4500 | L36: 17450 | M36: 300384 | N36: 200 | O36: 1500 | P36: 1150000 | Q36: 0 | R36: 2734046.975 | S36: 16000000
B37: RCM Detail_BEM E253 Elec | C37: E253 | E37: SEM | H37: 18230723 | I37: ='RCM Detail_BEM E253 Elec'!C6 -> 648725 | J37: ='RCM Detail_BEM E253 Elec'!D6 -> 506654.225 | K37: ='RCM Detail_BEM E253 Elec'!E6 -> 3500 | L37: ='RCM Detail_BEM E253 Elec'!F6 -> 16450 | M37: ='RCM Detail_BEM E253 Elec'!G6 -> 280384 | N37: ='RCM Detail_BEM E253 Elec'!H6 -> 200 | O37: ='RCM Detail_BEM E253 Elec'!I6 -> 1500 | P37: ='RCM Detail_BEM E253 Elec'!J6 -> 750000 | Q37: ='RCM Detail_BEM E253 Elec'!K6 -> 0 | R37: ='RCM Detail_BEM E253 Elec'!L6 -> 2207413.225 | S37: ='RCM Detail_BEM E253 Elec'!M6 -> 15000000
B38: ResAcctSW Detail_PSWE_Elec | C38: E253 | E38: Resource Accounting Software | H38: 18230502 | I38: ='ResAcctSW Detail_PSWE_Elec'!D6 -> 0 | J38: ='ResAcctSW Detail_PSWE_Elec'!E6 -> 0 | K38: ='ResAcctSW Detail_PSWE_Elec'!F6 -> 0 | L38: ='ResAcctSW Detail_PSWE_Elec'!G6 -> 0 | M38: ='ResAcctSW Detail_PSWE_Elec'!H6 -> 0 | N38: ='ResAcctSW Detail_PSWE_Elec'!I6 -> 0 | O38: ='ResAcctSW Detail_PSWE_Elec'!J6 -> 0 | P38: ='ResAcctSW Detail_PSWE_Elec'!K6 -> 0 | Q38: ='ResAcctSW Detail_PSWE_Elec'!L6 -> 0 | R38: ='ResAcctSW Detail_PSWE_Elec'!M6 -> 0 | S38: ='ResAcctSW Detail_PSWE_Elec'!N6 -> 0
C39: E253 | E39: Pay For Performance | H39: 18236102 | I39: ='Pay For Perf_E253_Elec'!C6 -> 58750 | J39: ='Pay For Perf_E253_Elec'!D6 -> 45883.75 | K39: ='Pay For Perf_E253_Elec'!E6 -> 1000 | L39: ='Pay For Perf_E253_Elec'!F6 -> 1000 | M39: ='Pay For Perf_E253_Elec'!G6 -> 20000 | N39: ='Pay For Perf_E253_Elec'!H6 -> 0 | O39: ='Pay For Perf_E253_Elec'!I6 -> 0 | P39: ='Pay For Perf_E253_Elec'!J6 -> 400000 | Q39: ='Pay For Perf_E253_Elec'!K6 -> 0 | R39: ='Pay For Perf_E253_Elec'!L6 -> 526633.75 | S39: ='Pay For Perf_E253_Elec'!M6 -> 1000000
E40: High Voltage, Self-Directed | I40: =SUM(I41:I42) -> 0 | J40: =SUM(J41:J42) -> 154427.6042 | K40: 0 | L40: 0 | M40: 0 | N40: 0 | O40: 0 | P40: 1499648 | Q40: =SUM(Q41:Q42) -> 0 | R40: 1654075.604 | S40: 1866286
B41: LPSD_Detail_449_Elec | C41: E258 | E41: 449 Customers | H41: 18230720 | I41: =LPSD_Detail_449_Elec!C6 -> 0 | J41: =LPSD_Detail_449_Elec!D6 -> 89821.19862 | K41: =LPSD_Detail_449_Elec!E6 -> 0 | L41: =LPSD_Detail_449_Elec!F6 -> 0 | M41: =LPSD_Detail_449_Elec!G6 -> 0 | N41: =LPSD_Detail_449_Elec!H6 -> 0 | O41: =LPSD_Detail_449_Elec!I6 -> 0 | P41: =LPSD_Detail_449_Elec!J6 -> 1145508.7 | Q41: =LPSD_Detail_449_Elec!K6 -> 0 | R41: =LPSD_Detail_449_Elec!L6 -> 1235329.899 | S41: =LPSD_Detail_449_Elec!M6 -> 1632014
B42: LPSD_Detail_Non-449 Elec | C42: E258 | E42: Non-449 Customers | H42: 18230721 | I42: ='LPSD_Detail_Non-449 Elec'!C6 -> 0 | J42: ='LPSD_Detail_Non-449 Elec'!D6 -> 64606.40562 | K42: ='LPSD_Detail_Non-449 Elec'!E6 -> 0 | L42: ='LPSD_Detail_Non-449 Elec'!F6 -> 0 | M42: ='LPSD_Detail_Non-449 Elec'!G6 -> 0 | N42: ='LPSD_Detail_Non-449 Elec'!H6 -> 0 | O42: ='LPSD_Detail_Non-449 Elec'!I6 -> 0 | P42: ='LPSD_Detail_Non-449 Elec'!J6 -> 354139.3 | Q42: ='LPSD_Detail_Non-449 Elec'!K6 -> 0 | R42: ='LPSD_Detail_Non-449 Elec'!L6 -> 418745.7056 | S42: ='LPSD_Detail_Non-449 Elec'!M6 -> 234272
B43: TechEval Detail_BEM E261 Elec | C43: E261 | E43: Technology Evaluation | H43: 18230448 | I43: ='TechEval Detail_BEM E261 Elec'!C6 -> 0 | J43: ='TechEval Detail_BEM E261 Elec'!D6 -> 0 | K43: ='TechEval Detail_BEM E261 Elec'!E6 -> 0 | L43: ='TechEval Detail_BEM E261 Elec'!F6 -> 0 | M43: ='TechEval Detail_BEM E261 Elec'!G6 -> 0 | N43: ='TechEval Detail_BEM E261 Elec'!H6 -> 0 | O43: ='TechEval Detail_BEM E261 Elec'!I6 -> 0 | P43: ='TechEval Detail_BEM E261 Elec'!J6 -> 0 | Q43: ='TechEval Detail_BEM E261 Elec'!K6 -> 0 | R43: ='TechEval Detail_BEM E261 Elec'!L6 -> 0 | S43: ='TechEval Detail_BEM E261 Elec'!M6 -> 0
C44: E262 | E44: Business Rebates | I44: =SUM(I45:I51) -> 447635 | J44: =SUM(J45:J51) -> 354079.285 | K44: 174200 | L44: 9700 | M44: 3268595.09 | N44: 1750 | O44: 1000 | P44: 11128801 | Q44: 0 | R44: 15385760.38 | S44: 37990370.4
B45: Comm Lgt Mkdn_E262 Elect | C45: E262 | E45: Lighting to Go--also referred to as Business Lighting Markdowns | H45: 18230714 | I45: ='Comm Lgt Mkdn_E262 Elect'!D6 -> 88520 | J45: ='Comm Lgt Mkdn_E262 Elect'!E6 -> 70019.32 | K45: ='Comm Lgt Mkdn_E262 Elect'!F6 -> 20000 | L45: ='Comm Lgt Mkdn_E262 Elect'!G6 -> 3500 | M45: ='Comm Lgt Mkdn_E262 Elect'!H6 -> 816520.09 | N45: ='Comm Lgt Mkdn_E262 Elect'!I6 -> 250 | O45: ='Comm Lgt Mkdn_E262 Elect'!J6 -> 250 | P45: ='Comm Lgt Mkdn_E262 Elect'!K6 -> 1581803 | Q45: ='Comm Lgt Mkdn_E262 Elect'!L6 -> 0 | R45: ='Comm Lgt Mkdn_E262 Elect'!M6 -> 2580862.41 | S45: ='Comm Lgt Mkdn_E262 Elect'!N6 -> 17087678.4
B46: Comm Kit-Laund_E262 Elect | C46: E262 | E46: Commercial Foodservice | H46: 18230716 | I46: ='Comm Foodservice_E262 Elect'!D6 -> 20955 | J46: ='Comm Foodservice_E262 Elect'!E6 -> 16575.405 | K46: ='Comm Foodservice_E262 Elect'!F6 -> 8200 | L46: ='Comm Foodservice_E262 Elect'!G6 -> 0 | M46: ='Comm Foodservice_E262 Elect'!H6 -> 275533 | N46: ='Comm Foodservice_E262 Elect'!I6 -> 0 | O46: ='Comm Foodservice_E262 Elect'!J6 -> 0 | P46: ='Comm Foodservice_E262 Elect'!K6 -> 593970 | Q46: ='Comm Foodservice_E262 Elect'!L6 -> 0 | R46: ='Comm Foodservice_E262 Elect'!M6 -> 915233.405 | S46: ='Comm Foodservice_E262 Elect'!N6 -> 1480197
B47: Comm HVAC_E262 Elect | C47: E262 | E47: Commercial HVAC Rebates | H47: 18230718 | I47: ='Comm HVAC_E262 Elect'!D6 -> 79250 | J47: ='Comm HVAC_E262 Elect'!E6 -> 62686.75 | K47: ='Comm HVAC_E262 Elect'!F6 -> 20000 | L47: ='Comm HVAC_E262 Elect'!G6 -> 500 | M47: ='Comm HVAC_E262 Elect'!H6 -> 24142 | N47: ='Comm HVAC_E262 Elect'!I6 -> 500 | O47: ='Comm HVAC_E262 Elect'!J6 -> 500 | P47: ='Comm HVAC_E262 Elect'!K6 -> 323300 | Q47: ='Comm HVAC_E262 Elect'!L6 -> 0 | R47: ='Comm HVAC_E262 Elect'!M6 -> 510878.75 | S47: ='Comm HVAC_E262 Elect'!N6 -> 1152985
C48: E262 | E48: Commercial Midstream HVAC and Water Heat | H48: 18230524 | I48: ='Comm Midstream_E262 Elect'!D6 -> 67265 | J48: ='Comm Midstream_E262 Elect'!E6 -> 53206.615 | K48: ='Comm Midstream_E262 Elect'!F6 -> 0 | L48: ='Comm Midstream_E262 Elect'!G6 -> 1000 | M48: ='Comm Midstream_E262 Elect'!H6 -> 350000 | N48: ='Comm Midstream_E262 Elect'!I6 -> 0 | O48: ='Comm Midstream_E262 Elect'!J6 -> 0 | P48: ='Comm Midstream_E262 Elect'!K6 -> 397500 | Q48: ='Comm Midstream_E262 Elect'!L6 -> 0 | R48: ='Comm Midstream_E262 Elect'!M6 -> 868971.615 | S48: ='Comm Midstream_E262 Elect'!N6 -> 1198310
B49: Sm Bus DI_E262 Elect | C49: E262 | E49: Small Business Direct Install | H49: 18231134 | I49: ='Sm Bus DI_E262 Elect'!D6 -> 107495 | J49: ='Sm Bus DI_E262 Elect'!E6 -> 85028.545 | K49: ='Sm Bus DI_E262 Elect'!F6 -> 86000 | L49: ='Sm Bus DI_E262 Elect'!G6 -> 3700 | M49: ='Sm Bus DI_E262 Elect'!H6 -> 1802400 | N49: ='Sm Bus DI_E262 Elect'!I6 -> 500 | O49: ='Sm Bus DI_E262 Elect'!J6 -> 250 | P49: ='Sm Bus DI_E262 Elect'!K6 -> 5352228 | Q49: ='Sm Bus DI_E262 Elect'!L6 -> 0 | R49: ='Sm Bus DI_E262 Elect'!M6 -> 7437601.545 | S49: ='Sm Bus DI_E262 Elect'!N6 -> 14400000
B50: Lodging DI_E262 Elec | C50: E262 | E50: Commercial General Rebates | H50: 1823nnnn | I50: ='Comm Genl Rbats_E262 Elec'!D6 -> 0 | J50: ='Comm Genl Rbats_E262 Elec'!E6 -> 0 | K50: ='Comm Genl Rbats_E262 Elec'!F6 -> 0 | L50: ='Comm Genl Rbats_E262 Elec'!G6 -> 0 | M50: ='Comm Genl Rbats_E262 Elec'!H6 -> 0 | N50: ='Comm Genl Rbats_E262 Elec'!I6 -> 0 | O50: ='Comm Genl Rbats_E262 Elec'!J6 -> 0 | P50: ='Comm Genl Rbats_E262 Elec'!K6 -> 0 | Q50: ='Comm Genl Rbats_E262 Elec'!L6 -> 0 | R50: ='Comm Genl Rbats_E262 Elec'!M6 -> 0 | S50: ='Comm Genl Rbats_E262 Elec'!N6 -> 0
C51: E262 | E51: Lodging Rebates | H51: 18230014 | I51: ='Lodging Rbats_E262 Elec'!D6 -> 84150 | J51: ='Lodging Rbats_E262 Elec'!E6 -> 66562.65 | K51: ='Lodging Rbats_E262 Elec'!F6 -> 40000 | L51: ='Lodging Rbats_E262 Elec'!G6 -> 1000 | M51: ='Lodging Rbats_E262 Elec'!H6 -> 0 | N51: ='Lodging Rbats_E262 Elec'!I6 -> 500 | O51: ='Lodging Rbats_E262 Elec'!J6 -> 0 | P51: ='Lodging Rbats_E262 Elec'!K6 -> 2880000 | Q51: ='Lodging Rbats_E262 Elec'!L6 -> 0 | R51: ='Lodging Rbats_E262 Elec'!M6 -> 3072212.65 | S51: ='Lodging Rbats_E262 Elec'!N6 -> 2671200
G52: Total, Business Energy Management | I52: =SUM(I30:I36)+I40+I43+I44 -> 4610720.4 | J52: =SUM(J30:J36)+J40+J43+J44 -> 3758196.587 | K52: =SUM(K30:K36)+K40+K43+K44 -> 334500 | L52: 62450 | M52: 4892509.09 | N52: 14200 | O52: 5500 | P52: 40291021 | Q52: 0 | R52: =SUM(R30:R36)+R40+R43+R44 -> 53969097.08 | S52: =SUM(S30:S36)+S40+S43+S44 -> 140406656.4
C55: Pilots With Uncertain Savings
B56: REM Pilots E249 Elec | C56: E249 | E56: Residential Pilots | I56: =SUM(I57:I59) -> 141850 | J56: =SUM(J57:J59) -> 112203.35 | K56: 30000 | L56: 0 | M56: =SUM(M57:M59) -> 150440 | N56: 56000 | O56: 0 | P56: 1470766.5 | Q56: 0 | R56: 1961259.85 | S56: 359450
C57: E249 | E57: Hybrid HP Pilot | H57: 18230526 | I57: ='Hybrid HP Pilot_Elec'!D6 -> 34050 | J57: ='Hybrid HP Pilot_Elec'!E6 -> 26933.55 | K57: ='Hybrid HP Pilot_Elec'!F6 -> 20000 | L57: ='Hybrid HP Pilot_Elec'!G6 -> 0 | M57: ='Hybrid HP Pilot_Elec'!H6 -> 75000 | N57: ='Hybrid HP Pilot_Elec'!I6 -> 56000 | O57: ='Hybrid HP Pilot_Elec'!J6 -> 0 | P57: ='Hybrid HP Pilot_Elec'!K6 -> 1470766.5 | Q57: ='Hybrid HP Pilot_Elec'!L6 -> 0 | R57: ='Hybrid HP Pilot_Elec'!M6 -> 1682750.05 | S57: ='Hybrid HP Pilot_Elec'!N6 -> 134750
C58: E249 | E58: Retail Choice | H58: 18230750 | I58: ='Retail Choice Pilot_Elec'!D6 -> 28875 | J58: ='Retail Choice Pilot_Elec'!E6 -> 22840.125 | K58: ='Retail Choice Pilot_Elec'!F6 -> 0 | L58: ='Retail Choice Pilot_Elec'!G6 -> 0 | M58: ='Retail Choice Pilot_Elec'!H6 -> 20000 | N58: ='Retail Choice Pilot_Elec'!I6 -> 0 | O58: ='Retail Choice Pilot_Elec'!J6 -> 0 | P58: ='Retail Choice Pilot_Elec'!K6 -> 0 | Q58: ='Retail Choice Pilot_Elec'!L6 -> 0 | R58: ='Retail Choice Pilot_Elec'!M6 -> 71715.125 | S58: ='Retail Choice Pilot_Elec'!N6 -> 0
C59: E249 | E59: Single Family AMI Engagement | H59: 18230749 | I59: ='SF AMI Engmt Pilot_Elec'!D6 -> 78925 | J59: ='SF AMI Engmt Pilot_Elec'!E6 -> 62429.675 | K59: ='SF AMI Engmt Pilot_Elec'!F6 -> 10000 | L59: ='SF AMI Engmt Pilot_Elec'!G6 -> 0 | M59: ='SF AMI Engmt Pilot_Elec'!H6 -> 55440 | N59: ='SF AMI Engmt Pilot_Elec'!I6 -> 0 | O59: ='SF AMI Engmt Pilot_Elec'!J6 -> 0 | P59: ='SF AMI Engmt Pilot_Elec'!K6 -> 0 | Q59: ='SF AMI Engmt Pilot_Elec'!L6 -> 0 | R59: ='SF AMI Engmt Pilot_Elec'!M6 -> 206794.675 | S59: ='SF AMI Engmt Pilot_Elec'!N6 -> 224700
B60: BEM Pilots E249 Elec | C60: E249 | E60: Commercial Pilots | I60: =SUM(I61) -> 0 | J60: =SUM(J61) -> 0 | K60: 0 | L60: 0 | M60: 0 | N60: 0 | O60: 0 | P60: 0 | Q60: 0 | R60: 0 | S60: =SUM(S61) -> 0
C61: E249 | E61: SMB AMI Engagement | H61: 18231128 | I61: ='SMB AMI Engmt Pilot_Elec'!E6 -> 0 | J61: ='SMB AMI Engmt Pilot_Elec'!F6 -> 0 | K61: ='SMB AMI Engmt Pilot_Elec'!G6 -> 0 | L61: ='SMB AMI Engmt Pilot_Elec'!H6 -> 0 | M61: ='SMB AMI Engmt Pilot_Elec'!I6 -> 0 | N61: ='SMB AMI Engmt Pilot_Elec'!J6 -> 0 | O61: ='SMB AMI Engmt Pilot_Elec'!K6 -> 0 | P61: ='SMB AMI Engmt Pilot_Elec'!L6 -> 0 | Q61: ='SMB AMI Engmt Pilot_Elec'!M6 -> 0 | R61: ='SMB AMI Engmt Pilot_Elec'!N6 -> 0 | S61: ='SMB AMI Engmt Pilot_Elec'!O6 -> 0
G62: Total, Pilots | I62: =SUM(I56)+I60 -> 141850 | J62: =SUM(J56)+J60 -> 112203.35 | K62: 30000 | L62: 0 | M62: 150440 | N62: 56000 | O62: 0 | P62: 1470766.5 | Q62: =SUM(Q56)+Q60 -> 0 | R62: 1961259.85 | S62: 359450
C66: Regional Efficiency Programs
B67: NEEA Detail_E254 elec | C67: E254 | E67: Northwest Energy Efficiency Alliance | H67: 18230421 | I67: ='NEEA Detail_E254 elec'!D6 -> 0 | J67: ='NEEA Detail_E254 elec'!E6 -> 0 | K67: ='NEEA Detail_E254 elec'!F6 -> 0 | L67: ='NEEA Detail_E254 elec'!G6 -> 0 | M67: ='NEEA Detail_E254 elec'!H6 -> 4916640 | N67: ='NEEA Detail_E254 elec'!I6 -> 0 | O67: ='NEEA Detail_E254 elec'!J6 -> 0 | P67: ='NEEA Detail_E254 elec'!K6 -> 0 | R67: ='NEEA Detail_E254 elec'!M6 -> 4916640 | S67: ='NEEA Detail_E254 elec'!N6 -> 14628413.35
B68: TDSM_Regnl_elec_e219 | C68: E219 | E68: Targeted DSM | H68: 18230134 | I68: ='TDSM_Regnl_E219 Elec'!D6 -> 276237.5 | J68: ='TDSM_Regnl_E219 Elec'!E6 -> 218503.8625 | K68: ='TDSM_Regnl_E219 Elec'!F6 -> 10000 | L68: ='TDSM_Regnl_E219 Elec'!G6 -> 1400 | M68: ='TDSM_Regnl_E219 Elec'!H6 -> 105000 | N68: ='TDSM_Regnl_E219 Elec'!I6 -> 0 | O68: ='TDSM_Regnl_E219 Elec'!J6 -> 0 | P68: ='TDSM_Regnl_E219 Elec'!K6 -> 52500 | Q68: ='TDSM_Regnl_E219 Elec'!L6 -> 0 | R68: ='TDSM_Regnl_E219 Elec'!M6 -> 663641.3625 | S68: ='TDSM_Regnl_E219 Elec'!N6 -> 0
B69: T&D Detail_Reg E292 elec | C69: E292 | E69: Transmission & Distribution | H69: 18230713 | I69: ='T&D Detail_Reg E292 elec'!C6 -> 0 | J69: ='T&D Detail_Reg E292 elec'!D6 -> 0 | K69: ='T&D Detail_Reg E292 elec'!E6 -> 0 | L69: ='T&D Detail_Reg E292 elec'!F6 -> 0 | M69: ='T&D Detail_Reg E292 elec'!G6 -> 0 | N69: ='T&D Detail_Reg E292 elec'!H6 -> 0 | O69: ='T&D Detail_Reg E292 elec'!I6 -> 0 | P69: ='T&D Detail_Reg E292 elec'!J6 -> 0 | R69: ='T&D Detail_Reg E292 elec'!L6 -> 0 | S69: ='T&D Detail_Reg E292 elec'!M6 -> 6000000
G70: Total, Regional Efficiency Programs | I70: =SUM(I67:I69) -> 276237.5 | J70: 218503.8625 | K70: 10000 | L70: 1400 | M70: 5021640 | N70: 0 | O70: 0 | P70: 52500 | Q70: 0 | R70: 5580281.362 | S70: 20628413.35
C74: Energy Efficiency Portfolio Support
B75: Data & Systm Svcs_Elect | E75: Data and Systems Services | H75: 18230745 | I75: ='Data & Systm Svcs_Elect'!D6 -> 440220 | J75: ='Data & Systm Svcs_Elect'!E6 -> 348214.02 | K75: ='Data & Systm Svcs_Elect'!F6 -> 0 | L75: ='Data & Systm Svcs_Elect'!G6 -> 8700 | M75: ='Data & Systm Svcs_Elect'!H6 -> 261000 | N75: ='Data & Systm Svcs_Elect'!I6 -> 0 | O75: ='Data & Systm Svcs_Elect'!J6 -> 0 | P75: ='Data & Systm Svcs_Elect'!K6 -> 0 | Q75: ='Data & Systm Svcs_Elect'!L6 -> 0 | R75: ='Data & Systm Svcs_Elect'!M6 -> 1058134.02
B76: Rebt Procg Detail_Elect | E76: Rebates Processing | H76: 18230507 | I76: ='Rebt Procg Detail_Elect'!D6 -> 514387.5 | J76: ='Rebt Procg Detail_Elect'!E6 -> 406880.5125 | K76: ='Rebt Procg Detail_Elect'!F6 -> 0 | L76: ='Rebt Procg Detail_Elect'!G6 -> 20000 | M76: ='Rebt Procg Detail_Elect'!H6 -> 116928 | N76: ='Rebt Procg Detail_Elect'!I6 -> 5000 | O76: ='Rebt Procg Detail_Elect'!J6 -> 0 | P76: ='Rebt Procg Detail_Elect'!K6 -> 0 | R76: ='Rebt Procg Detail_Elect'!M6 -> 1063196.012
B77: VTeam Detail_R&C_Elec | E77: Verification Team | H77: 18230418 | I77: ='Verifctn Team Detail Elec'!D6 -> 360789 | J77: ='Verifctn Team Detail Elec'!E6 -> 285384.099 | K77: ='Verifctn Team Detail Elec'!F6 -> 0 | L77: ='Verifctn Team Detail Elec'!G6 -> 20000 | M77: ='Verifctn Team Detail Elec'!H6 -> 58464 | N77: ='Verifctn Team Detail Elec'!I6 -> 7000 | O77: ='Verifctn Team Detail Elec'!J6 -> 0 | P77: ='Verifctn Team Detail Elec'!K6 -> 0 | Q77: ='Verifctn Team Detail Elec'!L6 -> 0 | R77: ='Verifctn Team Detail Elec'!M6 -> 731637.099
B78: ProgDev Detail_R&C_ Elec | E78: Programs Support | H78: 18230810 | I78: ='Progs Supp Detail_PS_ Elec'!D6 -> 600300 | J78: ='Progs Supp Detail_PS_ Elec'!E6 -> 474837.3 | K78: ='Progs Supp Detail_PS_ Elec'!F6 -> 0 | L78: ='Progs Supp Detail_PS_ Elec'!G6 -> 15660 | M78: ='Progs Supp Detail_PS_ Elec'!H6 -> 43500 | N78: ='Progs Supp Detail_PS_ Elec'!I6 -> 0 | O78: ='Progs Supp Detail_PS_ Elec'!J6 -> 0 | P78: ='Progs Supp Detail_PS_ Elec'!K6 -> 0 | Q78: ='Progs Supp Detail_PS_ Elec'!L6 -> 0 | R78: ='Progs Supp Detail_PS_ Elec'!M6 -> 1134297.3
B79: TradeAlly Detail_PS_ Elec | E79: Trade Ally Memberships | H79: 18230730 | I79: ='TradeAlly Detail_PS_ Elec'!D6 -> 0 | J79: ='TradeAlly Detail_PS_ Elec'!E6 -> 0 | K79: ='TradeAlly Detail_PS_ Elec'!F6 -> 0 | L79: ='TradeAlly Detail_PS_ Elec'!G6 -> 0 | M79: ='TradeAlly Detail_PS_ Elec'!H6 -> 121800 | N79: ='TradeAlly Detail_PS_ Elec'!I6 -> 0 | O79: ='TradeAlly Detail_PS_ Elec'!J6 -> 0 | P79: ='TradeAlly Detail_PS_ Elec'!K6 -> 0 | R79: ='TradeAlly Detail_PS_ Elec'!M6 -> 121800
B80: CAN_Elect | E80: Trade Ally Network (revenue + cost) | H80: 18230746 | I80: =REP_Elect!D6 -> 145750 | J80: =REP_Elect!E6 -> 115288.25 | K80: =REP_Elect!F6 -> 20000 | L80: =REP_Elect!G6 -> 5000 | M80: =REP_Elect!H6 -> 57500 | N80: =REP_Elect!I6 -> 1500 | O80: =REP_Elect!J6 -> 0 | P80: =REP_Elect!K6 -> 0 | Q80: =REP_Elect!L6 -> -276508.32 | R80: =REP_Elect!M6 -> 68529.93
B81: ABS Detail_PSWE_Elec | E81: Automated Benchmarking System | H81: 18230411 | I81: ='ABS Detail_PSWE_Elec'!D6 -> 154900 | J81: ='ABS Detail_PSWE_Elec'!E6 -> 122525.9 | K81: ='ABS Detail_PSWE_Elec'!F6 -> 0 | L81: ='ABS Detail_PSWE_Elec'!G6 -> 0 | M81: ='ABS Detail_PSWE_Elec'!H6 -> 560000 | N81: ='ABS Detail_PSWE_Elec'!I6 -> 0 | O81: ='ABS Detail_PSWE_Elec'!J6 -> 0 | P81: ='ABS Detail_PSWE_Elec'!K6 -> 0 | Q81: ='ABS Detail_PSWE_Elec'!K6 -> 0 | R81: ='ABS Detail_PSWE_Elec'!M6 -> 837425.9
B82: Engy Adv Detail_PSCE Elec | E82: Energy Advisors | H82: 18230610 | I82: ='Engy Adv Detail_PSCE Elec'!D6 -> 852665 | J82: ='Engy Adv Detail_PSCE Elec'!E6 -> 674458.015 | K82: ='Engy Adv Detail_PSCE Elec'!F6 -> 0 | L82: ='Engy Adv Detail_PSCE Elec'!G6 -> 44000 | M82: ='Engy Adv Detail_PSCE Elec'!H6 -> 1000 | N82: ='Engy Adv Detail_PSCE Elec'!I6 -> 0 | O82: ='Engy Adv Detail_PSCE Elec'!J6 -> 1350 | P82: ='Engy Adv Detail_PSCE Elec'!K6 -> 0 | Q82: ='Engy Adv Detail_PSCE Elec'!L6 -> 0 | R82: ='Engy Adv Detail_PSCE Elec'!M6 -> 1573473.015
B83: EEC Detail_PS_Elec | E83: Energy Efficient Communities | H83: 18230811 | I83: ='EEC Detail_PS_Elec'!D6 -> 646024.94 | J83: ='EEC Detail_PS_Elec'!E6 -> 511005.7275 | K83: ='EEC Detail_PS_Elec'!F6 -> 21780 | L83: ='EEC Detail_PS_Elec'!G6 -> 19416 | M83: ='EEC Detail_PS_Elec'!H6 -> 110000 | N83: ='EEC Detail_PS_Elec'!I6 -> 3821 | O83: ='EEC Detail_PS_Elec'!J6 -> 0 | P83: ='EEC Detail_PS_Elec'!K6 -> 0 | R83: ='EEC Detail_PS_Elec'!M6 -> 1312047.668
B84: CustOnline Detail_PSWE_Elec | D84: New Name | E84: Customer Digital Services | I84: =SUM(I85:I88) -> 257210 | J84: =SUM(J85:J88) -> 215577.67 | K84: 130000 | L84: 2500 | M84: 1378467.42 | N84: 0 | O84: 0 | P84: 0 | Q84: 0 | R84: 1999415.09
F85: Digital Experience | H85: 18230400 | I85: ='Dig Exprnc_Elec'!D5 -> 60900 | J85: ='Dig Exprnc_Elec'!E6 -> 60558.96 | K85: ='Dig Exprnc_Elec'!F6 -> 0 | L85: ='Dig Exprnc_Elec'!G6 -> 0 | M85: ='Dig Exprnc_Elec'!H6 -> 0 | N85: ='Dig Exprnc_Elec'!I6 -> 0 | O85: ='Dig Exprnc_Elec'!J6 -> 0 | P85: ='Dig Exprnc_Elec'!K6 -> 0 | Q85: ='Dig Exprnc_Elec'!L6 -> 0 | R85: ='Dig Exprnc_Elec'!M6 -> 137118.96
F86: Customer Digital Experience | H86: 18230408 | I86: ='Customer Dig Exprnc_Elec'!D5 -> 26250 | J86: ='Customer Dig Exprnc_Elec'!E5 -> 20501.25 | K86: ='Customer Dig Exprnc_Elec'!F5 -> 0 | L86: ='Customer Dig Exprnc_Elec'!G5 -> 0 | M86: ='Customer Dig Exprnc_Elec'!H5 -> 688576 | N86: ='Customer Dig Exprnc_Elec'!I5 -> 0 | O86: ='Customer Dig Exprnc_Elec'!J5 -> 0 | P86: ='Customer Dig Exprnc_Elec'!K5 -> 0 | Q86: ='Customer Dig Exprnc_Elec'!L5 -> 0 | R86: ='Customer Dig Exprnc_Elec'!M5 -> 735327.25
B87: CustAwarTools_elec | F87: Customer Awareness Tools | H87: 18230508 | I87: =CustAwarTools_Elect!D6 -> 60335 | J87: =CustAwarTools_Elect!E6 -> 47724.985 | K87: =CustAwarTools_Elect!F6 -> 0 | L87: =CustAwarTools_Elect!G6 -> 0 | M87: =CustAwarTools_Elect!H6 -> 679311.42 | N87: =CustAwarTools_Elect!I6 -> 0 | O87: =CustAwarTools_Elect!J6 -> 0 | P87: =CustAwarTools_Elect!K6 -> 0 | Q87: =CustAwarTools_Elect!L6 -> 0 | R87: =CustAwarTools_Elect!M6 -> 787371.405
B88: ShopPSE_elec | F88: PSE Marketplace | H88: 18230509 | I88: ='PSE Mktplce_elect'!D6 -> 109725 | J88: ='PSE Mktplce_elect'!E6 -> 86792.475 | K88: ='PSE Mktplce_elect'!F6 -> 130000 | L88: ='PSE Mktplce_elect'!G6 -> 2500 | M88: ='PSE Mktplce_elect'!H6 -> 10580 | N88: ='PSE Mktplce_elect'!I6 -> 0 | O88: ='PSE Mktplce_elect'!J6 -> 0 | P88: ='PSE Mktplce_elect'!K6 -> 0 | Q88: ='PSE Mktplce_elect'!L6 -> 0 | R88: ='PSE Mktplce_elect'!M6 -> 339597.475
B89: Mkt Intgn Detail_PSWE_Elec | E89: Market Integration | H89: 18230466 | I89: ='Mkt Intgn Detail_PSWE_Elec'!D6 -> 289080 | J89: ='Mkt Intgn Detail_PSWE_Elec'!E6 -> 228662.28 | K89: ='Mkt Intgn Detail_PSWE_Elec'!F6 -> 957000.01 | L89: ='Mkt Intgn Detail_PSWE_Elec'!G6 -> 0 | M89: ='Mkt Intgn Detail_PSWE_Elec'!H6 -> 31320 | N89: ='Mkt Intgn Detail_PSWE_Elec'!I6 -> 0 | O89: ='Mkt Intgn Detail_PSWE_Elec'!J6 -> 0 | P89: ='Mkt Intgn Detail_PSWE_Elec'!K6 -> 0 | R89: ='Mkt Intgn Detail_PSWE_Elec'!M6 -> 1506062.29
B90: Events Detail_PSCE Elec | E90: Events | H90: 18230487 | I90: ='Events Detail_PSCE Elec'!D6 -> 367675 | J90: ='Events Detail_PSCE Elec'!E6 -> 290830.925 | K90: ='Events Detail_PSCE Elec'!F6 -> 13000 | L90: ='Events Detail_PSCE Elec'!G6 -> 3905 | M90: ='Events Detail_PSCE Elec'!H6 -> 240090 | N90: ='Events Detail_PSCE Elec'!I6 -> 61335 | O90: ='Events Detail_PSCE Elec'!J6 -> 0 | P90: ='Events Detail_PSCE Elec'!K6 -> 0 | Q90: ='Events Detail_PSCE Elec'!L6 -> 0 | R90: ='Events Detail_PSCE Elec'!M6 -> 976835.925
G91: Total, Portfolio Support | I91: =SUM(I75:I84)+SUM(I89:I90) -> 4629001.44 | J91: 3673664.699 | K91: 1141780.01 | L91: 139181 | M91: 2980069.42 | N91: 78656 | O91: 1350 | P91: 0 | Q91: -276508.32 | R91: 12382854.25
C95: Research & Compliance
B96: SuppCrv Detail_R&C_Elec | E96: Conservation Supply Curves | H96: 18230809 | I96: ='SuppCrv Detail_R&C_Elec'!D6 -> 119315 | J96: ='SuppCrv Detail_R&C_Elec'!E6 -> 94378.165 | K96: ='SuppCrv Detail_R&C_Elec'!F6 -> 0 | L96: ='SuppCrv Detail_R&C_Elec'!G6 -> 1000 | M96: ='SuppCrv Detail_R&C_Elec'!H6 -> 277313 | N96: ='SuppCrv Detail_R&C_Elec'!I6 -> 0 | O96: ='SuppCrv Detail_R&C_Elec'!J6 -> 0 | P96: ='SuppCrv Detail_R&C_Elec'!K6 -> 0 | Q96: ='SuppCrv Detail_R&C_Elec'!L6 -> 0 | R96: ='SuppCrv Detail_R&C_Elec'!M6 -> 492006.165
B97: Strat Plan Detail_R&C_Elec | E97: Strategic Planning | H97: 18230469 | I97: ='Strat Plan Detail_R&C_Elec'!D6 -> 311025 | J97: ='Strat Plan Detail_R&C_Elec'!E6 -> 246020.775 | K97: ='Strat Plan Detail_R&C_Elec'!F6 -> 0 | L97: ='Strat Plan Detail_R&C_Elec'!G6 -> 4350 | M97: ='Strat Plan Detail_R&C_Elec'!H6 -> 0 | N97: ='Strat Plan Detail_R&C_Elec'!I6 -> 0 | O97: ='Strat Plan Detail_R&C_Elec'!J6 -> 0 | P97: ='Strat Plan Detail_R&C_Elec'!K6 -> 0 | Q97: ='Strat Plan Detail_R&C_Elec'!L6 -> 0 | R97: ='Strat Plan Detail_R&C_Elec'!M6 -> 561395.775
B98: Mktg Resch Detail_PS_ Elec | E98: Market Research | H98: 18230413 | I98: ='Mktg Resch Detail_PS_ Elec'!D6 -> 120582 | J98: ='Mktg Resch Detail_PS_ Elec'!E6 -> 95380.362 | K98: ='Mktg Resch Detail_PS_ Elec'!F6 -> 0 | L98: ='Mktg Resch Detail_PS_ Elec'!G6 -> 0 | M98: ='Mktg Resch Detail_PS_ Elec'!H6 -> 0 | N98: ='Mktg Resch Detail_PS_ Elec'!I6 -> 0 | O98: ='Mktg Resch Detail_PS_ Elec'!J6 -> 8700 | P98: ='Mktg Resch Detail_PS_ Elec'!K6 -> 0 | Q98: ='Mktg Resch Detail_PS_ Elec'!L6 -> 0 | R98: ='Mktg Resch Detail_PS_ Elec'!M6 -> 224662.362
B99: Eval Detail_R&C_Elec | E99: Program Evaluation | H99: 18230802 | I99: ='Eval Detail_R&C_Elec'!D6 -> 200970 | J99: ='Eval Detail_R&C_Elec'!E6 -> 158967.27 | K99: ='Eval Detail_R&C_Elec'!F6 -> 0 | L99: ='Eval Detail_R&C_Elec'!G6 -> 4350 | M99: ='Eval Detail_R&C_Elec'!H6 -> 1089964 | N99: ='Eval Detail_R&C_Elec'!I6 -> 0 | O99: ='Eval Detail_R&C_Elec'!J6 -> 221500 | P99: ='Eval Detail_R&C_Elec'!K6 -> 0 | Q99: ='Eval Detail_R&C_Elec'!L6 -> 0 | R99: ='Eval Detail_R&C_Elec'!M6 -> 1675751.27
B100: BECAR Detail_R&C Elec | E100: Biennial Elec. Consv. Aquisitn. Review | H100: 18230624 | I100: ='BECAR Detail_R&C Elec'!D6 -> 0 | J100: ='BECAR Detail_R&C Elec'!E6 -> 0 | K100: ='BECAR Detail_R&C Elec'!F6 -> 0 | L100: ='BECAR Detail_R&C Elec'!G6 -> 0 | M100: ='BECAR Detail_R&C Elec'!H6 -> 150000 | N100: ='BECAR Detail_R&C Elec'!I6 -> 0 | O100: ='BECAR Detail_R&C Elec'!J6 -> 0 | P100: ='BECAR Detail_R&C Elec'!K6 -> 0 | Q100: ='BECAR Detail_R&C Elec'!L6 -> 0 | R100: ='BECAR Detail_R&C Elec'!M6 -> 150000
G101: Total, Research & Compliance | I101: =SUM(I96:I100) -> 751892 | J101: 594746.572 | K101: 0 | L101: 9700 | M101: 1517277 | N101: 0 | O101: 230200 | P101: 0 | Q101: 0 | R101: 3103815.572
C105: Other Customer Programs
B106: Net Mtr Details_Oth Elec E150 | C106: E150 | E106: Net Metering | H106: 18230128 | I106: ='Net Mtr Details_Oth Elec E150'!D6 -> 562650 | J106: ='Net Mtr Details_Oth Elec E150'!E6 -> 445056.15 | K106: ='Net Mtr Details_Oth Elec E150'!F6 -> 0 | L106: ='Net Mtr Details_Oth Elec E150'!G6 -> 10000 | M106: ='Net Mtr Details_Oth Elec E150'!H6 -> 135000 | N106: ='Net Mtr Details_Oth Elec E150'!I6 -> 0 | O106: ='Net Mtr Details_Oth Elec E150'!J6 -> 3700000 | P106: ='Net Mtr Details_Oth Elec E150'!K6 -> 0 | R106: ='Net Mtr Details_Oth Elec E150'!M6 -> 4852706.15
B107: DemndResp_Detail_E249_Elec | C107: 249A, 271 | E107: Demand Response Pilot | H107: 18230133 | I107: =DmndResp_Detail_E249_Elec!D6 -> 0 | J107: =DmndResp_Detail_E249_Elec!E6 -> 0 | K107: =DmndResp_Detail_E249_Elec!F6 -> 0 | L107: =DmndResp_Detail_E249_Elec!G6 -> 0 | M107: =DmndResp_Detail_E249_Elec!H6 -> 300000 | N107: =DmndResp_Detail_E249_Elec!I6 -> 0 | O107: =DmndResp_Detail_E249_Elec!J6 -> 0 | P107: =DmndResp_Detail_E249_Elec!K6 -> 0 | Q107: =DmndResp_Detail_E249_Elec!L6 -> 0 | R107: =DmndResp_Detail_E249_Elec!M6 -> 300000
B108: DmndResp_Admin_E271_Elec | E108: Demand Response Admin | H108: 18230753 | I108: =DmndResp_Admin_E271_Elec!D6 -> 449300 | J108: =DmndResp_Admin_E271_Elec!E6 -> 355396.3 | K108: =DmndResp_Admin_E271_Elec!F6 -> 200000 | L108: =DmndResp_Admin_E271_Elec!G6 -> 0 | M108: =DmndResp_Admin_E271_Elec!H6 -> 100000 | N108: =DmndResp_Admin_E271_Elec!I6 -> 0 | O108: =DmndResp_Admin_E271_Elec!J6 -> 0 | P108: =DmndResp_Admin_E271_Elec!K6 -> 0 | Q108: =DmndResp_Admin_E271_Elec!L6 -> 0 | R108: =DmndResp_Admin_E271_Elec!M6 -> 1104696.3
G109: Total, Other Energy Efficiency Programs | I109: =SUM(I106:I108) -> 1011950 | J109: =SUM(J106:J108) -> 800452.45 | K109: 200000 | L109: 10000 | M109: 535000 | N109: 0 | O109: 3700000 | P109: 0 | Q109: 0 | R109: 6257402.45
G113: GRAND TOTAL, ELECTRIC PROGRAMS | I113: =I109+I101+I70+I62+I52+I25+I91 -> 12642551.34 | J113: 10123499.42 | K113: 2584480.01 | L113: 240531 | M113: 21899297.33 | N113: 156106 | O113: 3940050 | P113: 71450046.68 | Q113: -259008.32 | R113: =R109+R101+R91+R70+R62+R52+R25 -> 122793213.5 | S113: =S109+S101+S70+S62+S52+S25+S91 -> 251672955.3 | U113: =R113-P113 -> 51343166.78
S116: =S113/1000/8760 -> 28.72978942
G117: Budget Category Includes | H117: This is the main level of tracking expenditures and expenses in EES. Per FERC rules, all conservation order numbers start with a "1823nnnn", where "n" is some number. Cost elements apply to all order numbers (for instance, all conservation programs that | I117: Energy Efficiency program staff labor. Average FTE cost including management assessments. This Budget Category group includes assessments from Major Accounts management, Resource Planning, Corporate Communications management, IT specialists and some building maintenance allocations. | J117: Overhead--costs associated with primarily employee labor; benefits, for instance. For 2017, includes micro-overhead. | K117: Service and materials associated with the cost of printing program brochures, marketing pieces, advertising, banners, etc. Also includes marketing conducted by vendors and contractors. | L117: Costs associated with EE staff attending events, employee training, conferences, business meals, business parking, ferry & bridge tolls, mileage incurred on employee automobiles, office supplies, phones, subscriptions, software/hardware, etc. | M117: Contractors and vendors, such as PECI, Ecos, CostCo, EFI, etc. Legal expenses, technical services (CMS design, PSE.com web portals, etc.). These costs do NOT include brochure development, marketing pieces, (which are classified under MARKETING). These costs do NOT include incentives paid to customers by contractors. | N117: Primarily tools, trade show equipment, etc. | O117: This category should seldomly be used, and only expenses that cannot be classified under one of the above categories. | P117: All costs associated with rebates, grants, remuneration, value-added services that have a direct bearing on a customer's perceived value of PSE offerings. | Q117: Any amount that PSE is paid by a customer, partner, municipality or outside entity.

Sheet 2-year Sector View Gas
C2: Energy Efficiency 2022-2023 Budgets and Aggregate Program Savings
C3: Two-Year Sector View
C4: Natural Gas Programs | I4: Please see category descriptions at the bottom of the sector table.
I5: Budget Category
B6: Workbook Name | C6: Schedule | D6: Comment | E6: Description (Blue, indented text indicates a sub-total value) | H6: Order Number (Click on the order# below to link to the detail page) | I6: Labor | J6: Overhead | K6: Marketing | L6: Employee/Office Expense | M6: Outside Services | N6: Materials | O6: Miscellaneous | P6: DBtC | Q6: Revenue | R6: Total Budget | S6: Total Savings Therms
C7: Residential Energy Management
B8: LIW Detail_REM G201 Gas | C8: G201 | E8: Low Income Weatherization | H8: 18230661 | I8: ='2022 Sector View Gas'!I8+'2023 Sector View Gas'!I8 -> 71010 | J8: ='2022 Sector View Gas'!J8+'2023 Sector View Gas'!J8 -> 55830.035 | K8: ='2022 Sector View Gas'!K8+'2023 Sector View Gas'!K8 -> 21600 | L8: ='2022 Sector View Gas'!L8+'2023 Sector View Gas'!L8 -> 1000 | M8: ='2022 Sector View Gas'!M8+'2023 Sector View Gas'!M8 -> 5000 | N8: ='2022 Sector View Gas'!N8+'2023 Sector View Gas'!N8 -> 300 | O8: ='2022 Sector View Gas'!O8+'2023 Sector View Gas'!O8 -> 0 | P8: ='2022 Sector View Gas'!P8+'2023 Sector View Gas'!P8 -> 2127231.548 | Q8: ='2022 Sector View Gas'!Q8+'2023 Sector View Gas'!Q8 -> 0 | R8: ='2022 Sector View Gas'!R8+'2023 Sector View Gas'!R8 -> 2281971.583 | S8: ='2022 Sector View Gas'!S8+'2023 Sector View Gas'!S8 -> 40214.36
B9: WtrHeat Detail_REM G214 Gas | C9: G214 | E9: SF Existing Water Heat | H9: 18230249 | I9: ='2022 Sector View Gas'!I9+'2023 Sector View Gas'!I9 -> 130075 | J9: ='2022 Sector View Gas'!J9+'2023 Sector View Gas'!J9 -> 102889.325 | K9: ='2022 Sector View Gas'!K9+'2023 Sector View Gas'!K9 -> 80000 | L9: ='2022 Sector View Gas'!L9+'2023 Sector View Gas'!L9 -> 1000 | M9: ='2022 Sector View Gas'!M9+'2023 Sector View Gas'!M9 -> 2000 | N9: ='2022 Sector View Gas'!N9+'2023 Sector View Gas'!N9 -> 1000 | O9: ='2022 Sector View Gas'!O9+'2023 Sector View Gas'!O9 -> 3000 | P9: ='2022 Sector View Gas'!P9+'2023 Sector View Gas'!P9 -> 702580 | Q9: ='2022 Sector View Gas'!Q9+'2023 Sector View Gas'!Q9 -> 0 | R9: ='2022 Sector View Gas'!R9+'2023 Sector View Gas'!R9 -> 1022544.325 | S9: ='2022 Sector View Gas'!S9+'2023 Sector View Gas'!S9 -> 130784.45
B10: Wx Detail_REM G214 Gas | C10: G214 | E10: SF Existing Weatherization | H10: 18230637 | I10: ='2022 Sector View Gas'!I10+'2023 Sector View Gas'!I10 -> 166740 | J10: ='2022 Sector View Gas'!J10+'2023 Sector View Gas'!J10 -> 131891.34 | K10: ='2022 Sector View Gas'!K10+'2023 Sector View Gas'!K10 -> 80000 | L10: ='2022 Sector View Gas'!L10+'2023 Sector View Gas'!L10 -> 2000 | M10: ='2022 Sector View Gas'!M10+'2023 Sector View Gas'!M10 -> 7000 | N10: ='2022 Sector View Gas'!N10+'2023 Sector View Gas'!N10 -> 0 | O10: ='2022 Sector View Gas'!O10+'2023 Sector View Gas'!O10 -> 5000 | P10: ='2022 Sector View Gas'!P10+'2023 Sector View Gas'!P10 -> 4682822.89 | Q10: ='2022 Sector View Gas'!Q10+'2023 Sector View Gas'!Q10 -> 0 | R10: ='2022 Sector View Gas'!R10+'2023 Sector View Gas'!R10 -> 5075454.23 | S10: ='2022 Sector View Gas'!S10+'2023 Sector View Gas'!S10 -> 496780.1478
B11: SpHeat Detail_REM G214 Gas | C11: G214 | E11: SF Existing Space Heat | H11: 18230638 | I11: ='2022 Sector View Gas'!I11+'2023 Sector View Gas'!I11 -> 33915 | J11: ='2022 Sector View Gas'!J11+'2023 Sector View Gas'!J11 -> 26826.765 | K11: ='2022 Sector View Gas'!K11+'2023 Sector View Gas'!K11 -> 450000 | L11: ='2022 Sector View Gas'!L11+'2023 Sector View Gas'!L11 -> 2000 | M11: ='2022 Sector View Gas'!M11+'2023 Sector View Gas'!M11 -> 40000 | N11: ='2022 Sector View Gas'!N11+'2023 Sector View Gas'!N11 -> 3000 | O11: ='2022 Sector View Gas'!O11+'2023 Sector View Gas'!O11 -> 0 | P11: ='2022 Sector View Gas'!P11+'2023 Sector View Gas'!P11 -> 8936880 | Q11: ='2022 Sector View Gas'!Q11+'2023 Sector View Gas'!Q11 -> 0 | R11: ='2022 Sector View Gas'!R11+'2023 Sector View Gas'!R11 -> 9492621.765 | S11: ='2022 Sector View Gas'!S11+'2023 Sector View Gas'!S11 -> 1310709.41
C12: G214 | E12: Residential Midstream HVAC and Water Heat | H12: 18230161 | I12: ='2022 Sector View Gas'!I12+'2023 Sector View Gas'!I12 -> 0 | J12: ='2022 Sector View Gas'!J12+'2023 Sector View Gas'!J12 -> 0 | K12: ='2022 Sector View Gas'!K12+'2023 Sector View Gas'!K12 -> 0 | L12: ='2022 Sector View Gas'!L12+'2023 Sector View Gas'!L12 -> 0 | M12: ='2022 Sector View Gas'!M12+'2023 Sector View Gas'!M12 -> 0 | N12: ='2022 Sector View Gas'!N12+'2023 Sector View Gas'!N12 -> 0 | O12: ='2022 Sector View Gas'!O12+'2023 Sector View Gas'!O12 -> 0 | P12: ='2022 Sector View Gas'!P12+'2023 Sector View Gas'!P12 -> 0 | Q12: ='2022 Sector View Gas'!Q12+'2023 Sector View Gas'!Q12 -> 0 | R12: ='2022 Sector View Gas'!R12+'2023 Sector View Gas'!R12 -> 0 | S12: ='2022 Sector View Gas'!S12+'2023 Sector View Gas'!S12 -> 0
B13: ShwrHead Detail_REM G214 Gas | C13: G214 | E13: Residential Water Use Reducers | H13: 18230700 | I13: ='2022 Sector View Gas'!I13+'2023 Sector View Gas'!I13 -> 2275 | J13: ='2022 Sector View Gas'!J13+'2023 Sector View Gas'!J13 -> 1799.525 | K13: ='2022 Sector View Gas'!K13+'2023 Sector View Gas'!K13 -> 0 | L13: ='2022 Sector View Gas'!L13+'2023 Sector View Gas'!L13 -> 0 | M13: ='2022 Sector View Gas'!M13+'2023 Sector View Gas'!M13 -> 0 | N13: ='2022 Sector View Gas'!N13+'2023 Sector View Gas'!N13 -> 0 | O13: ='2022 Sector View Gas'!O13+'2023 Sector View Gas'!O13 -> 0 | P13: ='2022 Sector View Gas'!P13+'2023 Sector View Gas'!P13 -> 17.5 | Q13: ='2022 Sector View Gas'!Q13+'2023 Sector View Gas'!Q13 -> 0 | R13: ='2022 Sector View Gas'!R13+'2023 Sector View Gas'!R13 -> 4092.025 | S13: ='2022 Sector View Gas'!S13+'2023 Sector View Gas'!S13 -> 5.2
B14: HmApplSvgs Detail_REM G214 Gas | C14: G214 | E14: Home Appliances | H14: 1823gggg | I14: ='2022 Sector View Gas'!I14+'2023 Sector View Gas'!I14 -> 0 | J14: ='2022 Sector View Gas'!J14+'2023 Sector View Gas'!J14 -> 0 | K14: ='2022 Sector View Gas'!K14+'2023 Sector View Gas'!K14 -> 0 | L14: ='2022 Sector View Gas'!L14+'2023 Sector View Gas'!L14 -> 0 | M14: ='2022 Sector View Gas'!M14+'2023 Sector View Gas'!M14 -> 0 | N14: ='2022 Sector View Gas'!N14+'2023 Sector View Gas'!N14 -> 0 | O14: ='2022 Sector View Gas'!O14+'2023 Sector View Gas'!O14 -> 0 | P14: ='2022 Sector View Gas'!P14+'2023 Sector View Gas'!P14 -> 0 | Q14: ='2022 Sector View Gas'!Q14+'2023 Sector View Gas'!Q14 -> 0 | R14: ='2022 Sector View Gas'!R14+'2023 Sector View Gas'!R14 -> 0 | S14: ='2022 Sector View Gas'!S14+'2023 Sector View Gas'!S14 -> 12341.4
B15: WebTstat Detail_REM G214 Gas | C15: G214 | E15: Smart Thermostats | H15: 18230687 | I15: ='2022 Sector View Gas'!I15+'2023 Sector View Gas'!I15 -> 275625 | J15: ='2022 Sector View Gas'!J15+'2023 Sector View Gas'!J15 -> 218019.375 | K15: ='2022 Sector View Gas'!K15+'2023 Sector View Gas'!K15 -> 200000 | L15: ='2022 Sector View Gas'!L15+'2023 Sector View Gas'!L15 -> 4000 | M15: ='2022 Sector View Gas'!M15+'2023 Sector View Gas'!M15 -> 1185000 | N15: ='2022 Sector View Gas'!N15+'2023 Sector View Gas'!N15 -> 0 | O15: ='2022 Sector View Gas'!O15+'2023 Sector View Gas'!O15 -> 0 | P15: ='2022 Sector View Gas'!P15+'2023 Sector View Gas'!P15 -> 1790350 | Q15: ='2022 Sector View Gas'!Q15+'2023 Sector View Gas'!Q15 -> 0 | R15: ='2022 Sector View Gas'!R15+'2023 Sector View Gas'!R15 -> 3672994.375 | S15: ='2022 Sector View Gas'!S15+'2023 Sector View Gas'!S15 -> 583301.7
B16: HER Detail_REM G214 gas | C16: G214 | E16: Home Energy Reports | H16: 18230738 | I16: ='2022 Sector View Gas'!I16+'2023 Sector View Gas'!I16 -> 115185 | J16: ='2022 Sector View Gas'!J16+'2023 Sector View Gas'!J16 -> 91111.335 | K16: ='2022 Sector View Gas'!K16+'2023 Sector View Gas'!K16 -> 0 | L16: ='2022 Sector View Gas'!L16+'2023 Sector View Gas'!L16 -> 1100 | M16: ='2022 Sector View Gas'!M16+'2023 Sector View Gas'!M16 -> 1317448.24 | N16: ='2022 Sector View Gas'!N16+'2023 Sector View Gas'!N16 -> 0 | O16: ='2022 Sector View Gas'!O16+'2023 Sector View Gas'!O16 -> 0 | P16: ='2022 Sector View Gas'!P16+'2023 Sector View Gas'!P16 -> 1297130 | Q16: ='2022 Sector View Gas'!Q16+'2023 Sector View Gas'!Q16 -> 0 | R16: ='2022 Sector View Gas'!R16+'2023 Sector View Gas'!R16 -> 2821974.575 | S16: ='2022 Sector View Gas'!S16+'2023 Sector View Gas'!S16 -> 4283590
B17: SFNC Detail_REM G215 Gas | C17: G215 | E17: Single Family New Construction | H17: 18230684 | I17: ='2022 Sector View Gas'!I17+'2023 Sector View Gas'!I17 -> 31290 | J17: ='2022 Sector View Gas'!J17+'2023 Sector View Gas'!J17 -> 24750.39 | K17: ='2022 Sector View Gas'!K17+'2023 Sector View Gas'!K17 -> 0 | L17: ='2022 Sector View Gas'!L17+'2023 Sector View Gas'!L17 -> 0 | M17: ='2022 Sector View Gas'!M17+'2023 Sector View Gas'!M17 -> 0 | N17: ='2022 Sector View Gas'!N17+'2023 Sector View Gas'!N17 -> 0 | O17: ='2022 Sector View Gas'!O17+'2023 Sector View Gas'!O17 -> 0 | P17: ='2022 Sector View Gas'!P17+'2023 Sector View Gas'!P17 -> 31625 | Q17: ='2022 Sector View Gas'!Q17+'2023 Sector View Gas'!Q17 -> 0 | R17: ='2022 Sector View Gas'!R17+'2023 Sector View Gas'!R17 -> 87665.39 | S17: ='2022 Sector View Gas'!S17+'2023 Sector View Gas'!S17 -> 6195
B18: MfgHmNew Detail_REM E215 Elec | C18: E215 | E18: Manufactured Home New Construction | H18: 18230752 | I18: ='2022 Sector View Gas'!I18+'2023 Sector View Gas'!I18 -> 0 | J18: ='2022 Sector View Gas'!J18+'2023 Sector View Gas'!J18 -> 0 | K18: ='2022 Sector View Gas'!K18+'2023 Sector View Gas'!K18 -> 0 | L18: ='2022 Sector View Gas'!L18+'2023 Sector View Gas'!L18 -> 0 | M18: ='2022 Sector View Gas'!M18+'2023 Sector View Gas'!M18 -> 0 | N18: ='2022 Sector View Gas'!N18+'2023 Sector View Gas'!N18 -> 0 | O18: ='2022 Sector View Gas'!O18+'2023 Sector View Gas'!O18 -> 0 | P18: ='2022 Sector View Gas'!P18+'2023 Sector View Gas'!P18 -> 52800 | Q18: ='2022 Sector View Gas'!Q18+'2023 Sector View Gas'!Q18 -> 0 | R18: ='2022 Sector View Gas'!R18+'2023 Sector View Gas'!R18 -> 52800 | S18: ='2022 Sector View Gas'!S18+'2023 Sector View Gas'!S18 -> 3603.6
B19: Efficiency Boost G217 Gas | C19: G214 & 217 | E19: Moderate Income Residences | H19: 18230254 | I19: ='2022 Sector View Gas'!I19+'2023 Sector View Gas'!I19 -> 41100 | J19: ='2022 Sector View Gas'!J19+'2023 Sector View Gas'!J19 -> 32510.1 | K19: ='2022 Sector View Gas'!K19+'2023 Sector View Gas'!K19 -> 48000 | L19: ='2022 Sector View Gas'!L19+'2023 Sector View Gas'!L19 -> 0 | M19: ='2022 Sector View Gas'!M19+'2023 Sector View Gas'!M19 -> 0 | N19: ='2022 Sector View Gas'!N19+'2023 Sector View Gas'!N19 -> 0 | O19: ='2022 Sector View Gas'!O19+'2023 Sector View Gas'!O19 -> 0 | P19: ='2022 Sector View Gas'!P19+'2023 Sector View Gas'!P19 -> 0 | Q19: ='2022 Sector View Gas'!Q19+'2023 Sector View Gas'!Q19 -> 0 | R19: ='2022 Sector View Gas'!R19+'2023 Sector View Gas'!R19 -> 121610.1 | S19: ='2022 Sector View Gas'!S19+'2023 Sector View Gas'!S19 -> 0
B20: MF Retr Detail_REM G217 Gas | C20: G217 | E20: Multifamily Retrofit | H20: 18230736 | I20: ='2022 Sector View Gas'!I20+'2023 Sector View Gas'!I20 -> 47145 | J20: ='2022 Sector View Gas'!J20+'2023 Sector View Gas'!J20 -> 37291.695 | K20: ='2022 Sector View Gas'!K20+'2023 Sector View Gas'!K20 -> 7200 | L20: ='2022 Sector View Gas'!L20+'2023 Sector View Gas'!L20 -> 2000 | M20: ='2022 Sector View Gas'!M20+'2023 Sector View Gas'!M20 -> 104828.864 | N20: ='2022 Sector View Gas'!N20+'2023 Sector View Gas'!N20 -> 0 | O20: ='2022 Sector View Gas'!O20+'2023 Sector View Gas'!O20 -> 0 | P20: ='2022 Sector View Gas'!P20+'2023 Sector View Gas'!P20 -> 805050 | Q20: ='2022 Sector View Gas'!Q20+'2023 Sector View Gas'!Q20 -> 0 | R20: ='2022 Sector View Gas'!R20+'2023 Sector View Gas'!R20 -> 1003515.559 | S20: ='2022 Sector View Gas'!S20+'2023 Sector View Gas'!S20 -> 74877.76
B21: MF Retr Grants_REM G217 Gas | C21: G218 | E21: State Grants | H21: 1823xxxx | I21: ='2022 Sector View Gas'!I21+'2023 Sector View Gas'!I21 -> 0 | J21: ='2022 Sector View Gas'!J21+'2023 Sector View Gas'!J21 -> 0 | K21: ='2022 Sector View Gas'!K21+'2023 Sector View Gas'!K21 -> 0 | L21: ='2022 Sector View Gas'!L21+'2023 Sector View Gas'!L21 -> 0 | M21: ='2022 Sector View Gas'!M21+'2023 Sector View Gas'!M21 -> 0 | N21: ='2022 Sector View Gas'!N21+'2023 Sector View Gas'!N21 -> 0 | O21: ='2022 Sector View Gas'!O21+'2023 Sector View Gas'!O21 -> 0 | P21: ='2022 Sector View Gas'!P21+'2023 Sector View Gas'!P21 -> 0 | Q21: ='2022 Sector View Gas'!Q21+'2023 Sector View Gas'!Q21 -> 0 | R21: ='2022 Sector View Gas'!R21+'2023 Sector View Gas'!R21 -> 0 | S21: ='2022 Sector View Gas'!S21+'2023 Sector View Gas'!S21 -> 0
B22: MFNC Detail_REM G218 Gas | C22: G218 | E22: Multi-Family New Construction | H22: 18230673 | I22: ='2022 Sector View Gas'!I22+'2023 Sector View Gas'!I22 -> 34100 | J22: ='2022 Sector View Gas'!J22+'2023 Sector View Gas'!J22 -> 26973.1 | K22: ='2022 Sector View Gas'!K22+'2023 Sector View Gas'!K22 -> 15000 | L22: ='2022 Sector View Gas'!L22+'2023 Sector View Gas'!L22 -> 2000 | M22: ='2022 Sector View Gas'!M22+'2023 Sector View Gas'!M22 -> 100000 | N22: ='2022 Sector View Gas'!N22+'2023 Sector View Gas'!N22 -> 1000 | O22: ='2022 Sector View Gas'!O22+'2023 Sector View Gas'!O22 -> 0 | P22: ='2022 Sector View Gas'!P22+'2023 Sector View Gas'!P22 -> 325000 | Q22: ='2022 Sector View Gas'!Q22+'2023 Sector View Gas'!Q22 -> 0 | R22: ='2022 Sector View Gas'!R22+'2023 Sector View Gas'!R22 -> 504073.1 | S22: ='2022 Sector View Gas'!S22+'2023 Sector View Gas'!S22 -> 65000
G23: Total, Residential Energy Management | I23: =SUM(I8:I22) -> 948460 | J23: =SUM(J8:J22) -> 749892.985 | K23: 901800 | L23: 15100 | M23: 2761277.104 | N23: 5300 | O23: 8000 | P23: 20751486.94 | Q23: 0 | R23: 26141317.03 | S23: =SUM(S8:S22) -> 7007403.028
H25: 2020-2021 Figures | I25: 801261 | J25: 699500.853 | K25: 1047830 | L25: 19150 | M25: 2152078.804 | N25: 14300 | O25: 6800 | P25: 13929854.97 | Q25: 0 | R25: 18670775.63 | S25: 4389196.07
C27: Business Energy Management
E28: Commercial/Industrial Retrofit | I28: =SUM(I29:I32) -> 671590.6 | J28: 524103.7586 | K28: 6000 | L28: 2000 | M28: 272502 | N28: 0 | O28: 0 | P28: 3709957 | Q28: 0 | R28: =SUM(R29:R32) -> 5186153.359 | S28: =SUM(S29:S32) -> 1110268
B29: CI Retr Detail_BEM G250 Gas | C29: G250 | E29: Retrofit Custom Grants | H29: 18230731 | I29: ='2022 Sector View Gas'!I29+'2023 Sector View Gas'!I29 -> 493500 | J29: ='2022 Sector View Gas'!J29+'2023 Sector View Gas'!J29 -> 385435 | K29: ='2022 Sector View Gas'!K29+'2023 Sector View Gas'!K29 -> 6000 | L29: ='2022 Sector View Gas'!L29+'2023 Sector View Gas'!L29 -> 2000 | M29: ='2022 Sector View Gas'!M29+'2023 Sector View Gas'!M29 -> 20000 | N29: ='2022 Sector View Gas'!N29+'2023 Sector View Gas'!N29 -> 0 | O29: ='2022 Sector View Gas'!O29+'2023 Sector View Gas'!O29 -> 0 | P29: ='2022 Sector View Gas'!P29+'2023 Sector View Gas'!P29 -> 3180000 | Q29: ='2022 Sector View Gas'!Q29+'2023 Sector View Gas'!Q29 -> 0 | R29: ='2022 Sector View Gas'!R29+'2023 Sector View Gas'!R29 -> 4086935 | S29: ='2022 Sector View Gas'!S29+'2023 Sector View Gas'!S29 -> 860000
B30: CI Industrial BEM G250_Gas | C30: G250 | E30: Industrial Programs | H30: 18231037 | I30: ='2022 Sector View Gas'!I30+'2023 Sector View Gas'!I30 -> 176090.6 | J30: ='2022 Sector View Gas'!J30+'2023 Sector View Gas'!J30 -> 137526.7586 | K30: ='2022 Sector View Gas'!K30+'2023 Sector View Gas'!K30 -> 0 | L30: ='2022 Sector View Gas'!L30+'2023 Sector View Gas'!L30 -> 0 | M30: ='2022 Sector View Gas'!M30+'2023 Sector View Gas'!M30 -> 0 | N30: ='2022 Sector View Gas'!N30+'2023 Sector View Gas'!N30 -> 0 | O30: ='2022 Sector View Gas'!O30+'2023 Sector View Gas'!O30 -> 0 | P30: ='2022 Sector View Gas'!P30+'2023 Sector View Gas'!P30 -> 529957 | Q30: ='2022 Sector View Gas'!Q30+'2023 Sector View Gas'!Q30 -> 0 | R30: ='2022 Sector View Gas'!R30+'2023 Sector View Gas'!R30 -> 843574.3586 | S30: ='2022 Sector View Gas'!S30+'2023 Sector View Gas'!S30 -> 93268
C31: E250 | E31: Clean Buildings Accelerator | H31: 18230220 | I31: ='2022 Sector View Gas'!I31+'2023 Sector View Gas'!I31 -> 0 | J31: ='2022 Sector View Gas'!J31+'2023 Sector View Gas'!J31 -> 0 | K31: ='2022 Sector View Gas'!K31+'2023 Sector View Gas'!K31 -> 0 | L31: ='2022 Sector View Gas'!L31+'2023 Sector View Gas'!L31 -> 0 | M31: ='2022 Sector View Gas'!M31+'2023 Sector View Gas'!M31 -> 252502 | N31: ='2022 Sector View Gas'!N31+'2023 Sector View Gas'!N31 -> 0 | O31: ='2022 Sector View Gas'!O31+'2023 Sector View Gas'!O31 -> 0 | P31: ='2022 Sector View Gas'!P31+'2023 Sector View Gas'!P31 -> 0 | Q31: ='2022 Sector View Gas'!Q31+'2023 Sector View Gas'!Q31 -> 0 | R31: ='2022 Sector View Gas'!R31+'2023 Sector View Gas'!R31 -> 252502 | S31: ='2022 Sector View Gas'!S31+'2023 Sector View Gas'!S31 -> 150000
E32: Virtual Commissioning Contractor Services | H32: 18230223 | I32: ='2023 Sector View Gas'!I32 -> 2000 | J32: ='2023 Sector View Gas'!J32 -> 1142 | K32: ='2023 Sector View Gas'!K32 -> 0 | L32: ='2023 Sector View Gas'!L32 -> 0 | M32: ='2023 Sector View Gas'!M32 -> 0 | N32: ='2023 Sector View Gas'!N32 -> 0 | O32: ='2023 Sector View Gas'!O32 -> 0 | P32: ='2023 Sector View Gas'!P32 -> 0 | Q32: ='2023 Sector View Gas'!Q32 -> 0 | R32: ='2023 Sector View Gas'!R32 -> 3142 | S32: ='2023 Sector View Gas'!S32 -> 7000
B33: CI NC Detail_BEM G251 Gas | C33: G251 | E33: Commercial/Industrial New Construction | H33: 18230706 | I33: ='2022 Sector View Gas'!I32+'2023 Sector View Gas'!I33 -> 87890 | J33: ='2022 Sector View Gas'!J32+'2023 Sector View Gas'!J33 -> 68642.09 | K33: ='2022 Sector View Gas'!K32+'2023 Sector View Gas'!K33 -> 17000 | L33: ='2022 Sector View Gas'!L32+'2023 Sector View Gas'!L33 -> 4000 | M33: ='2022 Sector View Gas'!M32+'2023 Sector View Gas'!M33 -> 148000 | N33: ='2022 Sector View Gas'!N32+'2023 Sector View Gas'!N33 -> 4500 | O33: ='2022 Sector View Gas'!O32+'2023 Sector View Gas'!O33 -> 0 | P33: ='2022 Sector View Gas'!P32+'2023 Sector View Gas'!P33 -> 713000 | Q33: ='2022 Sector View Gas'!Q32+'2023 Sector View Gas'!Q33 -> 0 | R33: ='2022 Sector View Gas'!R32+'2023 Sector View Gas'!R33 -> 1043032.09 | S33: ='2022 Sector View Gas'!S32+'2023 Sector View Gas'!S33 -> 180000
E34: Commercial Strategic Energy Management | I34: ='2022 Sector View Gas'!I33+'2023 Sector View Gas'!I34 -> 542325 | J34: ='2022 Sector View Gas'!J33+'2023 Sector View Gas'!J34 -> 423555.825 | K34: ='2022 Sector View Gas'!K33+'2023 Sector View Gas'!K34 -> 3000 | L34: ='2022 Sector View Gas'!L33+'2023 Sector View Gas'!L34 -> 11900 | M34: ='2022 Sector View Gas'!M33+'2023 Sector View Gas'!M34 -> 237505 | N34: ='2022 Sector View Gas'!N33+'2023 Sector View Gas'!N34 -> 0 | O34: ='2022 Sector View Gas'!O33+'2023 Sector View Gas'!O34 -> 1000 | P34: ='2022 Sector View Gas'!P33+'2023 Sector View Gas'!P34 -> 383000 | Q34: ='2022 Sector View Gas'!Q33+'2023 Sector View Gas'!Q34 -> 0 | R34: ='2022 Sector View Gas'!R33+'2023 Sector View Gas'!R34 -> 1602285.825 | S34: ='2022 Sector View Gas'!S33+'2023 Sector View Gas'!S34 -> 973000
B35: RCM Detail_BEM 253 Gas | C35: G253 | E35: SEM | H35: 18230691 | I35: ='2022 Sector View Gas'!I34+'2023 Sector View Gas'!I35 -> 530775 | J35: ='2022 Sector View Gas'!J34+'2023 Sector View Gas'!J35 -> 414535.275 | K35: ='2022 Sector View Gas'!K34+'2023 Sector View Gas'!K35 -> 3000 | L35: ='2022 Sector View Gas'!L34+'2023 Sector View Gas'!L35 -> 11900 | M35: ='2022 Sector View Gas'!M34+'2023 Sector View Gas'!M35 -> 237505 | N35: ='2022 Sector View Gas'!N34+'2023 Sector View Gas'!N35 -> 0 | O35: ='2022 Sector View Gas'!O34+'2023 Sector View Gas'!O35 -> 1000 | P35: ='2022 Sector View Gas'!P34+'2023 Sector View Gas'!P35 -> 365000 | Q35: ='2022 Sector View Gas'!Q34+'2023 Sector View Gas'!Q35 -> 0 | R35: ='2022 Sector View Gas'!R34+'2023 Sector View Gas'!R35 -> 1563715.275 | S35: ='2022 Sector View Gas'!S34+'2023 Sector View Gas'!S35 -> 970000
B36: ResAcctSW Detail_PSWE_Gas | C36: G253 | E36: Resource Accounting Software | H36: 18231033 | I36: ='2022 Sector View Gas'!I35+'2023 Sector View Gas'!I36 -> 0 | J36: ='2022 Sector View Gas'!J35+'2023 Sector View Gas'!J36 -> 0 | K36: ='2022 Sector View Gas'!K35+'2023 Sector View Gas'!K36 -> 0 | L36: ='2022 Sector View Gas'!L35+'2023 Sector View Gas'!L36 -> 0 | M36: ='2022 Sector View Gas'!M35+'2023 Sector View Gas'!M36 -> 0 | N36: ='2022 Sector View Gas'!N35+'2023 Sector View Gas'!N36 -> 0 | O36: ='2022 Sector View Gas'!O35+'2023 Sector View Gas'!O36 -> 0 | P36: ='2022 Sector View Gas'!P35+'2023 Sector View Gas'!P36 -> 0 | Q36: ='2022 Sector View Gas'!Q35+'2023 Sector View Gas'!Q36 -> 0 | R36: ='2022 Sector View Gas'!R35+'2023 Sector View Gas'!R36 -> 0 | S36: ='2022 Sector View Gas'!S35+'2023 Sector View Gas'!S36 -> 0
